Workbook

Sheet MainDisplay
F2: CQG SPDR S&P Kensho Smart Mobility ETF | T2: Ribbon | V2: =RTD("cqg.rtd", ,"SystemInfo", "Linetime") -> 44334.3708
B4: Symbol | C4: Description (NC) (US Equities & ETFs Only) | G4: 5-min | H4: Bid | I4: Last Trade | J4: Ask | K4: NC | L4: %NC | M4: Open | N4: High | O4: Low
B5: S.HAIL | C5: =IFERROR(RTD("cqg.rtd",,"ContractData",B5,"LongDescription",,"T"),"")&" ("&P5&")" -> SPDR S&P Kensho Smart Mobility ETF (+.37) | H5: =IF(LEFT(B5,1)="","",IFERROR(TEXT(RTD("cqg.rtd", ,"ContractData", B5, "Bid",, "T"),W57),"")) -> 58.76 | I5: =IF(LEFT(B5,1)="","",IFERROR(TEXT(RTD("cqg.rtd", ,"ContractData", B5, "LastTrade",, "T"),W57),"")) -> 58.64 | J5: =IF(LEFT(B5,1)="","",IFERROR(TEXT(RTD("cqg.rtd", ,"ContractData", B5, "Ask",, "T"),W57),"")) -> 58.85 | K5: =IF(LEFT(B5,1)="","",IF(RTD("cqg.rtd",,"ContractData",B5,"NetLastTradeToday",,"T")="","",IFERROR(IF(RTD("cqg.rtd",,"ContractData",B5,"NetLastTradeToday",,"T")>0,"+","")&TEXT(RTD("cqg.rtd",,"ContractData",B5,"NetLastTradeToday",,"T"),W57),""))) -> +.37 | L5: =IFERROR(RTD("cqg.rtd", ,"ContractData", B5, "PerCentNetLastTrade",, "T")/100,"") -> 0.006349751158 | M5: =IF(LEFT(B5,1)="","",IFERROR(TEXT(RTD("cqg.rtd", ,"ContractData", B5, "Open",, "T"),W57),"")) -> 58.65 | N5: =IF(LEFT(B5,1)="","",IFERROR(TEXT(RTD("cqg.rtd", ,"ContractData", B5, "High",, "T"),W57),"")) -> 58.67 | O5: =IF(LEFT(B5,1)="","",IFERROR(TEXT(RTD("cqg.rtd", ,"ContractData", B5, "Low",, "T"),W57),"")) -> 58.27 | P5: =IF(LEFT(B5,1)="","",IF(RTD("cqg.rtd",,"ContractData",B5,"NetLastTradeToday",,"T")="","",IFERROR(IF(RTD("cqg.rtd",,"ContractData",B5,"NetLastTradeToday",,"T")>0,"+","")&TEXT(RTD("cqg.rtd",,"ContractData",B5,"NetLastTradeToday",,"T"),W57),""))) -> +.37 | R5: =IF(H5>I5,1,0) -> 1 | S5: =IF(J5<I5,1,0) -> 0 | Y5: =IF(N5-I5<=2*AA5,1,0) -> 0 | Z5: =IF(I5-O5<=2*AA5,1,0) -> 0 | AA5: =RTD("cqg.rtd", ,"ContractData", B5, "TickSize",, "T") -> 0.01
B6: S.SPY | C6: =IFERROR(RTD("cqg.rtd",,"ContractData",B6,"LongDescription",,"T"),"")&" ("&P6&")" -> SPDR S&P 500 (-.09) | H6: =IF(LEFT(B6,1)="","",IFERROR(TEXT(RTD("cqg.rtd", ,"ContractData", B6, "Bid",, "T"),W58),"")) -> 415.43 | I6: =IF(LEFT(B6,1)="","",IFERROR(TEXT(RTD("cqg.rtd", ,"ContractData", B6, "LastTrade",, "T"),W58),"")) -> 415.43 | J6: =IF(LEFT(B6,1)="","",IFERROR(TEXT(RTD("cqg.rtd", ,"ContractData", B6, "Ask",, "T"),W58),"")) -> 415.44 | K6: =IF(LEFT(B6,1)="","",IF(RTD("cqg.rtd",,"ContractData",B6,"NetLastTradeToday",,"T")="","",IFERROR(IF(RTD("cqg.rtd",,"ContractData",B6,"NetLastTradeToday",,"T")>0,"+","")&TEXT(RTD("cqg.rtd",,"ContractData",B6,"NetLastTradeToday",,"T"),W58),""))) -> -.09 | L6: =IFERROR(RTD("cqg.rtd", ,"ContractData", B6, "PerCentNetLastTrade",, "T")/100,"") -> -0.0002165960724 | M6: =IF(LEFT(B6,1)="","",IFERROR(TEXT(RTD("cqg.rtd", ,"ContractData", B6, "Open",, "T"),W58),"")) -> 415.80 | N6: =IF(LEFT(B6,1)="","",IFERROR(TEXT(RTD("cqg.rtd", ,"ContractData", B6, "High",, "T"),W58),"")) -> 416.06 | O6: =IF(LEFT(B6,1)="","",IFERROR(TEXT(RTD("cqg.rtd", ,"ContractData", B6, "Low",, "T"),W58),"")) -> 414.82 | P6: =IF(LEFT(B6,1)="","",IF(RTD("cqg.rtd",,"ContractData",B6,"NetLastTradeToday",,"T")="","",IFERROR(IF(RTD("cqg.rtd",,"ContractData",B6,"NetLastTradeToday",,"T")>0,"+","")&TEXT(RTD("cqg.rtd",,"ContractData",B6,"NetLastTradeToday",,"T"),W58),""))) -> -.09 | R6: =IF(H6>I6,1,0) -> 0 | S6: =IF(J6<I6,1,0) -> 0 | Y6: =IF(N6-I6<=2*AA6,1,0) -> 0 | Z6: =IF(I6-O6<=2*AA6,1,0) -> 0 | AA6: =RTD("cqg.rtd", ,"ContractData", B6, "TickSize",, "T") -> 0.01
B7: S.RYT | C7: =IFERROR(RTD("cqg.rtd",,"ContractData",B7,"LongDescription",,"T"),"")&" ("&P7&")" -> Invesco S&P 500 Eq Wt Technology ETF (.00) | H7: =IF(LEFT(B7,1)="","",IFERROR(TEXT(RTD("cqg.rtd", ,"ContractData", B7, "Bid",, "T"),W59),"")) -> 270.68 | I7: =IF(LEFT(B7,1)="","",IFERROR(TEXT(RTD("cqg.rtd", ,"ContractData", B7, "LastTrade",, "T"),W59),"")) -> 270.53 | J7: =IF(LEFT(B7,1)="","",IFERROR(TEXT(RTD("cqg.rtd", ,"ContractData", B7, "Ask",, "T"),W59),"")) -> 270.97 | K7: =IF(LEFT(B7,1)="","",IF(RTD("cqg.rtd",,"ContractData",B7,"NetLastTradeToday",,"T")="","",IFERROR(IF(RTD("cqg.rtd",,"ContractData",B7,"NetLastTradeToday",,"T")>0,"+","")&TEXT(RTD("cqg.rtd",,"ContractData",B7,"NetLastTradeToday",,"T"),W59),""))) -> .00 | L7: =IFERROR(RTD("cqg.rtd", ,"ContractData", B7, "PerCentNetLastTrade",, "T")/100,"") -> 0 | M7: =IF(LEFT(B7,1)="","",IFERROR(TEXT(RTD("cqg.rtd", ,"ContractData", B7, "Open",, "T"),W59),"")) -> 271.37 | N7: =IF(LEFT(B7,1)="","",IFERROR(TEXT(RTD("cqg.rtd", ,"ContractData", B7, "High",, "T"),W59),"")) -> 271.37 | O7: =IF(LEFT(B7,1)="","",IFERROR(TEXT(RTD("cqg.rtd", ,"ContractData", B7, "Low",, "T"),W59),"")) -> 270.53 | P7: =IF(LEFT(B7,1)="","",IF(RTD("cqg.rtd",,"ContractData",B7,"NetLastTradeToday",,"T")="","",IFERROR(IF(RTD("cqg.rtd",,"ContractData",B7,"NetLastTradeToday",,"T")>0,"+","")&TEXT(RTD("cqg.rtd",,"ContractData",B7,"NetLastTradeToday",,"T"),W59),""))) -> .00 | R7: 1 | S7: 0 | Y7: 0 | Z7: 1 | AA7: =RTD("cqg.rtd", ,"ContractData", B7, "TickSize",, "T") -> 0.01
B8: S.IWF | C8: =IFERROR(RTD("cqg.rtd",,"ContractData",B8,"LongDescription",,"T"),"")&" ("&P8&")" -> iShares Russell 1000 Growth ETF (+.36) | H8: =IF(LEFT(B8,1)="","",IFERROR(TEXT(RTD("cqg.rtd", ,"ContractData", B8, "Bid",, "T"),W60),"")) -> 250.59 | I8: =IF(LEFT(B8,1)="","",IFERROR(TEXT(RTD("cqg.rtd", ,"ContractData", B8, "LastTrade",, "T"),W60),"")) -> 250.61 | J8: =IF(LEFT(B8,1)="","",IFERROR(TEXT(RTD("cqg.rtd", ,"ContractData", B8, "Ask",, "T"),W60),"")) -> 250.63 | K8: =IF(LEFT(B8,1)="","",IF(RTD("cqg.rtd",,"ContractData",B8,"NetLastTradeToday",,"T")="","",IFERROR(IF(RTD("cqg.rtd",,"ContractData",B8,"NetLastTradeToday",,"T")>0,"+","")&TEXT(RTD("cqg.rtd",,"ContractData",B8,"NetLastTradeToday",,"T"),W60),""))) -> +.36 | L8: =IFERROR(RTD("cqg.rtd", ,"ContractData", B8, "PerCentNetLastTrade",, "T")/100,"") -> 0.001438561439 | M8: =IF(LEFT(B8,1)="","",IFERROR(TEXT(RTD("cqg.rtd", ,"ContractData", B8, "Open",, "T"),W60),"")) -> 250.63 | N8: =IF(LEFT(B8,1)="","",IFERROR(TEXT(RTD("cqg.rtd", ,"ContractData", B8, "High",, "T"),W60),"")) -> 251.09 | O8: =IF(LEFT(B8,1)="","",IFERROR(TEXT(RTD("cqg.rtd", ,"ContractData", B8, "Low",, "T"),W60),"")) -> 250.20 | P8: =IF(LEFT(B8,1)="","",IF(RTD("cqg.rtd",,"ContractData",B8,"NetLastTradeToday",,"T")="","",IFERROR(IF(RTD("cqg.rtd",,"ContractData",B8,"NetLastTradeToday",,"T")>0,"+","")&TEXT(RTD("cqg.rtd",,"ContractData",B8,"NetLastTradeToday",,"T"),W60),""))) -> +.36 | R8: 0 | S8: 0 | Y8: 0 | Z8: 0 | AA8: =RTD("cqg.rtd", ,"ContractData", B8, "TickSize",, "T") -> 0.01
B9: S.GLD | C9: =IFERROR(RTD("cqg.rtd",,"ContractData",B9,"LongDescription",,"T"),"")&" ("&P9&")" -> SPDR Gold Trust (+.11) | H9: =IF(LEFT(B9,1)="","",IFERROR(TEXT(RTD("cqg.rtd", ,"ContractData", B9, "Bid",, "T"),W61),"")) -> 174.79 | I9: =IF(LEFT(B9,1)="","",IFERROR(TEXT(RTD("cqg.rtd", ,"ContractData", B9, "LastTrade",, "T"),W61),"")) -> 174.81 | J9: =IF(LEFT(B9,1)="","",IFERROR(TEXT(RTD("cqg.rtd", ,"ContractData", B9, "Ask",, "T"),W61),"")) -> 174.80 | K9: =IF(LEFT(B9,1)="","",IF(RTD("cqg.rtd",,"ContractData",B9,"NetLastTradeToday",,"T")="","",IFERROR(IF(RTD("cqg.rtd",,"ContractData",B9,"NetLastTradeToday",,"T")>0,"+","")&TEXT(RTD("cqg.rtd",,"ContractData",B9,"NetLastTradeToday",,"T"),W61),""))) -> +.11 | L9: =IFERROR(RTD("cqg.rtd", ,"ContractData", B9, "PerCentNetLastTrade",, "T")/100,"") -> 0.00062965083 | M9: =IF(LEFT(B9,1)="","",IFERROR(TEXT(RTD("cqg.rtd", ,"ContractData", B9, "Open",, "T"),W61),"")) -> 175.23 | N9: =IF(LEFT(B9,1)="","",IFERROR(TEXT(RTD("cqg.rtd", ,"ContractData", B9, "High",, "T"),W61),"")) -> 175.57 | O9: =IF(LEFT(B9,1)="","",IFERROR(TEXT(RTD("cqg.rtd", ,"ContractData", B9, "Low",, "T"),W61),"")) -> 174.69 | P9: =IF(LEFT(B9,1)="","",IF(RTD("cqg.rtd",,"ContractData",B9,"NetLastTradeToday",,"T")="","",IFERROR(IF(RTD("cqg.rtd",,"ContractData",B9,"NetLastTradeToday",,"T")>0,"+","")&TEXT(RTD("cqg.rtd",,"ContractData",B9,"NetLastTradeToday",,"T"),W61),""))) -> +.11 | R9: 0 | S9: 1 | Y9: 0 | Z9: 0 | AA9: =RTD("cqg.rtd", ,"ContractData", B9, "TickSize",, "T") -> 0.01
B10: S.SLV | C10: =IFERROR(RTD("cqg.rtd",,"ContractData",B10,"LongDescription",,"T"),"")&" ("&P10&")" -> iShares Silver Trust (+.03) | H10: =IF(LEFT(B10,1)="","",IFERROR(TEXT(RTD("cqg.rtd", ,"ContractData", B10, "Bid",, "T"),W62),"")) -> 26.22 | I10: =IF(LEFT(B10,1)="","",IFERROR(TEXT(RTD("cqg.rtd", ,"ContractData", B10, "LastTrade",, "T"),W62),"")) -> 26.22 | J10: =IF(LEFT(B10,1)="","",IFERROR(TEXT(RTD("cqg.rtd", ,"ContractData", B10, "Ask",, "T"),W62),"")) -> 26.23 | K10: =IF(LEFT(B10,1)="","",IF(RTD("cqg.rtd",,"ContractData",B10,"NetLastTradeToday",,"T")="","",IFERROR(IF(RTD("cqg.rtd",,"ContractData",B10,"NetLastTradeToday",,"T")>0,"+","")&TEXT(RTD("cqg.rtd",,"ContractData",B10,"NetLastTradeToday",,"T"),W62),""))) -> +.03 | L10: =IFERROR(RTD("cqg.rtd", ,"ContractData", B10, "PerCentNetLastTrade",, "T")/100,"") -> 0.001145475372 | M10: =IF(LEFT(B10,1)="","",IFERROR(TEXT(RTD("cqg.rtd", ,"ContractData", B10, "Open",, "T"),W62),"")) -> 26.46 | N10: =IF(LEFT(B10,1)="","",IFERROR(TEXT(RTD("cqg.rtd", ,"ContractData", B10, "High",, "T"),W62),"")) -> 26.58 | O10: =IF(LEFT(B10,1)="","",IFERROR(TEXT(RTD("cqg.rtd", ,"ContractData", B10, "Low",, "T"),W62),"")) -> 26.19 | P10: =IF(LEFT(B10,1)="","",IF(RTD("cqg.rtd",,"ContractData",B10,"NetLastTradeToday",,"T")="","",IFERROR(IF(RTD("cqg.rtd",,"ContractData",B10,"NetLastTradeToday",,"T")>0,"+","")&TEXT(RTD("cqg.rtd",,"ContractData",B10,"NetLastTradeToday",,"T"),W62),""))) -> +.03 | R10: 0 | S10: 0 | Y10: 0 | Z10: 0 | AA10: =RTD("cqg.rtd", ,"ContractData", B10, "TickSize",, "T") -> 0.01
B11: S.USO | C11: =IFERROR(RTD("cqg.rtd",,"ContractData",B11,"LongDescription",,"T"),"")&" ("&P11&")" -> United States Oil Fund (-.16) | H11: =IF(LEFT(B11,1)="","",IFERROR(TEXT(RTD("cqg.rtd", ,"ContractData", B11, "Bid",, "T"),W63),"")) -> 45.20 | I11: =IF(LEFT(B11,1)="","",IFERROR(TEXT(RTD("cqg.rtd", ,"ContractData", B11, "LastTrade",, "T"),W63),"")) -> 45.20 | J11: =IF(LEFT(B11,1)="","",IFERROR(TEXT(RTD("cqg.rtd", ,"ContractData", B11, "Ask",, "T"),W63),"")) -> 45.21 | K11: =IF(LEFT(B11,1)="","",IF(RTD("cqg.rtd",,"ContractData",B11,"NetLastTradeToday",,"T")="","",IFERROR(IF(RTD("cqg.rtd",,"ContractData",B11,"NetLastTradeToday",,"T")>0,"+","")&TEXT(RTD("cqg.rtd",,"ContractData",B11,"NetLastTradeToday",,"T"),W63),""))) -> -.16 | L11: =IFERROR(RTD("cqg.rtd", ,"ContractData", B11, "PerCentNetLastTrade",, "T")/100,"") -> -0.003527336861 | M11: =IF(LEFT(B11,1)="","",IFERROR(TEXT(RTD("cqg.rtd", ,"ContractData", B11, "Open",, "T"),W63),"")) -> 45.39 | N11: =IF(LEFT(B11,1)="","",IFERROR(TEXT(RTD("cqg.rtd", ,"ContractData", B11, "High",, "T"),W63),"")) -> 45.39 | O11: =IF(LEFT(B11,1)="","",IFERROR(TEXT(RTD("cqg.rtd", ,"ContractData", B11, "Low",, "T"),W63),"")) -> 45.13 | P11: =IF(LEFT(B11,1)="","",IF(RTD("cqg.rtd",,"ContractData",B11,"NetLastTradeToday",,"T")="","",IFERROR(IF(RTD("cqg.rtd",,"ContractData",B11,"NetLastTradeToday",,"T")>0,"+","")&TEXT(RTD("cqg.rtd",,"ContractData",B11,"NetLastTradeToday",,"T"),W63),""))) -> -.16 | R11: 0 | S11: 0 | Y11: 0 | Z11: 0 | AA11: =RTD("cqg.rtd", ,"ContractData", B11, "TickSize",, "T") -> 0.01
B12: S.TSLA | C12: =IFERROR(RTD("cqg.rtd",,"ContractData",B12,"LongDescription",,"T"),"")&" ("&P12&")" -> Tesla, Inc. (-1.64) | H12: =IF(LEFT(B12,1)="","",IFERROR(TEXT(RTD("cqg.rtd", ,"ContractData", B12, "Bid",, "T"),W64),"")) -> 574.92 | I12: =IF(LEFT(B12,1)="","",IFERROR(TEXT(RTD("cqg.rtd", ,"ContractData", B12, "LastTrade",, "T"),W64),"")) -> 575.19 | J12: =IF(LEFT(B12,1)="","",IFERROR(TEXT(RTD("cqg.rtd", ,"ContractData", B12, "Ask",, "T"),W64),"")) -> 575.20 | K12: =IF(LEFT(B12,1)="","",IF(RTD("cqg.rtd",,"ContractData",B12,"NetLastTradeToday",,"T")="","",IFERROR(IF(RTD("cqg.rtd",,"ContractData",B12,"NetLastTradeToday",,"T")>0,"+","")&TEXT(RTD("cqg.rtd",,"ContractData",B12,"NetLastTradeToday",,"T"),W64),""))) -> -1.64 | L12: =IFERROR(RTD("cqg.rtd", ,"ContractData", B12, "PerCentNetLastTrade",, "T")/100,"") -> -0.002843125358 | M12: =IF(LEFT(B12,1)="","",IFERROR(TEXT(RTD("cqg.rtd", ,"ContractData", B12, "Open",, "T"),W64),"")) -> 568.00 | N12: =IF(LEFT(B12,1)="","",IFERROR(TEXT(RTD("cqg.rtd", ,"ContractData", B12, "High",, "T"),W64),"")) -> 575.87 | O12: =IF(LEFT(B12,1)="","",IFERROR(TEXT(RTD("cqg.rtd", ,"ContractData", B12, "Low",, "T"),W64),"")) -> 563.38 | P12: =IF(LEFT(B12,1)="","",IF(RTD("cqg.rtd",,"ContractData",B12,"NetLastTradeToday",,"T")="","",IFERROR(IF(RTD("cqg.rtd",,"ContractData",B12,"NetLastTradeToday",,"T")>0,"+","")&TEXT(RTD("cqg.rtd",,"ContractData",B12,"NetLastTradeToday",,"T"),W64),""))) -> -1.64 | R12: 0 | S12: 0 | Y12: 0 | Z12: 0 | AA12: =RTD("cqg.rtd", ,"ContractData", B12, "TickSize",, "T") -> 0.01
B13: Symbol | C13: Top 15 Description (NC) | G13: 5-min | H13: Bid | I13: Last Trade | J13: Ask | K13: NC | L13: %NC | M13: Open | N13: High | O13: Low | Q13: News
B14: =Sheet2!N1 -> NKLA | C14: =IF(LEFT(Sheet2!P1,1)="","",IFERROR(RTD("cqg.rtd",,"ContractData",Sheet2!P1,"LongDescription",,"T")&" ("&P14&")","")) -> Nikola Corporation (+1.02) | H14: =IF(LEFT(Sheet2!P1,1)="","",IFERROR(RTD("cqg.rtd", ,"ContractData", Sheet2!P1, "Bid",, "T"),"")) -> 13.97 | I14: =IF(LEFT(Sheet2!P1,1)="","",IFERROR(RTD("cqg.rtd", ,"ContractData", Sheet2!P1, "LastTrade",, "T"),"")) -> 13.98 | J14: =IF(LEFT(Sheet2!P1,1)="","",IFERROR(RTD("cqg.rtd", ,"ContractData", Sheet2!P1, "Ask",, "T"),"")) -> 13.98 | K14: =IF(LEFT(Sheet2!P1,1)="","",IFERROR(IF(RTD("cqg.rtd", ,"ContractData", Sheet2!P1, "NetLastTradeToday",, "T")>0,"+","")&TEXT(RTD("cqg.rtd", ,"ContractData", Sheet2!P1, "NetLastTradeToday",, "T"),"0.00"),"")) -> +1.02 | L14: =IFERROR(RTD("cqg.rtd", ,"ContractData", Sheet2!P1, "PerCentNetLastTrade",, "T")/100,"") -> 0.0787037037 | M14: =IF(LEFT(Sheet2!P1,1)="","",IFERROR(RTD("cqg.rtd", ,"ContractData", Sheet2!P1, "Open",, "T"),"")) -> 13.35 | N14: =IF(LEFT(Sheet2!P1,1)="","",IFERROR(RTD("cqg.rtd", ,"ContractData", Sheet2!P1, "High",, "T"),"")) -> 14.03 | O14: =IF(LEFT(Sheet2!P1,1)="","",IFERROR(RTD("cqg.rtd", ,"ContractData", Sheet2!P1, "Low",, "T"),"")) -> 13.07 | P14: =IF(LEFT(Sheet2!P1,1)="","",IFERROR(IF(RTD("cqg.rtd", ,"ContractData", Sheet2!P1, "NetLastTradeToday",, "T")>0,"+","")&TEXT(RTD("cqg.rtd", ,"ContractData", Sheet2!P1, "NetLastTradeToday",, "T"),"0.00"),"")) -> +1.02 | Q14: =Sheet2!Q1 -> 0 | R14: =IF(H14>I14,1,0) -> 0 | S14: =IF(J14<I14,1,0) -> 0 | Y14: 0 | Z14: =IF(I14-O14<=2*AA14,1,0) -> 0 | AA14: =RTD("cqg.rtd", ,"ContractData", Sheet2!P1, "TickSize",, "T") -> 0.01
B15: =Sheet2!N2 -> BLNK | C15: =IF(LEFT(Sheet2!P2,1)="","",IFERROR(RTD("cqg.rtd",,"ContractData",Sheet2!P2,"LongDescription",,"T")&" ("&P15&")","")) -> Blink Charging Co. (+1.88) | H15: =IF(LEFT(Sheet2!P2,1)="","",IFERROR(RTD("cqg.rtd", ,"ContractData", Sheet2!P2, "Bid",, "T"),"")) -> 32.56 | I15: =IF(LEFT(Sheet2!P2,1)="","",IFERROR(RTD("cqg.rtd", ,"ContractData", Sheet2!P2, "LastTrade",, "T"),"")) -> 32.63 | J15: =IF(LEFT(Sheet2!P2,1)="","",IFERROR(RTD("cqg.rtd", ,"ContractData", Sheet2!P2, "Ask",, "T"),"")) -> 32.63 | K15: =IF(LEFT(Sheet2!P2,1)="","",IFERROR(IF(RTD("cqg.rtd", ,"ContractData", Sheet2!P2, "NetLastTradeToday",, "T")>0,"+","")&TEXT(RTD("cqg.rtd", ,"ContractData", Sheet2!P2, "NetLastTradeToday",, "T"),"0.00"),"")) -> +1.88 | L15: =IFERROR(RTD("cqg.rtd", ,"ContractData", Sheet2!P2, "PerCentNetLastTrade",, "T")/100,"") -> 0.06113821138 | M15: =IF(LEFT(Sheet2!P2,1)="","",IFERROR(RTD("cqg.rtd", ,"ContractData", Sheet2!P2, "Open",, "T"),"")) -> 31.44 | N15: =IF(LEFT(Sheet2!P2,1)="","",IFERROR(RTD("cqg.rtd", ,"ContractData", Sheet2!P2, "High",, "T"),"")) -> 32.7 | O15: =IF(LEFT(Sheet2!P2,1)="","",IFERROR(RTD("cqg.rtd", ,"ContractData", Sheet2!P2, "Low",, "T"),"")) -> 30.94 | P15: =IF(LEFT(Sheet2!P2,1)="","",IFERROR(IF(RTD("cqg.rtd", ,"ContractData", Sheet2!P2, "NetLastTradeToday",, "T")>0,"+","")&TEXT(RTD("cqg.rtd", ,"ContractData", Sheet2!P2, "NetLastTradeToday",, "T"),"0.00"),"")) -> +1.88 | Q15: =Sheet2!Q2 -> 0 | R15: =IF(H15>I15,1,0) -> 0 | S15: =IF(J15<I15,1,0) -> 0 | Y15: =IF(N15-I15<=2*AA15,1,0) -> 0 | Z15: =IF(I15-O15<=2*AA15,1,0) -> 0 | AA15: =RTD("cqg.rtd", ,"ContractData", Sheet2!P2, "TickSize",, "T") -> 0.01
B16: =Sheet2!N3 -> LYFT | C16: =IF(LEFT(Sheet2!P3,1)="","",IFERROR(RTD("cqg.rtd",,"ContractData",Sheet2!P3,"LongDescription",,"T")&" ("&P16&")","")) -> Lyft, Inc. Class A (+2.44) | H16: =IF(LEFT(Sheet2!P3,1)="","",IFERROR(RTD("cqg.rtd", ,"ContractData", Sheet2!P3, "Bid",, "T"),"")) -> 52.15 | I16: =IF(LEFT(Sheet2!P3,1)="","",IFERROR(RTD("cqg.rtd", ,"ContractData", Sheet2!P3, "LastTrade",, "T"),"")) -> 52.15 | J16: =IF(LEFT(Sheet2!P3,1)="","",IFERROR(RTD("cqg.rtd", ,"ContractData", Sheet2!P3, "Ask",, "T"),"")) -> 52.17 | K16: =IF(LEFT(Sheet2!P3,1)="","",IFERROR(IF(RTD("cqg.rtd", ,"ContractData", Sheet2!P3, "NetLastTradeToday",, "T")>0,"+","")&TEXT(RTD("cqg.rtd", ,"ContractData", Sheet2!P3, "NetLastTradeToday",, "T"),"0.00"),"")) -> +2.44 | L16: =IFERROR(RTD("cqg.rtd", ,"ContractData", Sheet2!P3, "PerCentNetLastTrade",, "T")/100,"") -> 0.04908469121 | M16: =IF(LEFT(Sheet2!P3,1)="","",IFERROR(RTD("cqg.rtd", ,"ContractData", Sheet2!P3, "Open",, "T"),"")) -> 51.11 | N16: =IF(LEFT(Sheet2!P3,1)="","",IFERROR(RTD("cqg.rtd", ,"ContractData", Sheet2!P3, "High",, "T"),"")) -> 52.38 | O16: =IF(LEFT(Sheet2!P3,1)="","",IFERROR(RTD("cqg.rtd", ,"ContractData", Sheet2!P3, "Low",, "T"),"")) -> 51.03 | P16: =IF(LEFT(Sheet2!P3,1)="","",IFERROR(IF(RTD("cqg.rtd", ,"ContractData", Sheet2!P3, "NetLastTradeToday",, "T")>0,"+","")&TEXT(RTD("cqg.rtd", ,"ContractData", Sheet2!P3, "NetLastTradeToday",, "T"),"0.00"),"")) -> +2.44 | Q16: =Sheet2!Q3 -> 0 | R16: 0 | S16: 0 | Y16: =IF(N16-I16<=2*AA16,1,0) -> 0 | Z16: =IF(I16-O16<=2*AA16,1,0) -> 0 | AA16: =RTD("cqg.rtd", ,"ContractData", Sheet2!P3, "TickSize",, "T") -> 0.01
B17: =Sheet2!N4 -> UBER | C17: =IF(LEFT(Sheet2!P4,1)="","",IFERROR(RTD("cqg.rtd",,"ContractData",Sheet2!P4,"LongDescription",,"T")&" ("&P17&")","")) -> Uber Technologies, Inc. (+1.86) | H17: =IF(LEFT(Sheet2!P4,1)="","",IFERROR(RTD("cqg.rtd", ,"ContractData", Sheet2!P4, "Bid",, "T"),"")) -> 49.37 | I17: =IF(LEFT(Sheet2!P4,1)="","",IFERROR(RTD("cqg.rtd", ,"ContractData", Sheet2!P4, "LastTrade",, "T"),"")) -> 49.37 | J17: =IF(LEFT(Sheet2!P4,1)="","",IFERROR(RTD("cqg.rtd", ,"ContractData", Sheet2!P4, "Ask",, "T"),"")) -> 49.39 | K17: =IF(LEFT(Sheet2!P4,1)="","",IFERROR(IF(RTD("cqg.rtd", ,"ContractData", Sheet2!P4, "NetLastTradeToday",, "T")>0,"+","")&TEXT(RTD("cqg.rtd", ,"ContractData", Sheet2!P4, "NetLastTradeToday",, "T"),"0.00"),"")) -> +1.86 | L17: =IFERROR(RTD("cqg.rtd", ,"ContractData", Sheet2!P4, "PerCentNetLastTrade",, "T")/100,"") -> 0.0391496527 | M17: =IF(LEFT(Sheet2!P4,1)="","",IFERROR(RTD("cqg.rtd", ,"ContractData", Sheet2!P4, "Open",, "T"),"")) -> 49.67 | N17: =IF(LEFT(Sheet2!P4,1)="","",IFERROR(RTD("cqg.rtd", ,"ContractData", Sheet2!P4, "High",, "T"),"")) -> 49.9 | O17: =IF(LEFT(Sheet2!P4,1)="","",IFERROR(RTD("cqg.rtd", ,"ContractData", Sheet2!P4, "Low",, "T"),"")) -> 48.52 | P17: =IF(LEFT(Sheet2!P4,1)="","",IFERROR(IF(RTD("cqg.rtd", ,"ContractData", Sheet2!P4, "NetLastTradeToday",, "T")>0,"+","")&TEXT(RTD("cqg.rtd", ,"ContractData", Sheet2!P4, "NetLastTradeToday",, "T"),"0.00"),"")) -> +1.86 | Q17: =Sheet2!Q4 -> 0 | R17: 0 | S17: 0 | Y17: 0 | Z17: 0 | AA17: =RTD("cqg.rtd", ,"ContractData", Sheet2!P4, "TickSize",, "T") -> 0.01
B18: =Sheet2!N5 -> VNE | C18: =IF(LEFT(Sheet2!P5,1)="","",IFERROR(RTD("cqg.rtd",,"ContractData",Sheet2!P5,"LongDescription",,"T")&" ("&P18&")","")) -> Veoneer, Inc. (+0.72) | H18: =IF(LEFT(Sheet2!P5,1)="","",IFERROR(RTD("cqg.rtd", ,"ContractData", Sheet2!P5, "Bid",, "T"),"")) -> 22.87 | I18: =IF(LEFT(Sheet2!P5,1)="","",IFERROR(RTD("cqg.rtd", ,"ContractData", Sheet2!P5, "LastTrade",, "T"),"")) -> 22.9 | J18: =IF(LEFT(Sheet2!P5,1)="","",IFERROR(RTD("cqg.rtd", ,"ContractData", Sheet2!P5, "Ask",, "T"),"")) -> 22.97 | K18: =IF(LEFT(Sheet2!P5,1)="","",IFERROR(IF(RTD("cqg.rtd", ,"ContractData", Sheet2!P5, "NetLastTradeToday",, "T")>0,"+","")&TEXT(RTD("cqg.rtd", ,"ContractData", Sheet2!P5, "NetLastTradeToday",, "T"),"0.00"),"")) -> +0.72 | L18: =IFERROR(RTD("cqg.rtd", ,"ContractData", Sheet2!P5, "PerCentNetLastTrade",, "T")/100,"") -> 0.03246167719 | M18: =IF(LEFT(Sheet2!P5,1)="","",IFERROR(RTD("cqg.rtd", ,"ContractData", Sheet2!P5, "Open",, "T"),"")) -> 22.61 | N18: =IF(LEFT(Sheet2!P5,1)="","",IFERROR(RTD("cqg.rtd", ,"ContractData", Sheet2!P5, "High",, "T"),"")) -> 22.9 | O18: =IF(LEFT(Sheet2!P5,1)="","",IFERROR(RTD("cqg.rtd", ,"ContractData", Sheet2!P5, "Low",, "T"),"")) -> 22.51 | P18: =IF(LEFT(Sheet2!P5,1)="","",IFERROR(IF(RTD("cqg.rtd", ,"ContractData", Sheet2!P5, "NetLastTradeToday",, "T")>0,"+","")&TEXT(RTD("cqg.rtd", ,"ContractData", Sheet2!P5, "NetLastTradeToday",, "T"),"0.00"),"")) -> +0.72 | Q18: =Sheet2!Q5 -> 0 | R18: 0 | S18: 0 | Y18: 1 | Z18: 0 | AA18: =RTD("cqg.rtd", ,"ContractData", Sheet2!P5, "TickSize",, "T") -> 0.01
B19: =Sheet2!N6 -> F | C19: =IF(LEFT(Sheet2!P6,1)="","",IFERROR(RTD("cqg.rtd",,"ContractData",Sheet2!P6,"LongDescription",,"T")&" ("&P19&")","")) -> Ford Motor Company (+0.30) | H19: =IF(LEFT(Sheet2!P6,1)="","",IFERROR(RTD("cqg.rtd", ,"ContractData", Sheet2!P6, "Bid",, "T"),"")) -> 12.44 | I19: =IF(LEFT(Sheet2!P6,1)="","",IFERROR(RTD("cqg.rtd", ,"ContractData", Sheet2!P6, "LastTrade",, "T"),"")) -> 12.45 | J19: =IF(LEFT(Sheet2!P6,1)="","",IFERROR(RTD("cqg.rtd", ,"ContractData", Sheet2!P6, "Ask",, "T"),"")) -> 12.45 | K19: =IF(LEFT(Sheet2!P6,1)="","",IFERROR(IF(RTD("cqg.rtd", ,"ContractData", Sheet2!P6, "NetLastTradeToday",, "T")>0,"+","")&TEXT(RTD("cqg.rtd", ,"ContractData", Sheet2!P6, "NetLastTradeToday",, "T"),"0.00"),"")) -> +0.30 | L19: =IFERROR(RTD("cqg.rtd", ,"ContractData", Sheet2!P6, "PerCentNetLastTrade",, "T")/100,"") -> 0.02469135802 | M19: =IF(LEFT(Sheet2!P6,1)="","",IFERROR(RTD("cqg.rtd", ,"ContractData", Sheet2!P6, "Open",, "T"),"")) -> 12.29 | N19: =IF(LEFT(Sheet2!P6,1)="","",IFERROR(RTD("cqg.rtd", ,"ContractData", Sheet2!P6, "High",, "T"),"")) -> 12.53 | O19: =IF(LEFT(Sheet2!P6,1)="","",IFERROR(RTD("cqg.rtd", ,"ContractData", Sheet2!P6, "Low",, "T"),"")) -> 12.25 | P19: =IF(LEFT(Sheet2!P6,1)="","",IFERROR(IF(RTD("cqg.rtd", ,"ContractData", Sheet2!P6, "NetLastTradeToday",, "T")>0,"+","")&TEXT(RTD("cqg.rtd", ,"ContractData", Sheet2!P6, "NetLastTradeToday",, "T"),"0.00"),"")) -> +0.30 | Q19: =Sheet2!Q6 -> 0 | R19: 0 | S19: 0 | Y19: 0 | Z19: 0 | AA19: =RTD("cqg.rtd", ,"ContractData", Sheet2!P6, "TickSize",, "T") -> 0.01
B20: =Sheet2!N7 -> PLUG | C20: =IF(LEFT(Sheet2!P7,1)="","",IFERROR(RTD("cqg.rtd",,"ContractData",Sheet2!P7,"LongDescription",,"T")&" ("&P20&")","")) -> Plug Power, Inc. (+0.59) | H20: =IF(LEFT(Sheet2!P7,1)="","",IFERROR(RTD("cqg.rtd", ,"ContractData", Sheet2!P7, "Bid",, "T"),"")) -> 25.53 | I20: =IF(LEFT(Sheet2!P7,1)="","",IFERROR(RTD("cqg.rtd", ,"ContractData", Sheet2!P7, "LastTrade",, "T"),"")) -> 25.53 | J20: =IF(LEFT(Sheet2!P7,1)="","",IFERROR(RTD("cqg.rtd", ,"ContractData", Sheet2!P7, "Ask",, "T"),"")) -> 25.54 | K20: =IF(LEFT(Sheet2!P7,1)="","",IFERROR(IF(RTD("cqg.rtd", ,"ContractData", Sheet2!P7, "NetLastTradeToday",, "T")>0,"+","")&TEXT(RTD("cqg.rtd", ,"ContractData", Sheet2!P7, "NetLastTradeToday",, "T"),"0.00"),"")) -> +0.59 | L20: =IFERROR(RTD("cqg.rtd", ,"ContractData", Sheet2!P7, "PerCentNetLastTrade",, "T")/100,"") -> 0.02365677626 | M20: =IF(LEFT(Sheet2!P7,1)="","",IFERROR(RTD("cqg.rtd", ,"ContractData", Sheet2!P7, "Open",, "T"),"")) -> 25.31 | N20: =IF(LEFT(Sheet2!P7,1)="","",IFERROR(RTD("cqg.rtd", ,"ContractData", Sheet2!P7, "High",, "T"),"")) -> 25.61 | O20: =IF(LEFT(Sheet2!P7,1)="","",IFERROR(RTD("cqg.rtd", ,"ContractData", Sheet2!P7, "Low",, "T"),"")) -> 24.76 | P20: =IF(LEFT(Sheet2!P7,1)="","",IFERROR(IF(RTD("cqg.rtd", ,"ContractData", Sheet2!P7, "NetLastTradeToday",, "T")>0,"+","")&TEXT(RTD("cqg.rtd", ,"ContractData", Sheet2!P7, "NetLastTradeToday",, "T"),"0.00"),"")) -> +0.59 | Q20: =Sheet2!Q7 -> 0 | R20: 0 | S20: 0 | Y20: 0 | Z20: 0 | AA20: =RTD("cqg.rtd", ,"ContractData", Sheet2!P7, "TickSize",, "T") -> 0.01
B21: =Sheet2!N8 -> GILT | C21: =IF(LEFT(Sheet2!P8,1)="","",IFERROR(RTD("cqg.rtd",,"ContractData",Sheet2!P8,"LongDescription",,"T")&" ("&P21&")","")) -> Gilat Satellite Ntks Ltd (+0.19) | H21: =IF(LEFT(Sheet2!P8,1)="","",IFERROR(RTD("cqg.rtd", ,"ContractData", Sheet2!P8, "Bid",, "T"),"")) -> 8.95 | I21: =IF(LEFT(Sheet2!P8,1)="","",IFERROR(RTD("cqg.rtd", ,"ContractData", Sheet2!P8, "LastTrade",, "T"),"")) -> 8.98 | J21: =IF(LEFT(Sheet2!P8,1)="","",IFERROR(RTD("cqg.rtd", ,"ContractData", Sheet2!P8, "Ask",, "T"),"")) -> 8.99 | K21: =IF(LEFT(Sheet2!P8,1)="","",IFERROR(IF(RTD("cqg.rtd", ,"ContractData", Sheet2!P8, "NetLastTradeToday",, "T")>0,"+","")&TEXT(RTD("cqg.rtd", ,"ContractData", Sheet2!P8, "NetLastTradeToday",, "T"),"0.00"),"")) -> +0.19 | L21: =IFERROR(RTD("cqg.rtd", ,"ContractData", Sheet2!P8, "PerCentNetLastTrade",, "T")/100,"") -> 0.02161547213 | M21: =IF(LEFT(Sheet2!P8,1)="","",IFERROR(RTD("cqg.rtd", ,"ContractData", Sheet2!P8, "Open",, "T"),"")) -> 8.9 | N21: =IF(LEFT(Sheet2!P8,1)="","",IFERROR(RTD("cqg.rtd", ,"ContractData", Sheet2!P8, "High",, "T"),"")) -> 8.98 | O21: =IF(LEFT(Sheet2!P8,1)="","",IFERROR(RTD("cqg.rtd", ,"ContractData", Sheet2!P8, "Low",, "T"),"")) -> 8.78 | P21: =IF(LEFT(Sheet2!P8,1)="","",IFERROR(IF(RTD("cqg.rtd", ,"ContractData", Sheet2!P8, "NetLastTradeToday",, "T")>0,"+","")&TEXT(RTD("cqg.rtd", ,"ContractData", Sheet2!P8, "NetLastTradeToday",, "T"),"0.00"),"")) -> +0.19 | Q21: =Sheet2!Q8 -> 0 | R21: 0 | S21: 0 | Y21: 1 | Z21: 0 | AA21: =RTD("cqg.rtd", ,"ContractData", Sheet2!P8, "TickSize",, "T") -> 0.01
B22: =Sheet2!N9 -> AXL | C22: =IF(LEFT(Sheet2!P9,1)="","",IFERROR(RTD("cqg.rtd",,"ContractData",Sheet2!P9,"LongDescription",,"T")&" ("&P22&")","")) -> American Axle and Manufac (+0.22) | H22: =IF(LEFT(Sheet2!P9,1)="","",IFERROR(RTD("cqg.rtd", ,"ContractData", Sheet2!P9, "Bid",, "T"),"")) -> 11.02 | I22: =IF(LEFT(Sheet2!P9,1)="","",IFERROR(RTD("cqg.rtd", ,"ContractData", Sheet2!P9, "LastTrade",, "T"),"")) -> 11.03 | J22: =IF(LEFT(Sheet2!P9,1)="","",IFERROR(RTD("cqg.rtd", ,"ContractData", Sheet2!P9, "Ask",, "T"),"")) -> 11.04 | K22: =IF(LEFT(Sheet2!P9,1)="","",IFERROR(IF(RTD("cqg.rtd", ,"ContractData", Sheet2!P9, "NetLastTradeToday",, "T")>0,"+","")&TEXT(RTD("cqg.rtd", ,"ContractData", Sheet2!P9, "NetLastTradeToday",, "T"),"0.00"),"")) -> +0.22 | L22: =IFERROR(RTD("cqg.rtd", ,"ContractData", Sheet2!P9, "PerCentNetLastTrade",, "T")/100,"") -> 0.02035152636 | M22: =IF(LEFT(Sheet2!P9,1)="","",IFERROR(RTD("cqg.rtd", ,"ContractData", Sheet2!P9, "Open",, "T"),"")) -> 10.92 | N22: =IF(LEFT(Sheet2!P9,1)="","",IFERROR(RTD("cqg.rtd", ,"ContractData", Sheet2!P9, "High",, "T"),"")) -> 11.05 | O22: =IF(LEFT(Sheet2!P9,1)="","",IFERROR(RTD("cqg.rtd", ,"ContractData", Sheet2!P9, "Low",, "T"),"")) -> 10.81 | P22: =IF(LEFT(Sheet2!P9,1)="","",IFERROR(IF(RTD("cqg.rtd", ,"ContractData", Sheet2!P9, "NetLastTradeToday",, "T")>0,"+","")&TEXT(RTD("cqg.rtd", ,"ContractData", Sheet2!P9, "NetLastTradeToday",, "T"),"0.00"),"")) -> +0.22 | Q22: =Sheet2!Q9 -> 0 | R22: 0 | S22: 0 | Y22: 0 | Z22: 0 | AA22: =RTD("cqg.rtd", ,"ContractData", Sheet2!P9, "TickSize",, "T") -> 0.01
B23: =Sheet2!N10 -> BLDP | C23: =IF(LEFT(Sheet2!P10,1)="","",IFERROR(RTD("cqg.rtd",,"ContractData",Sheet2!P10,"LongDescription",,"T")&" ("&P23&")","")) -> Ballard Power System (+0.29) | H23: =IF(LEFT(Sheet2!P10,1)="","",IFERROR(RTD("cqg.rtd", ,"ContractData", Sheet2!P10, "Bid",, "T"),"")) -> 14.57 | I23: =IF(LEFT(Sheet2!P10,1)="","",IFERROR(RTD("cqg.rtd", ,"ContractData", Sheet2!P10, "LastTrade",, "T"),"")) -> 14.58 | J23: =IF(LEFT(Sheet2!P10,1)="","",IFERROR(RTD("cqg.rtd", ,"ContractData", Sheet2!P10, "Ask",, "T"),"")) -> 14.58 | K23: =IF(LEFT(Sheet2!P10,1)="","",IFERROR(IF(RTD("cqg.rtd", ,"ContractData", Sheet2!P10, "NetLastTradeToday",, "T")>0,"+","")&TEXT(RTD("cqg.rtd", ,"ContractData", Sheet2!P10, "NetLastTradeToday",, "T"),"0.00"),"")) -> +0.29 | L23: =IFERROR(RTD("cqg.rtd", ,"ContractData", Sheet2!P10, "PerCentNetLastTrade",, "T")/100,"") -> 0.02029391183 | M23: =IF(LEFT(Sheet2!P10,1)="","",IFERROR(RTD("cqg.rtd", ,"ContractData", Sheet2!P10, "Open",, "T"),"")) -> 14.42 | N23: =IF(LEFT(Sheet2!P10,1)="","",IFERROR(RTD("cqg.rtd", ,"ContractData", Sheet2!P10, "High",, "T"),"")) -> 14.61 | O23: =IF(LEFT(Sheet2!P10,1)="","",IFERROR(RTD("cqg.rtd", ,"ContractData", Sheet2!P10, "Low",, "T"),"")) -> 14.03 | P23: =IF(LEFT(Sheet2!P10,1)="","",IFERROR(IF(RTD("cqg.rtd", ,"ContractData", Sheet2!P10, "NetLastTradeToday",, "T")>0,"+","")&TEXT(RTD("cqg.rtd", ,"ContractData", Sheet2!P10, "NetLastTradeToday",, "T"),"0.00"),"")) -> +0.29 | Q23: =Sheet2!Q10 -> 0 | R23: 0 | S23: 0 | Y23: 0 | Z23: 0 | AA23: =RTD("cqg.rtd", ,"ContractData", Sheet2!P10, "TickSize",, "T") -> 0.01
B24: =Sheet2!N11 -> TTM | C24: =IF(LEFT(Sheet2!P11,1)="","",IFERROR(RTD("cqg.rtd",,"ContractData",Sheet2!P11,"LongDescription",,"T")&" ("&P24&")","")) -> Tata Motors Limited (+0.44) | H24: =IF(LEFT(Sheet2!P11,1)="","",IFERROR(RTD("cqg.rtd", ,"ContractData", Sheet2!P11, "Bid",, "T"),"")) -> 22.32 | I24: =IF(LEFT(Sheet2!P11,1)="","",IFERROR(RTD("cqg.rtd", ,"ContractData", Sheet2!P11, "LastTrade",, "T"),"")) -> 22.34 | J24: =IF(LEFT(Sheet2!P11,1)="","",IFERROR(RTD("cqg.rtd", ,"ContractData", Sheet2!P11, "Ask",, "T"),"")) -> 22.35 | K24: =IF(LEFT(Sheet2!P11,1)="","",IFERROR(IF(RTD("cqg.rtd", ,"ContractData", Sheet2!P11, "NetLastTradeToday",, "T")>0,"+","")&TEXT(RTD("cqg.rtd", ,"ContractData", Sheet2!P11, "NetLastTradeToday",, "T"),"0.00"),"")) -> +0.44 | L24: =IFERROR(RTD("cqg.rtd", ,"ContractData", Sheet2!P11, "PerCentNetLastTrade",, "T")/100,"") -> 0.0200913242 | M24: =IF(LEFT(Sheet2!P11,1)="","",IFERROR(RTD("cqg.rtd", ,"ContractData", Sheet2!P11, "Open",, "T"),"")) -> 21.79 | N24: =IF(LEFT(Sheet2!P11,1)="","",IFERROR(RTD("cqg.rtd", ,"ContractData", Sheet2!P11, "High",, "T"),"")) -> 22.36 | O24: =IF(LEFT(Sheet2!P11,1)="","",IFERROR(RTD("cqg.rtd", ,"ContractData", Sheet2!P11, "Low",, "T"),"")) -> 21.79 | P24: =IF(LEFT(Sheet2!P11,1)="","",IFERROR(IF(RTD("cqg.rtd", ,"ContractData", Sheet2!P11, "NetLastTradeToday",, "T")>0,"+","")&TEXT(RTD("cqg.rtd", ,"ContractData", Sheet2!P11, "NetLastTradeToday",, "T"),"0.00"),"")) -> +0.44 | Q24: =Sheet2!Q11 -> 0 | R24: 0 | S24: 0 | Y24: 1 | Z24: 0 | AA24: =RTD("cqg.rtd", ,"ContractData", Sheet2!P11, "TickSize",, "T") -> 0.01
B25: =Sheet2!N12 -> WKHS | C25: =IF(LEFT(Sheet2!P12,1)="","",IFERROR(RTD("cqg.rtd",,"ContractData",Sheet2!P12,"LongDescription",,"T")&" ("&P25&")","")) -> Workhorse Group, Inc. (+0.16) | H25: =IF(LEFT(Sheet2!P12,1)="","",IFERROR(RTD("cqg.rtd", ,"ContractData", Sheet2!P12, "Bid",, "T"),"")) -> 8.41 | I25: =IF(LEFT(Sheet2!P12,1)="","",IFERROR(RTD("cqg.rtd", ,"ContractData", Sheet2!P12, "LastTrade",, "T"),"")) -> 8.41 | J25: =IF(LEFT(Sheet2!P12,1)="","",IFERROR(RTD("cqg.rtd", ,"ContractData", Sheet2!P12, "Ask",, "T"),"")) -> 8.42 | K25: =IF(LEFT(Sheet2!P12,1)="","",IFERROR(IF(RTD("cqg.rtd", ,"ContractData", Sheet2!P12, "NetLastTradeToday",, "T")>0,"+","")&TEXT(RTD("cqg.rtd", ,"ContractData", Sheet2!P12, "NetLastTradeToday",, "T"),"0.00"),"")) -> +0.16 | L25: =IFERROR(RTD("cqg.rtd", ,"ContractData", Sheet2!P12, "PerCentNetLastTrade",, "T")/100,"") -> 0.01939393939 | M25: =IF(LEFT(Sheet2!P12,1)="","",IFERROR(RTD("cqg.rtd", ,"ContractData", Sheet2!P12, "Open",, "T"),"")) -> 8.27 | N25: =IF(LEFT(Sheet2!P12,1)="","",IFERROR(RTD("cqg.rtd", ,"ContractData", Sheet2!P12, "High",, "T"),"")) -> 8.47 | O25: =IF(LEFT(Sheet2!P12,1)="","",IFERROR(RTD("cqg.rtd", ,"ContractData", Sheet2!P12, "Low",, "T"),"")) -> 8.1 | P25: =IF(LEFT(Sheet2!P12,1)="","",IFERROR(IF(RTD("cqg.rtd", ,"ContractData", Sheet2!P12, "NetLastTradeToday",, "T")>0,"+","")&TEXT(RTD("cqg.rtd", ,"ContractData", Sheet2!P12, "NetLastTradeToday",, "T"),"0.00"),"")) -> +0.16 | Q25: =Sheet2!Q12 -> 0 | R25: 0 | S25: 0 | Y25: 0 | Z25: 0 | AA25: =RTD("cqg.rtd", ,"ContractData", Sheet2!P12, "TickSize",, "T") -> 0.01
B26: =Sheet2!N13 -> HMC | C26: =IF(LEFT(Sheet2!P13,1)="","",IFERROR(RTD("cqg.rtd",,"ContractData",Sheet2!P13,"LongDescription",,"T")&" ("&P26&")","")) -> Honda Motor Co Ltd (+0.57) | H26: =IF(LEFT(Sheet2!P13,1)="","",IFERROR(RTD("cqg.rtd", ,"ContractData", Sheet2!P13, "Bid",, "T"),"")) -> 30.47 | I26: =IF(LEFT(Sheet2!P13,1)="","",IFERROR(RTD("cqg.rtd", ,"ContractData", Sheet2!P13, "LastTrade",, "T"),"")) -> 30.47 | J26: =IF(LEFT(Sheet2!P13,1)="","",IFERROR(RTD("cqg.rtd", ,"ContractData", Sheet2!P13, "Ask",, "T"),"")) -> 30.48 | K26: =IF(LEFT(Sheet2!P13,1)="","",IFERROR(IF(RTD("cqg.rtd", ,"ContractData", Sheet2!P13, "NetLastTradeToday",, "T")>0,"+","")&TEXT(RTD("cqg.rtd", ,"ContractData", Sheet2!P13, "NetLastTradeToday",, "T"),"0.00"),"")) -> +0.57 | L26: =IFERROR(RTD("cqg.rtd", ,"ContractData", Sheet2!P13, "PerCentNetLastTrade",, "T")/100,"") -> 0.01906354515 | M26: =IF(LEFT(Sheet2!P13,1)="","",IFERROR(RTD("cqg.rtd", ,"ContractData", Sheet2!P13, "Open",, "T"),"")) -> 30.52 | N26: =IF(LEFT(Sheet2!P13,1)="","",IFERROR(RTD("cqg.rtd", ,"ContractData", Sheet2!P13, "High",, "T"),"")) -> 30.78 | O26: =IF(LEFT(Sheet2!P13,1)="","",IFERROR(RTD("cqg.rtd", ,"ContractData", Sheet2!P13, "Low",, "T"),"")) -> 30.36 | P26: =IF(LEFT(Sheet2!P13,1)="","",IFERROR(IF(RTD("cqg.rtd", ,"ContractData", Sheet2!P13, "NetLastTradeToday",, "T")>0,"+","")&TEXT(RTD("cqg.rtd", ,"ContractData", Sheet2!P13, "NetLastTradeToday",, "T"),"0.00"),"")) -> +0.57 | Q26: =Sheet2!Q13 -> 0 | R26: 0 | S26: 0 | Y26: 0 | Z26: 0 | AA26: =RTD("cqg.rtd", ,"ContractData", Sheet2!P13, "TickSize",, "T") -> 0.01
B27: =Sheet2!N14 -> NIU | C27: =IF(LEFT(Sheet2!P14,1)="","",IFERROR(RTD("cqg.rtd",,"ContractData",Sheet2!P14,"LongDescription",,"T")&" ("&P27&")","")) -> Niu Technologies (+0.53) | H27: =IF(LEFT(Sheet2!P14,1)="","",IFERROR(RTD("cqg.rtd", ,"ContractData", Sheet2!P14, "Bid",, "T"),"")) -> 29.24 | I27: =IF(LEFT(Sheet2!P14,1)="","",IFERROR(RTD("cqg.rtd", ,"ContractData", Sheet2!P14, "LastTrade",, "T"),"")) -> 29.38 | J27: =IF(LEFT(Sheet2!P14,1)="","",IFERROR(RTD("cqg.rtd", ,"ContractData", Sheet2!P14, "Ask",, "T"),"")) -> 29.39 | K27: =IF(LEFT(Sheet2!P14,1)="","",IFERROR(IF(RTD("cqg.rtd", ,"ContractData", Sheet2!P14, "NetLastTradeToday",, "T")>0,"+","")&TEXT(RTD("cqg.rtd", ,"ContractData", Sheet2!P14, "NetLastTradeToday",, "T"),"0.00"),"")) -> +0.53 | L27: =IFERROR(RTD("cqg.rtd", ,"ContractData", Sheet2!P14, "PerCentNetLastTrade",, "T")/100,"") -> 0.01837088388 | M27: =IF(LEFT(Sheet2!P14,1)="","",IFERROR(RTD("cqg.rtd", ,"ContractData", Sheet2!P14, "Open",, "T"),"")) -> 28.85 | N27: =IF(LEFT(Sheet2!P14,1)="","",IFERROR(RTD("cqg.rtd", ,"ContractData", Sheet2!P14, "High",, "T"),"")) -> 29.49 | O27: =IF(LEFT(Sheet2!P14,1)="","",IFERROR(RTD("cqg.rtd", ,"ContractData", Sheet2!P14, "Low",, "T"),"")) -> 28.85 | P27: =IF(LEFT(Sheet2!P14,1)="","",IFERROR(IF(RTD("cqg.rtd", ,"ContractData", Sheet2!P14, "NetLastTradeToday",, "T")>0,"+","")&TEXT(RTD("cqg.rtd", ,"ContractData", Sheet2!P14, "NetLastTradeToday",, "T"),"0.00"),"")) -> +0.53 | Q27: =Sheet2!Q14 -> 0 | R27: 0 | S27: 0 | Y27: 0 | Z27: 0 | AA27: =RTD("cqg.rtd", ,"ContractData", Sheet2!P14, "TickSize",, "T") -> 0.01
B28: =Sheet2!N15 -> TM | C28: =IF(LEFT(Sheet2!P15,1)="","",IFERROR(RTD("cqg.rtd",,"ContractData",Sheet2!P15,"LongDescription",,"T")&" ("&P28&")","")) -> Toyota Motor Corporation ADR (+2.78) | H28: =IF(LEFT(Sheet2!P15,1)="","",IFERROR(RTD("cqg.rtd", ,"ContractData", Sheet2!P15, "Bid",, "T"),"")) -> 161.45 | I28: =IF(LEFT(Sheet2!P15,1)="","",IFERROR(RTD("cqg.rtd", ,"ContractData", Sheet2!P15, "LastTrade",, "T"),"")) -> 161.46 | J28: =IF(LEFT(Sheet2!P15,1)="","",IFERROR(RTD("cqg.rtd", ,"ContractData", Sheet2!P15, "Ask",, "T"),"")) -> 161.75 | K28: =IF(LEFT(Sheet2!P15,1)="","",IFERROR(IF(RTD("cqg.rtd", ,"ContractData", Sheet2!P15, "NetLastTradeToday",, "T")>0,"+","")&TEXT(RTD("cqg.rtd", ,"ContractData", Sheet2!P15, "NetLastTradeToday",, "T"),"0.00"),"")) -> +2.78 | L28: =IFERROR(RTD("cqg.rtd", ,"ContractData", Sheet2!P15, "PerCentNetLastTrade",, "T")/100,"") -> 0.01751953617 | M28: =IF(LEFT(Sheet2!P15,1)="","",IFERROR(RTD("cqg.rtd", ,"ContractData", Sheet2!P15, "Open",, "T"),"")) -> 160.46 | N28: =IF(LEFT(Sheet2!P15,1)="","",IFERROR(RTD("cqg.rtd", ,"ContractData", Sheet2!P15, "High",, "T"),"")) -> 161.91 | O28: =IF(LEFT(Sheet2!P15,1)="","",IFERROR(RTD("cqg.rtd", ,"ContractData", Sheet2!P15, "Low",, "T"),"")) -> 160.32 | P28: =IF(LEFT(Sheet2!P15,1)="","",IFERROR(IF(RTD("cqg.rtd", ,"ContractData", Sheet2!P15, "NetLastTradeToday",, "T")>0,"+","")&TEXT(RTD("cqg.rtd", ,"ContractData", Sheet2!P15, "NetLastTradeToday",, "T"),"0.00"),"")) -> +2.78 | Q28: =Sheet2!Q15 -> 0 | R28: 0 | S28: 0 | Y28: 0 | Z28: 0 | AA28: =RTD("cqg.rtd", ,"ContractData", Sheet2!P15, "TickSize",, "T") -> 0.01
B29: Symbol | C29: Bottom 15 Description (NC) | G29: 5-min | H29: Bid | I29: Last Trade | J29: Ask | K29: NC | L29: %NC | M29: Open | N29: High | O29: Low
B30: =Sheet2!N44 -> ST | C30: =IF(LEFT(Sheet2!P44,1)="","",IFERROR(RTD("cqg.rtd",,"ContractData",Sheet2!P44,"LongDescription",,"T")&" ("&P30&")","")) -> Sensata Technologies Holding N.V. (-0.14) | H30: =IF(LEFT(Sheet2!P44,1)="","",IFERROR(RTD("cqg.rtd", ,"ContractData", Sheet2!P44, "Bid",, "T"),"")) -> 57.91 | I30: =IF(LEFT(Sheet2!P44,1)="","",IFERROR(RTD("cqg.rtd", ,"ContractData", Sheet2!P44, "LastTrade",, "T"),"")) -> 57.89 | J30: =IF(LEFT(Sheet2!P44,1)="","",IFERROR(RTD("cqg.rtd", ,"ContractData", Sheet2!P44, "Ask",, "T"),"")) -> 58.01 | K30: =IF(LEFT(Sheet2!P44,1)="","",IFERROR(IF(RTD("cqg.rtd", ,"ContractData", Sheet2!P44, "NetLastTradeToday",, "T")>0,"+","")&TEXT(RTD("cqg.rtd", ,"ContractData", Sheet2!P44, "NetLastTradeToday",, "T"),"0.00"),"")) -> -0.14 | L30: =IFERROR(RTD("cqg.rtd", ,"ContractData", Sheet2!P44, "PerCentNetLastTrade",, "T")/100,"") -> -0.002412545235 | M30: =IF(LEFT(Sheet2!P44,1)="","",IFERROR(RTD("cqg.rtd", ,"ContractData", Sheet2!P44, "Open",, "T"),"")) -> 58.01 | N30: =IF(LEFT(Sheet2!P44,1)="","",IFERROR(RTD("cqg.rtd", ,"ContractData", Sheet2!P44, "High",, "T"),"")) -> 58.19 | O30: =IF(LEFT(Sheet2!P44,1)="","",IFERROR(RTD("cqg.rtd", ,"ContractData", Sheet2!P44, "Low",, "T"),"")) -> 57.52 | P30: =IF(LEFT(Sheet2!P44,1)="","",IFERROR(IF(RTD("cqg.rtd", ,"ContractData", Sheet2!P44, "NetLastTradeToday",, "T")>0,"+","")&TEXT(RTD("cqg.rtd", ,"ContractData", Sheet2!P44, "NetLastTradeToday",, "T"),"0.00"),"")) -> -0.14 | Q30: =Sheet2!Q44 -> 0 | R30: Symbol | S30: Time | T30: Open | U30: High | V30: Low | W30: Last | Y30: =IF(N30-I30<=2*AA30,1,0) -> 0 | Z30: =IF(I30-O30<=2*AA30,1,0) -> 0 | AA30: =RTD("cqg.rtd", ,"ContractData", Sheet2!P44, "TickSize",, "T") -> 0.01
B31: =Sheet2!N45 -> TSLA | C31: =IF(LEFT(Sheet2!P45,1)="","",IFERROR(RTD("cqg.rtd",,"ContractData",Sheet2!P45,"LongDescription",,"T")&" ("&P31&")","")) -> Tesla, Inc. (-1.64) | H31: =IF(LEFT(Sheet2!P45,1)="","",IFERROR(RTD("cqg.rtd", ,"ContractData", Sheet2!P45, "Bid",, "T"),"")) -> 574.92 | I31: =IF(LEFT(Sheet2!P45,1)="","",IFERROR(RTD("cqg.rtd", ,"ContractData", Sheet2!P45, "LastTrade",, "T"),"")) -> 575.19 | J31: =IF(LEFT(Sheet2!P45,1)="","",IFERROR(RTD("cqg.rtd", ,"ContractData", Sheet2!P45, "Ask",, "T"),"")) -> 575.2 | K31: =IF(LEFT(Sheet2!P45,1)="","",IFERROR(IF(RTD("cqg.rtd", ,"ContractData", Sheet2!P45, "NetLastTradeToday",, "T")>0,"+","")&TEXT(RTD("cqg.rtd", ,"ContractData", Sheet2!P45, "NetLastTradeToday",, "T"),"0.00"),"")) -> -1.64 | L31: =IFERROR(RTD("cqg.rtd", ,"ContractData", Sheet2!P45, "PerCentNetLastTrade",, "T")/100,"") -> -0.002843125358 | M31: =IF(LEFT(Sheet2!P45,1)="","",IFERROR(RTD("cqg.rtd", ,"ContractData", Sheet2!P45, "Open",, "T"),"")) -> 568 | N31: =IF(LEFT(Sheet2!P45,1)="","",IFERROR(RTD("cqg.rtd", ,"ContractData", Sheet2!P45, "High",, "T"),"")) -> 575.87 | O31: =IF(LEFT(Sheet2!P45,1)="","",IFERROR(RTD("cqg.rtd", ,"ContractData", Sheet2!P45, "Low",, "T"),"")) -> 563.38 | P31: =IF(LEFT(Sheet2!P45,1)="","",IFERROR(IF(RTD("cqg.rtd", ,"ContractData", Sheet2!P45, "NetLastTradeToday",, "T")>0,"+","")&TEXT(RTD("cqg.rtd", ,"ContractData", Sheet2!P45, "NetLastTradeToday",, "T"),"0.00"),"")) -> -1.64 | Q31: =Sheet2!Q45 -> 0 | R31: S.HAIL | S31: D | T31: =IFERROR(TEXT(RTD("cqg.rtd", ,"ContractData",R31, "Open",, "T"),W55),"") -> 58.65 | U31: =IFERROR(TEXT(RTD("cqg.rtd", ,"ContractData",R31, "High",, "T"),W55),"") -> 58.67 | V31: =IFERROR(TEXT(RTD("cqg.rtd", ,"ContractData",R31, "Low",, "T"),W55),"") -> 58.27 | W31: =IFERROR(TEXT(RTD("cqg.rtd", ,"ContractData",R31, "Last",, "T"),W55),"") -> 58.76 | Y31: =IF(N31-I31<=2*AA31,1,0) -> 0 | Z31: =IF(I31-O31<=2*AA31,1,0) -> 0 | AA31: =RTD("cqg.rtd", ,"ContractData", Sheet2!P45, "TickSize",, "T") -> 0.01
B32: =Sheet2!N46 -> SEDG | C32: =IF(LEFT(Sheet2!P46,1)="","",IFERROR(RTD("cqg.rtd",,"ContractData",Sheet2!P46,"LongDescription",,"T")&" ("&P32&")","")) -> SolarEdge Technologies, Inc. (-0.81) | H32: =IF(LEFT(Sheet2!P46,1)="","",IFERROR(RTD("cqg.rtd", ,"ContractData", Sheet2!P46, "Bid",, "T"),"")) -> 216.51 | I32: =IF(LEFT(Sheet2!P46,1)="","",IFERROR(RTD("cqg.rtd", ,"ContractData", Sheet2!P46, "LastTrade",, "T"),"")) -> 217.2 | J32: =IF(LEFT(Sheet2!P46,1)="","",IFERROR(RTD("cqg.rtd", ,"ContractData", Sheet2!P46, "Ask",, "T"),"")) -> 217.67 | K32: =IF(LEFT(Sheet2!P46,1)="","",IFERROR(IF(RTD("cqg.rtd", ,"ContractData", Sheet2!P46, "NetLastTradeToday",, "T")>0,"+","")&TEXT(RTD("cqg.rtd", ,"ContractData", Sheet2!P46, "NetLastTradeToday",, "T"),"0.00"),"")) -> -0.81 | L32: =IFERROR(RTD("cqg.rtd", ,"ContractData", Sheet2!P46, "PerCentNetLastTrade",, "T")/100,"") -> -0.003715425898 | M32: =IF(LEFT(Sheet2!P46,1)="","",IFERROR(RTD("cqg.rtd", ,"ContractData", Sheet2!P46, "Open",, "T"),"")) -> 220.16 | N32: =IF(LEFT(Sheet2!P46,1)="","",IFERROR(RTD("cqg.rtd", ,"ContractData", Sheet2!P46, "High",, "T"),"")) -> 220.26 | O32: =IF(LEFT(Sheet2!P46,1)="","",IFERROR(RTD("cqg.rtd", ,"ContractData", Sheet2!P46, "Low",, "T"),"")) -> 215.17 | P32: =IF(LEFT(Sheet2!P46,1)="","",IFERROR(IF(RTD("cqg.rtd", ,"ContractData", Sheet2!P46, "NetLastTradeToday",, "T")>0,"+","")&TEXT(RTD("cqg.rtd", ,"ContractData", Sheet2!P46, "NetLastTradeToday",, "T"),"0.00"),"")) -> -0.81 | Q32: =Sheet2!Q46 -> 0 | Y32: 0 | Z32: 0 | AA32: =RTD("cqg.rtd", ,"ContractData", Sheet2!P46, "TickSize",, "T") -> 0.01
B33: =Sheet2!N47 -> BWA | C33: =IF(LEFT(Sheet2!P47,1)="","",IFERROR(RTD("cqg.rtd",,"ContractData",Sheet2!P47,"LongDescription",,"T")&" ("&P33&")","")) -> Borg Warner Inc (-0.22) | H33: =IF(LEFT(Sheet2!P47,1)="","",IFERROR(RTD("cqg.rtd", ,"ContractData", Sheet2!P47, "Bid",, "T"),"")) -> 51.41 | I33: =IF(LEFT(Sheet2!P47,1)="","",IFERROR(RTD("cqg.rtd", ,"ContractData", Sheet2!P47, "LastTrade",, "T"),"")) -> 51.43 | J33: =IF(LEFT(Sheet2!P47,1)="","",IFERROR(RTD("cqg.rtd", ,"ContractData", Sheet2!P47, "Ask",, "T"),"")) -> 51.46 | K33: =IF(LEFT(Sheet2!P47,1)="","",IFERROR(IF(RTD("cqg.rtd", ,"ContractData", Sheet2!P47, "NetLastTradeToday",, "T")>0,"+","")&TEXT(RTD("cqg.rtd", ,"ContractData", Sheet2!P47, "NetLastTradeToday",, "T"),"0.00"),"")) -> -0.22 | L33: =IFERROR(RTD("cqg.rtd", ,"ContractData", Sheet2!P47, "PerCentNetLastTrade",, "T")/100,"") -> -0.004259438529 | M33: =IF(LEFT(Sheet2!P47,1)="","",IFERROR(RTD("cqg.rtd", ,"ContractData", Sheet2!P47, "Open",, "T"),"")) -> 51.47 | N33: =IF(LEFT(Sheet2!P47,1)="","",IFERROR(RTD("cqg.rtd", ,"ContractData", Sheet2!P47, "High",, "T"),"")) -> 51.76 | O33: =IF(LEFT(Sheet2!P47,1)="","",IFERROR(RTD("cqg.rtd", ,"ContractData", Sheet2!P47, "Low",, "T"),"")) -> 51.18 | P33: =IF(LEFT(Sheet2!P47,1)="","",IFERROR(IF(RTD("cqg.rtd", ,"ContractData", Sheet2!P47, "NetLastTradeToday",, "T")>0,"+","")&TEXT(RTD("cqg.rtd", ,"ContractData", Sheet2!P47, "NetLastTradeToday",, "T"),"0.00"),"")) -> -0.22 | Q33: =Sheet2!Q47 -> 0 | Y33: 0 | Z33: 0 | AA33: =RTD("cqg.rtd", ,"ContractData", Sheet2!P47, "TickSize",, "T") -> 0.01
B34: =Sheet2!N48 -> MOD | C34: =IF(LEFT(Sheet2!P48,1)="","",IFERROR(RTD("cqg.rtd",,"ContractData",Sheet2!P48,"LongDescription",,"T")&" ("&P34&")","")) -> Modine Manufacturing Co (-0.08) | H34: =IF(LEFT(Sheet2!P48,1)="","",IFERROR(RTD("cqg.rtd", ,"ContractData", Sheet2!P48, "Bid",, "T"),"")) -> 16.87 | I34: =IF(LEFT(Sheet2!P48,1)="","",IFERROR(RTD("cqg.rtd", ,"ContractData", Sheet2!P48, "LastTrade",, "T"),"")) -> 16.88 | J34: =IF(LEFT(Sheet2!P48,1)="","",IFERROR(RTD("cqg.rtd", ,"ContractData", Sheet2!P48, "Ask",, "T"),"")) -> 16.93 | K34: =IF(LEFT(Sheet2!P48,1)="","",IFERROR(IF(RTD("cqg.rtd", ,"ContractData", Sheet2!P48, "NetLastTradeToday",, "T")>0,"+","")&TEXT(RTD("cqg.rtd", ,"ContractData", Sheet2!P48, "NetLastTradeToday",, "T"),"0.00"),"")) -> -0.08 | L34: =IFERROR(RTD("cqg.rtd", ,"ContractData", Sheet2!P48, "PerCentNetLastTrade",, "T")/100,"") -> -0.004716981132 | M34: =IF(LEFT(Sheet2!P48,1)="","",IFERROR(RTD("cqg.rtd", ,"ContractData", Sheet2!P48, "Open",, "T"),"")) -> 17 | N34: =IF(LEFT(Sheet2!P48,1)="","",IFERROR(RTD("cqg.rtd", ,"ContractData", Sheet2!P48, "High",, "T"),"")) -> 17 | O34: =IF(LEFT(Sheet2!P48,1)="","",IFERROR(RTD("cqg.rtd", ,"ContractData", Sheet2!P48, "Low",, "T"),"")) -> 16.78 | P34: =IF(LEFT(Sheet2!P48,1)="","",IFERROR(IF(RTD("cqg.rtd", ,"ContractData", Sheet2!P48, "NetLastTradeToday",, "T")>0,"+","")&TEXT(RTD("cqg.rtd", ,"ContractData", Sheet2!P48, "NetLastTradeToday",, "T"),"0.00"),"")) -> -0.08 | Q34: =Sheet2!Q48 -> 0 | Y34: 0 | Z34: 0 | AA34: =RTD("cqg.rtd", ,"ContractData", Sheet2!P48, "TickSize",, "T") -> 0.01
B35: =Sheet2!N49 -> ALSN | C35: =IF(LEFT(Sheet2!P49,1)="","",IFERROR(RTD("cqg.rtd",,"ContractData",Sheet2!P49,"LongDescription",,"T")&" ("&P35&")","")) -> Allison Transmission Holdings, Inc. (-0.22) | H35: =IF(LEFT(Sheet2!P49,1)="","",IFERROR(RTD("cqg.rtd", ,"ContractData", Sheet2!P49, "Bid",, "T"),"")) -> 45.17 | I35: =IF(LEFT(Sheet2!P49,1)="","",IFERROR(RTD("cqg.rtd", ,"ContractData", Sheet2!P49, "LastTrade",, "T"),"")) -> 45.2 | J35: =IF(LEFT(Sheet2!P49,1)="","",IFERROR(RTD("cqg.rtd", ,"ContractData", Sheet2!P49, "Ask",, "T"),"")) -> 45.25 | K35: =IF(LEFT(Sheet2!P49,1)="","",IFERROR(IF(RTD("cqg.rtd", ,"ContractData", Sheet2!P49, "NetLastTradeToday",, "T")>0,"+","")&TEXT(RTD("cqg.rtd", ,"ContractData", Sheet2!P49, "NetLastTradeToday",, "T"),"0.00"),"")) -> -0.22 | L35: =IFERROR(RTD("cqg.rtd", ,"ContractData", Sheet2!P49, "PerCentNetLastTrade",, "T")/100,"") -> -0.004843681198 | M35: =IF(LEFT(Sheet2!P49,1)="","",IFERROR(RTD("cqg.rtd", ,"ContractData", Sheet2!P49, "Open",, "T"),"")) -> 45.29 | N35: =IF(LEFT(Sheet2!P49,1)="","",IFERROR(RTD("cqg.rtd", ,"ContractData", Sheet2!P49, "High",, "T"),"")) -> 45.3 | O35: =IF(LEFT(Sheet2!P49,1)="","",IFERROR(RTD("cqg.rtd", ,"ContractData", Sheet2!P49, "Low",, "T"),"")) -> 45 | P35: =IF(LEFT(Sheet2!P49,1)="","",IFERROR(IF(RTD("cqg.rtd", ,"ContractData", Sheet2!P49, "NetLastTradeToday",, "T")>0,"+","")&TEXT(RTD("cqg.rtd", ,"ContractData", Sheet2!P49, "NetLastTradeToday",, "T"),"0.00"),"")) -> -0.22 | Q35: =Sheet2!Q49 -> 0 | Y35: 0 | Z35: 0 | AA35: =RTD("cqg.rtd", ,"ContractData", Sheet2!P49, "TickSize",, "T") -> 0.01
B36: =Sheet2!N50 -> TRMB | C36: =IF(LEFT(Sheet2!P50,1)="","",IFERROR(RTD("cqg.rtd",,"ContractData",Sheet2!P50,"LongDescription",,"T")&" ("&P36&")","")) -> Trimble Inc. (-0.42) | H36: =IF(LEFT(Sheet2!P50,1)="","",IFERROR(RTD("cqg.rtd", ,"ContractData", Sheet2!P50, "Bid",, "T"),"")) -> 75.71 | I36: =IF(LEFT(Sheet2!P50,1)="","",IFERROR(RTD("cqg.rtd", ,"ContractData", Sheet2!P50, "LastTrade",, "T"),"")) -> 75.81 | J36: =IF(LEFT(Sheet2!P50,1)="","",IFERROR(RTD("cqg.rtd", ,"ContractData", Sheet2!P50, "Ask",, "T"),"")) -> 75.79 | K36: =IF(LEFT(Sheet2!P50,1)="","",IFERROR(IF(RTD("cqg.rtd", ,"ContractData", Sheet2!P50, "NetLastTradeToday",, "T")>0,"+","")&TEXT(RTD("cqg.rtd", ,"ContractData", Sheet2!P50, "NetLastTradeToday",, "T"),"0.00"),"")) -> -0.42 | L36: =IFERROR(RTD("cqg.rtd", ,"ContractData", Sheet2!P50, "PerCentNetLastTrade",, "T")/100,"") -> -0.005509641873 | M36: =IF(LEFT(Sheet2!P50,1)="","",IFERROR(RTD("cqg.rtd", ,"ContractData", Sheet2!P50, "Open",, "T"),"")) -> 76.31 | N36: =IF(LEFT(Sheet2!P50,1)="","",IFERROR(RTD("cqg.rtd", ,"ContractData", Sheet2!P50, "High",, "T"),"")) -> 76.4 | O36: =IF(LEFT(Sheet2!P50,1)="","",IFERROR(RTD("cqg.rtd", ,"ContractData", Sheet2!P50, "Low",, "T"),"")) -> 75.43 | P36: =IF(LEFT(Sheet2!P50,1)="","",IFERROR(IF(RTD("cqg.rtd", ,"ContractData", Sheet2!P50, "NetLastTradeToday",, "T")>0,"+","")&TEXT(RTD("cqg.rtd", ,"ContractData", Sheet2!P50, "NetLastTradeToday",, "T"),"0.00"),"")) -> -0.42 | Q36: =Sheet2!Q50 -> 0 | Y36: 0 | Z36: 0 | AA36: =RTD("cqg.rtd", ,"ContractData", Sheet2!P50, "TickSize",, "T") -> 0.01
B37: =Sheet2!N51 -> UAVS | C37: =IF(LEFT(Sheet2!P51,1)="","",IFERROR(RTD("cqg.rtd",,"ContractData",Sheet2!P51,"LongDescription",,"T")&" ("&P37&")","")) -> AgEagle Aerial Systems Inc. (-0.03) | H37: =IF(LEFT(Sheet2!P51,1)="","",IFERROR(RTD("cqg.rtd", ,"ContractData", Sheet2!P51, "Bid",, "T"),"")) -> 4.37 | I37: =IF(LEFT(Sheet2!P51,1)="","",IFERROR(RTD("cqg.rtd", ,"ContractData", Sheet2!P51, "LastTrade",, "T"),"")) -> 4.41 | J37: =IF(LEFT(Sheet2!P51,1)="","",IFERROR(RTD("cqg.rtd", ,"ContractData", Sheet2!P51, "Ask",, "T"),"")) -> 4.42 | K37: =IF(LEFT(Sheet2!P51,1)="","",IFERROR(IF(RTD("cqg.rtd", ,"ContractData", Sheet2!P51, "NetLastTradeToday",, "T")>0,"+","")&TEXT(RTD("cqg.rtd", ,"ContractData", Sheet2!P51, "NetLastTradeToday",, "T"),"0.00"),"")) -> -0.03 | L37: =IFERROR(RTD("cqg.rtd", ,"ContractData", Sheet2!P51, "PerCentNetLastTrade",, "T")/100,"") -> -0.006756756757 | M37: =IF(LEFT(Sheet2!P51,1)="","",IFERROR(RTD("cqg.rtd", ,"ContractData", Sheet2!P51, "Open",, "T"),"")) -> 4.29 | N37: =IF(LEFT(Sheet2!P51,1)="","",IFERROR(RTD("cqg.rtd", ,"ContractData", Sheet2!P51, "High",, "T"),"")) -> 4.41 | O37: =IF(LEFT(Sheet2!P51,1)="","",IFERROR(RTD("cqg.rtd", ,"ContractData", Sheet2!P51, "Low",, "T"),"")) -> 4.09 | P37: =IF(LEFT(Sheet2!P51,1)="","",IFERROR(IF(RTD("cqg.rtd", ,"ContractData", Sheet2!P51, "NetLastTradeToday",, "T")>0,"+","")&TEXT(RTD("cqg.rtd", ,"ContractData", Sheet2!P51, "NetLastTradeToday",, "T"),"0.00"),"")) -> -0.03 | Q37: =Sheet2!Q51 -> 0 | Y37: 1 | Z37: 0 | AA37: =RTD("cqg.rtd", ,"ContractData", Sheet2!P51, "TickSize",, "T") -> 0.01
B38: =Sheet2!N52 -> MTOR | C38: =IF(LEFT(Sheet2!P52,1)="","",IFERROR(RTD("cqg.rtd",,"ContractData",Sheet2!P52,"LongDescription",,"T")&" ("&P38&")","")) -> Meritor Inc. (-0.18) | H38: =IF(LEFT(Sheet2!P52,1)="","",IFERROR(RTD("cqg.rtd", ,"ContractData", Sheet2!P52, "Bid",, "T"),"")) -> 26.12 | I38: =IF(LEFT(Sheet2!P52,1)="","",IFERROR(RTD("cqg.rtd", ,"ContractData", Sheet2!P52, "LastTrade",, "T"),"")) -> 26.07 | J38: =IF(LEFT(Sheet2!P52,1)="","",IFERROR(RTD("cqg.rtd", ,"ContractData", Sheet2!P52, "Ask",, "T"),"")) -> 26.21 | K38: =IF(LEFT(Sheet2!P52,1)="","",IFERROR(IF(RTD("cqg.rtd", ,"ContractData", Sheet2!P52, "NetLastTradeToday",, "T")>0,"+","")&TEXT(RTD("cqg.rtd", ,"ContractData", Sheet2!P52, "NetLastTradeToday",, "T"),"0.00"),"")) -> -0.18 | L38: =IFERROR(RTD("cqg.rtd", ,"ContractData", Sheet2!P52, "PerCentNetLastTrade",, "T")/100,"") -> -0.006857142857 | M38: =IF(LEFT(Sheet2!P52,1)="","",IFERROR(RTD("cqg.rtd", ,"ContractData", Sheet2!P52, "Open",, "T"),"")) -> 26.21 | N38: =IF(LEFT(Sheet2!P52,1)="","",IFERROR(RTD("cqg.rtd", ,"ContractData", Sheet2!P52, "High",, "T"),"")) -> 26.31 | O38: =IF(LEFT(Sheet2!P52,1)="","",IFERROR(RTD("cqg.rtd", ,"ContractData", Sheet2!P52, "Low",, "T"),"")) -> 25.84 | P38: =IF(LEFT(Sheet2!P52,1)="","",IFERROR(IF(RTD("cqg.rtd", ,"ContractData", Sheet2!P52, "NetLastTradeToday",, "T")>0,"+","")&TEXT(RTD("cqg.rtd", ,"ContractData", Sheet2!P52, "NetLastTradeToday",, "T"),"0.00"),"")) -> -0.18 | Q38: =Sheet2!Q52 -> 0 | Y38: 0 | Z38: 0 | AA38: =RTD("cqg.rtd", ,"ContractData", Sheet2!P52, "TickSize",, "T") -> 0.01
B39: =Sheet2!N53 -> HY | C39: =IF(LEFT(Sheet2!P53,1)="","",IFERROR(RTD("cqg.rtd",,"ContractData",Sheet2!P53,"LongDescription",,"T")&" ("&P39&")","")) -> Hyster-Yale Materials Handling, Inc. (-0.58) | H39: =IF(LEFT(Sheet2!P53,1)="","",IFERROR(RTD("cqg.rtd", ,"ContractData", Sheet2!P53, "Bid",, "T"),"")) -> 76.02 | I39: =IF(LEFT(Sheet2!P53,1)="","",IFERROR(RTD("cqg.rtd", ,"ContractData", Sheet2!P53, "LastTrade",, "T"),"")) -> 76.44 | J39: =IF(LEFT(Sheet2!P53,1)="","",IFERROR(RTD("cqg.rtd", ,"ContractData", Sheet2!P53, "Ask",, "T"),"")) -> 77 | K39: =IF(LEFT(Sheet2!P53,1)="","",IFERROR(IF(RTD("cqg.rtd", ,"ContractData", Sheet2!P53, "NetLastTradeToday",, "T")>0,"+","")&TEXT(RTD("cqg.rtd", ,"ContractData", Sheet2!P53, "NetLastTradeToday",, "T"),"0.00"),"")) -> -0.58 | L39: =IFERROR(RTD("cqg.rtd", ,"ContractData", Sheet2!P53, "PerCentNetLastTrade",, "T")/100,"") -> -0.007530511555 | M39: =IF(LEFT(Sheet2!P53,1)="","",IFERROR(RTD("cqg.rtd", ,"ContractData", Sheet2!P53, "Open",, "T"),"")) -> 76.92 | N39: =IF(LEFT(Sheet2!P53,1)="","",IFERROR(RTD("cqg.rtd", ,"ContractData", Sheet2!P53, "High",, "T"),"")) -> 76.92 | O39: =IF(LEFT(Sheet2!P53,1)="","",IFERROR(RTD("cqg.rtd", ,"ContractData", Sheet2!P53, "Low",, "T"),"")) -> 76.44 | P39: =IF(LEFT(Sheet2!P53,1)="","",IFERROR(IF(RTD("cqg.rtd", ,"ContractData", Sheet2!P53, "NetLastTradeToday",, "T")>0,"+","")&TEXT(RTD("cqg.rtd", ,"ContractData", Sheet2!P53, "NetLastTradeToday",, "T"),"0.00"),"")) -> -0.58 | Q39: =Sheet2!Q53 -> 0 | Y39: 0 | Z39: 1 | AA39: =RTD("cqg.rtd", ,"ContractData", Sheet2!P53, "TickSize",, "T") -> 0.01
B40: =Sheet2!N54 -> HEI | C40: =IF(LEFT(Sheet2!P54,1)="","",IFERROR(RTD("cqg.rtd",,"ContractData",Sheet2!P54,"LongDescription",,"T")&" ("&P40&")","")) -> HEICO CORP (-1.05) | H40: =IF(LEFT(Sheet2!P54,1)="","",IFERROR(RTD("cqg.rtd", ,"ContractData", Sheet2!P54, "Bid",, "T"),"")) -> 132.58 | I40: =IF(LEFT(Sheet2!P54,1)="","",IFERROR(RTD("cqg.rtd", ,"ContractData", Sheet2!P54, "LastTrade",, "T"),"")) -> 132.74 | J40: =IF(LEFT(Sheet2!P54,1)="","",IFERROR(RTD("cqg.rtd", ,"ContractData", Sheet2!P54, "Ask",, "T"),"")) -> 132.94 | K40: =IF(LEFT(Sheet2!P54,1)="","",IFERROR(IF(RTD("cqg.rtd", ,"ContractData", Sheet2!P54, "NetLastTradeToday",, "T")>0,"+","")&TEXT(RTD("cqg.rtd", ,"ContractData", Sheet2!P54, "NetLastTradeToday",, "T"),"0.00"),"")) -> -1.05 | L40: =IFERROR(RTD("cqg.rtd", ,"ContractData", Sheet2!P54, "PerCentNetLastTrade",, "T")/100,"") -> -0.007848120188 | M40: =IF(LEFT(Sheet2!P54,1)="","",IFERROR(RTD("cqg.rtd", ,"ContractData", Sheet2!P54, "Open",, "T"),"")) -> 133.2 | N40: =IF(LEFT(Sheet2!P54,1)="","",IFERROR(RTD("cqg.rtd", ,"ContractData", Sheet2!P54, "High",, "T"),"")) -> 133.36 | O40: =IF(LEFT(Sheet2!P54,1)="","",IFERROR(RTD("cqg.rtd", ,"ContractData", Sheet2!P54, "Low",, "T"),"")) -> 132.14 | P40: =IF(LEFT(Sheet2!P54,1)="","",IFERROR(IF(RTD("cqg.rtd", ,"ContractData", Sheet2!P54, "NetLastTradeToday",, "T")>0,"+","")&TEXT(RTD("cqg.rtd", ,"ContractData", Sheet2!P54, "NetLastTradeToday",, "T"),"0.00"),"")) -> -1.05 | Q40: =Sheet2!Q54 -> 0 | Y40: 0 | Z40: 0 | AA40: =RTD("cqg.rtd", ,"ContractData", Sheet2!P54, "TickSize",, "T") -> 0.01
B41: =Sheet2!N55 -> VC | C41: =IF(LEFT(Sheet2!P55,1)="","",IFERROR(RTD("cqg.rtd",,"ContractData",Sheet2!P55,"LongDescription",,"T")&" ("&P41&")","")) -> Visteon Corporation (-1.11) | H41: =IF(LEFT(Sheet2!P55,1)="","",IFERROR(RTD("cqg.rtd", ,"ContractData", Sheet2!P55, "Bid",, "T"),"")) -> 112.65 | I41: =IF(LEFT(Sheet2!P55,1)="","",IFERROR(RTD("cqg.rtd", ,"ContractData", Sheet2!P55, "LastTrade",, "T"),"")) -> 112.98 | J41: =IF(LEFT(Sheet2!P55,1)="","",IFERROR(RTD("cqg.rtd", ,"ContractData", Sheet2!P55, "Ask",, "T"),"")) -> 113.23 | K41: =IF(LEFT(Sheet2!P55,1)="","",IFERROR(IF(RTD("cqg.rtd", ,"ContractData", Sheet2!P55, "NetLastTradeToday",, "T")>0,"+","")&TEXT(RTD("cqg.rtd", ,"ContractData", Sheet2!P55, "NetLastTradeToday",, "T"),"0.00"),"")) -> -1.11 | L41: =IFERROR(RTD("cqg.rtd", ,"ContractData", Sheet2!P55, "PerCentNetLastTrade",, "T")/100,"") -> -0.009729161189 | M41: =IF(LEFT(Sheet2!P55,1)="","",IFERROR(RTD("cqg.rtd", ,"ContractData", Sheet2!P55, "Open",, "T"),"")) -> 114.24 | N41: =IF(LEFT(Sheet2!P55,1)="","",IFERROR(RTD("cqg.rtd", ,"ContractData", Sheet2!P55, "High",, "T"),"")) -> 114.38 | O41: =IF(LEFT(Sheet2!P55,1)="","",IFERROR(RTD("cqg.rtd", ,"ContractData", Sheet2!P55, "Low",, "T"),"")) -> 112.6 | P41: =IF(LEFT(Sheet2!P55,1)="","",IFERROR(IF(RTD("cqg.rtd", ,"ContractData", Sheet2!P55, "NetLastTradeToday",, "T")>0,"+","")&TEXT(RTD("cqg.rtd", ,"ContractData", Sheet2!P55, "NetLastTradeToday",, "T"),"0.00"),"")) -> -1.11 | Q41: =Sheet2!Q55 -> 0 | Y41: 0 | Z41: 0 | AA41: =RTD("cqg.rtd", ,"ContractData", Sheet2!P55, "TickSize",, "T") -> 0.01
B42: =Sheet2!N56 -> KNDI | C42: =IF(LEFT(Sheet2!P56,1)="","",IFERROR(RTD("cqg.rtd",,"ContractData",Sheet2!P56,"LongDescription",,"T")&" ("&P42&")","")) -> Kandi Technologies Group Inc. (-0.05) | H42: =IF(LEFT(Sheet2!P56,1)="","",IFERROR(RTD("cqg.rtd", ,"ContractData", Sheet2!P56, "Bid",, "T"),"")) -> 5.04 | I42: =IF(LEFT(Sheet2!P56,1)="","",IFERROR(RTD("cqg.rtd", ,"ContractData", Sheet2!P56, "LastTrade",, "T"),"")) -> 5.05 | J42: =IF(LEFT(Sheet2!P56,1)="","",IFERROR(RTD("cqg.rtd", ,"ContractData", Sheet2!P56, "Ask",, "T"),"")) -> 5.05 | K42: =IF(LEFT(Sheet2!P56,1)="","",IFERROR(IF(RTD("cqg.rtd", ,"ContractData", Sheet2!P56, "NetLastTradeToday",, "T")>0,"+","")&TEXT(RTD("cqg.rtd", ,"ContractData", Sheet2!P56, "NetLastTradeToday",, "T"),"0.00"),"")) -> -0.05 | L42: =IFERROR(RTD("cqg.rtd", ,"ContractData", Sheet2!P56, "PerCentNetLastTrade",, "T")/100,"") -> -0.009803921569 | M42: =IF(LEFT(Sheet2!P56,1)="","",IFERROR(RTD("cqg.rtd", ,"ContractData", Sheet2!P56, "Open",, "T"),"")) -> 5.16 | N42: =IF(LEFT(Sheet2!P56,1)="","",IFERROR(RTD("cqg.rtd", ,"ContractData", Sheet2!P56, "High",, "T"),"")) -> 5.19 | O42: =IF(LEFT(Sheet2!P56,1)="","",IFERROR(RTD("cqg.rtd", ,"ContractData", Sheet2!P56, "Low",, "T"),"")) -> 5 | P42: =IF(LEFT(Sheet2!P56,1)="","",IFERROR(IF(RTD("cqg.rtd", ,"ContractData", Sheet2!P56, "NetLastTradeToday",, "T")>0,"+","")&TEXT(RTD("cqg.rtd", ,"ContractData", Sheet2!P56, "NetLastTradeToday",, "T"),"0.00"),"")) -> -0.05 | Q42: =Sheet2!Q56 -> 0 | Y42: 0 | Z42: 0 | AA42: =RTD("cqg.rtd", ,"ContractData", Sheet2!P56, "TickSize",, "T") -> 0.01
B43: =Sheet2!N57 -> CMI | C43: =IF(LEFT(Sheet2!P57,1)="","",IFERROR(RTD("cqg.rtd",,"ContractData",Sheet2!P57,"LongDescription",,"T")&" ("&P43&")","")) -> Cummins Inc (-3.34) | H43: =IF(LEFT(Sheet2!P57,1)="","",IFERROR(RTD("cqg.rtd", ,"ContractData", Sheet2!P57, "Bid",, "T"),"")) -> 262.79 | I43: =IF(LEFT(Sheet2!P57,1)="","",IFERROR(RTD("cqg.rtd", ,"ContractData", Sheet2!P57, "LastTrade",, "T"),"")) -> 262.98 | J43: =IF(LEFT(Sheet2!P57,1)="","",IFERROR(RTD("cqg.rtd", ,"ContractData", Sheet2!P57, "Ask",, "T"),"")) -> 263.1 | K43: =IF(LEFT(Sheet2!P57,1)="","",IFERROR(IF(RTD("cqg.rtd", ,"ContractData", Sheet2!P57, "NetLastTradeToday",, "T")>0,"+","")&TEXT(RTD("cqg.rtd", ,"ContractData", Sheet2!P57, "NetLastTradeToday",, "T"),"0.00"),"")) -> -3.34 | L43: =IFERROR(RTD("cqg.rtd", ,"ContractData", Sheet2!P57, "PerCentNetLastTrade",, "T")/100,"") -> -0.01254130369 | M43: =IF(LEFT(Sheet2!P57,1)="","",IFERROR(RTD("cqg.rtd", ,"ContractData", Sheet2!P57, "Open",, "T"),"")) -> 264.86 | N43: =IF(LEFT(Sheet2!P57,1)="","",IFERROR(RTD("cqg.rtd", ,"ContractData", Sheet2!P57, "High",, "T"),"")) -> 265.31 | O43: =IF(LEFT(Sheet2!P57,1)="","",IFERROR(RTD("cqg.rtd", ,"ContractData", Sheet2!P57, "Low",, "T"),"")) -> 262.12 | P43: =IF(LEFT(Sheet2!P57,1)="","",IFERROR(IF(RTD("cqg.rtd", ,"ContractData", Sheet2!P57, "NetLastTradeToday",, "T")>0,"+","")&TEXT(RTD("cqg.rtd", ,"ContractData", Sheet2!P57, "NetLastTradeToday",, "T"),"0.00"),"")) -> -3.34 | Q43: =Sheet2!Q57 -> 0 | Y43: 0 | Z43: 0 | AA43: =RTD("cqg.rtd", ,"ContractData", Sheet2!P57, "TickSize",, "T") -> 0.01
B44: =Sheet2!N58 -> NIO | C44: =IF(LEFT(Sheet2!P58,1)="","",IFERROR(RTD("cqg.rtd",,"ContractData",Sheet2!P58,"LongDescription",,"T")&" ("&P44&")","")) -> NIO, Inc. (-0.44) | H44: =IF(LEFT(Sheet2!P58,1)="","",IFERROR(RTD("cqg.rtd", ,"ContractData", Sheet2!P58, "Bid",, "T"),"")) -> 33.37 | I44: =IF(LEFT(Sheet2!P58,1)="","",IFERROR(RTD("cqg.rtd", ,"ContractData", Sheet2!P58, "LastTrade",, "T"),"")) -> 33.37 | J44: =IF(LEFT(Sheet2!P58,1)="","",IFERROR(RTD("cqg.rtd", ,"ContractData", Sheet2!P58, "Ask",, "T"),"")) -> 33.38 | K44: =IF(LEFT(Sheet2!P58,1)="","",IFERROR(IF(RTD("cqg.rtd", ,"ContractData", Sheet2!P58, "NetLastTradeToday",, "T")>0,"+","")&TEXT(RTD("cqg.rtd", ,"ContractData", Sheet2!P58, "NetLastTradeToday",, "T"),"0.00"),"")) -> -0.44 | L44: =IFERROR(RTD("cqg.rtd", ,"ContractData", Sheet2!P58, "PerCentNetLastTrade",, "T")/100,"") -> -0.01301390121 | M44: =IF(LEFT(Sheet2!P58,1)="","",IFERROR(RTD("cqg.rtd", ,"ContractData", Sheet2!P58, "Open",, "T"),"")) -> 34.01 | N44: =IF(LEFT(Sheet2!P58,1)="","",IFERROR(RTD("cqg.rtd", ,"ContractData", Sheet2!P58, "High",, "T"),"")) -> 34.03 | O44: =IF(LEFT(Sheet2!P58,1)="","",IFERROR(RTD("cqg.rtd", ,"ContractData", Sheet2!P58, "Low",, "T"),"")) -> 33.26 | P44: =IF(LEFT(Sheet2!P58,1)="","",IFERROR(IF(RTD("cqg.rtd", ,"ContractData", Sheet2!P58, "NetLastTradeToday",, "T")>0,"+","")&TEXT(RTD("cqg.rtd", ,"ContractData", Sheet2!P58, "NetLastTradeToday",, "T"),"0.00"),"")) -> -0.44 | Q44: =Sheet2!Q58 -> 0 | Y44: 0 | Z44: 0 | AA44: =RTD("cqg.rtd", ,"ContractData", Sheet2!P58, "TickSize",, "T") -> 0.01
C45: IF the Data is blank then hit Refresh in CQG | H45: Copyright © 2021, CQG Inc. | L45: Designed by Thom Hartle
R54: =IF(R31="S.US.AXL","American Axle & Manufacturing Holdings, Inc",RTD("cqg.rtd", ,"ContractData",R31, "LongDescription",, "T"))&" NC: "&U54 -> SPDR S&P Kensho Smart Mobility ETF NC: .37 | U54: =IFERROR(TEXT(RTD("cqg.rtd", ,"ContractData",R31, "NetLasttrade",, "T"),W55),"") -> .37 | V54: =LEN(U55) -> 4
U55: =RTD("cqg.rtd", ,"ContractData",R31, "TickSize",, "T") -> 0.01 | V55: =IF(LEN(U55)-2<0,0,LEN(U55)-2) -> 2 | W55: =IF(V55=0,"#",IF(V55=1,"#.0",IF(V55=2,"#.00",IF(V55=3,"#.000",IF(V55=4,"#.0000",IF(V55=5,"#.00000",IF(V55=6,"#.000000",IF(V55=7,"#.0000000")))))))) -> #.00
P57: =Sheet4!$N$6 -> 65.23 | Q57: =Sheet2!O1+0.025 -> 0.1037037037 | R57: 0 | U57: =RTD("cqg.rtd", ,"ContractData",B5, "TickSize",, "T") -> 0.01 | V57: =IF(LEN(U57)-2<0,0,LEN(U57)-2) -> 2 | W57: =IF(V57=0,"#",IF(V57=1,"#.0",IF(V57=2,"#.00",IF(V57=3,"#.000",IF(V57=4,"#.0000",IF(V57=5,"#.00000",IF(V57=6,"#.000000",IF(V57=7,"#.0000000")))))))) -> #.00
P58: =Sheet4!$N$7 -> 55.37 | Q58: 0 | R58: =MAX(Sheet2!O46)-0.0025 -> -0.01551390121 | U58: =RTD("cqg.rtd", ,"ContractData",B6, "TickSize",, "T") -> 0.01 | V58: =IF(LEN(U58)-2<0,0,LEN(U58)-2) -> 2 | W58: =IF(V58=0,"#",IF(V58=1,"#.0",IF(V58=2,"#.00",IF(V58=3,"#.000",IF(V58=4,"#.0000",IF(V58=5,"#.00000",IF(V58=6,"#.000000",IF(V58=7,"#.0000000")))))))) -> #.00
U59: =RTD("cqg.rtd", ,"ContractData",B7, "TickSize",, "T") -> 0.01 | V59: 2 | W59: =IF(V59=0,"#",IF(V59=1,"#.0",IF(V59=2,"#.00",IF(V59=3,"#.000",IF(V59=4,"#.0000",IF(V59=5,"#.00000",IF(V59=6,"#.000000",IF(V59=7,"#.0000000")))))))) -> #.00
U60: =RTD("cqg.rtd", ,"ContractData",B8, "TickSize",, "T") -> 0.01 | V60: 2 | W60: =IF(V60=0,"#",IF(V60=1,"#.0",IF(V60=2,"#.00",IF(V60=3,"#.000",IF(V60=4,"#.0000",IF(V60=5,"#.00000",IF(V60=6,"#.000000",IF(V60=7,"#.0000000")))))))) -> #.00
U61: =RTD("cqg.rtd", ,"ContractData",B9, "TickSize",, "T") -> 0.01 | V61: 2 | W61: #.00
U62: =RTD("cqg.rtd", ,"ContractData",B10, "TickSize",, "T") -> 0.01 | V62: 2 | W62: #.00
U63: =RTD("cqg.rtd", ,"ContractData",B11, "TickSize",, "T") -> 0.01 | V63: 2 | W63: #.00
U64: =RTD("cqg.rtd", ,"ContractData",B12, "TickSize",, "T") -> 0.01 | V64: =LEN(U64)-2 -> 2 | W64: #.00

Sheet Sheet1 (hidden)
A1: S.US.ADI | B1: Semiconductors | F1: =RTD("cqg.rtd", ,"ContractData",A1, "LongDescription",, "T") -> Analog Devices Inc | I1: =RTD("cqg.rtd", ,"ContractData",A1, "LastTrade",, "T") -> 148.37 | J1: =RTD("cqg.rtd",,"StudyData","HiLevel("&A1&",Period1:=12,AllowGaps:=0,InputChoice1:=High,InputChoice3:=High)","Bar",, "Close","W","0",,,,,"T") -> 163.9 | K1: =RTD("cqg.rtd",,"StudyData","LoLevel("&A1&",Period2:=12,AllowGaps:=0,InputChoice2:=Low,InputChoice4:=Low)","Bar",, "Close","W","0",,,,,"T") -> 142.25 | L1: =(I1-K1)/(J1-K1) -> 0.2826789838 | M1: =IFERROR(RANK(L1,$L$1:L$58,0)+COUNTIF($L$1:L1,L1)-1,"") -> 39 | N1: =A1 -> S.US.ADI | O1: =L1 -> 0.2826789838 | P1: 1 | Q1: =IFERROR(VLOOKUP(P1,$M$1:$O$58,2,FALSE),"") -> S.US.CAR | R1: =IFERROR(VLOOKUP(P1,$M$1:$O$58,3,FALSE),"") -> 0.9758704948 | S1: =RTD("cqg.rtd", ,"ContractData",Q1, "LongDescription",, "T") -> AVIS Budget Group Inc
A2: S.US.ALSN | B2: Construction Machinery & Heavy Trucks | F2: =RTD("cqg.rtd", ,"ContractData",A2, "LongDescription",, "T") -> Allison Transmission Holdings, Inc. | I2: =RTD("cqg.rtd", ,"ContractData",A2, "LastTrade",, "T") -> 45.2 | J2: =RTD("cqg.rtd",,"StudyData","HiLevel("&A2&",Period1:=12,AllowGaps:=0,InputChoice1:=High,InputChoice3:=High)","Bar",, "Close","W","0",,,,,"T") -> 46.4 | K2: =RTD("cqg.rtd",,"StudyData","LoLevel("&A2&",Period2:=12,AllowGaps:=0,InputChoice2:=Low,InputChoice4:=Low)","Bar",, "Close","W","0",,,,,"T") -> 38.38 | L2: =(I2-K2)/(J2-K2) -> 0.8503740648 | M2: =IFERROR(RANK(L2,$L$1:L$58,0)+COUNTIF($L$1:L2,L2)-1,"") -> 11 | N2: S.US.ALSN | O2: =L2 -> 0.8503740648 | P2: =P1+1 -> 2 | Q2: =IFERROR(VLOOKUP(P2,$M$1:$O$58,2,FALSE),"") -> S.US.TM | R2: =IFERROR(VLOOKUP(P2,$M$1:$O$58,3,FALSE),"") -> 0.9724938875 | S2: =RTD("cqg.rtd", ,"ContractData",Q2, "LongDescription",, "T") -> Toyota Motor Corporation ADR
A3: S.US.AMBA | B3: Semiconductors | F3: =RTD("cqg.rtd", ,"ContractData",A3, "LongDescription",, "T") -> Ambarella, Inc. Ordinary Shares | I3: =RTD("cqg.rtd", ,"ContractData",A3, "LastTrade",, "T") -> 89.21 | J3: =RTD("cqg.rtd",,"StudyData","HiLevel("&A3&",Period1:=12,AllowGaps:=0,InputChoice1:=High,InputChoice3:=High)","Bar",, "Close","W","0",,,,,"T") -> 137.2 | K3: =RTD("cqg.rtd",,"StudyData","LoLevel("&A3&",Period2:=12,AllowGaps:=0,InputChoice2:=Low,InputChoice4:=Low)","Bar",, "Close","W","0",,,,,"T") -> 82.59 | L3: 0.1212232192 | M3: =IFERROR(RANK(L3,$L$1:L$58,0)+COUNTIF($L$1:L3,L3)-1,"") -> 53 | N3: S.US.AMBA | O3: 0.1212232192 | P3: =P2+1 -> 3 | Q3: S.US.TXT | R3: 0.9567142154 | S3: =RTD("cqg.rtd", ,"ContractData",Q3, "LongDescription",, "T") -> Textron Inc
A4: S.US.ANSS | B4: Application Software | F4: =RTD("cqg.rtd", ,"ContractData",A4, "LongDescription",, "T") -> ANSYS Inc | I4: =RTD("cqg.rtd", ,"ContractData",A4, "LastTrade",, "T") -> 323.08 | J4: =RTD("cqg.rtd",,"StudyData","HiLevel("&A4&",Period1:=12,AllowGaps:=0,InputChoice1:=High,InputChoice3:=High)","Bar",, "Close","W","0",,,,,"T") -> 378.75 | K4: =RTD("cqg.rtd",,"StudyData","LoLevel("&A4&",Period2:=12,AllowGaps:=0,InputChoice2:=Low,InputChoice4:=Low)","Bar",, "Close","W","0",,,,,"T") -> 292.79 | L4: 0.3523731968 | M4: =IFERROR(RANK(L4,$L$1:L$58,0)+COUNTIF($L$1:L4,L4)-1,"") -> 33 | N4: S.US.ANSS | O4: 0.3523731968 | P4: 4 | Q4: S.US.STLA | R4: 0.955465587 | S4: =RTD("cqg.rtd", ,"ContractData",Q4, "LongDescription",, "T") -> Stellantis N.V.
A5: S.US.APTV | B5: Auto Parts & Equipment | F5: =RTD("cqg.rtd", ,"ContractData",A5, "LongDescription",, "T") -> Aptiv PLC | I5: =RTD("cqg.rtd", ,"ContractData",A5, "LastTrade",, "T") -> 139.39 | J5: =RTD("cqg.rtd",,"StudyData","HiLevel("&A5&",Period1:=12,AllowGaps:=0,InputChoice1:=High,InputChoice3:=High)","Bar",, "Close","W","0",,,,,"T") -> 160.14 | K5: =RTD("cqg.rtd",,"StudyData","LoLevel("&A5&",Period2:=12,AllowGaps:=0,InputChoice2:=Low,InputChoice4:=Low)","Bar",, "Close","W","0",,,,,"T") -> 133.45 | L5: 0.2225552641 | M5: =IFERROR(RANK(L5,$L$1:L$58,0)+COUNTIF($L$1:L5,L5)-1,"") -> 41 | N5: S.US.APTV | O5: 0.2225552641 | P5: 5 | Q5: S.US.ORBC | R5: 0.931166348 | S5: =RTD("cqg.rtd", ,"ContractData",Q5, "LongDescription",, "T") -> ORBCOMM Inc.
A6: S.US.AXL | B6: Auto Parts & Equipment | F6: =RTD("cqg.rtd", ,"ContractData",A6, "LongDescription",, "T") -> American Axle and Manufac | I6: =RTD("cqg.rtd", ,"ContractData",A6, "LastTrade",, "T") -> 11.03 | J6: =RTD("cqg.rtd",,"StudyData","HiLevel("&A6&",Period1:=12,AllowGaps:=0,InputChoice1:=High,InputChoice3:=High)","Bar",, "Close","W","0",,,,,"T") -> 12.92 | K6: =RTD("cqg.rtd",,"StudyData","LoLevel("&A6&",Period2:=12,AllowGaps:=0,InputChoice2:=Low,InputChoice4:=Low)","Bar",, "Close","W","0",,,,,"T") -> 8.65 | L6: 0.5573770492 | M6: =IFERROR(RANK(L6,$L$1:L$58,0)+COUNTIF($L$1:L6,L6)-1,"") -> 22 | N6: S.US.AXL | O6: 0.5573770492 | P6: 6 | Q6: S.US.DAN | R6: 0.9237536657 | S6: =RTD("cqg.rtd", ,"ContractData",Q6, "LongDescription",, "T") -> Dana Holding Corp
A7: S.US.BIDU | B7: Interactive Media & Services | F7: =RTD("cqg.rtd", ,"ContractData",A7, "LongDescription",, "T") -> Baidu Inc | I7: =RTD("cqg.rtd", ,"ContractData",A7, "LastTrade",, "T") -> 191.81 | J7: =RTD("cqg.rtd",,"StudyData","HiLevel("&A7&",Period1:=12,AllowGaps:=0,InputChoice1:=High,InputChoice3:=High)","Bar",, "Close","W","0",,,,,"T") -> 311.18 | K7: =RTD("cqg.rtd",,"StudyData","LoLevel("&A7&",Period2:=12,AllowGaps:=0,InputChoice2:=Low,InputChoice4:=Low)","Bar",, "Close","W","0",,,,,"T") -> 174.05 | L7: 0.1295121418 | M7: =IFERROR(RANK(L7,$L$1:L$58,0)+COUNTIF($L$1:L7,L7)-1,"") -> 52 | N7: S.US.BIDU | O7: 0.1295121418 | P7: 7 | Q7: S.US.MT | R7: 0.9120879121 | S7: =RTD("cqg.rtd", ,"ContractData",Q7, "LongDescription",, "T") -> Arcelor Mittal
A8: S.US.BLDP | B8: Electrical Components & Equipment | F8: =RTD("cqg.rtd", ,"ContractData",A8, "LongDescription",, "T") -> Ballard Power System | I8: =RTD("cqg.rtd", ,"ContractData",A8, "LastTrade",, "T") -> 14.58 | J8: =RTD("cqg.rtd",,"StudyData","HiLevel("&A8&",Period1:=12,AllowGaps:=0,InputChoice1:=High,InputChoice3:=High)","Bar",, "Close","W","0",,,,,"T") -> 30.06 | K8: =RTD("cqg.rtd",,"StudyData","LoLevel("&A8&",Period2:=12,AllowGaps:=0,InputChoice2:=Low,InputChoice4:=Low)","Bar",, "Close","W","0",,,,,"T") -> 12.8 | L8: 0.1031286211 | M8: =IFERROR(RANK(L8,$L$1:L$58,0)+COUNTIF($L$1:L8,L8)-1,"") -> 56 | N8: S.US.BLDP | O8: 0.1031286211 | P8: 8 | Q8: S.US.MOD | R8: 0.8835820896 | S8: =RTD("cqg.rtd", ,"ContractData",Q8, "LongDescription",, "T") -> Modine Manufacturing Co
A9: S.US.BLNK | B9: Automotive Retail | F9: =RTD("cqg.rtd", ,"ContractData",A9, "LongDescription",, "T") -> Blink Charging Co. | I9: =RTD("cqg.rtd", ,"ContractData",A9, "LastTrade",, "T") -> 32.63 | J9: =RTD("cqg.rtd",,"StudyData","HiLevel("&A9&",Period1:=12,AllowGaps:=0,InputChoice1:=High,InputChoice3:=High)","Bar",, "Close","W","0",,,,,"T") -> 46.45 | K9: =RTD("cqg.rtd",,"StudyData","LoLevel("&A9&",Period2:=12,AllowGaps:=0,InputChoice2:=Low,InputChoice4:=Low)","Bar",, "Close","W","0",,,,,"T") -> 25 | L9: 0.3557109557 | M9: =IFERROR(RANK(L9,$L$1:L$58,0)+COUNTIF($L$1:L9,L9)-1,"") -> 32 | N9: S.US.BLNK | O9: 0.3557109557 | P9: 9 | Q9: S.US.VNT | R9: 0.8727634195 | S9: =RTD("cqg.rtd", ,"ContractData",Q9, "LongDescription",, "T") -> Vontier Corporation
A10: S.US.BWA | B10: Auto Parts & Equipment | F10: =RTD("cqg.rtd", ,"ContractData",A10, "LongDescription",, "T") -> Borg Warner Inc | I10: =RTD("cqg.rtd", ,"ContractData",A10, "LastTrade",, "T") -> 51.43 | J10: =RTD("cqg.rtd",,"StudyData","HiLevel("&A10&",Period1:=12,AllowGaps:=0,InputChoice1:=High,InputChoice3:=High)","Bar",, "Close","W","0",,,,,"T") -> 54.21 | K10: =RTD("cqg.rtd",,"StudyData","LoLevel("&A10&",Period2:=12,AllowGaps:=0,InputChoice2:=Low,InputChoice4:=Low)","Bar",, "Close","W","0",,,,,"T") -> 42.53 | L10: 0.7619863014 | M10: =IFERROR(RANK(L10,$L$1:L$58,0)+COUNTIF($L$1:L10,L10)-1,"") -> 14 | N10: S.US.BWA | O10: 0.7619863014 | P10: 10 | Q10: S.US.SANM | R10: 0.8518518519 | S10: =RTD("cqg.rtd", ,"ContractData",Q10, "LongDescription",, "T") -> Sanmina Corp
A11: S.US.CAMP | B11: Communications Equipment | F11: =RTD("cqg.rtd", ,"ContractData",A11, "LongDescription",, "T") -> CalAmp Corp. | I11: =RTD("cqg.rtd", ,"ContractData",A11, "LastTrade",, "T") -> 13.47 | J11: =RTD("cqg.rtd",,"StudyData","HiLevel("&A11&",Period1:=12,AllowGaps:=0,InputChoice1:=High,InputChoice3:=High)","Bar",, "Close","W","0",,,,,"T") -> 14.45 | K11: =RTD("cqg.rtd",,"StudyData","LoLevel("&A11&",Period2:=12,AllowGaps:=0,InputChoice2:=Low,InputChoice4:=Low)","Bar",, "Close","W","0",,,,,"T") -> 10.17 | L11: 0.7710280374 | M11: =IFERROR(RANK(L11,$L$1:L$58,0)+COUNTIF($L$1:L11,L11)-1,"") -> 13 | N11: S.US.CAMP | O11: 0.7710280374 | P11: 11 | Q11: S.US.ALSN | R11: 0.8503740648 | S11: =RTD("cqg.rtd", ,"ContractData",Q11, "LongDescription",, "T") -> Allison Transmission Holdings, Inc.
A12: S.US.CAR | B12: Trucking | F12: =RTD("cqg.rtd", ,"ContractData",A12, "LongDescription",, "T") -> AVIS Budget Group Inc | I12: =RTD("cqg.rtd", ,"ContractData",A12, "LastTrade",, "T") -> 89.49 | J12: =RTD("cqg.rtd",,"StudyData","HiLevel("&A12&",Period1:=12,AllowGaps:=0,InputChoice1:=High,InputChoice3:=High)","Bar",, "Close","W","0",,,,,"T") -> 90.28 | K12: =RTD("cqg.rtd",,"StudyData","LoLevel("&A12&",Period2:=12,AllowGaps:=0,InputChoice2:=Low,InputChoice4:=Low)","Bar",, "Close","W","0",,,,,"T") -> 57.54 | L12: 0.9758704948 | M12: =IFERROR(RANK(L12,$L$1:L$58,0)+COUNTIF($L$1:L12,L12)-1,"") -> 1 | N12: S.US.CAR | O12: 0.9758704948 | P12: 12 | Q12: S.US.LXFR | R12: 0.802955665 | S12: =RTD("cqg.rtd", ,"ContractData",Q12, "LongDescription",, "T") -> Luxfer Holdings Plc
A13: S.US.CMI | B13: Construction Machinery & Heavy Trucks | F13: =RTD("cqg.rtd", ,"ContractData",A13, "LongDescription",, "T") -> Cummins Inc | I13: =RTD("cqg.rtd", ,"ContractData",A13, "LastTrade",, "T") -> 262.98 | J13: =RTD("cqg.rtd",,"StudyData","HiLevel("&A13&",Period1:=12,AllowGaps:=0,InputChoice1:=High,InputChoice3:=High)","Bar",, "Close","W","0",,,,,"T") -> 277.09 | K13: =RTD("cqg.rtd",,"StudyData","LoLevel("&A13&",Period2:=12,AllowGaps:=0,InputChoice2:=Low,InputChoice4:=Low)","Bar",, "Close","W","0",,,,,"T") -> 247.03 | L13: 0.5306054558 | M13: =IFERROR(RANK(L13,$L$1:L$58,0)+COUNTIF($L$1:L13,L13)-1,"") -> 24 | N13: S.US.CMI | O13: 0.5306054558 | P13: 13 | Q13: S.US.CAMP | R13: 0.7710280374 | S13: =RTD("cqg.rtd", ,"ContractData",Q13, "LongDescription",, "T") -> CalAmp Corp.
A14: S.US.DAN | B14: Auto Parts & Equipment | F14: =RTD("cqg.rtd", ,"ContractData",A14, "LongDescription",, "T") -> Dana Holding Corp | I14: =RTD("cqg.rtd", ,"ContractData",A14, "LastTrade",, "T") -> 27.92 | J14: =RTD("cqg.rtd",,"StudyData","HiLevel("&A14&",Period1:=12,AllowGaps:=0,InputChoice1:=High,InputChoice3:=High)","Bar",, "Close","W","0",,,,,"T") -> 28.44 | K14: =RTD("cqg.rtd",,"StudyData","LoLevel("&A14&",Period2:=12,AllowGaps:=0,InputChoice2:=Low,InputChoice4:=Low)","Bar",, "Close","W","0",,,,,"T") -> 21.62 | L14: 0.9237536657 | M14: =IFERROR(RANK(L14,$L$1:L$58,0)+COUNTIF($L$1:L14,L14)-1,"") -> 6 | N14: S.US.DAN | O14: 0.9237536657 | P14: 14 | Q14: S.US.BWA | R14: 0.7619863014 | S14: =RTD("cqg.rtd", ,"ContractData",Q14, "LongDescription",, "T") -> Borg Warner Inc
A15: S.US.F | B15: Automobile Manufacturers | F15: =RTD("cqg.rtd", ,"ContractData",A15, "LongDescription",, "T") -> Ford Motor Company | I15: =RTD("cqg.rtd", ,"ContractData",A15, "LastTrade",, "T") -> 12.45 | J15: =RTD("cqg.rtd",,"StudyData","HiLevel("&A15&",Period1:=12,AllowGaps:=0,InputChoice1:=High,InputChoice3:=High)","Bar",, "Close","W","0",,,,,"T") -> 13.62 | K15: =RTD("cqg.rtd",,"StudyData","LoLevel("&A15&",Period2:=12,AllowGaps:=0,InputChoice2:=Low,InputChoice4:=Low)","Bar",, "Close","W","0",,,,,"T") -> 11.14 | L15: 0.5282258065 | M15: =IFERROR(RANK(L15,$L$1:L$58,0)+COUNTIF($L$1:L15,L15)-1,"") -> 25 | N15: S.US.F | O15: 0.5282258065 | P15: 15 | Q15: S.US.TTM | R15: 0.7354085603 | S15: =RTD("cqg.rtd", ,"ContractData",Q15, "LongDescription",, "T") -> Tata Motors Limited
A16: S.US.GILT | B16: Electronic Equipment & Instruments | F16: =RTD("cqg.rtd", ,"ContractData",A16, "LongDescription",, "T") -> Gilat Satellite Ntks Ltd | I16: =RTD("cqg.rtd", ,"ContractData",A16, "LastTrade",, "T") -> 8.98 | J16: =RTD("cqg.rtd",,"StudyData","HiLevel("&A16&",Period1:=12,AllowGaps:=0,InputChoice1:=High,InputChoice3:=High)","Bar",, "Close","W","0",,,,,"T") -> 15.22 | K16: =RTD("cqg.rtd",,"StudyData","LoLevel("&A16&",Period2:=12,AllowGaps:=0,InputChoice2:=Low,InputChoice4:=Low)","Bar",, "Close","W","0",,,,,"T") -> 8.32 | L16: 0.09565217391 | M16: =IFERROR(RANK(L16,$L$1:L$58,0)+COUNTIF($L$1:L16,L16)-1,"") -> 57 | N16: S.US.GILT | O16: 0.09565217391 | P16: 16 | Q16: S.US.LEA | R16: 0.693901717 | S16: =RTD("cqg.rtd", ,"ContractData",Q16, "LongDescription",, "T") -> Lear Corporation
A17: S.US.GM | B17: Communications Equipment | F17: =RTD("cqg.rtd", ,"ContractData",A17, "LongDescription",, "T") -> General Motors Company | I17: =RTD("cqg.rtd", ,"ContractData",A17, "LastTrade",, "T") -> 56.68 | J17: =RTD("cqg.rtd",,"StudyData","HiLevel("&A17&",Period1:=12,AllowGaps:=0,InputChoice1:=High,InputChoice3:=High)","Bar",, "Close","W","0",,,,,"T") -> 63.44 | K17: =RTD("cqg.rtd",,"StudyData","LoLevel("&A17&",Period2:=12,AllowGaps:=0,InputChoice2:=Low,InputChoice4:=Low)","Bar",, "Close","W","0",,,,,"T") -> 50.25 | L17: 0.4874905231 | M17: =IFERROR(RANK(L17,$L$1:L$58,0)+COUNTIF($L$1:L17,L17)-1,"") -> 28 | N17: S.US.GM | O17: 0.4874905231 | P17: 17 | Q17: S.US.HMC | R17: 0.6112600536 | S17: =RTD("cqg.rtd", ,"ContractData",Q17, "LongDescription",, "T") -> Honda Motor Co Ltd
A18: S.US.HEI | B18: Automobile Manufacturers | F18: =RTD("cqg.rtd", ,"ContractData",A18, "LongDescription",, "T") -> HEICO CORP | I18: =RTD("cqg.rtd", ,"ContractData",A18, "LastTrade",, "T") -> 132.74 | J18: =RTD("cqg.rtd",,"StudyData","HiLevel("&A18&",Period1:=12,AllowGaps:=0,InputChoice1:=High,InputChoice3:=High)","Bar",, "Close","W","0",,,,,"T") -> 142.89 | K18: =RTD("cqg.rtd",,"StudyData","LoLevel("&A18&",Period2:=12,AllowGaps:=0,InputChoice2:=Low,InputChoice4:=Low)","Bar",, "Close","W","0",,,,,"T") -> 117.06 | L18: 0.6070460705 | M18: =IFERROR(RANK(L18,$L$1:L$58,0)+COUNTIF($L$1:L18,L18)-1,"") -> 19 | N18: S.US.HEI | O18: 0.6070460705 | P18: 18 | Q18: S.US.TDY | R18: 0.6097278518 | S18: =RTD("cqg.rtd", ,"ContractData",Q18, "LongDescription",, "T") -> Teledyne Technologies Inc
A19: S.US.HMC | B19: Aerospace & Defence | F19: =RTD("cqg.rtd", ,"ContractData",A19, "LongDescription",, "T") -> Honda Motor Co Ltd | I19: =RTD("cqg.rtd", ,"ContractData",A19, "LastTrade",, "T") -> 30.47 | J19: =RTD("cqg.rtd",,"StudyData","HiLevel("&A19&",Period1:=12,AllowGaps:=0,InputChoice1:=High,InputChoice3:=High)","Bar",, "Close","W","0",,,,,"T") -> 31.92 | K19: =RTD("cqg.rtd",,"StudyData","LoLevel("&A19&",Period2:=12,AllowGaps:=0,InputChoice2:=Low,InputChoice4:=Low)","Bar",, "Close","W","0",,,,,"T") -> 28.19 | L19: 0.6112600536 | M19: =IFERROR(RANK(L19,$L$1:L$58,0)+COUNTIF($L$1:L19,L19)-1,"") -> 17 | N19: S.US.HMC | O19: 0.6112600536 | P19: 19 | Q19: S.US.HEI | R19: 0.6070460705 | S19: =RTD("cqg.rtd", ,"ContractData",Q19, "LongDescription",, "T") -> HEICO CORP
A20: S.US.HY | B20: Automobile Manufacturers | F20: =RTD("cqg.rtd", ,"ContractData",A20, "LongDescription",, "T") -> Hyster-Yale Materials Handling, Inc. | I20: =RTD("cqg.rtd", ,"ContractData",A20, "LastTrade",, "T") -> 76.44 | J20: =RTD("cqg.rtd",,"StudyData","HiLevel("&A20&",Period1:=12,AllowGaps:=0,InputChoice1:=High,InputChoice3:=High)","Bar",, "Close","W","0",,,,,"T") -> 98.21 | K20: =RTD("cqg.rtd",,"StudyData","LoLevel("&A20&",Period2:=12,AllowGaps:=0,InputChoice2:=Low,InputChoice4:=Low)","Bar",, "Close","W","0",,,,,"T") -> 71.44 | L20: 0.1867762421 | M20: =IFERROR(RANK(L20,$L$1:L$58,0)+COUNTIF($L$1:L20,L20)-1,"") -> 47 | N20: S.US.HY | O20: 0.1867762421 | P20: 20 | Q20: S.US.NVDA | R20: 0.5693921463 | S20: =RTD("cqg.rtd", ,"ContractData",Q20, "LongDescription",, "T") -> NVIDIA Corp
A21: S.US.INTC | B21: Industrial Machinery | F21: =RTD("cqg.rtd", ,"ContractData",A21, "LongDescription",, "T") -> Intel Corporation | I21: =RTD("cqg.rtd", ,"ContractData",A21, "LastTrade",, "T") -> 55.68 | J21: =RTD("cqg.rtd",,"StudyData","HiLevel("&A21&",Period1:=12,AllowGaps:=0,InputChoice1:=High,InputChoice3:=High)","Bar",, "Close","W","0",,,,,"T") -> 68.49 | K21: =RTD("cqg.rtd",,"StudyData","LoLevel("&A21&",Period2:=12,AllowGaps:=0,InputChoice2:=Low,InputChoice4:=Low)","Bar",, "Close","W","0",,,,,"T") -> 53.42 | L21: 0.1499668215 | M21: =IFERROR(RANK(L21,$L$1:L$58,0)+COUNTIF($L$1:L21,L21)-1,"") -> 49 | N21: S.US.INTC | O21: 0.1499668215 | P21: 21 | Q21: S.US.NXPI | R21: 0.5652756508 | S21: =RTD("cqg.rtd", ,"ContractData",Q21, "LongDescription",, "T") -> NXP Semiconductors N.V.
A22: S.US.IX | B22: Semiconductors | F22: =RTD("cqg.rtd", ,"ContractData",A22, "LongDescription",, "T") -> ORIX Corporation | I22: =RTD("cqg.rtd", ,"ContractData",A22, "LastTrade",, "T") -> 85.96 | J22: =RTD("cqg.rtd",,"StudyData","HiLevel("&A22&",Period1:=12,AllowGaps:=0,InputChoice1:=High,InputChoice3:=High)","Bar",, "Close","W","0",,,,,"T") -> 91.38 | K22: =RTD("cqg.rtd",,"StudyData","LoLevel("&A22&",Period2:=12,AllowGaps:=0,InputChoice2:=Low,InputChoice4:=Low)","Bar",, "Close","W","0",,,,,"T") -> 79.51 | L22: 0.5433866891 | M22: =IFERROR(RANK(L22,$L$1:L$58,0)+COUNTIF($L$1:L22,L22)-1,"") -> 23 | N22: S.US.IX | O22: 0.5433866891 | P22: 22 | Q22: S.US.AXL | R22: 0.5573770492 | S22: =RTD("cqg.rtd", ,"ContractData",Q22, "LongDescription",, "T") -> American Axle and Manufac
A23: S.US.KNDI | B23: Other Diversified Financial Services | F23: =RTD("cqg.rtd", ,"ContractData",A23, "LongDescription",, "T") -> Kandi Technologies Group Inc. | I23: =RTD("cqg.rtd", ,"ContractData",A23, "LastTrade",, "T") -> 5.05 | J23: =RTD("cqg.rtd",,"StudyData","HiLevel("&A23&",Period1:=12,AllowGaps:=0,InputChoice1:=High,InputChoice3:=High)","Bar",, "Close","W","0",,,,,"T") -> 7.49 | K23: =RTD("cqg.rtd",,"StudyData","LoLevel("&A23&",Period2:=12,AllowGaps:=0,InputChoice2:=Low,InputChoice4:=Low)","Bar",, "Close","W","0",,,,,"T") -> 4.4 | L23: 0.2103559871 | M23: =IFERROR(RANK(L23,$L$1:L$58,0)+COUNTIF($L$1:L23,L23)-1,"") -> 44 | N23: S.US.KNDI | O23: 0.2103559871 | P23: 23 | Q23: S.US.IX | R23: 0.5433866891 | S23: =RTD("cqg.rtd", ,"ContractData",Q23, "LongDescription",, "T") -> ORIX Corporation
A24: S.US.LEA | B24: Auto Parts & Equipment | F24: =RTD("cqg.rtd", ,"ContractData",A24, "LongDescription",, "T") -> Lear Corporation | I24: =RTD("cqg.rtd", ,"ContractData",A24, "LastTrade",, "T") -> 186.63 | J24: =RTD("cqg.rtd",,"StudyData","HiLevel("&A24&",Period1:=12,AllowGaps:=0,InputChoice1:=High,InputChoice3:=High)","Bar",, "Close","W","0",,,,,"T") -> 196.97 | K24: =RTD("cqg.rtd",,"StudyData","LoLevel("&A24&",Period2:=12,AllowGaps:=0,InputChoice2:=Low,InputChoice4:=Low)","Bar",, "Close","W","0",,,,,"T") -> 163.19 | L24: 0.693901717 | M24: =IFERROR(RANK(L24,$L$1:L$58,0)+COUNTIF($L$1:L24,L24)-1,"") -> 16 | N24: S.US.LEA | O24: 0.693901717 | P24: 24 | Q24: S.US.CMI | R24: 0.5306054558 | S24: =RTD("cqg.rtd", ,"ContractData",Q24, "LongDescription",, "T") -> Cummins Inc
A25: S.US.LXFR | B25: Auto Parts & Equipment | F25: =RTD("cqg.rtd", ,"ContractData",A25, "LongDescription",, "T") -> Luxfer Holdings Plc | I25: =RTD("cqg.rtd", ,"ContractData",A25, "LastTrade",, "T") -> 22.29 | J25: =RTD("cqg.rtd",,"StudyData","HiLevel("&A25&",Period1:=12,AllowGaps:=0,InputChoice1:=High,InputChoice3:=High)","Bar",, "Close","W","0",,,,,"T") -> 23.09 | K25: =RTD("cqg.rtd",,"StudyData","LoLevel("&A25&",Period2:=12,AllowGaps:=0,InputChoice2:=Low,InputChoice4:=Low)","Bar",, "Close","W","0",,,,,"T") -> 19.03 | L25: 0.802955665 | M25: =IFERROR(RANK(L25,$L$1:L$58,0)+COUNTIF($L$1:L25,L25)-1,"") -> 12 | N25: S.US.LXFR | O25: 0.802955665 | P25: 25 | Q25: S.US.F | R25: 0.5282258065 | S25: =RTD("cqg.rtd", ,"ContractData",Q25, "LongDescription",, "T") -> Ford Motor Company
A26: S.US.LYFT | B26: Industrial Machinery | F26: =RTD("cqg.rtd", ,"ContractData",A26, "LongDescription",, "T") -> Lyft, Inc. Class A | I26: =RTD("cqg.rtd", ,"ContractData",A26, "LastTrade",, "T") -> 52.15 | J26: =RTD("cqg.rtd",,"StudyData","HiLevel("&A26&",Period1:=12,AllowGaps:=0,InputChoice1:=High,InputChoice3:=High)","Bar",, "Close","W","0",,,,,"T") -> 68.28 | K26: =RTD("cqg.rtd",,"StudyData","LoLevel("&A26&",Period2:=12,AllowGaps:=0,InputChoice2:=Low,InputChoice4:=Low)","Bar",, "Close","W","0",,,,,"T") -> 45.28 | L26: 0.2986956522 | M26: =IFERROR(RANK(L26,$L$1:L$58,0)+COUNTIF($L$1:L26,L26)-1,"") -> 38 | N26: S.US.LYFT | O26: 0.2986956522 | P26: 26 | Q26: S.US.TXN | R26: 0.5246449457 | S26: =RTD("cqg.rtd", ,"ContractData",Q26, "LongDescription",, "T") -> Texas Instruments Inc
A27: S.US.MOD | B27: Trucking | F27: =RTD("cqg.rtd", ,"ContractData",A27, "LongDescription",, "T") -> Modine Manufacturing Co | I27: =RTD("cqg.rtd", ,"ContractData",A27, "LastTrade",, "T") -> 16.88 | J27: =RTD("cqg.rtd",,"StudyData","HiLevel("&A27&",Period1:=12,AllowGaps:=0,InputChoice1:=High,InputChoice3:=High)","Bar",, "Close","W","0",,,,,"T") -> 17.27 | K27: =RTD("cqg.rtd",,"StudyData","LoLevel("&A27&",Period2:=12,AllowGaps:=0,InputChoice2:=Low,InputChoice4:=Low)","Bar",, "Close","W","0",,,,,"T") -> 13.92 | L27: 0.8835820896 | M27: =IFERROR(RANK(L27,$L$1:L$58,0)+COUNTIF($L$1:L27,L27)-1,"") -> 8 | N27: S.US.MOD | O27: 0.8835820896 | P27: 27 | Q27: S.US.TRMB | R27: 0.4946957007 | S27: =RTD("cqg.rtd", ,"ContractData",Q27, "LongDescription",, "T") -> Trimble Inc.
A28: S.US.MT | B28: Auto Parts & Equipment | F28: =RTD("cqg.rtd", ,"ContractData",A28, "LongDescription",, "T") -> Arcelor Mittal | I28: =RTD("cqg.rtd", ,"ContractData",A28, "LastTrade",, "T") -> 32.99 | J28: =RTD("cqg.rtd",,"StudyData","HiLevel("&A28&",Period1:=12,AllowGaps:=0,InputChoice1:=High,InputChoice3:=High)","Bar",, "Close","W","0",,,,,"T") -> 33.95 | K28: =RTD("cqg.rtd",,"StudyData","LoLevel("&A28&",Period2:=12,AllowGaps:=0,InputChoice2:=Low,InputChoice4:=Low)","Bar",, "Close","W","0",,,,,"T") -> 23.03 | L28: 0.9120879121 | M28: =IFERROR(RANK(L28,$L$1:L$58,0)+COUNTIF($L$1:L28,L28)-1,"") -> 7 | N28: S.US.MT | O28: 0.9120879121 | P28: 28 | Q28: S.US.GM | R28: 0.4874905231 | S28: =RTD("cqg.rtd", ,"ContractData",Q28, "LongDescription",, "T") -> General Motors Company
A29: S.US.MTOR | B29: Steel | F29: =RTD("cqg.rtd", ,"ContractData",A29, "LongDescription",, "T") -> Meritor Inc. | I29: =RTD("cqg.rtd", ,"ContractData",A29, "LastTrade",, "T") -> 26.07 | J29: =RTD("cqg.rtd",,"StudyData","HiLevel("&A29&",Period1:=12,AllowGaps:=0,InputChoice1:=High,InputChoice3:=High)","Bar",, "Close","W","0",,,,,"T") -> 32.93 | K29: =RTD("cqg.rtd",,"StudyData","LoLevel("&A29&",Period2:=12,AllowGaps:=0,InputChoice2:=Low,InputChoice4:=Low)","Bar",, "Close","W","0",,,,,"T") -> 24.03 | L29: 0.2292134831 | M29: =IFERROR(RANK(L29,$L$1:L$58,0)+COUNTIF($L$1:L29,L29)-1,"") -> 40 | N29: S.US.MTOR | O29: 0.2292134831 | P29: 29 | Q29: S.US.NKLA | R29: 0.4807090719 | S29: =RTD("cqg.rtd", ,"ContractData",Q29, "LongDescription",, "T") -> Nikola Corporation
A30: S.US.NIO | B30: Construction Machinery & Heavy Trucks | F30: =RTD("cqg.rtd", ,"ContractData",A30, "LongDescription",, "T") -> NIO, Inc. | I30: =RTD("cqg.rtd", ,"ContractData",A30, "LastTrade",, "T") -> 33.37 | J30: =RTD("cqg.rtd",,"StudyData","HiLevel("&A30&",Period1:=12,AllowGaps:=0,InputChoice1:=High,InputChoice3:=High)","Bar",, "Close","W","0",,,,,"T") -> 50.42 | K30: =RTD("cqg.rtd",,"StudyData","LoLevel("&A30&",Period2:=12,AllowGaps:=0,InputChoice2:=Low,InputChoice4:=Low)","Bar",, "Close","W","0",,,,,"T") -> 30.71 | L30: 0.1349568747 | M30: =IFERROR(RANK(L30,$L$1:L$58,0)+COUNTIF($L$1:L30,L30)-1,"") -> 51 | N30: S.US.NIO | O30: 0.1349568747 | P30: 30 | Q30: S.US.YNDX | R30: 0.4759967453 | S30: =RTD("cqg.rtd", ,"ContractData",Q30, "LongDescription",, "T") -> Yandex N.V.
A31: S.US.NIU | B31: Automobile Manufacturers | F31: =RTD("cqg.rtd", ,"ContractData",A31, "LongDescription",, "T") -> Niu Technologies | I31: =RTD("cqg.rtd", ,"ContractData",A31, "LastTrade",, "T") -> 29.38 | J31: =RTD("cqg.rtd",,"StudyData","HiLevel("&A31&",Period1:=12,AllowGaps:=0,InputChoice1:=High,InputChoice3:=High)","Bar",, "Close","W","0",,,,,"T") -> 43.92 | K31: =RTD("cqg.rtd",,"StudyData","LoLevel("&A31&",Period2:=12,AllowGaps:=0,InputChoice2:=Low,InputChoice4:=Low)","Bar",, "Close","W","0",,,,,"T") -> 26 | L31: 0.1886160714 | M31: =IFERROR(RANK(L31,$L$1:L$58,0)+COUNTIF($L$1:L31,L31)-1,"") -> 46 | N31: S.US.NIU | O31: 0.1886160714 | P31: 31 | Q31: S.US.THRM | R31: 0.3673702225 | S31: =RTD("cqg.rtd", ,"ContractData",Q31, "LongDescription",, "T") -> Gentherm Inc
A32: S.US.NKLA | B32: Motorcycle Manufacturers | F32: =RTD("cqg.rtd", ,"ContractData",A32, "LongDescription",, "T") -> Nikola Corporation | I32: =RTD("cqg.rtd", ,"ContractData",A32, "LastTrade",, "T") -> 13.98 | J32: =RTD("cqg.rtd",,"StudyData","HiLevel("&A32&",Period1:=12,AllowGaps:=0,InputChoice1:=High,InputChoice3:=High)","Bar",, "Close","W","0",,,,,"T") -> 18.96 | K32: =RTD("cqg.rtd",,"StudyData","LoLevel("&A32&",Period2:=12,AllowGaps:=0,InputChoice2:=Low,InputChoice4:=Low)","Bar",, "Close","W","0",,,,,"T") -> 9.37 | L32: 0.4807090719 | M32: =IFERROR(RANK(L32,$L$1:L$58,0)+COUNTIF($L$1:L32,L32)-1,"") -> 29 | N32: S.US.NKLA | O32: 0.4807090719 | P32: 32 | Q32: S.US.BLNK | R32: 0.3557109557 | S32: =RTD("cqg.rtd", ,"ContractData",Q32, "LongDescription",, "T") -> Blink Charging Co.
A33: S.US.NVDA | B33: Construction Machinery & Heavy Trucks | F33: =RTD("cqg.rtd", ,"ContractData",A33, "LongDescription",, "T") -> NVIDIA Corp | I33: =RTD("cqg.rtd", ,"ContractData",A33, "LastTrade",, "T") -> 568.51 | J33: =RTD("cqg.rtd",,"StudyData","HiLevel("&A33&",Period1:=12,AllowGaps:=0,InputChoice1:=High,InputChoice3:=High)","Bar",, "Close","W","0",,,,,"T") -> 648.56 | K33: =RTD("cqg.rtd",,"StudyData","LoLevel("&A33&",Period2:=12,AllowGaps:=0,InputChoice2:=Low,InputChoice4:=Low)","Bar",, "Close","W","0",,,,,"T") -> 462.66 | L33: 0.5693921463 | M33: =IFERROR(RANK(L33,$L$1:L$58,0)+COUNTIF($L$1:L33,L33)-1,"") -> 20 | N33: =A33 -> S.US.NVDA | O33: 0.5693921463 | P33: 33 | Q33: S.US.ANSS | R33: 0.3523731968 | S33: =RTD("cqg.rtd", ,"ContractData",Q33, "LongDescription",, "T") -> ANSYS Inc
A34: S.US.NXPI | B34: Semiconductors | F34: =RTD("cqg.rtd", ,"ContractData",A34, "LongDescription",, "T") -> NXP Semiconductors N.V. | I34: =RTD("cqg.rtd", ,"ContractData",A34, "LastTrade",, "T") -> 193.72 | J34: =RTD("cqg.rtd",,"StudyData","HiLevel("&A34&",Period1:=12,AllowGaps:=0,InputChoice1:=High,InputChoice3:=High)","Bar",, "Close","W","0",,,,,"T") -> 216.43 | K34: =RTD("cqg.rtd",,"StudyData","LoLevel("&A34&",Period2:=12,AllowGaps:=0,InputChoice2:=Low,InputChoice4:=Low)","Bar",, "Close","W","0",,,,,"T") -> 164.19 | L34: 0.5652756508 | M34: =IFERROR(RANK(L34,$L$1:L$58,0)+COUNTIF($L$1:L34,L34)-1,"") -> 21 | N34: S.US.NXPI | O34: 0.5652756508 | P34: 34 | Q34: S.US.ST | R34: 0.3393881453 | S34: =RTD("cqg.rtd", ,"ContractData",Q34, "LongDescription",, "T") -> Sensata Technologies Holding N.V.
A35: S.US.ON | B35: Semiconductors | F35: =RTD("cqg.rtd", ,"ContractData",A35, "LongDescription",, "T") -> ON Semiconductor Corp | I35: =RTD("cqg.rtd", ,"ContractData",A35, "LastTrade",, "T") -> 36.96 | J35: =RTD("cqg.rtd",,"StudyData","HiLevel("&A35&",Period1:=12,AllowGaps:=0,InputChoice1:=High,InputChoice3:=High)","Bar",, "Close","W","0",,,,,"T") -> 44.59 | K35: =RTD("cqg.rtd",,"StudyData","LoLevel("&A35&",Period2:=12,AllowGaps:=0,InputChoice2:=Low,InputChoice4:=Low)","Bar",, "Close","W","0",,,,,"T") -> 34.79 | L35: 0.2214285714 | M35: =IFERROR(RANK(L35,$L$1:L$58,0)+COUNTIF($L$1:L35,L35)-1,"") -> 42 | N35: S.US.ON | O35: 0.2214285714 | P35: 35 | Q35: S.US.UBER | R35: 0.338243317 | S35: =RTD("cqg.rtd", ,"ContractData",Q35, "LongDescription",, "T") -> Uber Technologies, Inc.
A36: S.US.ORBC | B36: Semiconductors | F36: =RTD("cqg.rtd", ,"ContractData",A36, "LongDescription",, "T") -> ORBCOMM Inc. | I36: =RTD("cqg.rtd", ,"ContractData",A36, "LastTrade",, "T") -> 11.19 | J36: =RTD("cqg.rtd",,"StudyData","HiLevel("&A36&",Period1:=12,AllowGaps:=0,InputChoice1:=High,InputChoice3:=High)","Bar",, "Close","W","0",,,,,"T") -> 11.55 | K36: =RTD("cqg.rtd",,"StudyData","LoLevel("&A36&",Period2:=12,AllowGaps:=0,InputChoice2:=Low,InputChoice4:=Low)","Bar",, "Close","W","0",,,,,"T") -> 6.32 | L36: 0.931166348 | M36: =IFERROR(RANK(L36,$L$1:L$58,0)+COUNTIF($L$1:L36,L36)-1,"") -> 5 | N36: S.US.ORBC | O36: 0.931166348 | P36: 36 | Q36: S.US.XPER | R36: 0.3293918919 | S36: =RTD("cqg.rtd", ,"ContractData",Q36, "LongDescription",, "T") -> Xperi Holding Corporation
A37: S.US.PLUG | B37: Alternative Carriers | F37: =RTD("cqg.rtd", ,"ContractData",A37, "LongDescription",, "T") -> Plug Power, Inc. | I37: =RTD("cqg.rtd", ,"ContractData",A37, "LastTrade",, "T") -> 25.53 | J37: =RTD("cqg.rtd",,"StudyData","HiLevel("&A37&",Period1:=12,AllowGaps:=0,InputChoice1:=High,InputChoice3:=High)","Bar",, "Close","W","0",,,,,"T") -> 53.1 | K37: =RTD("cqg.rtd",,"StudyData","LoLevel("&A37&",Period2:=12,AllowGaps:=0,InputChoice2:=Low,InputChoice4:=Low)","Bar",, "Close","W","0",,,,,"T") -> 18.47 | L37: 0.2038694773 | M37: =IFERROR(RANK(L37,$L$1:L$58,0)+COUNTIF($L$1:L37,L37)-1,"") -> 45 | N37: S.US.PLUG | O37: 0.2038694773 | P37: 37 | Q37: S.US.STM | R37: 0.3182441701 | S37: =RTD("cqg.rtd", ,"ContractData",Q37, "LongDescription",, "T") -> STMicroelectronics N.V.
A38: S.US.SANM | B38: Electrical Components & Equipment | F38: =RTD("cqg.rtd", ,"ContractData",A38, "LongDescription",, "T") -> Sanmina Corp | I38: =RTD("cqg.rtd", ,"ContractData",A38, "LastTrade",, "T") -> 42.28 | J38: =RTD("cqg.rtd",,"StudyData","HiLevel("&A38&",Period1:=12,AllowGaps:=0,InputChoice1:=High,InputChoice3:=High)","Bar",, "Close","W","0",,,,,"T") -> 43.36 | K38: =RTD("cqg.rtd",,"StudyData","LoLevel("&A38&",Period2:=12,AllowGaps:=0,InputChoice2:=Low,InputChoice4:=Low)","Bar",, "Close","W","0",,,,,"T") -> 36.07 | L38: 0.8518518519 | M38: =IFERROR(RANK(L38,$L$1:L$58,0)+COUNTIF($L$1:L38,L38)-1,"") -> 10 | N38: S.US.SANM | O38: 0.8518518519 | P38: 38 | Q38: S.US.LYFT | R38: 0.2986956522 | S38: =RTD("cqg.rtd", ,"ContractData",Q38, "LongDescription",, "T") -> Lyft, Inc. Class A
A39: S.US.SEDG | B39: Electronic Manufacturing Services | F39: =RTD("cqg.rtd", ,"ContractData",A39, "LongDescription",, "T") -> SolarEdge Technologies, Inc. | I39: =RTD("cqg.rtd", ,"ContractData",A39, "LastTrade",, "T") -> 217.2 | J39: =RTD("cqg.rtd",,"StudyData","HiLevel("&A39&",Period1:=12,AllowGaps:=0,InputChoice1:=High,InputChoice3:=High)","Bar",, "Close","W","0",,,,,"T") -> 310.5 | K39: =RTD("cqg.rtd",,"StudyData","LoLevel("&A39&",Period2:=12,AllowGaps:=0,InputChoice2:=Low,InputChoice4:=Low)","Bar",, "Close","W","0",,,,,"T") -> 199.33 | L39: 0.1607448053 | M39: =IFERROR(RANK(L39,$L$1:L$58,0)+COUNTIF($L$1:L39,L39)-1,"") -> 48 | N39: S.US.SEDG | O39: 0.1607448053 | P39: 39 | Q39: S.US.ADI | R39: 0.2826789838 | S39: =RTD("cqg.rtd", ,"ContractData",Q39, "LongDescription",, "T") -> Analog Devices Inc
A40: S.US.ST | B40: Semiconductor Equipment | F40: =RTD("cqg.rtd", ,"ContractData",A40, "LongDescription",, "T") -> Sensata Technologies Holding N.V. | I40: =RTD("cqg.rtd", ,"ContractData",A40, "LastTrade",, "T") -> 57.89 | J40: =RTD("cqg.rtd",,"StudyData","HiLevel("&A40&",Period1:=12,AllowGaps:=0,InputChoice1:=High,InputChoice3:=High)","Bar",, "Close","W","0",,,,,"T") -> 64.8 | K40: =RTD("cqg.rtd",,"StudyData","LoLevel("&A40&",Period2:=12,AllowGaps:=0,InputChoice2:=Low,InputChoice4:=Low)","Bar",, "Close","W","0",,,,,"T") -> 54.34 | L40: 0.3393881453 | M40: =IFERROR(RANK(L40,$L$1:L$58,0)+COUNTIF($L$1:L40,L40)-1,"") -> 34 | N40: S.US.ST | O40: 0.3393881453 | P40: 40 | Q40: S.US.MTOR | R40: 0.2292134831 | S40: =RTD("cqg.rtd", ,"ContractData",Q40, "LongDescription",, "T") -> Meritor Inc.
A41: S.US.STLA | B41: Electrical Components & Equipment | F41: =RTD("cqg.rtd", ,"ContractData",A41, "LongDescription",, "T") -> Stellantis N.V. | I41: =RTD("cqg.rtd", ,"ContractData",A41, "LastTrade",, "T") -> 18.41 | J41: =RTD("cqg.rtd",,"StudyData","HiLevel("&A41&",Period1:=12,AllowGaps:=0,InputChoice1:=High,InputChoice3:=High)","Bar",, "Close","W","0",,,,,"T") -> 18.52 | K41: =RTD("cqg.rtd",,"StudyData","LoLevel("&A41&",Period2:=12,AllowGaps:=0,InputChoice2:=Low,InputChoice4:=Low)","Bar",, "Close","W","0",,,,,"T") -> 16.05 | L41: 0.955465587 | M41: =IFERROR(RANK(L41,$L$1:L$58,0)+COUNTIF($L$1:L41,L41)-1,"") -> 4 | N41: S.US.STLA | O41: 0.955465587 | P41: 41 | Q41: S.US.APTV | R41: 0.2225552641 | S41: =RTD("cqg.rtd", ,"ContractData",Q41, "LongDescription",, "T") -> Aptiv PLC
A42: S.US.STM | B42: Automobile Manufacturers | F42: =RTD("cqg.rtd", ,"ContractData",A42, "LongDescription",, "T") -> STMicroelectronics N.V. | I42: =RTD("cqg.rtd", ,"ContractData",A42, "LastTrade",, "T") -> 35.62 | J42: =RTD("cqg.rtd",,"StudyData","HiLevel("&A42&",Period1:=12,AllowGaps:=0,InputChoice1:=High,InputChoice3:=High)","Bar",, "Close","W","0",,,,,"T") -> 40.59 | K42: =RTD("cqg.rtd",,"StudyData","LoLevel("&A42&",Period2:=12,AllowGaps:=0,InputChoice2:=Low,InputChoice4:=Low)","Bar",, "Close","W","0",,,,,"T") -> 33.3 | L42: 0.3182441701 | M42: =IFERROR(RANK(L42,$L$1:L$58,0)+COUNTIF($L$1:L42,L42)-1,"") -> 37 | N42: S.US.STM | O42: 0.3182441701 | P42: 42 | Q42: S.US.ON | R42: 0.2214285714 | S42: =RTD("cqg.rtd", ,"ContractData",Q42, "LongDescription",, "T") -> ON Semiconductor Corp
A43: S.US.TDY | B43: Semiconductors | F43: =RTD("cqg.rtd", ,"ContractData",A43, "LongDescription",, "T") -> Teledyne Technologies Inc | I43: =RTD("cqg.rtd", ,"ContractData",A43, "LastTrade",, "T") -> 417.35 | J43: =RTD("cqg.rtd",,"StudyData","HiLevel("&A43&",Period1:=12,AllowGaps:=0,InputChoice1:=High,InputChoice3:=High)","Bar",, "Close","W","0",,,,,"T") -> 457.79 | K43: =RTD("cqg.rtd",,"StudyData","LoLevel("&A43&",Period2:=12,AllowGaps:=0,InputChoice2:=Low,InputChoice4:=Low)","Bar",, "Close","W","0",,,,,"T") -> 354.17 | L43: 0.6097278518 | M43: =IFERROR(RANK(L43,$L$1:L$58,0)+COUNTIF($L$1:L43,L43)-1,"") -> 18 | N43: S.US.TDY | O43: 0.6097278518 | P43: 43 | Q43: S.US.VNE | R43: 0.2164948454 | S43: =RTD("cqg.rtd", ,"ContractData",Q43, "LongDescription",, "T") -> Veoneer, Inc.
A44: S.US.THRM | B44: Auto Parts & Equipment | F44: =RTD("cqg.rtd", ,"ContractData",A44, "LongDescription",, "T") -> Gentherm Inc | I44: =RTD("cqg.rtd", ,"ContractData",A44, "LastTrade",, "T") -> 70.89 | J44: =RTD("cqg.rtd",,"StudyData","HiLevel("&A44&",Period1:=12,AllowGaps:=0,InputChoice1:=High,InputChoice3:=High)","Bar",, "Close","W","0",,,,,"T") -> 81.98 | K44: =RTD("cqg.rtd",,"StudyData","LoLevel("&A44&",Period2:=12,AllowGaps:=0,InputChoice2:=Low,InputChoice4:=Low)","Bar",, "Close","W","0",,,,,"T") -> 64.45 | L44: 0.3673702225 | M44: =IFERROR(RANK(L44,$L$1:L$58,0)+COUNTIF($L$1:L44,L44)-1,"") -> 31 | N44: S.US.THRM | O44: 0.3673702225 | P44: 44 | Q44: S.US.KNDI | R44: 0.2103559871 | S44: =RTD("cqg.rtd", ,"ContractData",Q44, "LongDescription",, "T") -> Kandi Technologies Group Inc.
A45: S.US.TM | B45: Automobile Manufacturers | F45: =RTD("cqg.rtd", ,"ContractData",A45, "LongDescription",, "T") -> Toyota Motor Corporation ADR | I45: =RTD("cqg.rtd", ,"ContractData",A45, "LastTrade",, "T") -> 161.46 | J45: =RTD("cqg.rtd",,"StudyData","HiLevel("&A45&",Period1:=12,AllowGaps:=0,InputChoice1:=High,InputChoice3:=High)","Bar",, "Close","W","0",,,,,"T") -> 161.91 | K45: =RTD("cqg.rtd",,"StudyData","LoLevel("&A45&",Period2:=12,AllowGaps:=0,InputChoice2:=Low,InputChoice4:=Low)","Bar",, "Close","W","0",,,,,"T") -> 145.55 | L45: 0.9724938875 | M45: =IFERROR(RANK(L45,$L$1:L$58,0)+COUNTIF($L$1:L45,L45)-1,"") -> 2 | N45: S.US.TM | O45: 0.9724938875 | P45: 45 | Q45: S.US.PLUG | R45: 0.2038694773 | S45: =RTD("cqg.rtd", ,"ContractData",Q45, "LongDescription",, "T") -> Plug Power, Inc.
A46: S.US.TRMB | B46: Electronic Equipment & Instruments | F46: =RTD("cqg.rtd", ,"ContractData",A46, "LongDescription",, "T") -> Trimble Inc. | I46: =RTD("cqg.rtd", ,"ContractData",A46, "LastTrade",, "T") -> 75.81 | J46: =RTD("cqg.rtd",,"StudyData","HiLevel("&A46&",Period1:=12,AllowGaps:=0,InputChoice1:=High,InputChoice3:=High)","Bar",, "Close","W","0",,,,,"T") -> 84.86 | K46: =RTD("cqg.rtd",,"StudyData","LoLevel("&A46&",Period2:=12,AllowGaps:=0,InputChoice2:=Low,InputChoice4:=Low)","Bar",, "Close","W","0",,,,,"T") -> 66.95 | L46: 0.4946957007 | M46: =IFERROR(RANK(L46,$L$1:L$58,0)+COUNTIF($L$1:L46,L46)-1,"") -> 27 | N46: =A46 -> S.US.TRMB | O46: =L46 -> 0.4946957007 | P46: 46 | Q46: S.US.NIU | R46: 0.1886160714 | S46: =RTD("cqg.rtd", ,"ContractData",Q46, "LongDescription",, "T") -> Niu Technologies
A47: S.US.TSLA | B47: Automobile Manufacturers | F47: =RTD("cqg.rtd", ,"ContractData",A47, "LongDescription",, "T") -> Tesla, Inc. | I47: =RTD("cqg.rtd", ,"ContractData",A47, "LastTrade",, "T") -> 575.19 | J47: =RTD("cqg.rtd",,"StudyData","HiLevel("&A47&",Period1:=12,AllowGaps:=0,InputChoice1:=High,InputChoice3:=High)","Bar",, "Close","W","0",,,,,"T") -> 780.79 | K47: =RTD("cqg.rtd",,"StudyData","LoLevel("&A47&",Period2:=12,AllowGaps:=0,InputChoice2:=Low,InputChoice4:=Low)","Bar",, "Close","W","0",,,,,"T") -> 539.49 | L47: 0.1479486117 | M47: =IFERROR(RANK(L47,$L$1:L$58,0)+COUNTIF($L$1:L47,L47)-1,"") -> 50 | N47: S.US.TSLA | O47: 0.1479486117 | P47: 47 | Q47: S.US.HY | R47: 0.1867762421 | S47: =RTD("cqg.rtd", ,"ContractData",Q47, "LongDescription",, "T") -> Hyster-Yale Materials Handling, Inc.
A48: S.US.TTM | B48: Automobile Manufacturers | F48: =RTD("cqg.rtd", ,"ContractData",A48, "LongDescription",, "T") -> Tata Motors Limited | I48: =RTD("cqg.rtd", ,"ContractData",A48, "LastTrade",, "T") -> 22.34 | J48: =RTD("cqg.rtd",,"StudyData","HiLevel("&A48&",Period1:=12,AllowGaps:=0,InputChoice1:=High,InputChoice3:=High)","Bar",, "Close","W","0",,,,,"T") -> 23.7 | K48: =RTD("cqg.rtd",,"StudyData","LoLevel("&A48&",Period2:=12,AllowGaps:=0,InputChoice2:=Low,InputChoice4:=Low)","Bar",, "Close","W","0",,,,,"T") -> 18.56 | L48: 0.7354085603 | M48: =IFERROR(RANK(L48,$L$1:L$58,0)+COUNTIF($L$1:L48,L48)-1,"") -> 15 | N48: S.US.TTM | O48: 0.7354085603 | P48: 48 | Q48: S.US.SEDG | R48: 0.1607448053 | S48: =RTD("cqg.rtd", ,"ContractData",Q48, "LongDescription",, "T") -> SolarEdge Technologies, Inc.
A49: S.US.TXN | B49: Semiconductors | F49: =RTD("cqg.rtd", ,"ContractData",A49, "LongDescription",, "T") -> Texas Instruments Inc | I49: =RTD("cqg.rtd", ,"ContractData",A49, "LastTrade",, "T") -> 180.51 | J49: =RTD("cqg.rtd",,"StudyData","HiLevel("&A49&",Period1:=12,AllowGaps:=0,InputChoice1:=High,InputChoice3:=High)","Bar",, "Close","W","0",,,,,"T") -> 197.58 | K49: =RTD("cqg.rtd",,"StudyData","LoLevel("&A49&",Period2:=12,AllowGaps:=0,InputChoice2:=Low,InputChoice4:=Low)","Bar",, "Close","W","0",,,,,"T") -> 161.67 | L49: 0.5246449457 | M49: =IFERROR(RANK(L49,$L$1:L$58,0)+COUNTIF($L$1:L49,L49)-1,"") -> 26 | N49: S.US.TXN | O49: 0.5246449457 | P49: 49 | Q49: S.US.INTC | R49: 0.1499668215 | S49: =RTD("cqg.rtd", ,"ContractData",Q49, "LongDescription",, "T") -> Intel Corporation
A50: S.US.TXT | B50: Aerospace & Defence | F50: =RTD("cqg.rtd", ,"ContractData",A50, "LongDescription",, "T") -> Textron Inc | I50: =RTD("cqg.rtd", ,"ContractData",A50, "LastTrade",, "T") -> 68.28 | J50: =RTD("cqg.rtd",,"StudyData","HiLevel("&A50&",Period1:=12,AllowGaps:=0,InputChoice1:=High,InputChoice3:=High)","Bar",, "Close","W","0",,,,,"T") -> 69.16 | K50: =RTD("cqg.rtd",,"StudyData","LoLevel("&A50&",Period2:=12,AllowGaps:=0,InputChoice2:=Low,InputChoice4:=Low)","Bar",, "Close","W","0",,,,,"T") -> 48.83 | L50: 0.9567142154 | M50: =IFERROR(RANK(L50,$L$1:L$58,0)+COUNTIF($L$1:L50,L50)-1,"") -> 3 | N50: S.US.TXT | O50: 0.9567142154 | P50: 50 | Q50: S.US.TSLA | R50: 0.1479486117 | S50: =RTD("cqg.rtd", ,"ContractData",Q50, "LongDescription",, "T") -> Tesla, Inc.
A51: S.US.UAVS | B51: Agricultural & Farm Machinery | F51: =RTD("cqg.rtd", ,"ContractData",A51, "LongDescription",, "T") -> AgEagle Aerial Systems Inc. | I51: =RTD("cqg.rtd", ,"ContractData",A51, "LastTrade",, "T") -> 4.41 | J51: =RTD("cqg.rtd",,"StudyData","HiLevel("&A51&",Period1:=12,AllowGaps:=0,InputChoice1:=High,InputChoice3:=High)","Bar",, "Close","W","0",,,,,"T") -> 9.3 | K51: =RTD("cqg.rtd",,"StudyData","LoLevel("&A51&",Period2:=12,AllowGaps:=0,InputChoice2:=Low,InputChoice4:=Low)","Bar",, "Close","W","0",,,,,"T") -> 4.03 | L51: 0.07210626186 | M51: =IFERROR(RANK(L51,$L$1:L$58,0)+COUNTIF($L$1:L51,L51)-1,"") -> 58 | N51: S.US.UAVS | O51: 0.07210626186 | P51: 51 | Q51: S.US.NIO | R51: 0.1349568747 | S51: =RTD("cqg.rtd", ,"ContractData",Q51, "LongDescription",, "T") -> NIO, Inc.
A52: S.US.UBER | B52: Trucking | F52: =RTD("cqg.rtd", ,"ContractData",A52, "LongDescription",, "T") -> Uber Technologies, Inc. | I52: =RTD("cqg.rtd", ,"ContractData",A52, "LastTrade",, "T") -> 49.37 | J52: =RTD("cqg.rtd",,"StudyData","HiLevel("&A52&",Period1:=12,AllowGaps:=0,InputChoice1:=High,InputChoice3:=High)","Bar",, "Close","W","0",,,,,"T") -> 61.5 | K52: =RTD("cqg.rtd",,"StudyData","LoLevel("&A52&",Period2:=12,AllowGaps:=0,InputChoice2:=Low,InputChoice4:=Low)","Bar",, "Close","W","0",,,,,"T") -> 43.17 | L52: 0.338243317 | M52: =IFERROR(RANK(L52,$L$1:L$58,0)+COUNTIF($L$1:L52,L52)-1,"") -> 35 | N52: S.US.UBER | O52: 0.338243317 | P52: 52 | Q52: S.US.BIDU | R52: 0.1295121418 | S52: =RTD("cqg.rtd", ,"ContractData",Q52, "LongDescription",, "T") -> Baidu Inc
A53: S.US.VC | B53: Auto Parts & Equipment | F53: =RTD("cqg.rtd", ,"ContractData",A53, "LongDescription",, "T") -> Visteon Corporation | I53: =RTD("cqg.rtd", ,"ContractData",A53, "LastTrade",, "T") -> 112.98 | J53: =RTD("cqg.rtd",,"StudyData","HiLevel("&A53&",Period1:=12,AllowGaps:=0,InputChoice1:=High,InputChoice3:=High)","Bar",, "Close","W","0",,,,,"T") -> 136.58 | K53: =RTD("cqg.rtd",,"StudyData","LoLevel("&A53&",Period2:=12,AllowGaps:=0,InputChoice2:=Low,InputChoice4:=Low)","Bar",, "Close","W","0",,,,,"T") -> 109.8 | L53: 0.1187453323 | M53: =IFERROR(RANK(L53,$L$1:L$58,0)+COUNTIF($L$1:L53,L53)-1,"") -> 54 | N53: S.US.VC | O53: 0.1187453323 | P53: 53 | Q53: S.US.AMBA | R53: 0.1212232192 | S53: =RTD("cqg.rtd", ,"ContractData",Q53, "LongDescription",, "T") -> Ambarella, Inc. Ordinary Shares
A54: S.US.VNE | B54: Auto Parts & Equipment | F54: =RTD("cqg.rtd", ,"ContractData",A54, "LongDescription",, "T") -> Veoneer, Inc. | I54: =RTD("cqg.rtd", ,"ContractData",A54, "LastTrade",, "T") -> 22.9 | J54: =RTD("cqg.rtd",,"StudyData","HiLevel("&A54&",Period1:=12,AllowGaps:=0,InputChoice1:=High,InputChoice3:=High)","Bar",, "Close","W","0",,,,,"T") -> 28.98 | K54: =RTD("cqg.rtd",,"StudyData","LoLevel("&A54&",Period2:=12,AllowGaps:=0,InputChoice2:=Low,InputChoice4:=Low)","Bar",, "Close","W","0",,,,,"T") -> 21.22 | L54: 0.2164948454 | M54: =IFERROR(RANK(L54,$L$1:L$58,0)+COUNTIF($L$1:L54,L54)-1,"") -> 43 | N54: S.US.VNE | O54: 0.2164948454 | P54: 54 | Q54: S.US.VC | R54: 0.1187453323 | S54: =RTD("cqg.rtd", ,"ContractData",Q54, "LongDescription",, "T") -> Visteon Corporation
A55: S.US.VNT | B55: Electronic Equipment & Instruments | F55: =RTD("cqg.rtd", ,"ContractData",A55, "LongDescription",, "T") -> Vontier Corporation | I55: =RTD("cqg.rtd", ,"ContractData",A55, "LastTrade",, "T") -> 34.26 | J55: =RTD("cqg.rtd",,"StudyData","HiLevel("&A55&",Period1:=12,AllowGaps:=0,InputChoice1:=High,InputChoice3:=High)","Bar",, "Close","W","0",,,,,"T") -> 34.9 | K55: =RTD("cqg.rtd",,"StudyData","LoLevel("&A55&",Period2:=12,AllowGaps:=0,InputChoice2:=Low,InputChoice4:=Low)","Bar",, "Close","W","0",,,,,"T") -> 29.87 | L55: 0.8727634195 | M55: =IFERROR(RANK(L55,$L$1:L$58,0)+COUNTIF($L$1:L55,L55)-1,"") -> 9 | N55: S.US.VNT | O55: 0.8727634195 | P55: 55 | Q55: S.US.WKHS | R55: 0.117085863 | S55: =RTD("cqg.rtd", ,"ContractData",Q55, "LongDescription",, "T") -> Workhorse Group, Inc.
A56: S.US.WKHS | B56: Auto Parts & Equipment | F56: =RTD("cqg.rtd", ,"ContractData",A56, "LongDescription",, "T") -> Workhorse Group, Inc. | I56: =RTD("cqg.rtd", ,"ContractData",A56, "LastTrade",, "T") -> 8.41 | J56: =RTD("cqg.rtd",,"StudyData","HiLevel("&A56&",Period1:=12,AllowGaps:=0,InputChoice1:=High,InputChoice3:=High)","Bar",, "Close","W","0",,,,,"T") -> 18.59 | K56: =RTD("cqg.rtd",,"StudyData","LoLevel("&A56&",Period2:=12,AllowGaps:=0,InputChoice2:=Low,InputChoice4:=Low)","Bar",, "Close","W","0",,,,,"T") -> 7.06 | L56: 0.117085863 | M56: =IFERROR(RANK(L56,$L$1:L$58,0)+COUNTIF($L$1:L56,L56)-1,"") -> 55 | N56: S.US.WKHS | O56: 0.117085863 | P56: 56 | Q56: S.US.BLDP | R56: 0.1031286211 | S56: =RTD("cqg.rtd", ,"ContractData",Q56, "LongDescription",, "T") -> Ballard Power System
A57: S.US.XPER | B57: Systems Software | F57: =RTD("cqg.rtd", ,"ContractData",A57, "LongDescription",, "T") -> Xperi Holding Corporation | I57: =RTD("cqg.rtd", ,"ContractData",A57, "LastTrade",, "T") -> 21.06 | J57: =RTD("cqg.rtd",,"StudyData","HiLevel("&A57&",Period1:=12,AllowGaps:=0,InputChoice1:=High,InputChoice3:=High)","Bar",, "Close","W","0",,,,,"T") -> 25.03 | K57: =RTD("cqg.rtd",,"StudyData","LoLevel("&A57&",Period2:=12,AllowGaps:=0,InputChoice2:=Low,InputChoice4:=Low)","Bar",, "Close","W","0",,,,,"T") -> 19.11 | L57: 0.3293918919 | M57: =IFERROR(RANK(L57,$L$1:L$58,0)+COUNTIF($L$1:L57,L57)-1,"") -> 36 | N57: S.US.XPER | O57: 0.3293918919 | P57: 57 | Q57: S.US.GILT | R57: 0.09565217391 | S57: =RTD("cqg.rtd", ,"ContractData",Q57, "LongDescription",, "T") -> Gilat Satellite Ntks Ltd
A58: S.US.YNDX | B58: Interactive Media & Services | F58: =RTD("cqg.rtd", ,"ContractData",A58, "LongDescription",, "T") -> Yandex N.V. | I58: =RTD("cqg.rtd", ,"ContractData",A58, "LastTrade",, "T") -> 64.76 | J58: =RTD("cqg.rtd",,"StudyData","HiLevel("&A58&",Period1:=12,AllowGaps:=0,InputChoice1:=High,InputChoice3:=High)","Bar",, "Close","W","0",,,,,"T") -> 71.2 | K58: =RTD("cqg.rtd",,"StudyData","LoLevel("&A58&",Period2:=12,AllowGaps:=0,InputChoice2:=Low,InputChoice4:=Low)","Bar",, "Close","W","0",,,,,"T") -> 58.91 | L58: 0.4759967453 | M58: =IFERROR(RANK(L58,$L$1:L$58,0)+COUNTIF($L$1:L58,L58)-1,"") -> 30 | N58: S.US.YNDX | O58: 0.4759967453 | P58: 58 | Q58: S.US.UAVS | R58: 0.07210626186 | S58: =RTD("cqg.rtd", ,"ContractData",Q58, "LongDescription",, "T") -> AgEagle Aerial Systems Inc.
C60: LoLevel(@,Period2:=12,AllowGaps:=0,InputChoice2:=Low,InputChoice4:=Low)
C61: =RTD("cqg.rtd",,"StudyData","LoLevel("&A55&",Period2:=12,AllowGaps:=0,InputChoice2:=Low,InputChoice4:=Low)","Bar",, "Close","W","0",,,,,"T") -> 29.87
J62: Current Time 02/12/21 08:22
J64: Test: -- Overlaid = FALSE
J66: Curve 'c1 (Display String)
J67: LoLevel(@,12,0)
J69: Curve 'c1 (Study String)
J70: LoLevel(@,Period2:=12,AllowGaps:=0,InputChoice2:=Low,InputChoice4:=Low)
J71: -------------------------------------------------------

Sheet Sheet4 (2) (hidden)
A1: =YEAR(TODAY()) -> 2021 | B1: =MONTH(TODAY()) -> 5 | C1: =DAY(TODAY()) -> 18 | D1: =IF(OR(WEEKDAY(TODAY())=1,WEEKDAY(TODAY())=7),0,1) -> 1 | F1: =Sheet2!P1 -> S.US.NKLA | I1: =Sheet2!P1 -> S.US.NKLA | L1: =MOD(RTD("cqg.rtd", ,"SystemInfo", "Linetime"),1) -> 0.3707986111
B2: =Sheet2!P1 -> S.US.NKLA | F2: =Sheet2!P2 -> S.US.BLNK | H2: =Sheet2!P3 -> S.US.LYFT | J2: =Sheet2!P4 -> S.US.UBER | L2: =Sheet2!P5 -> S.US.VNE | N2: =Sheet2!P6 -> S.US.F | P2: =Sheet2!P7 -> S.US.PLUG | R2: =Sheet2!P8 -> S.US.GILT | T2: =Sheet2!P9 -> S.US.AXL | V2: =Sheet2!P10 -> S.US.BLDP | X2: =Sheet2!P11 -> S.US.TTM | Z2: =Sheet2!P12 -> S.US.WKHS | AB2: =Sheet2!P13 -> S.US.HMC | AD2: =Sheet2!P14 -> S.US.NIU | AF2: =Sheet2!P15 -> S.US.TM | AH2: =Sheet2!P44 -> S.US.ST | AJ2: =Sheet2!P45 -> S.US.TSLA | AL2: =Sheet2!P46 -> S.US.SEDG | AN2: =Sheet2!P47 -> S.US.BWA | AP2: =Sheet2!P48 -> S.US.MOD | AR2: =Sheet2!P49 -> S.US.ALSN | AT2: =Sheet2!P50 -> S.US.TRMB | AV2: =Sheet2!P51 -> S.US.UAVS | AX2: =Sheet2!P52 -> S.US.MTOR | AZ2: =Sheet2!P53 -> S.US.HY | BB2: =Sheet2!P54 -> S.US.HEI | BD2: =Sheet2!P55 -> S.US.VC | BF2: =Sheet2!P56 -> S.US.KNDI | BH2: =Sheet2!P57 -> S.US.CMI | BJ2: =Sheet2!P58 -> S.US.NIO | BL2: =MainDisplay!B5 -> S.HAIL | BN2: =MainDisplay!B6 -> S.SPY | BP2: =MainDisplay!B7 -> S.RYT | BR2: =MainDisplay!B8 -> S.IWF | BT2: =MainDisplay!B9 -> S.GLD | BV2: =MainDisplay!B10 -> S.SLV | BX2: =MainDisplay!B11 -> S.USO | BZ2: =MainDisplay!B12 -> S.TSLA
B3: Close
A4: 0 | B4: =IF(D4=0,NA(),RTD("cqg.rtd",,"StudyData", "Close("&$B$2&") When Barix("&$B$2&",reference:=StartOfSession)="&A4&"", "Bar", "", "Close","5","0","All",,,"False","T","EveryTick")) -> 13.24 | C4: 08:30:00 | D4: =IF($D$1=0,1,IF($L$1>C4,1,0)) -> 1 | F4: =IF(D4=0,NA(),RTD("cqg.rtd",,"StudyData", "Close("&$F$2&") When Barix("&$F$2&",reference:=StartOfSession)="&A4&"", "Bar", "", "Close","5","0","All",,,"False","T","EveryTick")) -> 31.02 | H4: =IF(D4=0,NA(),RTD("cqg.rtd",,"StudyData", "Close("&$H$2&") When Barix("&$H$2&",reference:=StartOfSession)="&A4&"", "Bar", "", "Close","5","0","All",,,"False","T","EveryTick")) -> 52.01 | J4: =IF(D4=0,NA(),RTD("cqg.rtd",,"StudyData", "Close("&$J$2&") When Barix("&$J$2&",reference:=StartOfSession)="&A4&"", "Bar", "", "Close","5","0","All",,,"False","T","EveryTick")) -> 48.98 | L4: =IF(D4=0,NA(),RTD("cqg.rtd",,"StudyData", "Close("&$L$2&") When Barix("&$L$2&",reference:=StartOfSession)="&A4&"", "Bar", "", "Close","5","0","All",,,"False","T","EveryTick")) -> 22.51 | N4: =IF(D4=0,NA(),RTD("cqg.rtd",,"StudyData", "Close("&$N$2&") When Barix("&$N$2&",reference:=StartOfSession)="&A4&"", "Bar", "", "Close","5","0","All",,,"False","T","EveryTick")) -> 12.27 | P4: =IF(D4=0,NA(),RTD("cqg.rtd",,"StudyData", "Close("&$P$2&") When Barix("&$P$2&",reference:=StartOfSession)="&A4&"", "Bar", "", "Close","5","0","All",,,"False","T","EveryTick")) -> 24.9 | R4: =IF(D4=0,NA(),RTD("cqg.rtd",,"StudyData", "Close("&$R$2&") When Barix("&$R$2&",reference:=StartOfSession)="&A4&"", "Bar", "", "Close","5","0","All",,,"False","T","EveryTick")) -> 8.78 | T4: =IF(D4=0,NA(),RTD("cqg.rtd",,"StudyData", "Close("&$T$2&") When Barix("&$T$2&",reference:=StartOfSession)="&A4&"", "Bar", "", "Close","5","0","All",,,"False","T","EveryTick")) -> 10.85 | V4: =IF(D4=0,NA(),RTD("cqg.rtd",,"StudyData", "Close("&$V$2&") When Barix("&$V$2&",reference:=StartOfSession)="&A4&"", "Bar", "", "Close","5","0","All",,,"False","T","EveryTick")) -> 14.14 | X4: =IF(D4=0,NA(),RTD("cqg.rtd",,"StudyData", "Close("&$X$2&") When Barix("&$X$2&",reference:=StartOfSession)="&A4&"", "Bar", "", "Close","5","0","All",,,"False","T","EveryTick")) -> 22.07 | Z4: =IF(D4=0,NA(),RTD("cqg.rtd",,"StudyData", "Close("&$Z$2&") When Barix("&$Z$2&",reference:=StartOfSession)="&A4&"", "Bar", "", "Close","5","0","All",,,"False","T","EveryTick")) -> 8.21 | AB4: =IF(D4=0,NA(),RTD("cqg.rtd",,"StudyData", "Close("&$AB$2&") When Barix("&$AB$2&",reference:=StartOfSession)="&A4&"", "Bar", "", "Close","5","0","All",,,"False","T","EveryTick")) -> 30.59 | AD4: =IF(D4=0,NA(),RTD("cqg.rtd",,"StudyData", "Close("&$AD$2&") When Barix("&$AD$2&",reference:=StartOfSession)="&A4&"", "Bar", "", "Close","5","0","All",,,"False","T","EveryTick")) -> 29.18 | AF4: =IF(D4=0,NA(),RTD("cqg.rtd",,"StudyData", "Close("&$AF$2&") When Barix("&$AF$2&",reference:=StartOfSession)="&A4&"", "Bar", "", "Close","5","0","All",,,"False","T","EveryTick")) -> 161 | AH4: =IF(D4=0,NA(),RTD("cqg.rtd",,"StudyData", "Close("&$AH$2&") When Barix("&$AH$2&",reference:=StartOfSession)="&A4&"", "Bar", "", "Close","5","0","All",,,"False","T","EveryTick")) -> 57.52 | AJ4: =IF(D4=0,NA(),RTD("cqg.rtd",,"StudyData", "Close("&$AJ$2&") When Barix("&$AJ$2&",reference:=StartOfSession)="&A4&"", "Bar", "", "Close","5","0","All",,,"False","T","EveryTick")) -> 566.42 | AL4: =IF(D4=0,NA(),RTD("cqg.rtd",,"StudyData", "Close("&$AL$2&") When Barix("&$AL$2&",reference:=StartOfSession)="&A4&"", "Bar", "", "Close","5","0","All",,,"False","T","EveryTick")) -> 217.82 | AN4: =IF(D4=0,NA(),RTD("cqg.rtd",,"StudyData", "Close("&$AN$2&") When Barix("&$AN$2&",reference:=StartOfSession)="&A4&"", "Bar", "", "Close","5","0","All",,,"False","T","EveryTick")) -> 51.18 | AP4: =IF(D4=0,NA(),RTD("cqg.rtd",,"StudyData", "Close("&$AN$2&") When Barix("&$AN$2&",reference:=StartOfSession)="&A4&"", "Bar", "", "Close","5","0","All",,,"False","T","EveryTick")) -> 51.18 | AR4: =IF(D4=0,NA(),RTD("cqg.rtd",,"StudyData", "Close("&$AR$2&") When Barix("&$AR$2&",reference:=StartOfSession)="&A4&"", "Bar", "", "Close","5","0","All",,,"False","T","EveryTick")) -> 45 | AT4: =IF(D4=0,NA(),RTD("cqg.rtd",,"StudyData", "Close("&$AT$2&") When Barix("&$AT$2&",reference:=StartOfSession)="&A4&"", "Bar", "", "Close","5","0","All",,,"False","T","EveryTick")) -> 75.67 | AV4: =IF(D4=0,NA(),RTD("cqg.rtd",,"StudyData", "Close("&$AV$2&") When Barix("&$AV$2&",reference:=StartOfSession)="&A4&"", "Bar", "", "Close","5","0","All",,,"False","T","EveryTick")) -> 4.16 | AX4: =IF(D4=0,NA(),RTD("cqg.rtd",,"StudyData", "Close("&$AX$2&") When Barix("&$AX$2&",reference:=StartOfSession)="&A4&"", "Bar", "", "Close","5","0","All",,,"False","T","EveryTick")) -> 25.84 | AZ4: =IF(D4=0,NA(),RTD("cqg.rtd",,"StudyData", "Close("&$AZ$2&") When Barix("&$AZ$2&",reference:=StartOfSession)="&A4&"", "Bar", "", "Close","5","0","All",,,"False","T","EveryTick")) -> 76.92 | BB4: =IF(D4=0,NA(),RTD("cqg.rtd",,"StudyData", "Close("&$BB$2&") When Barix("&$BB$2&",reference:=StartOfSession)="&A4&"", "Bar", "", "Close","5","0","All",,,"False","T","EveryTick")) -> 132.14 | BD4: =IF(D4=0,NA(),RTD("cqg.rtd",,"StudyData", "Close("&$BD$2&") When Barix("&$BD$2&",reference:=StartOfSession)="&A4&"", "Bar", "", "Close","5","0","All",,,"False","T","EveryTick")) -> 113.25 | BF4: =IF(D4=0,NA(),RTD("cqg.rtd",,"StudyData", "Close("&$BF$2&") When Barix("&$BF$2&",reference:=StartOfSession)="&A4&"", "Bar", "", "Close","5","0","All",,,"False","T","EveryTick")) -> 5.06 | BH4: =IF(D4=0,NA(),RTD("cqg.rtd",,"StudyData", "Close("&$BH$2&") When Barix("&$BH$2&",reference:=StartOfSession)="&A4&"", "Bar", "", "Close","5","0","All",,,"False","T","EveryTick")) -> 263.53 | BJ4: =IF(D4=0,NA(),RTD("cqg.rtd",,"StudyData", "Close("&$BJ$2&") When Barix("&$BJ$2&",reference:=StartOfSession)="&A4&"", "Bar", "", "Close","5","0","All",,,"False","T","EveryTick")) -> 33.53 | BL4: =IF(D4=0,NA(),RTD("cqg.rtd",,"StudyData", "Close("&$BL$2&") When Barix("&$BL$2&",reference:=StartOfSession)="&A4&"", "Bar", "", "Close","5","0","All",,,"False","T","EveryTick")) -> 58.29 | BN4: =IF(D4=0,NA(),RTD("cqg.rtd",,"StudyData", "Close("&$BN$2&") When Barix("&$BN$2&",reference:=StartOfSession)="&A4&"", "Bar", "", "Close","5","0","All",,,"False","T","EveryTick")) -> 415.05 | BP4: =IF(D4=0,NA(),RTD("cqg.rtd",,"StudyData", "Close("&$BP$2&") When Barix("&$BP$2&",reference:=StartOfSession)="&A4&"", "Bar", "", "Close","5","0","All",,,"False","T","EveryTick")) -> 271.37 | BR4: =IF(D4=0,NA(),RTD("cqg.rtd",,"StudyData", "Close("&$BR$2&") When Barix("&$BR$2&",reference:=StartOfSession)="&A4&"", "Bar", "", "Close","5","0","All",,,"False","T","EveryTick")) -> 250.46 | BT4: =IF(D4=0,NA(),RTD("cqg.rtd",,"StudyData", "Close("&$BT$2&") When Barix("&$BT$2&",reference:=StartOfSession)="&A4&"", "Bar", "", "Close","5","0","All",,,"False","T","EveryTick")) -> 174.98 | BV4: =IF(D4=0,NA(),RTD("cqg.rtd",,"StudyData", "Close("&$BV$2&") When Barix("&$BV$2&",reference:=StartOfSession)="&A4&"", "Bar", "", "Close","5","0","All",,,"False","T","EveryTick")) -> 26.28 | BX4: =IF(D4=0,NA(),RTD("cqg.rtd",,"StudyData", "Close("&$BX$2&") When Barix("&$BX$2&",reference:=StartOfSession)="&A4&"", "Bar", "", "Close","5","0","All",,,"False","T","EveryTick")) -> 45.25 | BZ4: =IF(D4=0,NA(),RTD("cqg.rtd",,"StudyData", "Close("&$BZ$2&") When Barix("&$BZ$2&",reference:=StartOfSession)="&A4&"", "Bar", "", "Close","5","0","All",,,"False","T","EveryTick")) -> 566.42
A5: =A4+1 -> 1 | B5: =IF(D5=0,NA(),RTD("cqg.rtd",,"StudyData", "Close("&$B$2&") When Barix("&$B$2&",reference:=StartOfSession)="&A5&"", "Bar", "", "Close","5","0","All",,,"False","T","EveryTick")) -> 13.72 | C5: 08:35:00 | D5: =IF($D$1=0,1,IF($L$1>C5,1,0)) -> 1 | F5: =IF(D5=0,NA(),RTD("cqg.rtd",,"StudyData", "Close("&$F$2&") When Barix("&$F$2&",reference:=StartOfSession)="&A5&"", "Bar", "", "Close","5","0","All",,,"False","T","EveryTick")) -> 31.59 | H5: =IF(D5=0,NA(),RTD("cqg.rtd",,"StudyData", "Close("&$H$2&") When Barix("&$H$2&",reference:=StartOfSession)="&A5&"", "Bar", "", "Close","5","0","All",,,"False","T","EveryTick")) -> 51.96 | J5: =IF(D5=0,NA(),RTD("cqg.rtd",,"StudyData", "Close("&$J$2&") When Barix("&$J$2&",reference:=StartOfSession)="&A5&"", "Bar", "", "Close","5","0","All",,,"False","T","EveryTick")) -> 49.13 | L5: =IF(D5=0,NA(),RTD("cqg.rtd",,"StudyData", "Close("&$L$2&") When Barix("&$L$2&",reference:=StartOfSession)="&A5&"", "Bar", "", "Close","5","0","All",,,"False","T","EveryTick")) -> 22.65 | N5: =IF(D5=0,NA(),RTD("cqg.rtd",,"StudyData", "Close("&$N$2&") When Barix("&$N$2&",reference:=StartOfSession)="&A5&"", "Bar", "", "Close","5","0","All",,,"False","T","EveryTick")) -> 12.43 | P5: =IF(D5=0,NA(),RTD("cqg.rtd",,"StudyData", "Close("&$P$2&") When Barix("&$P$2&",reference:=StartOfSession)="&A5&"", "Bar", "", "Close","5","0","All",,,"False","T","EveryTick")) -> 25.12 | R5: =IF(D5=0,NA(),RTD("cqg.rtd",,"StudyData", "Close("&$R$2&") When Barix("&$R$2&",reference:=StartOfSession)="&A5&"", "Bar", "", "Close","5","0","All",,,"False","T","EveryTick")) -> 8.94 | T5: =IF(D5=0,NA(),RTD("cqg.rtd",,"StudyData", "Close("&$T$2&") When Barix("&$T$2&",reference:=StartOfSession)="&A5&"", "Bar", "", "Close","5","0","All",,,"False","T","EveryTick")) -> 10.94 | V5: =IF(D5=0,NA(),RTD("cqg.rtd",,"StudyData", "Close("&$V$2&") When Barix("&$V$2&",reference:=StartOfSession)="&A5&"", "Bar", "", "Close","5","0","All",,,"False","T","EveryTick")) -> 14.31 | X5: =IF(D5=0,NA(),RTD("cqg.rtd",,"StudyData", "Close("&$X$2&") When Barix("&$X$2&",reference:=StartOfSession)="&A5&"", "Bar", "", "Close","5","0","All",,,"False","T","EveryTick")) -> 22.09 | Z5: =IF(D5=0,NA(),RTD("cqg.rtd",,"StudyData", "Close("&$Z$2&") When Barix("&$Z$2&",reference:=StartOfSession)="&A5&"", "Bar", "", "Close","5","0","All",,,"False","T","EveryTick")) -> 8.36 | AB5: =IF(D5=0,NA(),RTD("cqg.rtd",,"StudyData", "Close("&$AB$2&") When Barix("&$AB$2&",reference:=StartOfSession)="&A5&"", "Bar", "", "Close","5","0","All",,,"False","T","EveryTick")) -> 30.69 | AD5: =IF(D5=0,NA(),RTD("cqg.rtd",,"StudyData", "Close("&$AD$2&") When Barix("&$AD$2&",reference:=StartOfSession)="&A5&"", "Bar", "", "Close","5","0","All",,,"False","T","EveryTick")) -> 29.28 | AF5: =IF(D5=0,NA(),RTD("cqg.rtd",,"StudyData", "Close("&$AF$2&") When Barix("&$AF$2&",reference:=StartOfSession)="&A5&"", "Bar", "", "Close","5","0","All",,,"False","T","EveryTick")) -> 161.51 | AH5: =IF(D5=0,NA(),RTD("cqg.rtd",,"StudyData", "Close("&$AH$2&") When Barix("&$AH$2&",reference:=StartOfSession)="&A5&"", "Bar", "", "Close","5","0","All",,,"False","T","EveryTick")) -> 57.86 | AJ5: =IF(D5=0,NA(),RTD("cqg.rtd",,"StudyData", "Close("&$AJ$2&") When Barix("&$AJ$2&",reference:=StartOfSession)="&A5&"", "Bar", "", "Close","5","0","All",,,"False","T","EveryTick")) -> 574.99 | AL5: =IF(D5=0,NA(),RTD("cqg.rtd",,"StudyData", "Close("&$AL$2&") When Barix("&$AL$2&",reference:=StartOfSession)="&A5&"", "Bar", "", "Close","5","0","All",,,"False","T","EveryTick")) -> 217.63 | AN5: =IF(D5=0,NA(),RTD("cqg.rtd",,"StudyData", "Close("&$AN$2&") When Barix("&$AN$2&",reference:=StartOfSession)="&A5&"", "Bar", "", "Close","5","0","All",,,"False","T","EveryTick")) -> 51.51 | AP5: =IF(D5=0,NA(),RTD("cqg.rtd",,"StudyData", "Close("&$AN$2&") When Barix("&$AN$2&",reference:=StartOfSession)="&A5&"", "Bar", "", "Close","5","0","All",,,"False","T","EveryTick")) -> 51.51 | AR5: =IF(D5=0,NA(),RTD("cqg.rtd",,"StudyData", "Close("&$AR$2&") When Barix("&$AR$2&",reference:=StartOfSession)="&A5&"", "Bar", "", "Close","5","0","All",,,"False","T","EveryTick")) -> 45.11 | AT5: =IF(D5=0,NA(),RTD("cqg.rtd",,"StudyData", "Close("&$AT$2&") When Barix("&$AT$2&",reference:=StartOfSession)="&A5&"", "Bar", "", "Close","5","0","All",,,"False","T","EveryTick")) -> 75.73 | AV5: =IF(D5=0,NA(),RTD("cqg.rtd",,"StudyData", "Close("&$AV$2&") When Barix("&$AV$2&",reference:=StartOfSession)="&A5&"", "Bar", "", "Close","5","0","All",,,"False","T","EveryTick")) -> 4.23 | AX5: =IF(D5=0,NA(),RTD("cqg.rtd",,"StudyData", "Close("&$AX$2&") When Barix("&$AX$2&",reference:=StartOfSession)="&A5&"", "Bar", "", "Close","5","0","All",,,"False","T","EveryTick")) -> 26.02 | AZ5: =IF(D5=0,NA(),RTD("cqg.rtd",,"StudyData", "Close("&$AZ$2&") When Barix("&$AZ$2&",reference:=StartOfSession)="&A5&"", "Bar", "", "Close","5","0","All",,,"False","T","EveryTick")) -> 76.92 | BB5: =IF(D5=0,NA(),RTD("cqg.rtd",,"StudyData", "Close("&$BB$2&") When Barix("&$BB$2&",reference:=StartOfSession)="&A5&"", "Bar", "", "Close","5","0","All",,,"False","T","EveryTick")) -> 132.24 | BD5: =IF(D5=0,NA(),RTD("cqg.rtd",,"StudyData", "Close("&$BD$2&") When Barix("&$BD$2&",reference:=StartOfSession)="&A5&"", "Bar", "", "Close","5","0","All",,,"False","T","EveryTick")) -> 113.3 | BF5: =IF(D5=0,NA(),RTD("cqg.rtd",,"StudyData", "Close("&$BF$2&") When Barix("&$BF$2&",reference:=StartOfSession)="&A5&"", "Bar", "", "Close","5","0","All",,,"False","T","EveryTick")) -> 5.08 | BH5: =IF(D5=0,NA(),RTD("cqg.rtd",,"StudyData", "Close("&$BH$2&") When Barix("&$BH$2&",reference:=StartOfSession)="&A5&"", "Bar", "", "Close","5","0","All",,,"False","T","EveryTick")) -> 264.28 | BJ5: =IF(D5=0,NA(),RTD("cqg.rtd",,"StudyData", "Close("&$BJ$2&") When Barix("&$BJ$2&",reference:=StartOfSession)="&A5&"", "Bar", "", "Close","5","0","All",,,"False","T","EveryTick")) -> 33.86 | BL5: =IF(D5=0,NA(),RTD("cqg.rtd",,"StudyData", "Close("&$BL$2&") When Barix("&$BL$2&",reference:=StartOfSession)="&A5&"", "Bar", "", "Close","5","0","All",,,"False","T","EveryTick")) -> 58.29 | BN5: =IF(D5=0,NA(),RTD("cqg.rtd",,"StudyData", "Close("&$BN$2&") When Barix("&$BN$2&",reference:=StartOfSession)="&A5&"", "Bar", "", "Close","5","0","All",,,"False","T","EveryTick")) -> 415.99 | BP5: =IF(D5=0,NA(),RTD("cqg.rtd",,"StudyData", "Close("&$BP$2&") When Barix("&$BP$2&",reference:=StartOfSession)="&A5&"", "Bar", "", "Close","5","0","All",,,"False","T","EveryTick")) -> 271.37 | BR5: =IF(D5=0,NA(),RTD("cqg.rtd",,"StudyData", "Close("&$BR$2&") When Barix("&$BR$2&",reference:=StartOfSession)="&A5&"", "Bar", "", "Close","5","0","All",,,"False","T","EveryTick")) -> 251.07 | BT5: =IF(D5=0,NA(),RTD("cqg.rtd",,"StudyData", "Close("&$BT$2&") When Barix("&$BT$2&",reference:=StartOfSession)="&A5&"", "Bar", "", "Close","5","0","All",,,"False","T","EveryTick")) -> 175.1 | BV5: =IF(D5=0,NA(),RTD("cqg.rtd",,"StudyData", "Close("&$BV$2&") When Barix("&$BV$2&",reference:=StartOfSession)="&A5&"", "Bar", "", "Close","5","0","All",,,"False","T","EveryTick")) -> 26.35 | BX5: =IF(D5=0,NA(),RTD("cqg.rtd",,"StudyData", "Close("&$BX$2&") When Barix("&$BX$2&",reference:=StartOfSession)="&A5&"", "Bar", "", "Close","5","0","All",,,"False","T","EveryTick")) -> 45.28 | BZ5: =IF(D5=0,NA(),RTD("cqg.rtd",,"StudyData", "Close("&$BZ$2&") When Barix("&$BZ$2&",reference:=StartOfSession)="&A5&"", "Bar", "", "Close","5","0","All",,,"False","T","EveryTick")) -> 574.99
A6: =A5+1 -> 2 | B6: =IF(D6=0,NA(),RTD("cqg.rtd",,"StudyData", "Close("&$B$2&") When Barix("&$B$2&",reference:=StartOfSession)="&A6&"", "Bar", "", "Close","5","0","All",,,"False","T","EveryTick")) -> 13.74 | C6: 08:40:00 | D6: 1 | F6: =IF(D6=0,NA(),RTD("cqg.rtd",,"StudyData", "Close("&$F$2&") When Barix("&$F$2&",reference:=StartOfSession)="&A6&"", "Bar", "", "Close","5","0","All",,,"False","T","EveryTick")) -> 32.1 | H6: =IF(D6=0,NA(),RTD("cqg.rtd",,"StudyData", "Close("&$H$2&") When Barix("&$H$2&",reference:=StartOfSession)="&A6&"", "Bar", "", "Close","5","0","All",,,"False","T","EveryTick")) -> 51.19 | J6: =IF(D6=0,NA(),RTD("cqg.rtd",,"StudyData", "Close("&$J$2&") When Barix("&$J$2&",reference:=StartOfSession)="&A6&"", "Bar", "", "Close","5","0","All",,,"False","T","EveryTick")) -> 48.58 | L6: =IF(D6=0,NA(),RTD("cqg.rtd",,"StudyData", "Close("&$L$2&") When Barix("&$L$2&",reference:=StartOfSession)="&A6&"", "Bar", "", "Close","5","0","All",,,"False","T","EveryTick")) -> 22.75 | N6: =IF(D6=0,NA(),RTD("cqg.rtd",,"StudyData", "Close("&$N$2&") When Barix("&$N$2&",reference:=StartOfSession)="&A6&"", "Bar", "", "Close","5","0","All",,,"False","T","EveryTick")) -> 12.49 | P6: =IF(D6=0,NA(),RTD("cqg.rtd",,"StudyData", "Close("&$P$2&") When Barix("&$P$2&",reference:=StartOfSession)="&A6&"", "Bar", "", "Close","5","0","All",,,"False","T","EveryTick")) -> 24.96 | R6: =IF(D6=0,NA(),RTD("cqg.rtd",,"StudyData", "Close("&$R$2&") When Barix("&$R$2&",reference:=StartOfSession)="&A6&"", "Bar", "", "Close","5","0","All",,,"False","T","EveryTick")) -> 8.94 | T6: =IF(D6=0,NA(),RTD("cqg.rtd",,"StudyData", "Close("&$T$2&") When Barix("&$T$2&",reference:=StartOfSession)="&A6&"", "Bar", "", "Close","5","0","All",,,"False","T","EveryTick")) -> 10.96 | V6: =IF(D6=0,NA(),RTD("cqg.rtd",,"StudyData", "Close("&$V$2&") When Barix("&$V$2&",reference:=StartOfSession)="&A6&"", "Bar", "", "Close","5","0","All",,,"False","T","EveryTick")) -> 14.33 | X6: =IF(D6=0,NA(),RTD("cqg.rtd",,"StudyData", "Close("&$X$2&") When Barix("&$X$2&",reference:=StartOfSession)="&A6&"", "Bar", "", "Close","5","0","All",,,"False","T","EveryTick")) -> 22.11 | Z6: =IF(D6=0,NA(),RTD("cqg.rtd",,"StudyData", "Close("&$Z$2&") When Barix("&$Z$2&",reference:=StartOfSession)="&A6&"", "Bar", "", "Close","5","0","All",,,"False","T","EveryTick")) -> 8.29 | AB6: =IF(D6=0,NA(),RTD("cqg.rtd",,"StudyData", "Close("&$AB$2&") When Barix("&$AB$2&",reference:=StartOfSession)="&A6&"", "Bar", "", "Close","5","0","All",,,"False","T","EveryTick")) -> 30.75 | AD6: =IF(D6=0,NA(),RTD("cqg.rtd",,"StudyData", "Close("&$AD$2&") When Barix("&$AD$2&",reference:=StartOfSession)="&A6&"", "Bar", "", "Close","5","0","All",,,"False","T","EveryTick")) -> 29.22 | AF6: =IF(D6=0,NA(),RTD("cqg.rtd",,"StudyData", "Close("&$AF$2&") When Barix("&$AF$2&",reference:=StartOfSession)="&A6&"", "Bar", "", "Close","5","0","All",,,"False","T","EveryTick")) -> 161.84 | AH6: =IF(D6=0,NA(),RTD("cqg.rtd",,"StudyData", "Close("&$AH$2&") When Barix("&$AH$2&",reference:=StartOfSession)="&A6&"", "Bar", "", "Close","5","0","All",,,"False","T","EveryTick")) -> 57.85 | AJ6: =IF(D6=0,NA(),RTD("cqg.rtd",,"StudyData", "Close("&$AJ$2&") When Barix("&$AJ$2&",reference:=StartOfSession)="&A6&"", "Bar", "", "Close","5","0","All",,,"False","T","EveryTick")) -> 571.66 | AL6: =IF(D6=0,NA(),RTD("cqg.rtd",,"StudyData", "Close("&$AL$2&") When Barix("&$AL$2&",reference:=StartOfSession)="&A6&"", "Bar", "", "Close","5","0","All",,,"False","T","EveryTick")) -> 216.82 | AN6: =IF(D6=0,NA(),RTD("cqg.rtd",,"StudyData", "Close("&$AN$2&") When Barix("&$AN$2&",reference:=StartOfSession)="&A6&"", "Bar", "", "Close","5","0","All",,,"False","T","EveryTick")) -> 51.71 | AP6: =IF(D6=0,NA(),RTD("cqg.rtd",,"StudyData", "Close("&$AN$2&") When Barix("&$AN$2&",reference:=StartOfSession)="&A6&"", "Bar", "", "Close","5","0","All",,,"False","T","EveryTick")) -> 51.71 | AR6: =IF(D6=0,NA(),RTD("cqg.rtd",,"StudyData", "Close("&$AR$2&") When Barix("&$AR$2&",reference:=StartOfSession)="&A6&"", "Bar", "", "Close","5","0","All",,,"False","T","EveryTick")) -> 45.27 | AT6: =IF(D6=0,NA(),RTD("cqg.rtd",,"StudyData", "Close("&$AT$2&") When Barix("&$AT$2&",reference:=StartOfSession)="&A6&"", "Bar", "", "Close","5","0","All",,,"False","T","EveryTick")) -> 75.76 | AV6: =IF(D6=0,NA(),RTD("cqg.rtd",,"StudyData", "Close("&$AV$2&") When Barix("&$AV$2&",reference:=StartOfSession)="&A6&"", "Bar", "", "Close","5","0","All",,,"False","T","EveryTick")) -> 4.29 | AX6: =IF(D6=0,NA(),RTD("cqg.rtd",,"StudyData", "Close("&$AX$2&") When Barix("&$AX$2&",reference:=StartOfSession)="&A6&"", "Bar", "", "Close","5","0","All",,,"False","T","EveryTick")) -> 26.1 | AZ6: =IF(D6=0,NA(),RTD("cqg.rtd",,"StudyData", "Close("&$AZ$2&") When Barix("&$AZ$2&",reference:=StartOfSession)="&A6&"", "Bar", "", "Close","5","0","All",,,"False","T","EveryTick")) -> 76.44 | BB6: =IF(D6=0,NA(),RTD("cqg.rtd",,"StudyData", "Close("&$BB$2&") When Barix("&$BB$2&",reference:=StartOfSession)="&A6&"", "Bar", "", "Close","5","0","All",,,"False","T","EveryTick")) -> 132.62 | BD6: =IF(D6=0,NA(),RTD("cqg.rtd",,"StudyData", "Close("&$BD$2&") When Barix("&$BD$2&",reference:=StartOfSession)="&A6&"", "Bar", "", "Close","5","0","All",,,"False","T","EveryTick")) -> 113.59 | BF6: =IF(D6=0,NA(),RTD("cqg.rtd",,"StudyData", "Close("&$BF$2&") When Barix("&$BF$2&",reference:=StartOfSession)="&A6&"", "Bar", "", "Close","5","0","All",,,"False","T","EveryTick")) -> 5.02 | BH6: =IF(D6=0,NA(),RTD("cqg.rtd",,"StudyData", "Close("&$BH$2&") When Barix("&$BH$2&",reference:=StartOfSession)="&A6&"", "Bar", "", "Close","5","0","All",,,"False","T","EveryTick")) -> 264 | BJ6: =IF(D6=0,NA(),RTD("cqg.rtd",,"StudyData", "Close("&$BJ$2&") When Barix("&$BJ$2&",reference:=StartOfSession)="&A6&"", "Bar", "", "Close","5","0","All",,,"False","T","EveryTick")) -> 33.38 | BL6: =IF(D6=0,NA(),RTD("cqg.rtd",,"StudyData", "Close("&$BL$2&") When Barix("&$BL$2&",reference:=StartOfSession)="&A6&"", "Bar", "", "Close","5","0","All",,,"False","T","EveryTick")) -> 58.62 | BN6: =IF(D6=0,NA(),RTD("cqg.rtd",,"StudyData", "Close("&$BN$2&") When Barix("&$BN$2&",reference:=StartOfSession)="&A6&"", "Bar", "", "Close","5","0","All",,,"False","T","EveryTick")) -> 415.67 | BP6: =IF(D6=0,NA(),RTD("cqg.rtd",,"StudyData", "Close("&$BP$2&") When Barix("&$BP$2&",reference:=StartOfSession)="&A6&"", "Bar", "", "Close","5","0","All",,,"False","T","EveryTick")) -> 271 | BR6: =IF(D6=0,NA(),RTD("cqg.rtd",,"StudyData", "Close("&$BR$2&") When Barix("&$BR$2&",reference:=StartOfSession)="&A6&"", "Bar", "", "Close","5","0","All",,,"False","T","EveryTick")) -> 250.6 | BT6: =IF(D6=0,NA(),RTD("cqg.rtd",,"StudyData", "Close("&$BT$2&") When Barix("&$BT$2&",reference:=StartOfSession)="&A6&"", "Bar", "", "Close","5","0","All",,,"False","T","EveryTick")) -> 174.85 | BV6: =IF(D6=0,NA(),RTD("cqg.rtd",,"StudyData", "Close("&$BV$2&") When Barix("&$BV$2&",reference:=StartOfSession)="&A6&"", "Bar", "", "Close","5","0","All",,,"False","T","EveryTick")) -> 26.27 | BX6: =IF(D6=0,NA(),RTD("cqg.rtd",,"StudyData", "Close("&$BX$2&") When Barix("&$BX$2&",reference:=StartOfSession)="&A6&"", "Bar", "", "Close","5","0","All",,,"False","T","EveryTick")) -> 45.28 | BZ6: =IF(D6=0,NA(),RTD("cqg.rtd",,"StudyData", "Close("&$BZ$2&") When Barix("&$BZ$2&",reference:=StartOfSession)="&A6&"", "Bar", "", "Close","5","0","All",,,"False","T","EveryTick")) -> 571.66
A7: 3 | B7: =IF(D7=0,NA(),RTD("cqg.rtd",,"StudyData", "Close("&$B$2&") When Barix("&$B$2&",reference:=StartOfSession)="&A7&"", "Bar", "", "Close","5","0","All",,,"False","T","EveryTick")) -> 13.94 | C7: 08:45:00 | D7: 1 | F7: =IF(D7=0,NA(),RTD("cqg.rtd",,"StudyData", "Close("&$F$2&") When Barix("&$F$2&",reference:=StartOfSession)="&A7&"", "Bar", "", "Close","5","0","All",,,"False","T","EveryTick")) -> 32.18 | H7: =IF(D7=0,NA(),RTD("cqg.rtd",,"StudyData", "Close("&$H$2&") When Barix("&$H$2&",reference:=StartOfSession)="&A7&"", "Bar", "", "Close","5","0","All",,,"False","T","EveryTick")) -> 51.81 | J7: =IF(D7=0,NA(),RTD("cqg.rtd",,"StudyData", "Close("&$J$2&") When Barix("&$J$2&",reference:=StartOfSession)="&A7&"", "Bar", "", "Close","5","0","All",,,"False","T","EveryTick")) -> 49.05 | L7: =IF(D7=0,NA(),RTD("cqg.rtd",,"StudyData", "Close("&$L$2&") When Barix("&$L$2&",reference:=StartOfSession)="&A7&"", "Bar", "", "Close","5","0","All",,,"False","T","EveryTick")) -> 22.82 | N7: =IF(D7=0,NA(),RTD("cqg.rtd",,"StudyData", "Close("&$N$2&") When Barix("&$N$2&",reference:=StartOfSession)="&A7&"", "Bar", "", "Close","5","0","All",,,"False","T","EveryTick")) -> 12.46 | P7: =IF(D7=0,NA(),RTD("cqg.rtd",,"StudyData", "Close("&$P$2&") When Barix("&$P$2&",reference:=StartOfSession)="&A7&"", "Bar", "", "Close","5","0","All",,,"False","T","EveryTick")) -> 25.3 | R7: =IF(D7=0,NA(),RTD("cqg.rtd",,"StudyData", "Close("&$R$2&") When Barix("&$R$2&",reference:=StartOfSession)="&A7&"", "Bar", "", "Close","5","0","All",,,"False","T","EveryTick")) -> 8.97 | T7: =IF(D7=0,NA(),RTD("cqg.rtd",,"StudyData", "Close("&$T$2&") When Barix("&$T$2&",reference:=StartOfSession)="&A7&"", "Bar", "", "Close","5","0","All",,,"False","T","EveryTick")) -> 10.93 | V7: =IF(D7=0,NA(),RTD("cqg.rtd",,"StudyData", "Close("&$V$2&") When Barix("&$V$2&",reference:=StartOfSession)="&A7&"", "Bar", "", "Close","5","0","All",,,"False","T","EveryTick")) -> 14.44 | X7: =IF(D7=0,NA(),RTD("cqg.rtd",,"StudyData", "Close("&$X$2&") When Barix("&$X$2&",reference:=StartOfSession)="&A7&"", "Bar", "", "Close","5","0","All",,,"False","T","EveryTick")) -> 22.2 | Z7: =IF(D7=0,NA(),RTD("cqg.rtd",,"StudyData", "Close("&$Z$2&") When Barix("&$Z$2&",reference:=StartOfSession)="&A7&"", "Bar", "", "Close","5","0","All",,,"False","T","EveryTick")) -> 8.37 | AB7: =IF(D7=0,NA(),RTD("cqg.rtd",,"StudyData", "Close("&$AB$2&") When Barix("&$AB$2&",reference:=StartOfSession)="&A7&"", "Bar", "", "Close","5","0","All",,,"False","T","EveryTick")) -> 30.52 | AD7: =IF(D7=0,NA(),RTD("cqg.rtd",,"StudyData", "Close("&$AD$2&") When Barix("&$AD$2&",reference:=StartOfSession)="&A7&"", "Bar", "", "Close","5","0","All",,,"False","T","EveryTick")) -> 29.49 | AF7: =IF(D7=0,NA(),RTD("cqg.rtd",,"StudyData", "Close("&$AF$2&") When Barix("&$AF$2&",reference:=StartOfSession)="&A7&"", "Bar", "", "Close","5","0","All",,,"False","T","EveryTick")) -> 161.22 | AH7: =IF(D7=0,NA(),RTD("cqg.rtd",,"StudyData", "Close("&$AH$2&") When Barix("&$AH$2&",reference:=StartOfSession)="&A7&"", "Bar", "", "Close","5","0","All",,,"False","T","EveryTick")) -> 57.93 | AJ7: =IF(D7=0,NA(),RTD("cqg.rtd",,"StudyData", "Close("&$AJ$2&") When Barix("&$AJ$2&",reference:=StartOfSession)="&A7&"", "Bar", "", "Close","5","0","All",,,"False","T","EveryTick")) -> 572.83 | AL7: =IF(D7=0,NA(),RTD("cqg.rtd",,"StudyData", "Close("&$AL$2&") When Barix("&$AL$2&",reference:=StartOfSession)="&A7&"", "Bar", "", "Close","5","0","All",,,"False","T","EveryTick")) -> 216.41 | AN7: =IF(D7=0,NA(),RTD("cqg.rtd",,"StudyData", "Close("&$AN$2&") When Barix("&$AN$2&",reference:=StartOfSession)="&A7&"", "Bar", "", "Close","5","0","All",,,"False","T","EveryTick")) -> 51.37 | AP7: =IF(D7=0,NA(),RTD("cqg.rtd",,"StudyData", "Close("&$AN$2&") When Barix("&$AN$2&",reference:=StartOfSession)="&A7&"", "Bar", "", "Close","5","0","All",,,"False","T","EveryTick")) -> 51.37 | AR7: =IF(D7=0,NA(),RTD("cqg.rtd",,"StudyData", "Close("&$AR$2&") When Barix("&$AR$2&",reference:=StartOfSession)="&A7&"", "Bar", "", "Close","5","0","All",,,"False","T","EveryTick")) -> 45.15 | AT7: =IF(D7=0,NA(),RTD("cqg.rtd",,"StudyData", "Close("&$AT$2&") When Barix("&$AT$2&",reference:=StartOfSession)="&A7&"", "Bar", "", "Close","5","0","All",,,"False","T","EveryTick")) -> 75.71 | AV7: =IF(D7=0,NA(),RTD("cqg.rtd",,"StudyData", "Close("&$AV$2&") When Barix("&$AV$2&",reference:=StartOfSession)="&A7&"", "Bar", "", "Close","5","0","All",,,"False","T","EveryTick")) -> 4.35 | AX7: =IF(D7=0,NA(),RTD("cqg.rtd",,"StudyData", "Close("&$AX$2&") When Barix("&$AX$2&",reference:=StartOfSession)="&A7&"", "Bar", "", "Close","5","0","All",,,"False","T","EveryTick")) -> 26.07 | AZ7: =IF(D7=0,NA(),RTD("cqg.rtd",,"StudyData", "Close("&$AZ$2&") When Barix("&$AZ$2&",reference:=StartOfSession)="&A7&"", "Bar", "", "Close","5","0","All",,,"False","T","EveryTick")) -> 76.44 | BB7: =IF(D7=0,NA(),RTD("cqg.rtd",,"StudyData", "Close("&$BB$2&") When Barix("&$BB$2&",reference:=StartOfSession)="&A7&"", "Bar", "", "Close","5","0","All",,,"False","T","EveryTick")) -> 132.89 | BD7: =IF(D7=0,NA(),RTD("cqg.rtd",,"StudyData", "Close("&$BD$2&") When Barix("&$BD$2&",reference:=StartOfSession)="&A7&"", "Bar", "", "Close","5","0","All",,,"False","T","EveryTick")) -> 112.6 | BF7: =IF(D7=0,NA(),RTD("cqg.rtd",,"StudyData", "Close("&$BF$2&") When Barix("&$BF$2&",reference:=StartOfSession)="&A7&"", "Bar", "", "Close","5","0","All",,,"False","T","EveryTick")) -> 5.04 | BH7: =IF(D7=0,NA(),RTD("cqg.rtd",,"StudyData", "Close("&$BH$2&") When Barix("&$BH$2&",reference:=StartOfSession)="&A7&"", "Bar", "", "Close","5","0","All",,,"False","T","EveryTick")) -> 262.87 | BJ7: =IF(D7=0,NA(),RTD("cqg.rtd",,"StudyData", "Close("&$BJ$2&") When Barix("&$BJ$2&",reference:=StartOfSession)="&A7&"", "Bar", "", "Close","5","0","All",,,"False","T","EveryTick")) -> 33.52 | BL7: =IF(D7=0,NA(),RTD("cqg.rtd",,"StudyData", "Close("&$BL$2&") When Barix("&$BL$2&",reference:=StartOfSession)="&A7&"", "Bar", "", "Close","5","0","All",,,"False","T","EveryTick")) -> 58.67 | BN7: =IF(D7=0,NA(),RTD("cqg.rtd",,"StudyData", "Close("&$BN$2&") When Barix("&$BN$2&",reference:=StartOfSession)="&A7&"", "Bar", "", "Close","5","0","All",,,"False","T","EveryTick")) -> 415.33 | BP7: =IF(D7=0,NA(),RTD("cqg.rtd",,"StudyData", "Close("&$BP$2&") When Barix("&$BP$2&",reference:=StartOfSession)="&A7&"", "Bar", "", "Close","5","0","All",,,"False","T","EveryTick")) -> 270.53 | BR7: =IF(D7=0,NA(),RTD("cqg.rtd",,"StudyData", "Close("&$BR$2&") When Barix("&$BR$2&",reference:=StartOfSession)="&A7&"", "Bar", "", "Close","5","0","All",,,"False","T","EveryTick")) -> 250.59 | BT7: =IF(D7=0,NA(),RTD("cqg.rtd",,"StudyData", "Close("&$BT$2&") When Barix("&$BT$2&",reference:=StartOfSession)="&A7&"", "Bar", "", "Close","5","0","All",,,"False","T","EveryTick")) -> 174.86 | BV7: =IF(D7=0,NA(),RTD("cqg.rtd",,"StudyData", "Close("&$BV$2&") When Barix("&$BV$2&",reference:=StartOfSession)="&A7&"", "Bar", "", "Close","5","0","All",,,"False","T","EveryTick")) -> 26.21 | BX7: =IF(D7=0,NA(),RTD("cqg.rtd",,"StudyData", "Close("&$BX$2&") When Barix("&$BX$2&",reference:=StartOfSession)="&A7&"", "Bar", "", "Close","5","0","All",,,"False","T","EveryTick")) -> 45.26 | BZ7: =IF(D7=0,NA(),RTD("cqg.rtd",,"StudyData", "Close("&$BZ$2&") When Barix("&$BZ$2&",reference:=StartOfSession)="&A7&"", "Bar", "", "Close","5","0","All",,,"False","T","EveryTick")) -> 572.83
A8: 4 | B8: =IF(D8=0,NA(),RTD("cqg.rtd",,"StudyData", "Close("&$B$2&") When Barix("&$B$2&",reference:=StartOfSession)="&A8&"", "Bar", "", "Close","5","0","All",,,"False","T","EveryTick")) -> 13.98 | C8: 08:50:00 | D8: 1 | F8: =IF(D8=0,NA(),RTD("cqg.rtd",,"StudyData", "Close("&$F$2&") When Barix("&$F$2&",reference:=StartOfSession)="&A8&"", "Bar", "", "Close","5","0","All",,,"False","T","EveryTick")) -> 32.63 | H8: =IF(D8=0,NA(),RTD("cqg.rtd",,"StudyData", "Close("&$H$2&") When Barix("&$H$2&",reference:=StartOfSession)="&A8&"", "Bar", "", "Close","5","0","All",,,"False","T","EveryTick")) -> 52.15 | J8: =IF(D8=0,NA(),RTD("cqg.rtd",,"StudyData", "Close("&$J$2&") When Barix("&$J$2&",reference:=StartOfSession)="&A8&"", "Bar", "", "Close","5","0","All",,,"False","T","EveryTick")) -> 49.37 | L8: =IF(D8=0,NA(),RTD("cqg.rtd",,"StudyData", "Close("&$L$2&") When Barix("&$L$2&",reference:=StartOfSession)="&A8&"", "Bar", "", "Close","5","0","All",,,"False","T","EveryTick")) -> 22.9 | N8: =IF(D8=0,NA(),RTD("cqg.rtd",,"StudyData", "Close("&$N$2&") When Barix("&$N$2&",reference:=StartOfSession)="&A8&"", "Bar", "", "Close","5","0","All",,,"False","T","EveryTick")) -> 12.45 | P8: =IF(D8=0,NA(),RTD("cqg.rtd",,"StudyData", "Close("&$P$2&") When Barix("&$P$2&",reference:=StartOfSession)="&A8&"", "Bar", "", "Close","5","0","All",,,"False","T","EveryTick")) -> 25.53 | R8: =IF(D8=0,NA(),RTD("cqg.rtd",,"StudyData", "Close("&$R$2&") When Barix("&$R$2&",reference:=StartOfSession)="&A8&"", "Bar", "", "Close","5","0","All",,,"False","T","EveryTick")) -> 8.98 | T8: =IF(D8=0,NA(),RTD("cqg.rtd",,"StudyData", "Close("&$T$2&") When Barix("&$T$2&",reference:=StartOfSession)="&A8&"", "Bar", "", "Close","5","0","All",,,"False","T","EveryTick")) -> 11.03 | V8: =IF(D8=0,NA(),RTD("cqg.rtd",,"StudyData", "Close("&$V$2&") When Barix("&$V$2&",reference:=StartOfSession)="&A8&"", "Bar", "", "Close","5","0","All",,,"False","T","EveryTick")) -> 14.58 | X8: =IF(D8=0,NA(),RTD("cqg.rtd",,"StudyData", "Close("&$X$2&") When Barix("&$X$2&",reference:=StartOfSession)="&A8&"", "Bar", "", "Close","5","0","All",,,"False","T","EveryTick")) -> 22.34 | Z8: =IF(D8=0,NA(),RTD("cqg.rtd",,"StudyData", "Close("&$Z$2&") When Barix("&$Z$2&",reference:=StartOfSession)="&A8&"", "Bar", "", "Close","5","0","All",,,"False","T","EveryTick")) -> 8.41 | AB8: =IF(D8=0,NA(),RTD("cqg.rtd",,"StudyData", "Close("&$AB$2&") When Barix("&$AB$2&",reference:=StartOfSession)="&A8&"", "Bar", "", "Close","5","0","All",,,"False","T","EveryTick")) -> 30.47 | AD8: =IF(D8=0,NA(),RTD("cqg.rtd",,"StudyData", "Close("&$AD$2&") When Barix("&$AD$2&",reference:=StartOfSession)="&A8&"", "Bar", "", "Close","5","0","All",,,"False","T","EveryTick")) -> 29.38 | AF8: =IF(D8=0,NA(),RTD("cqg.rtd",,"StudyData", "Close("&$AF$2&") When Barix("&$AF$2&",reference:=StartOfSession)="&A8&"", "Bar", "", "Close","5","0","All",,,"False","T","EveryTick")) -> 161.46 | AH8: =IF(D8=0,NA(),RTD("cqg.rtd",,"StudyData", "Close("&$AH$2&") When Barix("&$AH$2&",reference:=StartOfSession)="&A8&"", "Bar", "", "Close","5","0","All",,,"False","T","EveryTick")) -> 57.89 | AJ8: =IF(D8=0,NA(),RTD("cqg.rtd",,"StudyData", "Close("&$AJ$2&") When Barix("&$AJ$2&",reference:=StartOfSession)="&A8&"", "Bar", "", "Close","5","0","All",,,"False","T","EveryTick")) -> 575.19 | AL8: =IF(D8=0,NA(),RTD("cqg.rtd",,"StudyData", "Close("&$AL$2&") When Barix("&$AL$2&",reference:=StartOfSession)="&A8&"", "Bar", "", "Close","5","0","All",,,"False","T","EveryTick")) -> 217.2 | AN8: =IF(D8=0,NA(),RTD("cqg.rtd",,"StudyData", "Close("&$AN$2&") When Barix("&$AN$2&",reference:=StartOfSession)="&A8&"", "Bar", "", "Close","5","0","All",,,"False","T","EveryTick")) -> 51.43 | AP8: =IF(D8=0,NA(),RTD("cqg.rtd",,"StudyData", "Close("&$AN$2&") When Barix("&$AN$2&",reference:=StartOfSession)="&A8&"", "Bar", "", "Close","5","0","All",,,"False","T","EveryTick")) -> 51.43 | AR8: =IF(D8=0,NA(),RTD("cqg.rtd",,"StudyData", "Close("&$AR$2&") When Barix("&$AR$2&",reference:=StartOfSession)="&A8&"", "Bar", "", "Close","5","0","All",,,"False","T","EveryTick")) -> 45.2 | AT8: =IF(D8=0,NA(),RTD("cqg.rtd",,"StudyData", "Close("&$AT$2&") When Barix("&$AT$2&",reference:=StartOfSession)="&A8&"", "Bar", "", "Close","5","0","All",,,"False","T","EveryTick")) -> 75.81 | AV8: =IF(D8=0,NA(),RTD("cqg.rtd",,"StudyData", "Close("&$AV$2&") When Barix("&$AV$2&",reference:=StartOfSession)="&A8&"", "Bar", "", "Close","5","0","All",,,"False","T","EveryTick")) -> 4.41 | AX8: =IF(D8=0,NA(),RTD("cqg.rtd",,"StudyData", "Close("&$AX$2&") When Barix("&$AX$2&",reference:=StartOfSession)="&A8&"", "Bar", "", "Close","5","0","All",,,"False","T","EveryTick")) -> 26.07 | AZ8: =IF(D8=0,NA(),RTD("cqg.rtd",,"StudyData", "Close("&$AZ$2&") When Barix("&$AZ$2&",reference:=StartOfSession)="&A8&"", "Bar", "", "Close","5","0","All",,,"False","T","EveryTick")) -> 76.44 | BB8: =IF(D8=0,NA(),RTD("cqg.rtd",,"StudyData", "Close("&$BB$2&") When Barix("&$BB$2&",reference:=StartOfSession)="&A8&"", "Bar", "", "Close","5","0","All",,,"False","T","EveryTick")) -> 132.74 | BD8: =IF(D8=0,NA(),RTD("cqg.rtd",,"StudyData", "Close("&$BD$2&") When Barix("&$BD$2&",reference:=StartOfSession)="&A8&"", "Bar", "", "Close","5","0","All",,,"False","T","EveryTick")) -> 112.98 | BF8: =IF(D8=0,NA(),RTD("cqg.rtd",,"StudyData", "Close("&$BF$2&") When Barix("&$BF$2&",reference:=StartOfSession)="&A8&"", "Bar", "", "Close","5","0","All",,,"False","T","EveryTick")) -> 5.05 | BH8: =IF(D8=0,NA(),RTD("cqg.rtd",,"StudyData", "Close("&$BH$2&") When Barix("&$BH$2&",reference:=StartOfSession)="&A8&"", "Bar", "", "Close","5","0","All",,,"False","T","EveryTick")) -> 262.98 | BJ8: =IF(D8=0,NA(),RTD("cqg.rtd",,"StudyData", "Close("&$BJ$2&") When Barix("&$BJ$2&",reference:=StartOfSession)="&A8&"", "Bar", "", "Close","5","0","All",,,"False","T","EveryTick")) -> 33.37 | BL8: =IF(D8=0,NA(),RTD("cqg.rtd",,"StudyData", "Close("&$BL$2&") When Barix("&$BL$2&",reference:=StartOfSession)="&A8&"", "Bar", "", "Close","5","0","All",,,"False","T","EveryTick")) -> 58.64 | BN8: =IF(D8=0,NA(),RTD("cqg.rtd",,"StudyData", "Close("&$BN$2&") When Barix("&$BN$2&",reference:=StartOfSession)="&A8&"", "Bar", "", "Close","5","0","All",,,"False","T","EveryTick")) -> 415.43 | BP8: =IF(D8=0,NA(),RTD("cqg.rtd",,"StudyData", "Close("&$BP$2&") When Barix("&$BP$2&",reference:=StartOfSession)="&A8&"", "Bar", "", "Close","5","0","All",,,"False","T","EveryTick")) -> 270.53 | BR8: =IF(D8=0,NA(),RTD("cqg.rtd",,"StudyData", "Close("&$BR$2&") When Barix("&$BR$2&",reference:=StartOfSession)="&A8&"", "Bar", "", "Close","5","0","All",,,"False","T","EveryTick")) -> 250.61 | BT8: =IF(D8=0,NA(),RTD("cqg.rtd",,"StudyData", "Close("&$BT$2&") When Barix("&$BT$2&",reference:=StartOfSession)="&A8&"", "Bar", "", "Close","5","0","All",,,"False","T","EveryTick")) -> 174.81 | BV8: =IF(D8=0,NA(),RTD("cqg.rtd",,"StudyData", "Close("&$BV$2&") When Barix("&$BV$2&",reference:=StartOfSession)="&A8&"", "Bar", "", "Close","5","0","All",,,"False","T","EveryTick")) -> 26.22 | BX8: =IF(D8=0,NA(),RTD("cqg.rtd",,"StudyData", "Close("&$BX$2&") When Barix("&$BX$2&",reference:=StartOfSession)="&A8&"", "Bar", "", "Close","5","0","All",,,"False","T","EveryTick")) -> 45.22 | BZ8: =IF(D8=0,NA(),RTD("cqg.rtd",,"StudyData", "Close("&$BZ$2&") When Barix("&$BZ$2&",reference:=StartOfSession)="&A8&"", "Bar", "", "Close","5","0","All",,,"False","T","EveryTick")) -> 575.19
A9: 5 | B9: =IF(D9=0,NA(),RTD("cqg.rtd",,"StudyData", "Close("&$B$2&") When Barix("&$B$2&",reference:=StartOfSession)="&A9&"", "Bar", "", "Close","5","0","All",,,"False","T","EveryTick")) ->  | C9: 08:55:00 | D9: 0 | F9: =IF(D9=0,NA(),RTD("cqg.rtd",,"StudyData", "Close("&$F$2&") When Barix("&$F$2&",reference:=StartOfSession)="&A9&"", "Bar", "", "Close","5","0","All",,,"False","T","EveryTick")) ->  | H9: =IF(D9=0,NA(),RTD("cqg.rtd",,"StudyData", "Close("&$H$2&") When Barix("&$H$2&",reference:=StartOfSession)="&A9&"", "Bar", "", "Close","5","0","All",,,"False","T","EveryTick")) ->  | J9: =IF(D9=0,NA(),RTD("cqg.rtd",,"StudyData", "Close("&$J$2&") When Barix("&$J$2&",reference:=StartOfSession)="&A9&"", "Bar", "", "Close","5","0","All",,,"False","T","EveryTick")) ->  | L9: =IF(D9=0,NA(),RTD("cqg.rtd",,"StudyData", "Close("&$L$2&") When Barix("&$L$2&",reference:=StartOfSession)="&A9&"", "Bar", "", "Close","5","0","All",,,"False","T","EveryTick")) ->  | N9: =IF(D9=0,NA(),RTD("cqg.rtd",,"StudyData", "Close("&$N$2&") When Barix("&$N$2&",reference:=StartOfSession)="&A9&"", "Bar", "", "Close","5","0","All",,,"False","T","EveryTick")) ->  | P9: =IF(D9=0,NA(),RTD("cqg.rtd",,"StudyData", "Close("&$P$2&") When Barix("&$P$2&",reference:=StartOfSession)="&A9&"", "Bar", "", "Close","5","0","All",,,"False","T","EveryTick")) ->  | R9: =IF(D9=0,NA(),RTD("cqg.rtd",,"StudyData", "Close("&$R$2&") When Barix("&$R$2&",reference:=StartOfSession)="&A9&"", "Bar", "", "Close","5","0","All",,,"False","T","EveryTick")) ->  | T9: =IF(D9=0,NA(),RTD("cqg.rtd",,"StudyData", "Close("&$T$2&") When Barix("&$T$2&",reference:=StartOfSession)="&A9&"", "Bar", "", "Close","5","0","All",,,"False","T","EveryTick")) ->  | V9: =IF(D9=0,NA(),RTD("cqg.rtd",,"StudyData", "Close("&$V$2&") When Barix("&$V$2&",reference:=StartOfSession)="&A9&"", "Bar", "", "Close","5","0","All",,,"False","T","EveryTick")) ->  | X9: =IF(D9=0,NA(),RTD("cqg.rtd",,"StudyData", "Close("&$X$2&") When Barix("&$X$2&",reference:=StartOfSession)="&A9&"", "Bar", "", "Close","5","0","All",,,"False","T","EveryTick")) ->  | Z9: =IF(D9=0,NA(),RTD("cqg.rtd",,"StudyData", "Close("&$Z$2&") When Barix("&$Z$2&",reference:=StartOfSession)="&A9&"", "Bar", "", "Close","5","0","All",,,"False","T","EveryTick")) ->  | AB9: =IF(D9=0,NA(),RTD("cqg.rtd",,"StudyData", "Close("&$AB$2&") When Barix("&$AB$2&",reference:=StartOfSession)="&A9&"", "Bar", "", "Close","5","0","All",,,"False","T","EveryTick")) ->  | AD9: =IF(D9=0,NA(),RTD("cqg.rtd",,"StudyData", "Close("&$AD$2&") When Barix("&$AD$2&",reference:=StartOfSession)="&A9&"", "Bar", "", "Close","5","0","All",,,"False","T","EveryTick")) ->  | AF9: =IF(D9=0,NA(),RTD("cqg.rtd",,"StudyData", "Close("&$AF$2&") When Barix("&$AF$2&",reference:=StartOfSession)="&A9&"", "Bar", "", "Close","5","0","All",,,"False","T","EveryTick")) ->  | AH9: =IF(D9=0,NA(),RTD("cqg.rtd",,"StudyData", "Close("&$AH$2&") When Barix("&$AH$2&",reference:=StartOfSession)="&A9&"", "Bar", "", "Close","5","0","All",,,"False","T","EveryTick")) ->  | AJ9: =IF(D9=0,NA(),RTD("cqg.rtd",,"StudyData", "Close("&$AJ$2&") When Barix("&$AJ$2&",reference:=StartOfSession)="&A9&"", "Bar", "", "Close","5","0","All",,,"False","T","EveryTick")) ->  | AL9: =IF(D9=0,NA(),RTD("cqg.rtd",,"StudyData", "Close("&$AL$2&") When Barix("&$AL$2&",reference:=StartOfSession)="&A9&"", "Bar", "", "Close","5","0","All",,,"False","T","EveryTick")) ->  | AN9: =IF(D9=0,NA(),RTD("cqg.rtd",,"StudyData", "Close("&$AN$2&") When Barix("&$AN$2&",reference:=StartOfSession)="&A9&"", "Bar", "", "Close","5","0","All",,,"False","T","EveryTick")) ->  | AP9: =IF(D9=0,NA(),RTD("cqg.rtd",,"StudyData", "Close("&$AN$2&") When Barix("&$AN$2&",reference:=StartOfSession)="&A9&"", "Bar", "", "Close","5","0","All",,,"False","T","EveryTick")) ->  | AR9: =IF(D9=0,NA(),RTD("cqg.rtd",,"StudyData", "Close("&$AR$2&") When Barix("&$AR$2&",reference:=StartOfSession)="&A9&"", "Bar", "", "Close","5","0","All",,,"False","T","EveryTick")) ->  | AT9: =IF(D9=0,NA(),RTD("cqg.rtd",,"StudyData", "Close("&$AT$2&") When Barix("&$AT$2&",reference:=StartOfSession)="&A9&"", "Bar", "", "Close","5","0","All",,,"False","T","EveryTick")) ->  | AV9: =IF(D9=0,NA(),RTD("cqg.rtd",,"StudyData", "Close("&$AV$2&") When Barix("&$AV$2&",reference:=StartOfSession)="&A9&"", "Bar", "", "Close","5","0","All",,,"False","T","EveryTick")) ->  | AX9: =IF(D9=0,NA(),RTD("cqg.rtd",,"StudyData", "Close("&$AX$2&") When Barix("&$AX$2&",reference:=StartOfSession)="&A9&"", "Bar", "", "Close","5","0","All",,,"False","T","EveryTick")) ->  | AZ9: =IF(D9=0,NA(),RTD("cqg.rtd",,"StudyData", "Close("&$AZ$2&") When Barix("&$AZ$2&",reference:=StartOfSession)="&A9&"", "Bar", "", "Close","5","0","All",,,"False","T","EveryTick")) ->  | BB9: =IF(D9=0,NA(),RTD("cqg.rtd",,"StudyData", "Close("&$BB$2&") When Barix("&$BB$2&",reference:=StartOfSession)="&A9&"", "Bar", "", "Close","5","0","All",,,"False","T","EveryTick")) ->  | BD9: =IF(D9=0,NA(),RTD("cqg.rtd",,"StudyData", "Close("&$BD$2&") When Barix("&$BD$2&",reference:=StartOfSession)="&A9&"", "Bar", "", "Close","5","0","All",,,"False","T","EveryTick")) ->  | BF9: =IF(D9=0,NA(),RTD("cqg.rtd",,"StudyData", "Close("&$BF$2&") When Barix("&$BF$2&",reference:=StartOfSession)="&A9&"", "Bar", "", "Close","5","0","All",,,"False","T","EveryTick")) ->  | BH9: =IF(D9=0,NA(),RTD("cqg.rtd",,"StudyData", "Close("&$BH$2&") When Barix("&$BH$2&",reference:=StartOfSession)="&A9&"", "Bar", "", "Close","5","0","All",,,"False","T","EveryTick")) ->  | BJ9: =IF(D9=0,NA(),RTD("cqg.rtd",,"StudyData", "Close("&$BJ$2&") When Barix("&$BJ$2&",reference:=StartOfSession)="&A9&"", "Bar", "", "Close","5","0","All",,,"False","T","EveryTick")) ->  | BL9: =IF(D9=0,NA(),RTD("cqg.rtd",,"StudyData", "Close("&$BL$2&") When Barix("&$BL$2&",reference:=StartOfSession)="&A9&"", "Bar", "", "Close","5","0","All",,,"False","T","EveryTick")) ->  | BN9: =IF(D9=0,NA(),RTD("cqg.rtd",,"StudyData", "Close("&$BN$2&") When Barix("&$BN$2&",reference:=StartOfSession)="&A9&"", "Bar", "", "Close","5","0","All",,,"False","T","EveryTick")) ->  | BP9: =IF(D9=0,NA(),RTD("cqg.rtd",,"StudyData", "Close("&$BP$2&") When Barix("&$BP$2&",reference:=StartOfSession)="&A9&"", "Bar", "", "Close","5","0","All",,,"False","T","EveryTick")) ->  | BR9: =IF(D9=0,NA(),RTD("cqg.rtd",,"StudyData", "Close("&$BR$2&") When Barix("&$BR$2&",reference:=StartOfSession)="&A9&"", "Bar", "", "Close","5","0","All",,,"False","T","EveryTick")) ->  | BT9: =IF(D9=0,NA(),RTD("cqg.rtd",,"StudyData", "Close("&$BT$2&") When Barix("&$BT$2&",reference:=StartOfSession)="&A9&"", "Bar", "", "Close","5","0","All",,,"False","T","EveryTick")) ->  | BV9: =IF(D9=0,NA(),RTD("cqg.rtd",,"StudyData", "Close("&$BV$2&") When Barix("&$BV$2&",reference:=StartOfSession)="&A9&"", "Bar", "", "Close","5","0","All",,,"False","T","EveryTick")) ->  | BX9: =IF(D9=0,NA(),RTD("cqg.rtd",,"StudyData", "Close("&$BX$2&") When Barix("&$BX$2&",reference:=StartOfSession)="&A9&"", "Bar", "", "Close","5","0","All",,,"False","T","EveryTick")) ->  | BZ9: =IF(D9=0,NA(),RTD("cqg.rtd",,"StudyData", "Close("&$BZ$2&") When Barix("&$BZ$2&",reference:=StartOfSession)="&A9&"", "Bar", "", "Close","5","0","All",,,"False","T","EveryTick")) -> 
A10: 6 | B10: =IF(D10=0,NA(),RTD("cqg.rtd",,"StudyData", "Close("&$B$2&") When Barix("&$B$2&",reference:=StartOfSession)="&A10&"", "Bar", "", "Close","5","0","All",,,"False","T","EveryTick")) ->  | C10: 09:00:00 | D10: 0 | F10: =IF(D10=0,NA(),RTD("cqg.rtd",,"StudyData", "Close("&$F$2&") When Barix("&$F$2&",reference:=StartOfSession)="&A10&"", "Bar", "", "Close","5","0","All",,,"False","T","EveryTick")) ->  | H10: =IF(D10=0,NA(),RTD("cqg.rtd",,"StudyData", "Close("&$H$2&") When Barix("&$H$2&",reference:=StartOfSession)="&A10&"", "Bar", "", "Close","5","0","All",,,"False","T","EveryTick")) ->  | J10: =IF(D10=0,NA(),RTD("cqg.rtd",,"StudyData", "Close("&$J$2&") When Barix("&$J$2&",reference:=StartOfSession)="&A10&"", "Bar", "", "Close","5","0","All",,,"False","T","EveryTick")) ->  | L10: =IF(D10=0,NA(),RTD("cqg.rtd",,"StudyData", "Close("&$L$2&") When Barix("&$L$2&",reference:=StartOfSession)="&A10&"", "Bar", "", "Close","5","0","All",,,"False","T","EveryTick")) ->  | N10: =IF(D10=0,NA(),RTD("cqg.rtd",,"StudyData", "Close("&$N$2&") When Barix("&$N$2&",reference:=StartOfSession)="&A10&"", "Bar", "", "Close","5","0","All",,,"False","T","EveryTick")) ->  | P10: =IF(D10=0,NA(),RTD("cqg.rtd",,"StudyData", "Close("&$P$2&") When Barix("&$P$2&",reference:=StartOfSession)="&A10&"", "Bar", "", "Close","5","0","All",,,"False","T","EveryTick")) ->  | R10: =IF(D10=0,NA(),RTD("cqg.rtd",,"StudyData", "Close("&$R$2&") When Barix("&$R$2&",reference:=StartOfSession)="&A10&"", "Bar", "", "Close","5","0","All",,,"False","T","EveryTick")) ->  | T10: =IF(D10=0,NA(),RTD("cqg.rtd",,"StudyData", "Close("&$T$2&") When Barix("&$T$2&",reference:=StartOfSession)="&A10&"", "Bar", "", "Close","5","0","All",,,"False","T","EveryTick")) ->  | V10: =IF(D10=0,NA(),RTD("cqg.rtd",,"StudyData", "Close("&$V$2&") When Barix("&$V$2&",reference:=StartOfSession)="&A10&"", "Bar", "", "Close","5","0","All",,,"False","T","EveryTick")) ->  | X10: =IF(D10=0,NA(),RTD("cqg.rtd",,"StudyData", "Close("&$X$2&") When Barix("&$X$2&",reference:=StartOfSession)="&A10&"", "Bar", "", "Close","5","0","All",,,"False","T","EveryTick")) ->  | Z10: =IF(D10=0,NA(),RTD("cqg.rtd",,"StudyData", "Close("&$Z$2&") When Barix("&$Z$2&",reference:=StartOfSession)="&A10&"", "Bar", "", "Close","5","0","All",,,"False","T","EveryTick")) ->  | AB10: =IF(D10=0,NA(),RTD("cqg.rtd",,"StudyData", "Close("&$AB$2&") When Barix("&$AB$2&",reference:=StartOfSession)="&A10&"", "Bar", "", "Close","5","0","All",,,"False","T","EveryTick")) ->  | AD10: =IF(D10=0,NA(),RTD("cqg.rtd",,"StudyData", "Close("&$AD$2&") When Barix("&$AD$2&",reference:=StartOfSession)="&A10&"", "Bar", "", "Close","5","0","All",,,"False","T","EveryTick")) ->  | AF10: =IF(D10=0,NA(),RTD("cqg.rtd",,"StudyData", "Close("&$AF$2&") When Barix("&$AF$2&",reference:=StartOfSession)="&A10&"", "Bar", "", "Close","5","0","All",,,"False","T","EveryTick")) ->  | AH10: =IF(D10=0,NA(),RTD("cqg.rtd",,"StudyData", "Close("&$AH$2&") When Barix("&$AH$2&",reference:=StartOfSession)="&A10&"", "Bar", "", "Close","5","0","All",,,"False","T","EveryTick")) ->  | AJ10: =IF(D10=0,NA(),RTD("cqg.rtd",,"StudyData", "Close("&$AJ$2&") When Barix("&$AJ$2&",reference:=StartOfSession)="&A10&"", "Bar", "", "Close","5","0","All",,,"False","T","EveryTick")) ->  | AL10: =IF(D10=0,NA(),RTD("cqg.rtd",,"StudyData", "Close("&$AL$2&") When Barix("&$AL$2&",reference:=StartOfSession)="&A10&"", "Bar", "", "Close","5","0","All",,,"False","T","EveryTick")) ->  | AN10: =IF(D10=0,NA(),RTD("cqg.rtd",,"StudyData", "Close("&$AN$2&") When Barix("&$AN$2&",reference:=StartOfSession)="&A10&"", "Bar", "", "Close","5","0","All",,,"False","T","EveryTick")) ->  | AP10: =IF(D10=0,NA(),RTD("cqg.rtd",,"StudyData", "Close("&$AN$2&") When Barix("&$AN$2&",reference:=StartOfSession)="&A10&"", "Bar", "", "Close","5","0","All",,,"False","T","EveryTick")) ->  | AR10: =IF(D10=0,NA(),RTD("cqg.rtd",,"StudyData", "Close("&$AR$2&") When Barix("&$AR$2&",reference:=StartOfSession)="&A10&"", "Bar", "", "Close","5","0","All",,,"False","T","EveryTick")) ->  | AT10: =IF(D10=0,NA(),RTD("cqg.rtd",,"StudyData", "Close("&$AT$2&") When Barix("&$AT$2&",reference:=StartOfSession)="&A10&"", "Bar", "", "Close","5","0","All",,,"False","T","EveryTick")) ->  | AV10: =IF(D10=0,NA(),RTD("cqg.rtd",,"StudyData", "Close("&$AV$2&") When Barix("&$AV$2&",reference:=StartOfSession)="&A10&"", "Bar", "", "Close","5","0","All",,,"False","T","EveryTick")) ->  | AX10: =IF(D10=0,NA(),RTD("cqg.rtd",,"StudyData", "Close("&$AX$2&") When Barix("&$AX$2&",reference:=StartOfSession)="&A10&"", "Bar", "", "Close","5","0","All",,,"False","T","EveryTick")) ->  | AZ10: =IF(D10=0,NA(),RTD("cqg.rtd",,"StudyData", "Close("&$AZ$2&") When Barix("&$AZ$2&",reference:=StartOfSession)="&A10&"", "Bar", "", "Close","5","0","All",,,"False","T","EveryTick")) ->  | BB10: =IF(D10=0,NA(),RTD("cqg.rtd",,"StudyData", "Close("&$BB$2&") When Barix("&$BB$2&",reference:=StartOfSession)="&A10&"", "Bar", "", "Close","5","0","All",,,"False","T","EveryTick")) ->  | BD10: =IF(D10=0,NA(),RTD("cqg.rtd",,"StudyData", "Close("&$BD$2&") When Barix("&$BD$2&",reference:=StartOfSession)="&A10&"", "Bar", "", "Close","5","0","All",,,"False","T","EveryTick")) ->  | BF10: =IF(D10=0,NA(),RTD("cqg.rtd",,"StudyData", "Close("&$BF$2&") When Barix("&$BF$2&",reference:=StartOfSession)="&A10&"", "Bar", "", "Close","5","0","All",,,"False","T","EveryTick")) ->  | BH10: =IF(D10=0,NA(),RTD("cqg.rtd",,"StudyData", "Close("&$BH$2&") When Barix("&$BH$2&",reference:=StartOfSession)="&A10&"", "Bar", "", "Close","5","0","All",,,"False","T","EveryTick")) ->  | BJ10: =IF(D10=0,NA(),RTD("cqg.rtd",,"StudyData", "Close("&$BJ$2&") When Barix("&$BJ$2&",reference:=StartOfSession)="&A10&"", "Bar", "", "Close","5","0","All",,,"False","T","EveryTick")) ->  | BL10: =IF(D10=0,NA(),RTD("cqg.rtd",,"StudyData", "Close("&$BL$2&") When Barix("&$BL$2&",reference:=StartOfSession)="&A10&"", "Bar", "", "Close","5","0","All",,,"False","T","EveryTick")) ->  | BN10: =IF(D10=0,NA(),RTD("cqg.rtd",,"StudyData", "Close("&$BN$2&") When Barix("&$BN$2&",reference:=StartOfSession)="&A10&"", "Bar", "", "Close","5","0","All",,,"False","T","EveryTick")) ->  | BP10: =IF(D10=0,NA(),RTD("cqg.rtd",,"StudyData", "Close("&$BP$2&") When Barix("&$BP$2&",reference:=StartOfSession)="&A10&"", "Bar", "", "Close","5","0","All",,,"False","T","EveryTick")) ->  | BR10: =IF(D10=0,NA(),RTD("cqg.rtd",,"StudyData", "Close("&$BR$2&") When Barix("&$BR$2&",reference:=StartOfSession)="&A10&"", "Bar", "", "Close","5","0","All",,,"False","T","EveryTick")) ->  | BT10: =IF(D10=0,NA(),RTD("cqg.rtd",,"StudyData", "Close("&$BT$2&") When Barix("&$BT$2&",reference:=StartOfSession)="&A10&"", "Bar", "", "Close","5","0","All",,,"False","T","EveryTick")) ->  | BV10: =IF(D10=0,NA(),RTD("cqg.rtd",,"StudyData", "Close("&$BV$2&") When Barix("&$BV$2&",reference:=StartOfSession)="&A10&"", "Bar", "", "Close","5","0","All",,,"False","T","EveryTick")) ->  | BX10: =IF(D10=0,NA(),RTD("cqg.rtd",,"StudyData", "Close("&$BX$2&") When Barix("&$BX$2&",reference:=StartOfSession)="&A10&"", "Bar", "", "Close","5","0","All",,,"False","T","EveryTick")) ->  | BZ10: =IF(D10=0,NA(),RTD("cqg.rtd",,"StudyData", "Close("&$BZ$2&") When Barix("&$BZ$2&",reference:=StartOfSession)="&A10&"", "Bar", "", "Close","5","0","All",,,"False","T","EveryTick")) -> 
A11: 7 | B11: =IF(D11=0,NA(),RTD("cqg.rtd",,"StudyData", "Close("&$B$2&") When Barix("&$B$2&",reference:=StartOfSession)="&A11&"", "Bar", "", "Close","5","0","All",,,"False","T","EveryTick")) ->  | C11: 09:05:00 | D11: 0 | F11: =IF(D11=0,NA(),RTD("cqg.rtd",,"StudyData", "Close("&$F$2&") When Barix("&$F$2&",reference:=StartOfSession)="&A11&"", "Bar", "", "Close","5","0","All",,,"False","T","EveryTick")) ->  | H11: =IF(D11=0,NA(),RTD("cqg.rtd",,"StudyData", "Close("&$H$2&") When Barix("&$H$2&",reference:=StartOfSession)="&A11&"", "Bar", "", "Close","5","0","All",,,"False","T","EveryTick")) ->  | J11: =IF(D11=0,NA(),RTD("cqg.rtd",,"StudyData", "Close("&$J$2&") When Barix("&$J$2&",reference:=StartOfSession)="&A11&"", "Bar", "", "Close","5","0","All",,,"False","T","EveryTick")) ->  | L11: =IF(D11=0,NA(),RTD("cqg.rtd",,"StudyData", "Close("&$L$2&") When Barix("&$L$2&",reference:=StartOfSession)="&A11&"", "Bar", "", "Close","5","0","All",,,"False","T","EveryTick")) ->  | N11: =IF(D11=0,NA(),RTD("cqg.rtd",,"StudyData", "Close("&$N$2&") When Barix("&$N$2&",reference:=StartOfSession)="&A11&"", "Bar", "", "Close","5","0","All",,,"False","T","EveryTick")) ->  | P11: =IF(D11=0,NA(),RTD("cqg.rtd",,"StudyData", "Close("&$P$2&") When Barix("&$P$2&",reference:=StartOfSession)="&A11&"", "Bar", "", "Close","5","0","All",,,"False","T","EveryTick")) ->  | R11: =IF(D11=0,NA(),RTD("cqg.rtd",,"StudyData", "Close("&$R$2&") When Barix("&$R$2&",reference:=StartOfSession)="&A11&"", "Bar", "", "Close","5","0","All",,,"False","T","EveryTick")) ->  | T11: =IF(D11=0,NA(),RTD("cqg.rtd",,"StudyData", "Close("&$T$2&") When Barix("&$T$2&",reference:=StartOfSession)="&A11&"", "Bar", "", "Close","5","0","All",,,"False","T","EveryTick")) ->  | V11: =IF(D11=0,NA(),RTD("cqg.rtd",,"StudyData", "Close("&$V$2&") When Barix("&$V$2&",reference:=StartOfSession)="&A11&"", "Bar", "", "Close","5","0","All",,,"False","T","EveryTick")) ->  | X11: =IF(D11=0,NA(),RTD("cqg.rtd",,"StudyData", "Close("&$X$2&") When Barix("&$X$2&",reference:=StartOfSession)="&A11&"", "Bar", "", "Close","5","0","All",,,"False","T","EveryTick")) ->  | Z11: =IF(D11=0,NA(),RTD("cqg.rtd",,"StudyData", "Close("&$Z$2&") When Barix("&$Z$2&",reference:=StartOfSession)="&A11&"", "Bar", "", "Close","5","0","All",,,"False","T","EveryTick")) ->  | AB11: =IF(D11=0,NA(),RTD("cqg.rtd",,"StudyData", "Close("&$AB$2&") When Barix("&$AB$2&",reference:=StartOfSession)="&A11&"", "Bar", "", "Close","5","0","All",,,"False","T","EveryTick")) ->  | AD11: =IF(D11=0,NA(),RTD("cqg.rtd",,"StudyData", "Close("&$AD$2&") When Barix("&$AD$2&",reference:=StartOfSession)="&A11&"", "Bar", "", "Close","5","0","All",,,"False","T","EveryTick")) ->  | AF11: =IF(D11=0,NA(),RTD("cqg.rtd",,"StudyData", "Close("&$AF$2&") When Barix("&$AF$2&",reference:=StartOfSession)="&A11&"", "Bar", "", "Close","5","0","All",,,"False","T","EveryTick")) ->  | AH11: =IF(D11=0,NA(),RTD("cqg.rtd",,"StudyData", "Close("&$AH$2&") When Barix("&$AH$2&",reference:=StartOfSession)="&A11&"", "Bar", "", "Close","5","0","All",,,"False","T","EveryTick")) ->  | AJ11: =IF(D11=0,NA(),RTD("cqg.rtd",,"StudyData", "Close("&$AJ$2&") When Barix("&$AJ$2&",reference:=StartOfSession)="&A11&"", "Bar", "", "Close","5","0","All",,,"False","T","EveryTick")) ->  | AL11: =IF(D11=0,NA(),RTD("cqg.rtd",,"StudyData", "Close("&$AL$2&") When Barix("&$AL$2&",reference:=StartOfSession)="&A11&"", "Bar", "", "Close","5","0","All",,,"False","T","EveryTick")) ->  | AN11: =IF(D11=0,NA(),RTD("cqg.rtd",,"StudyData", "Close("&$AN$2&") When Barix("&$AN$2&",reference:=StartOfSession)="&A11&"", "Bar", "", "Close","5","0","All",,,"False","T","EveryTick")) ->  | AP11: =IF(D11=0,NA(),RTD("cqg.rtd",,"StudyData", "Close("&$AN$2&") When Barix("&$AN$2&",reference:=StartOfSession)="&A11&"", "Bar", "", "Close","5","0","All",,,"False","T","EveryTick")) ->  | AR11: =IF(D11=0,NA(),RTD("cqg.rtd",,"StudyData", "Close("&$AR$2&") When Barix("&$AR$2&",reference:=StartOfSession)="&A11&"", "Bar", "", "Close","5","0","All",,,"False","T","EveryTick")) ->  | AT11: =IF(D11=0,NA(),RTD("cqg.rtd",,"StudyData", "Close("&$AT$2&") When Barix("&$AT$2&",reference:=StartOfSession)="&A11&"", "Bar", "", "Close","5","0","All",,,"False","T","EveryTick")) ->  | AV11: =IF(D11=0,NA(),RTD("cqg.rtd",,"StudyData", "Close("&$AV$2&") When Barix("&$AV$2&",reference:=StartOfSession)="&A11&"", "Bar", "", "Close","5","0","All",,,"False","T","EveryTick")) ->  | AX11: =IF(D11=0,NA(),RTD("cqg.rtd",,"StudyData", "Close("&$AX$2&") When Barix("&$AX$2&",reference:=StartOfSession)="&A11&"", "Bar", "", "Close","5","0","All",,,"False","T","EveryTick")) ->  | AZ11: =IF(D11=0,NA(),RTD("cqg.rtd",,"StudyData", "Close("&$AZ$2&") When Barix("&$AZ$2&",reference:=StartOfSession)="&A11&"", "Bar", "", "Close","5","0","All",,,"False","T","EveryTick")) ->  | BB11: =IF(D11=0,NA(),RTD("cqg.rtd",,"StudyData", "Close("&$BB$2&") When Barix("&$BB$2&",reference:=StartOfSession)="&A11&"", "Bar", "", "Close","5","0","All",,,"False","T","EveryTick")) ->  | BD11: =IF(D11=0,NA(),RTD("cqg.rtd",,"StudyData", "Close("&$BD$2&") When Barix("&$BD$2&",reference:=StartOfSession)="&A11&"", "Bar", "", "Close","5","0","All",,,"False","T","EveryTick")) ->  | BF11: =IF(D11=0,NA(),RTD("cqg.rtd",,"StudyData", "Close("&$BF$2&") When Barix("&$BF$2&",reference:=StartOfSession)="&A11&"", "Bar", "", "Close","5","0","All",,,"False","T","EveryTick")) ->  | BH11: =IF(D11=0,NA(),RTD("cqg.rtd",,"StudyData", "Close("&$BH$2&") When Barix("&$BH$2&",reference:=StartOfSession)="&A11&"", "Bar", "", "Close","5","0","All",,,"False","T","EveryTick")) ->  | BJ11: =IF(D11=0,NA(),RTD("cqg.rtd",,"StudyData", "Close("&$BJ$2&") When Barix("&$BJ$2&",reference:=StartOfSession)="&A11&"", "Bar", "", "Close","5","0","All",,,"False","T","EveryTick")) ->  | BL11: =IF(D11=0,NA(),RTD("cqg.rtd",,"StudyData", "Close("&$BL$2&") When Barix("&$BL$2&",reference:=StartOfSession)="&A11&"", "Bar", "", "Close","5","0","All",,,"False","T","EveryTick")) ->  | BN11: =IF(D11=0,NA(),RTD("cqg.rtd",,"StudyData", "Close("&$BN$2&") When Barix("&$BN$2&",reference:=StartOfSession)="&A11&"", "Bar", "", "Close","5","0","All",,,"False","T","EveryTick")) ->  | BP11: =IF(D11=0,NA(),RTD("cqg.rtd",,"StudyData", "Close("&$BP$2&") When Barix("&$BP$2&",reference:=StartOfSession)="&A11&"", "Bar", "", "Close","5","0","All",,,"False","T","EveryTick")) ->  | BR11: =IF(D11=0,NA(),RTD("cqg.rtd",,"StudyData", "Close("&$BR$2&") When Barix("&$BR$2&",reference:=StartOfSession)="&A11&"", "Bar", "", "Close","5","0","All",,,"False","T","EveryTick")) ->  | BT11: =IF(D11=0,NA(),RTD("cqg.rtd",,"StudyData", "Close("&$BT$2&") When Barix("&$BT$2&",reference:=StartOfSession)="&A11&"", "Bar", "", "Close","5","0","All",,,"False","T","EveryTick")) ->  | BV11: =IF(D11=0,NA(),RTD("cqg.rtd",,"StudyData", "Close("&$BV$2&") When Barix("&$BV$2&",reference:=StartOfSession)="&A11&"", "Bar", "", "Close","5","0","All",,,"False","T","EveryTick")) ->  | BX11: =IF(D11=0,NA(),RTD("cqg.rtd",,"StudyData", "Close("&$BX$2&") When Barix("&$BX$2&",reference:=StartOfSession)="&A11&"", "Bar", "", "Close","5","0","All",,,"False","T","EveryTick")) ->  | BZ11: =IF(D11=0,NA(),RTD("cqg.rtd",,"StudyData", "Close("&$BZ$2&") When Barix("&$BZ$2&",reference:=StartOfSession)="&A11&"", "Bar", "", "Close","5","0","All",,,"False","T","EveryTick")) -> 
A12: 8 | B12: =IF(D12=0,NA(),RTD("cqg.rtd",,"StudyData", "Close("&$B$2&") When Barix("&$B$2&",reference:=StartOfSession)="&A12&"", "Bar", "", "Close","5","0","All",,,"False","T","EveryTick")) ->  | C12: 09:10:00 | D12: 0 | F12: =IF(D12=0,NA(),RTD("cqg.rtd",,"StudyData", "Close("&$F$2&") When Barix("&$F$2&",reference:=StartOfSession)="&A12&"", "Bar", "", "Close","5","0","All",,,"False","T","EveryTick")) ->  | H12: =IF(D12=0,NA(),RTD("cqg.rtd",,"StudyData", "Close("&$H$2&") When Barix("&$H$2&",reference:=StartOfSession)="&A12&"", "Bar", "", "Close","5","0","All",,,"False","T","EveryTick")) ->  | J12: =IF(D12=0,NA(),RTD("cqg.rtd",,"StudyData", "Close("&$J$2&") When Barix("&$J$2&",reference:=StartOfSession)="&A12&"", "Bar", "", "Close","5","0","All",,,"False","T","EveryTick")) ->  | L12: =IF(D12=0,NA(),RTD("cqg.rtd",,"StudyData", "Close("&$L$2&") When Barix("&$L$2&",reference:=StartOfSession)="&A12&"", "Bar", "", "Close","5","0","All",,,"False","T","EveryTick")) ->  | N12: =IF(D12=0,NA(),RTD("cqg.rtd",,"StudyData", "Close("&$N$2&") When Barix("&$N$2&",reference:=StartOfSession)="&A12&"", "Bar", "", "Close","5","0","All",,,"False","T","EveryTick")) ->  | P12: =IF(D12=0,NA(),RTD("cqg.rtd",,"StudyData", "Close("&$P$2&") When Barix("&$P$2&",reference:=StartOfSession)="&A12&"", "Bar", "", "Close","5","0","All",,,"False","T","EveryTick")) ->  | R12: =IF(D12=0,NA(),RTD("cqg.rtd",,"StudyData", "Close("&$R$2&") When Barix("&$R$2&",reference:=StartOfSession)="&A12&"", "Bar", "", "Close","5","0","All",,,"False","T","EveryTick")) ->  | T12: =IF(D12=0,NA(),RTD("cqg.rtd",,"StudyData", "Close("&$T$2&") When Barix("&$T$2&",reference:=StartOfSession)="&A12&"", "Bar", "", "Close","5","0","All",,,"False","T","EveryTick")) ->  | V12: =IF(D12=0,NA(),RTD("cqg.rtd",,"StudyData", "Close("&$V$2&") When Barix("&$V$2&",reference:=StartOfSession)="&A12&"", "Bar", "", "Close","5","0","All",,,"False","T","EveryTick")) ->  | X12: =IF(D12=0,NA(),RTD("cqg.rtd",,"StudyData", "Close("&$X$2&") When Barix("&$X$2&",reference:=StartOfSession)="&A12&"", "Bar", "", "Close","5","0","All",,,"False","T","EveryTick")) ->  | Z12: =IF(D12=0,NA(),RTD("cqg.rtd",,"StudyData", "Close("&$Z$2&") When Barix("&$Z$2&",reference:=StartOfSession)="&A12&"", "Bar", "", "Close","5","0","All",,,"False","T","EveryTick")) ->  | AB12: =IF(D12=0,NA(),RTD("cqg.rtd",,"StudyData", "Close("&$AB$2&") When Barix("&$AB$2&",reference:=StartOfSession)="&A12&"", "Bar", "", "Close","5","0","All",,,"False","T","EveryTick")) ->  | AD12: =IF(D12=0,NA(),RTD("cqg.rtd",,"StudyData", "Close("&$AD$2&") When Barix("&$AD$2&",reference:=StartOfSession)="&A12&"", "Bar", "", "Close","5","0","All",,,"False","T","EveryTick")) ->  | AF12: =IF(D12=0,NA(),RTD("cqg.rtd",,"StudyData", "Close("&$AF$2&") When Barix("&$AF$2&",reference:=StartOfSession)="&A12&"", "Bar", "", "Close","5","0","All",,,"False","T","EveryTick")) ->  | AH12: =IF(D12=0,NA(),RTD("cqg.rtd",,"StudyData", "Close("&$AH$2&") When Barix("&$AH$2&",reference:=StartOfSession)="&A12&"", "Bar", "", "Close","5","0","All",,,"False","T","EveryTick")) ->  | AJ12: =IF(D12=0,NA(),RTD("cqg.rtd",,"StudyData", "Close("&$AJ$2&") When Barix("&$AJ$2&",reference:=StartOfSession)="&A12&"", "Bar", "", "Close","5","0","All",,,"False","T","EveryTick")) ->  | AL12: =IF(D12=0,NA(),RTD("cqg.rtd",,"StudyData", "Close("&$AL$2&") When Barix("&$AL$2&",reference:=StartOfSession)="&A12&"", "Bar", "", "Close","5","0","All",,,"False","T","EveryTick")) ->  | AN12: =IF(D12=0,NA(),RTD("cqg.rtd",,"StudyData", "Close("&$AN$2&") When Barix("&$AN$2&",reference:=StartOfSession)="&A12&"", "Bar", "", "Close","5","0","All",,,"False","T","EveryTick")) ->  | AP12: =IF(D12=0,NA(),RTD("cqg.rtd",,"StudyData", "Close("&$AN$2&") When Barix("&$AN$2&",reference:=StartOfSession)="&A12&"", "Bar", "", "Close","5","0","All",,,"False","T","EveryTick")) ->  | AR12: =IF(D12=0,NA(),RTD("cqg.rtd",,"StudyData", "Close("&$AR$2&") When Barix("&$AR$2&",reference:=StartOfSession)="&A12&"", "Bar", "", "Close","5","0","All",,,"False","T","EveryTick")) ->  | AT12: =IF(D12=0,NA(),RTD("cqg.rtd",,"StudyData", "Close("&$AT$2&") When Barix("&$AT$2&",reference:=StartOfSession)="&A12&"", "Bar", "", "Close","5","0","All",,,"False","T","EveryTick")) ->  | AV12: =IF(D12=0,NA(),RTD("cqg.rtd",,"StudyData", "Close("&$AV$2&") When Barix("&$AV$2&",reference:=StartOfSession)="&A12&"", "Bar", "", "Close","5","0","All",,,"False","T","EveryTick")) ->  | AX12: =IF(D12=0,NA(),RTD("cqg.rtd",,"StudyData", "Close("&$AX$2&") When Barix("&$AX$2&",reference:=StartOfSession)="&A12&"", "Bar", "", "Close","5","0","All",,,"False","T","EveryTick")) ->  | AZ12: =IF(D12=0,NA(),RTD("cqg.rtd",,"StudyData", "Close("&$AZ$2&") When Barix("&$AZ$2&",reference:=StartOfSession)="&A12&"", "Bar", "", "Close","5","0","All",,,"False","T","EveryTick")) ->  | BB12: =IF(D12=0,NA(),RTD("cqg.rtd",,"StudyData", "Close("&$BB$2&") When Barix("&$BB$2&",reference:=StartOfSession)="&A12&"", "Bar", "", "Close","5","0","All",,,"False","T","EveryTick")) ->  | BD12: =IF(D12=0,NA(),RTD("cqg.rtd",,"StudyData", "Close("&$BD$2&") When Barix("&$BD$2&",reference:=StartOfSession)="&A12&"", "Bar", "", "Close","5","0","All",,,"False","T","EveryTick")) ->  | BF12: =IF(D12=0,NA(),RTD("cqg.rtd",,"StudyData", "Close("&$BF$2&") When Barix("&$BF$2&",reference:=StartOfSession)="&A12&"", "Bar", "", "Close","5","0","All",,,"False","T","EveryTick")) ->  | BH12: =IF(D12=0,NA(),RTD("cqg.rtd",,"StudyData", "Close("&$BH$2&") When Barix("&$BH$2&",reference:=StartOfSession)="&A12&"", "Bar", "", "Close","5","0","All",,,"False","T","EveryTick")) ->  | BJ12: =IF(D12=0,NA(),RTD("cqg.rtd",,"StudyData", "Close("&$BJ$2&") When Barix("&$BJ$2&",reference:=StartOfSession)="&A12&"", "Bar", "", "Close","5","0","All",,,"False","T","EveryTick")) ->  | BL12: =IF(D12=0,NA(),RTD("cqg.rtd",,"StudyData", "Close("&$BL$2&") When Barix("&$BL$2&",reference:=StartOfSession)="&A12&"", "Bar", "", "Close","5","0","All",,,"False","T","EveryTick")) ->  | BN12: =IF(D12=0,NA(),RTD("cqg.rtd",,"StudyData", "Close("&$BN$2&") When Barix("&$BN$2&",reference:=StartOfSession)="&A12&"", "Bar", "", "Close","5","0","All",,,"False","T","EveryTick")) ->  | BP12: =IF(D12=0,NA(),RTD("cqg.rtd",,"StudyData", "Close("&$BP$2&") When Barix("&$BP$2&",reference:=StartOfSession)="&A12&"", "Bar", "", "Close","5","0","All",,,"False","T","EveryTick")) ->  | BR12: =IF(D12=0,NA(),RTD("cqg.rtd",,"StudyData", "Close("&$BR$2&") When Barix("&$BR$2&",reference:=StartOfSession)="&A12&"", "Bar", "", "Close","5","0","All",,,"False","T","EveryTick")) ->  | BT12: =IF(D12=0,NA(),RTD("cqg.rtd",,"StudyData", "Close("&$BT$2&") When Barix("&$BT$2&",reference:=StartOfSession)="&A12&"", "Bar", "", "Close","5","0","All",,,"False","T","EveryTick")) ->  | BV12: =IF(D12=0,NA(),RTD("cqg.rtd",,"StudyData", "Close("&$BV$2&") When Barix("&$BV$2&",reference:=StartOfSession)="&A12&"", "Bar", "", "Close","5","0","All",,,"False","T","EveryTick")) ->  | BX12: =IF(D12=0,NA(),RTD("cqg.rtd",,"StudyData", "Close("&$BX$2&") When Barix("&$BX$2&",reference:=StartOfSession)="&A12&"", "Bar", "", "Close","5","0","All",,,"False","T","EveryTick")) ->  | BZ12: =IF(D12=0,NA(),RTD("cqg.rtd",,"StudyData", "Close("&$BZ$2&") When Barix("&$BZ$2&",reference:=StartOfSession)="&A12&"", "Bar", "", "Close","5","0","All",,,"False","T","EveryTick")) -> 
A13: 9 | B13: =IF(D13=0,NA(),RTD("cqg.rtd",,"StudyData", "Close("&$B$2&") When Barix("&$B$2&",reference:=StartOfSession)="&A13&"", "Bar", "", "Close","5","0","All",,,"False","T","EveryTick")) ->  | C13: 09:15:00 | D13: 0 | F13: =IF(D13=0,NA(),RTD("cqg.rtd",,"StudyData", "Close("&$F$2&") When Barix("&$F$2&",reference:=StartOfSession)="&A13&"", "Bar", "", "Close","5","0","All",,,"False","T","EveryTick")) ->  | H13: =IF(D13=0,NA(),RTD("cqg.rtd",,"StudyData", "Close("&$H$2&") When Barix("&$H$2&",reference:=StartOfSession)="&A13&"", "Bar", "", "Close","5","0","All",,,"False","T","EveryTick")) ->  | J13: =IF(D13=0,NA(),RTD("cqg.rtd",,"StudyData", "Close("&$J$2&") When Barix("&$J$2&",reference:=StartOfSession)="&A13&"", "Bar", "", "Close","5","0","All",,,"False","T","EveryTick")) ->  | L13: =IF(D13=0,NA(),RTD("cqg.rtd",,"StudyData", "Close("&$L$2&") When Barix("&$L$2&",reference:=StartOfSession)="&A13&"", "Bar", "", "Close","5","0","All",,,"False","T","EveryTick")) ->  | N13: =IF(D13=0,NA(),RTD("cqg.rtd",,"StudyData", "Close("&$N$2&") When Barix("&$N$2&",reference:=StartOfSession)="&A13&"", "Bar", "", "Close","5","0","All",,,"False","T","EveryTick")) ->  | P13: =IF(D13=0,NA(),RTD("cqg.rtd",,"StudyData", "Close("&$P$2&") When Barix("&$P$2&",reference:=StartOfSession)="&A13&"", "Bar", "", "Close","5","0","All",,,"False","T","EveryTick")) ->  | R13: =IF(D13=0,NA(),RTD("cqg.rtd",,"StudyData", "Close("&$R$2&") When Barix("&$R$2&",reference:=StartOfSession)="&A13&"", "Bar", "", "Close","5","0","All",,,"False","T","EveryTick")) ->  | T13: =IF(D13=0,NA(),RTD("cqg.rtd",,"StudyData", "Close("&$T$2&") When Barix("&$T$2&",reference:=StartOfSession)="&A13&"", "Bar", "", "Close","5","0","All",,,"False","T","EveryTick")) ->  | V13: =IF(D13=0,NA(),RTD("cqg.rtd",,"StudyData", "Close("&$V$2&") When Barix("&$V$2&",reference:=StartOfSession)="&A13&"", "Bar", "", "Close","5","0","All",,,"False","T","EveryTick")) ->  | X13: =IF(D13=0,NA(),RTD("cqg.rtd",,"StudyData", "Close("&$X$2&") When Barix("&$X$2&",reference:=StartOfSession)="&A13&"", "Bar", "", "Close","5","0","All",,,"False","T","EveryTick")) ->  | Z13: =IF(D13=0,NA(),RTD("cqg.rtd",,"StudyData", "Close("&$Z$2&") When Barix("&$Z$2&",reference:=StartOfSession)="&A13&"", "Bar", "", "Close","5","0","All",,,"False","T","EveryTick")) ->  | AB13: =IF(D13=0,NA(),RTD("cqg.rtd",,"StudyData", "Close("&$AB$2&") When Barix("&$AB$2&",reference:=StartOfSession)="&A13&"", "Bar", "", "Close","5","0","All",,,"False","T","EveryTick")) ->  | AD13: =IF(D13=0,NA(),RTD("cqg.rtd",,"StudyData", "Close("&$AD$2&") When Barix("&$AD$2&",reference:=StartOfSession)="&A13&"", "Bar", "", "Close","5","0","All",,,"False","T","EveryTick")) ->  | AF13: =IF(D13=0,NA(),RTD("cqg.rtd",,"StudyData", "Close("&$AF$2&") When Barix("&$AF$2&",reference:=StartOfSession)="&A13&"", "Bar", "", "Close","5","0","All",,,"False","T","EveryTick")) ->  | AH13: =IF(D13=0,NA(),RTD("cqg.rtd",,"StudyData", "Close("&$AH$2&") When Barix("&$AH$2&",reference:=StartOfSession)="&A13&"", "Bar", "", "Close","5","0","All",,,"False","T","EveryTick")) ->  | AJ13: =IF(D13=0,NA(),RTD("cqg.rtd",,"StudyData", "Close("&$AJ$2&") When Barix("&$AJ$2&",reference:=StartOfSession)="&A13&"", "Bar", "", "Close","5","0","All",,,"False","T","EveryTick")) ->  | AL13: =IF(D13=0,NA(),RTD("cqg.rtd",,"StudyData", "Close("&$AL$2&") When Barix("&$AL$2&",reference:=StartOfSession)="&A13&"", "Bar", "", "Close","5","0","All",,,"False","T","EveryTick")) ->  | AN13: =IF(D13=0,NA(),RTD("cqg.rtd",,"StudyData", "Close("&$AN$2&") When Barix("&$AN$2&",reference:=StartOfSession)="&A13&"", "Bar", "", "Close","5","0","All",,,"False","T","EveryTick")) ->  | AP13: =IF(D13=0,NA(),RTD("cqg.rtd",,"StudyData", "Close("&$AN$2&") When Barix("&$AN$2&",reference:=StartOfSession)="&A13&"", "Bar", "", "Close","5","0","All",,,"False","T","EveryTick")) ->  | AR13: =IF(D13=0,NA(),RTD("cqg.rtd",,"StudyData", "Close("&$AR$2&") When Barix("&$AR$2&",reference:=StartOfSession)="&A13&"", "Bar", "", "Close","5","0","All",,,"False","T","EveryTick")) ->  | AT13: =IF(D13=0,NA(),RTD("cqg.rtd",,"StudyData", "Close("&$AT$2&") When Barix("&$AT$2&",reference:=StartOfSession)="&A13&"", "Bar", "", "Close","5","0","All",,,"False","T","EveryTick")) ->  | AV13: =IF(D13=0,NA(),RTD("cqg.rtd",,"StudyData", "Close("&$AV$2&") When Barix("&$AV$2&",reference:=StartOfSession)="&A13&"", "Bar", "", "Close","5","0","All",,,"False","T","EveryTick")) ->  | AX13: =IF(D13=0,NA(),RTD("cqg.rtd",,"StudyData", "Close("&$AX$2&") When Barix("&$AX$2&",reference:=StartOfSession)="&A13&"", "Bar", "", "Close","5","0","All",,,"False","T","EveryTick")) ->  | AZ13: =IF(D13=0,NA(),RTD("cqg.rtd",,"StudyData", "Close("&$AZ$2&") When Barix("&$AZ$2&",reference:=StartOfSession)="&A13&"", "Bar", "", "Close","5","0","All",,,"False","T","EveryTick")) ->  | BB13: =IF(D13=0,NA(),RTD("cqg.rtd",,"StudyData", "Close("&$BB$2&") When Barix("&$BB$2&",reference:=StartOfSession)="&A13&"", "Bar", "", "Close","5","0","All",,,"False","T","EveryTick")) ->  | BD13: =IF(D13=0,NA(),RTD("cqg.rtd",,"StudyData", "Close("&$BD$2&") When Barix("&$BD$2&",reference:=StartOfSession)="&A13&"", "Bar", "", "Close","5","0","All",,,"False","T","EveryTick")) ->  | BF13: =IF(D13=0,NA(),RTD("cqg.rtd",,"StudyData", "Close("&$BF$2&") When Barix("&$BF$2&",reference:=StartOfSession)="&A13&"", "Bar", "", "Close","5","0","All",,,"False","T","EveryTick")) ->  | BH13: =IF(D13=0,NA(),RTD("cqg.rtd",,"StudyData", "Close("&$BH$2&") When Barix("&$BH$2&",reference:=StartOfSession)="&A13&"", "Bar", "", "Close","5","0","All",,,"False","T","EveryTick")) ->  | BJ13: =IF(D13=0,NA(),RTD("cqg.rtd",,"StudyData", "Close("&$BJ$2&") When Barix("&$BJ$2&",reference:=StartOfSession)="&A13&"", "Bar", "", "Close","5","0","All",,,"False","T","EveryTick")) ->  | BL13: =IF(D13=0,NA(),RTD("cqg.rtd",,"StudyData", "Close("&$BL$2&") When Barix("&$BL$2&",reference:=StartOfSession)="&A13&"", "Bar", "", "Close","5","0","All",,,"False","T","EveryTick")) ->  | BN13: =IF(D13=0,NA(),RTD("cqg.rtd",,"StudyData", "Close("&$BN$2&") When Barix("&$BN$2&",reference:=StartOfSession)="&A13&"", "Bar", "", "Close","5","0","All",,,"False","T","EveryTick")) ->  | BP13: =IF(D13=0,NA(),RTD("cqg.rtd",,"StudyData", "Close("&$BP$2&") When Barix("&$BP$2&",reference:=StartOfSession)="&A13&"", "Bar", "", "Close","5","0","All",,,"False","T","EveryTick")) ->  | BR13: =IF(D13=0,NA(),RTD("cqg.rtd",,"StudyData", "Close("&$BR$2&") When Barix("&$BR$2&",reference:=StartOfSession)="&A13&"", "Bar", "", "Close","5","0","All",,,"False","T","EveryTick")) ->  | BT13: =IF(D13=0,NA(),RTD("cqg.rtd",,"StudyData", "Close("&$BT$2&") When Barix("&$BT$2&",reference:=StartOfSession)="&A13&"", "Bar", "", "Close","5","0","All",,,"False","T","EveryTick")) ->  | BV13: =IF(D13=0,NA(),RTD("cqg.rtd",,"StudyData", "Close("&$BV$2&") When Barix("&$BV$2&",reference:=StartOfSession)="&A13&"", "Bar", "", "Close","5","0","All",,,"False","T","EveryTick")) ->  | BX13: =IF(D13=0,NA(),RTD("cqg.rtd",,"StudyData", "Close("&$BX$2&") When Barix("&$BX$2&",reference:=StartOfSession)="&A13&"", "Bar", "", "Close","5","0","All",,,"False","T","EveryTick")) ->  | BZ13: =IF(D13=0,NA(),RTD("cqg.rtd",,"StudyData", "Close("&$BZ$2&") When Barix("&$BZ$2&",reference:=StartOfSession)="&A13&"", "Bar", "", "Close","5","0","All",,,"False","T","EveryTick")) -> 
A14: 10 | B14: =IF(D14=0,NA(),RTD("cqg.rtd",,"StudyData", "Close("&$B$2&") When Barix("&$B$2&",reference:=StartOfSession)="&A14&"", "Bar", "", "Close","5","0","All",,,"False","T","EveryTick")) ->  | C14: 09:20:00 | D14: 0 | F14: =IF(D14=0,NA(),RTD("cqg.rtd",,"StudyData", "Close("&$F$2&") When Barix("&$F$2&",reference:=StartOfSession)="&A14&"", "Bar", "", "Close","5","0","All",,,"False","T","EveryTick")) ->  | H14: =IF(D14=0,NA(),RTD("cqg.rtd",,"StudyData", "Close("&$H$2&") When Barix("&$H$2&",reference:=StartOfSession)="&A14&"", "Bar", "", "Close","5","0","All",,,"False","T","EveryTick")) ->  | J14: =IF(D14=0,NA(),RTD("cqg.rtd",,"StudyData", "Close("&$J$2&") When Barix("&$J$2&",reference:=StartOfSession)="&A14&"", "Bar", "", "Close","5","0","All",,,"False","T","EveryTick")) ->  | L14: =IF(D14=0,NA(),RTD("cqg.rtd",,"StudyData", "Close("&$L$2&") When Barix("&$L$2&",reference:=StartOfSession)="&A14&"", "Bar", "", "Close","5","0","All",,,"False","T","EveryTick")) ->  | N14: =IF(D14=0,NA(),RTD("cqg.rtd",,"StudyData", "Close("&$N$2&") When Barix("&$N$2&",reference:=StartOfSession)="&A14&"", "Bar", "", "Close","5","0","All",,,"False","T","EveryTick")) ->  | P14: =IF(D14=0,NA(),RTD("cqg.rtd",,"StudyData", "Close("&$P$2&") When Barix("&$P$2&",reference:=StartOfSession)="&A14&"", "Bar", "", "Close","5","0","All",,,"False","T","EveryTick")) ->  | R14: =IF(D14=0,NA(),RTD("cqg.rtd",,"StudyData", "Close("&$R$2&") When Barix("&$R$2&",reference:=StartOfSession)="&A14&"", "Bar", "", "Close","5","0","All",,,"False","T","EveryTick")) ->  | T14: =IF(D14=0,NA(),RTD("cqg.rtd",,"StudyData", "Close("&$T$2&") When Barix("&$T$2&",reference:=StartOfSession)="&A14&"", "Bar", "", "Close","5","0","All",,,"False","T","EveryTick")) ->  | V14: =IF(D14=0,NA(),RTD("cqg.rtd",,"StudyData", "Close("&$V$2&") When Barix("&$V$2&",reference:=StartOfSession)="&A14&"", "Bar", "", "Close","5","0","All",,,"False","T","EveryTick")) ->  | X14: =IF(D14=0,NA(),RTD("cqg.rtd",,"StudyData", "Close("&$X$2&") When Barix("&$X$2&",reference:=StartOfSession)="&A14&"", "Bar", "", "Close","5","0","All",,,"False","T","EveryTick")) ->  | Z14: =IF(D14=0,NA(),RTD("cqg.rtd",,"StudyData", "Close("&$Z$2&") When Barix("&$Z$2&",reference:=StartOfSession)="&A14&"", "Bar", "", "Close","5","0","All",,,"False","T","EveryTick")) ->  | AB14: =IF(D14=0,NA(),RTD("cqg.rtd",,"StudyData", "Close("&$AB$2&") When Barix("&$AB$2&",reference:=StartOfSession)="&A14&"", "Bar", "", "Close","5","0","All",,,"False","T","EveryTick")) ->  | AD14: =IF(D14=0,NA(),RTD("cqg.rtd",,"StudyData", "Close("&$AD$2&") When Barix("&$AD$2&",reference:=StartOfSession)="&A14&"", "Bar", "", "Close","5","0","All",,,"False","T","EveryTick")) ->  | AF14: =IF(D14=0,NA(),RTD("cqg.rtd",,"StudyData", "Close("&$AF$2&") When Barix("&$AF$2&",reference:=StartOfSession)="&A14&"", "Bar", "", "Close","5","0","All",,,"False","T","EveryTick")) ->  | AH14: =IF(D14=0,NA(),RTD("cqg.rtd",,"StudyData", "Close("&$AH$2&") When Barix("&$AH$2&",reference:=StartOfSession)="&A14&"", "Bar", "", "Close","5","0","All",,,"False","T","EveryTick")) ->  | AJ14: =IF(D14=0,NA(),RTD("cqg.rtd",,"StudyData", "Close("&$AJ$2&") When Barix("&$AJ$2&",reference:=StartOfSession)="&A14&"", "Bar", "", "Close","5","0","All",,,"False","T","EveryTick")) ->  | AL14: =IF(D14=0,NA(),RTD("cqg.rtd",,"StudyData", "Close("&$AL$2&") When Barix("&$AL$2&",reference:=StartOfSession)="&A14&"", "Bar", "", "Close","5","0","All",,,"False","T","EveryTick")) ->  | AN14: =IF(D14=0,NA(),RTD("cqg.rtd",,"StudyData", "Close("&$AN$2&") When Barix("&$AN$2&",reference:=StartOfSession)="&A14&"", "Bar", "", "Close","5","0","All",,,"False","T","EveryTick")) ->  | AP14: =IF(D14=0,NA(),RTD("cqg.rtd",,"StudyData", "Close("&$AN$2&") When Barix("&$AN$2&",reference:=StartOfSession)="&A14&"", "Bar", "", "Close","5","0","All",,,"False","T","EveryTick")) ->  | AR14: =IF(D14=0,NA(),RTD("cqg.rtd",,"StudyData", "Close("&$AR$2&") When Barix("&$AR$2&",reference:=StartOfSession)="&A14&"", "Bar", "", "Close","5","0","All",,,"False","T","EveryTick")) ->  | AT14: =IF(D14=0,NA(),RTD("cqg.rtd",,"StudyData", "Close("&$AT$2&") When Barix("&$AT$2&",reference:=StartOfSession)="&A14&"", "Bar", "", "Close","5","0","All",,,"False","T","EveryTick")) ->  | AV14: =IF(D14=0,NA(),RTD("cqg.rtd",,"StudyData", "Close("&$AV$2&") When Barix("&$AV$2&",reference:=StartOfSession)="&A14&"", "Bar", "", "Close","5","0","All",,,"False","T","EveryTick")) ->  | AX14: =IF(D14=0,NA(),RTD("cqg.rtd",,"StudyData", "Close("&$AX$2&") When Barix("&$AX$2&",reference:=StartOfSession)="&A14&"", "Bar", "", "Close","5","0","All",,,"False","T","EveryTick")) ->  | AZ14: =IF(D14=0,NA(),RTD("cqg.rtd",,"StudyData", "Close("&$AZ$2&") When Barix("&$AZ$2&",reference:=StartOfSession)="&A14&"", "Bar", "", "Close","5","0","All",,,"False","T","EveryTick")) ->  | BB14: =IF(D14=0,NA(),RTD("cqg.rtd",,"StudyData", "Close("&$BB$2&") When Barix("&$BB$2&",reference:=StartOfSession)="&A14&"", "Bar", "", "Close","5","0","All",,,"False","T","EveryTick")) ->  | BD14: =IF(D14=0,NA(),RTD("cqg.rtd",,"StudyData", "Close("&$BD$2&") When Barix("&$BD$2&",reference:=StartOfSession)="&A14&"", "Bar", "", "Close","5","0","All",,,"False","T","EveryTick")) ->  | BF14: =IF(D14=0,NA(),RTD("cqg.rtd",,"StudyData", "Close("&$BF$2&") When Barix("&$BF$2&",reference:=StartOfSession)="&A14&"", "Bar", "", "Close","5","0","All",,,"False","T","EveryTick")) ->  | BH14: =IF(D14=0,NA(),RTD("cqg.rtd",,"StudyData", "Close("&$BH$2&") When Barix("&$BH$2&",reference:=StartOfSession)="&A14&"", "Bar", "", "Close","5","0","All",,,"False","T","EveryTick")) ->  | BJ14: =IF(D14=0,NA(),RTD("cqg.rtd",,"StudyData", "Close("&$BJ$2&") When Barix("&$BJ$2&",reference:=StartOfSession)="&A14&"", "Bar", "", "Close","5","0","All",,,"False","T","EveryTick")) ->  | BL14: =IF(D14=0,NA(),RTD("cqg.rtd",,"StudyData", "Close("&$BL$2&") When Barix("&$BL$2&",reference:=StartOfSession)="&A14&"", "Bar", "", "Close","5","0","All",,,"False","T","EveryTick")) ->  | BN14: =IF(D14=0,NA(),RTD("cqg.rtd",,"StudyData", "Close("&$BN$2&") When Barix("&$BN$2&",reference:=StartOfSession)="&A14&"", "Bar", "", "Close","5","0","All",,,"False","T","EveryTick")) ->  | BP14: =IF(D14=0,NA(),RTD("cqg.rtd",,"StudyData", "Close("&$BP$2&") When Barix("&$BP$2&",reference:=StartOfSession)="&A14&"", "Bar", "", "Close","5","0","All",,,"False","T","EveryTick")) ->  | BR14: =IF(D14=0,NA(),RTD("cqg.rtd",,"StudyData", "Close("&$BR$2&") When Barix("&$BR$2&",reference:=StartOfSession)="&A14&"", "Bar", "", "Close","5","0","All",,,"False","T","EveryTick")) ->  | BT14: =IF(D14=0,NA(),RTD("cqg.rtd",,"StudyData", "Close("&$BT$2&") When Barix("&$BT$2&",reference:=StartOfSession)="&A14&"", "Bar", "", "Close","5","0","All",,,"False","T","EveryTick")) ->  | BV14: =IF(D14=0,NA(),RTD("cqg.rtd",,"StudyData", "Close("&$BV$2&") When Barix("&$BV$2&",reference:=StartOfSession)="&A14&"", "Bar", "", "Close","5","0","All",,,"False","T","EveryTick")) ->  | BX14: =IF(D14=0,NA(),RTD("cqg.rtd",,"StudyData", "Close("&$BX$2&") When Barix("&$BX$2&",reference:=StartOfSession)="&A14&"", "Bar", "", "Close","5","0","All",,,"False","T","EveryTick")) ->  | BZ14: =IF(D14=0,NA(),RTD("cqg.rtd",,"StudyData", "Close("&$BZ$2&") When Barix("&$BZ$2&",reference:=StartOfSession)="&A14&"", "Bar", "", "Close","5","0","All",,,"False","T","EveryTick")) -> 
A15: 11 | B15: =IF(D15=0,NA(),RTD("cqg.rtd",,"StudyData", "Close("&$B$2&") When Barix("&$B$2&",reference:=StartOfSession)="&A15&"", "Bar", "", "Close","5","0","All",,,"False","T","EveryTick")) ->  | C15: 09:25:00 | D15: 0 | F15: =IF(D15=0,NA(),RTD("cqg.rtd",,"StudyData", "Close("&$F$2&") When Barix("&$F$2&",reference:=StartOfSession)="&A15&"", "Bar", "", "Close","5","0","All",,,"False","T","EveryTick")) ->  | H15: =IF(D15=0,NA(),RTD("cqg.rtd",,"StudyData", "Close("&$H$2&") When Barix("&$H$2&",reference:=StartOfSession)="&A15&"", "Bar", "", "Close","5","0","All",,,"False","T","EveryTick")) ->  | J15: =IF(D15=0,NA(),RTD("cqg.rtd",,"StudyData", "Close("&$J$2&") When Barix("&$J$2&",reference:=StartOfSession)="&A15&"", "Bar", "", "Close","5","0","All",,,"False","T","EveryTick")) ->  | L15: =IF(D15=0,NA(),RTD("cqg.rtd",,"StudyData", "Close("&$L$2&") When Barix("&$L$2&",reference:=StartOfSession)="&A15&"", "Bar", "", "Close","5","0","All",,,"False","T","EveryTick")) ->  | N15: =IF(D15=0,NA(),RTD("cqg.rtd",,"StudyData", "Close("&$N$2&") When Barix("&$N$2&",reference:=StartOfSession)="&A15&"", "Bar", "", "Close","5","0","All",,,"False","T","EveryTick")) ->  | P15: =IF(D15=0,NA(),RTD("cqg.rtd",,"StudyData", "Close("&$P$2&") When Barix("&$P$2&",reference:=StartOfSession)="&A15&"", "Bar", "", "Close","5","0","All",,,"False","T","EveryTick")) ->  | R15: =IF(D15=0,NA(),RTD("cqg.rtd",,"StudyData", "Close("&$R$2&") When Barix("&$R$2&",reference:=StartOfSession)="&A15&"", "Bar", "", "Close","5","0","All",,,"False","T","EveryTick")) ->  | T15: =IF(D15=0,NA(),RTD("cqg.rtd",,"StudyData", "Close("&$T$2&") When Barix("&$T$2&",reference:=StartOfSession)="&A15&"", "Bar", "", "Close","5","0","All",,,"False","T","EveryTick")) ->  | V15: =IF(D15=0,NA(),RTD("cqg.rtd",,"StudyData", "Close("&$V$2&") When Barix("&$V$2&",reference:=StartOfSession)="&A15&"", "Bar", "", "Close","5","0","All",,,"False","T","EveryTick")) ->  | X15: =IF(D15=0,NA(),RTD("cqg.rtd",,"StudyData", "Close("&$X$2&") When Barix("&$X$2&",reference:=StartOfSession)="&A15&"", "Bar", "", "Close","5","0","All",,,"False","T","EveryTick")) ->  | Z15: =IF(D15=0,NA(),RTD("cqg.rtd",,"StudyData", "Close("&$Z$2&") When Barix("&$Z$2&",reference:=StartOfSession)="&A15&"", "Bar", "", "Close","5","0","All",,,"False","T","EveryTick")) ->  | AB15: =IF(D15=0,NA(),RTD("cqg.rtd",,"StudyData", "Close("&$AB$2&") When Barix("&$AB$2&",reference:=StartOfSession)="&A15&"", "Bar", "", "Close","5","0","All",,,"False","T","EveryTick")) ->  | AD15: =IF(D15=0,NA(),RTD("cqg.rtd",,"StudyData", "Close("&$AD$2&") When Barix("&$AD$2&",reference:=StartOfSession)="&A15&"", "Bar", "", "Close","5","0","All",,,"False","T","EveryTick")) ->  | AF15: =IF(D15=0,NA(),RTD("cqg.rtd",,"StudyData", "Close("&$AF$2&") When Barix("&$AF$2&",reference:=StartOfSession)="&A15&"", "Bar", "", "Close","5","0","All",,,"False","T","EveryTick")) ->  | AH15: =IF(D15=0,NA(),RTD("cqg.rtd",,"StudyData", "Close("&$AH$2&") When Barix("&$AH$2&",reference:=StartOfSession)="&A15&"", "Bar", "", "Close","5","0","All",,,"False","T","EveryTick")) ->  | AJ15: =IF(D15=0,NA(),RTD("cqg.rtd",,"StudyData", "Close("&$AJ$2&") When Barix("&$AJ$2&",reference:=StartOfSession)="&A15&"", "Bar", "", "Close","5","0","All",,,"False","T","EveryTick")) ->  | AL15: =IF(D15=0,NA(),RTD("cqg.rtd",,"StudyData", "Close("&$AL$2&") When Barix("&$AL$2&",reference:=StartOfSession)="&A15&"", "Bar", "", "Close","5","0","All",,,"False","T","EveryTick")) ->  | AN15: =IF(D15=0,NA(),RTD("cqg.rtd",,"StudyData", "Close("&$AN$2&") When Barix("&$AN$2&",reference:=StartOfSession)="&A15&"", "Bar", "", "Close","5","0","All",,,"False","T","EveryTick")) ->  | AP15: =IF(D15=0,NA(),RTD("cqg.rtd",,"StudyData", "Close("&$AN$2&") When Barix("&$AN$2&",reference:=StartOfSession)="&A15&"", "Bar", "", "Close","5","0","All",,,"False","T","EveryTick")) ->  | AR15: =IF(D15=0,NA(),RTD("cqg.rtd",,"StudyData", "Close("&$AR$2&") When Barix("&$AR$2&",reference:=StartOfSession)="&A15&"", "Bar", "", "Close","5","0","All",,,"False","T","EveryTick")) ->  | AT15: =IF(D15=0,NA(),RTD("cqg.rtd",,"StudyData", "Close("&$AT$2&") When Barix("&$AT$2&",reference:=StartOfSession)="&A15&"", "Bar", "", "Close","5","0","All",,,"False","T","EveryTick")) ->  | AV15: =IF(D15=0,NA(),RTD("cqg.rtd",,"StudyData", "Close("&$AV$2&") When Barix("&$AV$2&",reference:=StartOfSession)="&A15&"", "Bar", "", "Close","5","0","All",,,"False","T","EveryTick")) ->  | AX15: =IF(D15=0,NA(),RTD("cqg.rtd",,"StudyData", "Close("&$AX$2&") When Barix("&$AX$2&",reference:=StartOfSession)="&A15&"", "Bar", "", "Close","5","0","All",,,"False","T","EveryTick")) ->  | AZ15: =IF(D15=0,NA(),RTD("cqg.rtd",,"StudyData", "Close("&$AZ$2&") When Barix("&$AZ$2&",reference:=StartOfSession)="&A15&"", "Bar", "", "Close","5","0","All",,,"False","T","EveryTick")) ->  | BB15: =IF(D15=0,NA(),RTD("cqg.rtd",,"StudyData", "Close("&$BB$2&") When Barix("&$BB$2&",reference:=StartOfSession)="&A15&"", "Bar", "", "Close","5","0","All",,,"False","T","EveryTick")) ->  | BD15: =IF(D15=0,NA(),RTD("cqg.rtd",,"StudyData", "Close("&$BD$2&") When Barix("&$BD$2&",reference:=StartOfSession)="&A15&"", "Bar", "", "Close","5","0","All",,,"False","T","EveryTick")) ->  | BF15: =IF(D15=0,NA(),RTD("cqg.rtd",,"StudyData", "Close("&$BF$2&") When Barix("&$BF$2&",reference:=StartOfSession)="&A15&"", "Bar", "", "Close","5","0","All",,,"False","T","EveryTick")) ->  | BH15: =IF(D15=0,NA(),RTD("cqg.rtd",,"StudyData", "Close("&$BH$2&") When Barix("&$BH$2&",reference:=StartOfSession)="&A15&"", "Bar", "", "Close","5","0","All",,,"False","T","EveryTick")) ->  | BJ15: =IF(D15=0,NA(),RTD("cqg.rtd",,"StudyData", "Close("&$BJ$2&") When Barix("&$BJ$2&",reference:=StartOfSession)="&A15&"", "Bar", "", "Close","5","0","All",,,"False","T","EveryTick")) ->  | BL15: =IF(D15=0,NA(),RTD("cqg.rtd",,"StudyData", "Close("&$BL$2&") When Barix("&$BL$2&",reference:=StartOfSession)="&A15&"", "Bar", "", "Close","5","0","All",,,"False","T","EveryTick")) ->  | BN15: =IF(D15=0,NA(),RTD("cqg.rtd",,"StudyData", "Close("&$BN$2&") When Barix("&$BN$2&",reference:=StartOfSession)="&A15&"", "Bar", "", "Close","5","0","All",,,"False","T","EveryTick")) ->  | BP15: =IF(D15=0,NA(),RTD("cqg.rtd",,"StudyData", "Close("&$BP$2&") When Barix("&$BP$2&",reference:=StartOfSession)="&A15&"", "Bar", "", "Close","5","0","All",,,"False","T","EveryTick")) ->  | BR15: =IF(D15=0,NA(),RTD("cqg.rtd",,"StudyData", "Close("&$BR$2&") When Barix("&$BR$2&",reference:=StartOfSession)="&A15&"", "Bar", "", "Close","5","0","All",,,"False","T","EveryTick")) ->  | BT15: =IF(D15=0,NA(),RTD("cqg.rtd",,"StudyData", "Close("&$BT$2&") When Barix("&$BT$2&",reference:=StartOfSession)="&A15&"", "Bar", "", "Close","5","0","All",,,"False","T","EveryTick")) ->  | BV15: =IF(D15=0,NA(),RTD("cqg.rtd",,"StudyData", "Close("&$BV$2&") When Barix("&$BV$2&",reference:=StartOfSession)="&A15&"", "Bar", "", "Close","5","0","All",,,"False","T","EveryTick")) ->  | BX15: =IF(D15=0,NA(),RTD("cqg.rtd",,"StudyData", "Close("&$BX$2&") When Barix("&$BX$2&",reference:=StartOfSession)="&A15&"", "Bar", "", "Close","5","0","All",,,"False","T","EveryTick")) ->  | BZ15: =IF(D15=0,NA(),RTD("cqg.rtd",,"StudyData", "Close("&$BZ$2&") When Barix("&$BZ$2&",reference:=StartOfSession)="&A15&"", "Bar", "", "Close","5","0","All",,,"False","T","EveryTick")) -> 
A16: 12 | B16: =IF(D16=0,NA(),RTD("cqg.rtd",,"StudyData", "Close("&$B$2&") When Barix("&$B$2&",reference:=StartOfSession)="&A16&"", "Bar", "", "Close","5","0","All",,,"False","T","EveryTick")) ->  | C16: 09:30:00 | D16: 0 | F16: =IF(D16=0,NA(),RTD("cqg.rtd",,"StudyData", "Close("&$F$2&") When Barix("&$F$2&",reference:=StartOfSession)="&A16&"", "Bar", "", "Close","5","0","All",,,"False","T","EveryTick")) ->  | H16: =IF(D16=0,NA(),RTD("cqg.rtd",,"StudyData", "Close("&$H$2&") When Barix("&$H$2&",reference:=StartOfSession)="&A16&"", "Bar", "", "Close","5","0","All",,,"False","T","EveryTick")) ->  | J16: =IF(D16=0,NA(),RTD("cqg.rtd",,"StudyData", "Close("&$J$2&") When Barix("&$J$2&",reference:=StartOfSession)="&A16&"", "Bar", "", "Close","5","0","All",,,"False","T","EveryTick")) ->  | L16: =IF(D16=0,NA(),RTD("cqg.rtd",,"StudyData", "Close("&$L$2&") When Barix("&$L$2&",reference:=StartOfSession)="&A16&"", "Bar", "", "Close","5","0","All",,,"False","T","EveryTick")) ->  | N16: =IF(D16=0,NA(),RTD("cqg.rtd",,"StudyData", "Close("&$N$2&") When Barix("&$N$2&",reference:=StartOfSession)="&A16&"", "Bar", "", "Close","5","0","All",,,"False","T","EveryTick")) ->  | P16: =IF(D16=0,NA(),RTD("cqg.rtd",,"StudyData", "Close("&$P$2&") When Barix("&$P$2&",reference:=StartOfSession)="&A16&"", "Bar", "", "Close","5","0","All",,,"False","T","EveryTick")) ->  | R16: =IF(D16=0,NA(),RTD("cqg.rtd",,"StudyData", "Close("&$R$2&") When Barix("&$R$2&",reference:=StartOfSession)="&A16&"", "Bar", "", "Close","5","0","All",,,"False","T","EveryTick")) ->  | T16: =IF(D16=0,NA(),RTD("cqg.rtd",,"StudyData", "Close("&$T$2&") When Barix("&$T$2&",reference:=StartOfSession)="&A16&"", "Bar", "", "Close","5","0","All",,,"False","T","EveryTick")) ->  | V16: =IF(D16=0,NA(),RTD("cqg.rtd",,"StudyData", "Close("&$V$2&") When Barix("&$V$2&",reference:=StartOfSession)="&A16&"", "Bar", "", "Close","5","0","All",,,"False","T","EveryTick")) ->  | X16: =IF(D16=0,NA(),RTD("cqg.rtd",,"StudyData", "Close("&$X$2&") When Barix("&$X$2&",reference:=StartOfSession)="&A16&"", "Bar", "", "Close","5","0","All",,,"False","T","EveryTick")) ->  | Z16: =IF(D16=0,NA(),RTD("cqg.rtd",,"StudyData", "Close("&$Z$2&") When Barix("&$Z$2&",reference:=StartOfSession)="&A16&"", "Bar", "", "Close","5","0","All",,,"False","T","EveryTick")) ->  | AB16: =IF(D16=0,NA(),RTD("cqg.rtd",,"StudyData", "Close("&$AB$2&") When Barix("&$AB$2&",reference:=StartOfSession)="&A16&"", "Bar", "", "Close","5","0","All",,,"False","T","EveryTick")) ->  | AD16: =IF(D16=0,NA(),RTD("cqg.rtd",,"StudyData", "Close("&$AD$2&") When Barix("&$AD$2&",reference:=StartOfSession)="&A16&"", "Bar", "", "Close","5","0","All",,,"False","T","EveryTick")) ->  | AF16: =IF(D16=0,NA(),RTD("cqg.rtd",,"StudyData", "Close("&$AF$2&") When Barix("&$AF$2&",reference:=StartOfSession)="&A16&"", "Bar", "", "Close","5","0","All",,,"False","T","EveryTick")) ->  | AH16: =IF(D16=0,NA(),RTD("cqg.rtd",,"StudyData", "Close("&$AH$2&") When Barix("&$AH$2&",reference:=StartOfSession)="&A16&"", "Bar", "", "Close","5","0","All",,,"False","T","EveryTick")) ->  | AJ16: =IF(D16=0,NA(),RTD("cqg.rtd",,"StudyData", "Close("&$AJ$2&") When Barix("&$AJ$2&",reference:=StartOfSession)="&A16&"", "Bar", "", "Close","5","0","All",,,"False","T","EveryTick")) ->  | AL16: =IF(D16=0,NA(),RTD("cqg.rtd",,"StudyData", "Close("&$AL$2&") When Barix("&$AL$2&",reference:=StartOfSession)="&A16&"", "Bar", "", "Close","5","0","All",,,"False","T","EveryTick")) ->  | AN16: =IF(D16=0,NA(),RTD("cqg.rtd",,"StudyData", "Close("&$AN$2&") When Barix("&$AN$2&",reference:=StartOfSession)="&A16&"", "Bar", "", "Close","5","0","All",,,"False","T","EveryTick")) ->  | AP16: =IF(D16=0,NA(),RTD("cqg.rtd",,"StudyData", "Close("&$AN$2&") When Barix("&$AN$2&",reference:=StartOfSession)="&A16&"", "Bar", "", "Close","5","0","All",,,"False","T","EveryTick")) ->  | AR16: =IF(D16=0,NA(),RTD("cqg.rtd",,"StudyData", "Close("&$AR$2&") When Barix("&$AR$2&",reference:=StartOfSession)="&A16&"", "Bar", "", "Close","5","0","All",,,"False","T","EveryTick")) ->  | AT16: =IF(D16=0,NA(),RTD("cqg.rtd",,"StudyData", "Close("&$AT$2&") When Barix("&$AT$2&",reference:=StartOfSession)="&A16&"", "Bar", "", "Close","5","0","All",,,"False","T","EveryTick")) ->  | AV16: =IF(D16=0,NA(),RTD("cqg.rtd",,"StudyData", "Close("&$AV$2&") When Barix("&$AV$2&",reference:=StartOfSession)="&A16&"", "Bar", "", "Close","5","0","All",,,"False","T","EveryTick")) ->  | AX16: =IF(D16=0,NA(),RTD("cqg.rtd",,"StudyData", "Close("&$AX$2&") When Barix("&$AX$2&",reference:=StartOfSession)="&A16&"", "Bar", "", "Close","5","0","All",,,"False","T","EveryTick")) ->  | AZ16: =IF(D16=0,NA(),RTD("cqg.rtd",,"StudyData", "Close("&$AZ$2&") When Barix("&$AZ$2&",reference:=StartOfSession)="&A16&"", "Bar", "", "Close","5","0","All",,,"False","T","EveryTick")) ->  | BB16: =IF(D16=0,NA(),RTD("cqg.rtd",,"StudyData", "Close("&$BB$2&") When Barix("&$BB$2&",reference:=StartOfSession)="&A16&"", "Bar", "", "Close","5","0","All",,,"False","T","EveryTick")) ->  | BD16: =IF(D16=0,NA(),RTD("cqg.rtd",,"StudyData", "Close("&$BD$2&") When Barix("&$BD$2&",reference:=StartOfSession)="&A16&"", "Bar", "", "Close","5","0","All",,,"False","T","EveryTick")) ->  | BF16: =IF(D16=0,NA(),RTD("cqg.rtd",,"StudyData", "Close("&$BF$2&") When Barix("&$BF$2&",reference:=StartOfSession)="&A16&"", "Bar", "", "Close","5","0","All",,,"False","T","EveryTick")) ->  | BH16: =IF(D16=0,NA(),RTD("cqg.rtd",,"StudyData", "Close("&$BH$2&") When Barix("&$BH$2&",reference:=StartOfSession)="&A16&"", "Bar", "", "Close","5","0","All",,,"False","T","EveryTick")) ->  | BJ16: =IF(D16=0,NA(),RTD("cqg.rtd",,"StudyData", "Close("&$BJ$2&") When Barix("&$BJ$2&",reference:=StartOfSession)="&A16&"", "Bar", "", "Close","5","0","All",,,"False","T","EveryTick")) ->  | BL16: =IF(D16=0,NA(),RTD("cqg.rtd",,"StudyData", "Close("&$BL$2&") When Barix("&$BL$2&",reference:=StartOfSession)="&A16&"", "Bar", "", "Close","5","0","All",,,"False","T","EveryTick")) ->  | BN16: =IF(D16=0,NA(),RTD("cqg.rtd",,"StudyData", "Close("&$BN$2&") When Barix("&$BN$2&",reference:=StartOfSession)="&A16&"", "Bar", "", "Close","5","0","All",,,"False","T","EveryTick")) ->  | BP16: =IF(D16=0,NA(),RTD("cqg.rtd",,"StudyData", "Close("&$BP$2&") When Barix("&$BP$2&",reference:=StartOfSession)="&A16&"", "Bar", "", "Close","5","0","All",,,"False","T","EveryTick")) ->  | BR16: =IF(D16=0,NA(),RTD("cqg.rtd",,"StudyData", "Close("&$BR$2&") When Barix("&$BR$2&",reference:=StartOfSession)="&A16&"", "Bar", "", "Close","5","0","All",,,"False","T","EveryTick")) ->  | BT16: =IF(D16=0,NA(),RTD("cqg.rtd",,"StudyData", "Close("&$BT$2&") When Barix("&$BT$2&",reference:=StartOfSession)="&A16&"", "Bar", "", "Close","5","0","All",,,"False","T","EveryTick")) ->  | BV16: =IF(D16=0,NA(),RTD("cqg.rtd",,"StudyData", "Close("&$BV$2&") When Barix("&$BV$2&",reference:=StartOfSession)="&A16&"", "Bar", "", "Close","5","0","All",,,"False","T","EveryTick")) ->  | BX16: =IF(D16=0,NA(),RTD("cqg.rtd",,"StudyData", "Close("&$BX$2&") When Barix("&$BX$2&",reference:=StartOfSession)="&A16&"", "Bar", "", "Close","5","0","All",,,"False","T","EveryTick")) ->  | BZ16: =IF(D16=0,NA(),RTD("cqg.rtd",,"StudyData", "Close("&$BZ$2&") When Barix("&$BZ$2&",reference:=StartOfSession)="&A16&"", "Bar", "", "Close","5","0","All",,,"False","T","EveryTick")) -> 
A17: 13 | B17: =IF(D17=0,NA(),RTD("cqg.rtd",,"StudyData", "Close("&$B$2&") When Barix("&$B$2&",reference:=StartOfSession)="&A17&"", "Bar", "", "Close","5","0","All",,,"False","T","EveryTick")) ->  | C17: 09:35:00 | D17: 0 | F17: =IF(D17=0,NA(),RTD("cqg.rtd",,"StudyData", "Close("&$F$2&") When Barix("&$F$2&",reference:=StartOfSession)="&A17&"", "Bar", "", "Close","5","0","All",,,"False","T","EveryTick")) ->  | H17: =IF(D17=0,NA(),RTD("cqg.rtd",,"StudyData", "Close("&$H$2&") When Barix("&$H$2&",reference:=StartOfSession)="&A17&"", "Bar", "", "Close","5","0","All",,,"False","T","EveryTick")) ->  | J17: =IF(D17=0,NA(),RTD("cqg.rtd",,"StudyData", "Close("&$J$2&") When Barix("&$J$2&",reference:=StartOfSession)="&A17&"", "Bar", "", "Close","5","0","All",,,"False","T","EveryTick")) ->  | L17: =IF(D17=0,NA(),RTD("cqg.rtd",,"StudyData", "Close("&$L$2&") When Barix("&$L$2&",reference:=StartOfSession)="&A17&"", "Bar", "", "Close","5","0","All",,,"False","T","EveryTick")) ->  | N17: =IF(D17=0,NA(),RTD("cqg.rtd",,"StudyData", "Close("&$N$2&") When Barix("&$N$2&",reference:=StartOfSession)="&A17&"", "Bar", "", "Close","5","0","All",,,"False","T","EveryTick")) ->  | P17: =IF(D17=0,NA(),RTD("cqg.rtd",,"StudyData", "Close("&$P$2&") When Barix("&$P$2&",reference:=StartOfSession)="&A17&"", "Bar", "", "Close","5","0","All",,,"False","T","EveryTick")) ->  | R17: =IF(D17=0,NA(),RTD("cqg.rtd",,"StudyData", "Close("&$R$2&") When Barix("&$R$2&",reference:=StartOfSession)="&A17&"", "Bar", "", "Close","5","0","All",,,"False","T","EveryTick")) ->  | T17: =IF(D17=0,NA(),RTD("cqg.rtd",,"StudyData", "Close("&$T$2&") When Barix("&$T$2&",reference:=StartOfSession)="&A17&"", "Bar", "", "Close","5","0","All",,,"False","T","EveryTick")) ->  | V17: =IF(D17=0,NA(),RTD("cqg.rtd",,"StudyData", "Close("&$V$2&") When Barix("&$V$2&",reference:=StartOfSession)="&A17&"", "Bar", "", "Close","5","0","All",,,"False","T","EveryTick")) ->  | X17: =IF(D17=0,NA(),RTD("cqg.rtd",,"StudyData", "Close("&$X$2&") When Barix("&$X$2&",reference:=StartOfSession)="&A17&"", "Bar", "", "Close","5","0","All",,,"False","T","EveryTick")) ->  | Z17: =IF(D17=0,NA(),RTD("cqg.rtd",,"StudyData", "Close("&$Z$2&") When Barix("&$Z$2&",reference:=StartOfSession)="&A17&"", "Bar", "", "Close","5","0","All",,,"False","T","EveryTick")) ->  | AB17: =IF(D17=0,NA(),RTD("cqg.rtd",,"StudyData", "Close("&$AB$2&") When Barix("&$AB$2&",reference:=StartOfSession)="&A17&"", "Bar", "", "Close","5","0","All",,,"False","T","EveryTick")) ->  | AD17: =IF(D17=0,NA(),RTD("cqg.rtd",,"StudyData", "Close("&$AD$2&") When Barix("&$AD$2&",reference:=StartOfSession)="&A17&"", "Bar", "", "Close","5","0","All",,,"False","T","EveryTick")) ->  | AF17: =IF(D17=0,NA(),RTD("cqg.rtd",,"StudyData", "Close("&$AF$2&") When Barix("&$AF$2&",reference:=StartOfSession)="&A17&"", "Bar", "", "Close","5","0","All",,,"False","T","EveryTick")) ->  | AH17: =IF(D17=0,NA(),RTD("cqg.rtd",,"StudyData", "Close("&$AH$2&") When Barix("&$AH$2&",reference:=StartOfSession)="&A17&"", "Bar", "", "Close","5","0","All",,,"False","T","EveryTick")) ->  | AJ17: =IF(D17=0,NA(),RTD("cqg.rtd",,"StudyData", "Close("&$AJ$2&") When Barix("&$AJ$2&",reference:=StartOfSession)="&A17&"", "Bar", "", "Close","5","0","All",,,"False","T","EveryTick")) ->  | AL17: =IF(D17=0,NA(),RTD("cqg.rtd",,"StudyData", "Close("&$AL$2&") When Barix("&$AL$2&",reference:=StartOfSession)="&A17&"", "Bar", "", "Close","5","0","All",,,"False","T","EveryTick")) ->  | AN17: =IF(D17=0,NA(),RTD("cqg.rtd",,"StudyData", "Close("&$AN$2&") When Barix("&$AN$2&",reference:=StartOfSession)="&A17&"", "Bar", "", "Close","5","0","All",,,"False","T","EveryTick")) ->  | AP17: =IF(D17=0,NA(),RTD("cqg.rtd",,"StudyData", "Close("&$AN$2&") When Barix("&$AN$2&",reference:=StartOfSession)="&A17&"", "Bar", "", "Close","5","0","All",,,"False","T","EveryTick")) ->  | AR17: =IF(D17=0,NA(),RTD("cqg.rtd",,"StudyData", "Close("&$AR$2&") When Barix("&$AR$2&",reference:=StartOfSession)="&A17&"", "Bar", "", "Close","5","0","All",,,"False","T","EveryTick")) ->  | AT17: =IF(D17=0,NA(),RTD("cqg.rtd",,"StudyData", "Close("&$AT$2&") When Barix("&$AT$2&",reference:=StartOfSession)="&A17&"", "Bar", "", "Close","5","0","All",,,"False","T","EveryTick")) ->  | AV17: =IF(D17=0,NA(),RTD("cqg.rtd",,"StudyData", "Close("&$AV$2&") When Barix("&$AV$2&",reference:=StartOfSession)="&A17&"", "Bar", "", "Close","5","0","All",,,"False","T","EveryTick")) ->  | AX17: =IF(D17=0,NA(),RTD("cqg.rtd",,"StudyData", "Close("&$AX$2&") When Barix("&$AX$2&",reference:=StartOfSession)="&A17&"", "Bar", "", "Close","5","0","All",,,"False","T","EveryTick")) ->  | AZ17: =IF(D17=0,NA(),RTD("cqg.rtd",,"StudyData", "Close("&$AZ$2&") When Barix("&$AZ$2&",reference:=StartOfSession)="&A17&"", "Bar", "", "Close","5","0","All",,,"False","T","EveryTick")) ->  | BB17: =IF(D17=0,NA(),RTD("cqg.rtd",,"StudyData", "Close("&$BB$2&") When Barix("&$BB$2&",reference:=StartOfSession)="&A17&"", "Bar", "", "Close","5","0","All",,,"False","T","EveryTick")) ->  | BD17: =IF(D17=0,NA(),RTD("cqg.rtd",,"StudyData", "Close("&$BD$2&") When Barix("&$BD$2&",reference:=StartOfSession)="&A17&"", "Bar", "", "Close","5","0","All",,,"False","T","EveryTick")) ->  | BF17: =IF(D17=0,NA(),RTD("cqg.rtd",,"StudyData", "Close("&$BF$2&") When Barix("&$BF$2&",reference:=StartOfSession)="&A17&"", "Bar", "", "Close","5","0","All",,,"False","T","EveryTick")) ->  | BH17: =IF(D17=0,NA(),RTD("cqg.rtd",,"StudyData", "Close("&$BH$2&") When Barix("&$BH$2&",reference:=StartOfSession)="&A17&"", "Bar", "", "Close","5","0","All",,,"False","T","EveryTick")) ->  | BJ17: =IF(D17=0,NA(),RTD("cqg.rtd",,"StudyData", "Close("&$BJ$2&") When Barix("&$BJ$2&",reference:=StartOfSession)="&A17&"", "Bar", "", "Close","5","0","All",,,"False","T","EveryTick")) ->  | BL17: =IF(D17=0,NA(),RTD("cqg.rtd",,"StudyData", "Close("&$BL$2&") When Barix("&$BL$2&",reference:=StartOfSession)="&A17&"", "Bar", "", "Close","5","0","All",,,"False","T","EveryTick")) ->  | BN17: =IF(D17=0,NA(),RTD("cqg.rtd",,"StudyData", "Close("&$BN$2&") When Barix("&$BN$2&",reference:=StartOfSession)="&A17&"", "Bar", "", "Close","5","0","All",,,"False","T","EveryTick")) ->  | BP17: =IF(D17=0,NA(),RTD("cqg.rtd",,"StudyData", "Close("&$BP$2&") When Barix("&$BP$2&",reference:=StartOfSession)="&A17&"", "Bar", "", "Close","5","0","All",,,"False","T","EveryTick")) ->  | BR17: =IF(D17=0,NA(),RTD("cqg.rtd",,"StudyData", "Close("&$BR$2&") When Barix("&$BR$2&",reference:=StartOfSession)="&A17&"", "Bar", "", "Close","5","0","All",,,"False","T","EveryTick")) ->  | BT17: =IF(D17=0,NA(),RTD("cqg.rtd",,"StudyData", "Close("&$BT$2&") When Barix("&$BT$2&",reference:=StartOfSession)="&A17&"", "Bar", "", "Close","5","0","All",,,"False","T","EveryTick")) ->  | BV17: =IF(D17=0,NA(),RTD("cqg.rtd",,"StudyData", "Close("&$BV$2&") When Barix("&$BV$2&",reference:=StartOfSession)="&A17&"", "Bar", "", "Close","5","0","All",,,"False","T","EveryTick")) ->  | BX17: =IF(D17=0,NA(),RTD("cqg.rtd",,"StudyData", "Close("&$BX$2&") When Barix("&$BX$2&",reference:=StartOfSession)="&A17&"", "Bar", "", "Close","5","0","All",,,"False","T","EveryTick")) ->  | BZ17: =IF(D17=0,NA(),RTD("cqg.rtd",,"StudyData", "Close("&$BZ$2&") When Barix("&$BZ$2&",reference:=StartOfSession)="&A17&"", "Bar", "", "Close","5","0","All",,,"False","T","EveryTick")) -> 
A18: 14 | B18: =IF(D18=0,NA(),RTD("cqg.rtd",,"StudyData", "Close("&$B$2&") When Barix("&$B$2&",reference:=StartOfSession)="&A18&"", "Bar", "", "Close","5","0","All",,,"False","T","EveryTick")) ->  | C18: 09:40:00 | D18: 0 | F18: =IF(D18=0,NA(),RTD("cqg.rtd",,"StudyData", "Close("&$F$2&") When Barix("&$F$2&",reference:=StartOfSession)="&A18&"", "Bar", "", "Close","5","0","All",,,"False","T","EveryTick")) ->  | H18: =IF(D18=0,NA(),RTD("cqg.rtd",,"StudyData", "Close("&$H$2&") When Barix("&$H$2&",reference:=StartOfSession)="&A18&"", "Bar", "", "Close","5","0","All",,,"False","T","EveryTick")) ->  | J18: =IF(D18=0,NA(),RTD("cqg.rtd",,"StudyData", "Close("&$J$2&") When Barix("&$J$2&",reference:=StartOfSession)="&A18&"", "Bar", "", "Close","5","0","All",,,"False","T","EveryTick")) ->  | L18: =IF(D18=0,NA(),RTD("cqg.rtd",,"StudyData", "Close("&$L$2&") When Barix("&$L$2&",reference:=StartOfSession)="&A18&"", "Bar", "", "Close","5","0","All",,,"False","T","EveryTick")) ->  | N18: =IF(D18=0,NA(),RTD("cqg.rtd",,"StudyData", "Close("&$N$2&") When Barix("&$N$2&",reference:=StartOfSession)="&A18&"", "Bar", "", "Close","5","0","All",,,"False","T","EveryTick")) ->  | P18: =IF(D18=0,NA(),RTD("cqg.rtd",,"StudyData", "Close("&$P$2&") When Barix("&$P$2&",reference:=StartOfSession)="&A18&"", "Bar", "", "Close","5","0","All",,,"False","T","EveryTick")) ->  | R18: =IF(D18=0,NA(),RTD("cqg.rtd",,"StudyData", "Close("&$R$2&") When Barix("&$R$2&",reference:=StartOfSession)="&A18&"", "Bar", "", "Close","5","0","All",,,"False","T","EveryTick")) ->  | T18: =IF(D18=0,NA(),RTD("cqg.rtd",,"StudyData", "Close("&$T$2&") When Barix("&$T$2&",reference:=StartOfSession)="&A18&"", "Bar", "", "Close","5","0","All",,,"False","T","EveryTick")) ->  | V18: =IF(D18=0,NA(),RTD("cqg.rtd",,"StudyData", "Close("&$V$2&") When Barix("&$V$2&",reference:=StartOfSession)="&A18&"", "Bar", "", "Close","5","0","All",,,"False","T","EveryTick")) ->  | X18: =IF(D18=0,NA(),RTD("cqg.rtd",,"StudyData", "Close("&$X$2&") When Barix("&$X$2&",reference:=StartOfSession)="&A18&"", "Bar", "", "Close","5","0","All",,,"False","T","EveryTick")) ->  | Z18: =IF(D18=0,NA(),RTD("cqg.rtd",,"StudyData", "Close("&$Z$2&") When Barix("&$Z$2&",reference:=StartOfSession)="&A18&"", "Bar", "", "Close","5","0","All",,,"False","T","EveryTick")) ->  | AB18: =IF(D18=0,NA(),RTD("cqg.rtd",,"StudyData", "Close("&$AB$2&") When Barix("&$AB$2&",reference:=StartOfSession)="&A18&"", "Bar", "", "Close","5","0","All",,,"False","T","EveryTick")) ->  | AD18: =IF(D18=0,NA(),RTD("cqg.rtd",,"StudyData", "Close("&$AD$2&") When Barix("&$AD$2&",reference:=StartOfSession)="&A18&"", "Bar", "", "Close","5","0","All",,,"False","T","EveryTick")) ->  | AF18: =IF(D18=0,NA(),RTD("cqg.rtd",,"StudyData", "Close("&$AF$2&") When Barix("&$AF$2&",reference:=StartOfSession)="&A18&"", "Bar", "", "Close","5","0","All",,,"False","T","EveryTick")) ->  | AH18: =IF(D18=0,NA(),RTD("cqg.rtd",,"StudyData", "Close("&$AH$2&") When Barix("&$AH$2&",reference:=StartOfSession)="&A18&"", "Bar", "", "Close","5","0","All",,,"False","T","EveryTick")) ->  | AJ18: =IF(D18=0,NA(),RTD("cqg.rtd",,"StudyData", "Close("&$AJ$2&") When Barix("&$AJ$2&",reference:=StartOfSession)="&A18&"", "Bar", "", "Close","5","0","All",,,"False","T","EveryTick")) ->  | AL18: =IF(D18=0,NA(),RTD("cqg.rtd",,"StudyData", "Close("&$AL$2&") When Barix("&$AL$2&",reference:=StartOfSession)="&A18&"", "Bar", "", "Close","5","0","All",,,"False","T","EveryTick")) ->  | AN18: =IF(D18=0,NA(),RTD("cqg.rtd",,"StudyData", "Close("&$AN$2&") When Barix("&$AN$2&",reference:=StartOfSession)="&A18&"", "Bar", "", "Close","5","0","All",,,"False","T","EveryTick")) ->  | AP18: =IF(D18=0,NA(),RTD("cqg.rtd",,"StudyData", "Close("&$AN$2&") When Barix("&$AN$2&",reference:=StartOfSession)="&A18&"", "Bar", "", "Close","5","0","All",,,"False","T","EveryTick")) ->  | AR18: =IF(D18=0,NA(),RTD("cqg.rtd",,"StudyData", "Close("&$AR$2&") When Barix("&$AR$2&",reference:=StartOfSession)="&A18&"", "Bar", "", "Close","5","0","All",,,"False","T","EveryTick")) ->  | AT18: =IF(D18=0,NA(),RTD("cqg.rtd",,"StudyData", "Close("&$AT$2&") When Barix("&$AT$2&",reference:=StartOfSession)="&A18&"", "Bar", "", "Close","5","0","All",,,"False","T","EveryTick")) ->  | AV18: =IF(D18=0,NA(),RTD("cqg.rtd",,"StudyData", "Close("&$AV$2&") When Barix("&$AV$2&",reference:=StartOfSession)="&A18&"", "Bar", "", "Close","5","0","All",,,"False","T","EveryTick")) ->  | AX18: =IF(D18=0,NA(),RTD("cqg.rtd",,"StudyData", "Close("&$AX$2&") When Barix("&$AX$2&",reference:=StartOfSession)="&A18&"", "Bar", "", "Close","5","0","All",,,"False","T","EveryTick")) ->  | AZ18: =IF(D18=0,NA(),RTD("cqg.rtd",,"StudyData", "Close("&$AZ$2&") When Barix("&$AZ$2&",reference:=StartOfSession)="&A18&"", "Bar", "", "Close","5","0","All",,,"False","T","EveryTick")) ->  | BB18: =IF(D18=0,NA(),RTD("cqg.rtd",,"StudyData", "Close("&$BB$2&") When Barix("&$BB$2&",reference:=StartOfSession)="&A18&"", "Bar", "", "Close","5","0","All",,,"False","T","EveryTick")) ->  | BD18: =IF(D18=0,NA(),RTD("cqg.rtd",,"StudyData", "Close("&$BD$2&") When Barix("&$BD$2&",reference:=StartOfSession)="&A18&"", "Bar", "", "Close","5","0","All",,,"False","T","EveryTick")) ->  | BF18: =IF(D18=0,NA(),RTD("cqg.rtd",,"StudyData", "Close("&$BF$2&") When Barix("&$BF$2&",reference:=StartOfSession)="&A18&"", "Bar", "", "Close","5","0","All",,,"False","T","EveryTick")) ->  | BH18: =IF(D18=0,NA(),RTD("cqg.rtd",,"StudyData", "Close("&$BH$2&") When Barix("&$BH$2&",reference:=StartOfSession)="&A18&"", "Bar", "", "Close","5","0","All",,,"False","T","EveryTick")) ->  | BJ18: =IF(D18=0,NA(),RTD("cqg.rtd",,"StudyData", "Close("&$BJ$2&") When Barix("&$BJ$2&",reference:=StartOfSession)="&A18&"", "Bar", "", "Close","5","0","All",,,"False","T","EveryTick")) ->  | BL18: =IF(D18=0,NA(),RTD("cqg.rtd",,"StudyData", "Close("&$BL$2&") When Barix("&$BL$2&",reference:=StartOfSession)="&A18&"", "Bar", "", "Close","5","0","All",,,"False","T","EveryTick")) ->  | BN18: =IF(D18=0,NA(),RTD("cqg.rtd",,"StudyData", "Close("&$BN$2&") When Barix("&$BN$2&",reference:=StartOfSession)="&A18&"", "Bar", "", "Close","5","0","All",,,"False","T","EveryTick")) ->  | BP18: =IF(D18=0,NA(),RTD("cqg.rtd",,"StudyData", "Close("&$BP$2&") When Barix("&$BP$2&",reference:=StartOfSession)="&A18&"", "Bar", "", "Close","5","0","All",,,"False","T","EveryTick")) ->  | BR18: =IF(D18=0,NA(),RTD("cqg.rtd",,"StudyData", "Close("&$BR$2&") When Barix("&$BR$2&",reference:=StartOfSession)="&A18&"", "Bar", "", "Close","5","0","All",,,"False","T","EveryTick")) ->  | BT18: =IF(D18=0,NA(),RTD("cqg.rtd",,"StudyData", "Close("&$BT$2&") When Barix("&$BT$2&",reference:=StartOfSession)="&A18&"", "Bar", "", "Close","5","0","All",,,"False","T","EveryTick")) ->  | BV18: =IF(D18=0,NA(),RTD("cqg.rtd",,"StudyData", "Close("&$BV$2&") When Barix("&$BV$2&",reference:=StartOfSession)="&A18&"", "Bar", "", "Close","5","0","All",,,"False","T","EveryTick")) ->  | BX18: =IF(D18=0,NA(),RTD("cqg.rtd",,"StudyData", "Close("&$BX$2&") When Barix("&$BX$2&",reference:=StartOfSession)="&A18&"", "Bar", "", "Close","5","0","All",,,"False","T","EveryTick")) ->  | BZ18: =IF(D18=0,NA(),RTD("cqg.rtd",,"StudyData", "Close("&$BZ$2&") When Barix("&$BZ$2&",reference:=StartOfSession)="&A18&"", "Bar", "", "Close","5","0","All",,,"False","T","EveryTick")) -> 
A19: 15 | B19: =IF(D19=0,NA(),RTD("cqg.rtd",,"StudyData", "Close("&$B$2&") When Barix("&$B$2&",reference:=StartOfSession)="&A19&"", "Bar", "", "Close","5","0","All",,,"False","T","EveryTick")) ->  | C19: 09:45:00 | D19: 0 | F19: =IF(D19=0,NA(),RTD("cqg.rtd",,"StudyData", "Close("&$F$2&") When Barix("&$F$2&",reference:=StartOfSession)="&A19&"", "Bar", "", "Close","5","0","All",,,"False","T","EveryTick")) ->  | H19: =IF(D19=0,NA(),RTD("cqg.rtd",,"StudyData", "Close("&$H$2&") When Barix("&$H$2&",reference:=StartOfSession)="&A19&"", "Bar", "", "Close","5","0","All",,,"False","T","EveryTick")) ->  | J19: =IF(D19=0,NA(),RTD("cqg.rtd",,"StudyData", "Close("&$J$2&") When Barix("&$J$2&",reference:=StartOfSession)="&A19&"", "Bar", "", "Close","5","0","All",,,"False","T","EveryTick")) ->  | L19: =IF(D19=0,NA(),RTD("cqg.rtd",,"StudyData", "Close("&$L$2&") When Barix("&$L$2&",reference:=StartOfSession)="&A19&"", "Bar", "", "Close","5","0","All",,,"False","T","EveryTick")) ->  | N19: =IF(D19=0,NA(),RTD("cqg.rtd",,"StudyData", "Close("&$N$2&") When Barix("&$N$2&",reference:=StartOfSession)="&A19&"", "Bar", "", "Close","5","0","All",,,"False","T","EveryTick")) ->  | P19: =IF(D19=0,NA(),RTD("cqg.rtd",,"StudyData", "Close("&$P$2&") When Barix("&$P$2&",reference:=StartOfSession)="&A19&"", "Bar", "", "Close","5","0","All",,,"False","T","EveryTick")) ->  | R19: =IF(D19=0,NA(),RTD("cqg.rtd",,"StudyData", "Close("&$R$2&") When Barix("&$R$2&",reference:=StartOfSession)="&A19&"", "Bar", "", "Close","5","0","All",,,"False","T","EveryTick")) ->  | T19: =IF(D19=0,NA(),RTD("cqg.rtd",,"StudyData", "Close("&$T$2&") When Barix("&$T$2&",reference:=StartOfSession)="&A19&"", "Bar", "", "Close","5","0","All",,,"False","T","EveryTick")) ->  | V19: =IF(D19=0,NA(),RTD("cqg.rtd",,"StudyData", "Close("&$V$2&") When Barix("&$V$2&",reference:=StartOfSession)="&A19&"", "Bar", "", "Close","5","0","All",,,"False","T","EveryTick")) ->  | X19: =IF(D19=0,NA(),RTD("cqg.rtd",,"StudyData", "Close("&$X$2&") When Barix("&$X$2&",reference:=StartOfSession)="&A19&"", "Bar", "", "Close","5","0","All",,,"False","T","EveryTick")) ->  | Z19: =IF(D19=0,NA(),RTD("cqg.rtd",,"StudyData", "Close("&$Z$2&") When Barix("&$Z$2&",reference:=StartOfSession)="&A19&"", "Bar", "", "Close","5","0","All",,,"False","T","EveryTick")) ->  | AB19: =IF(D19=0,NA(),RTD("cqg.rtd",,"StudyData", "Close("&$AB$2&") When Barix("&$AB$2&",reference:=StartOfSession)="&A19&"", "Bar", "", "Close","5","0","All",,,"False","T","EveryTick")) ->  | AD19: =IF(D19=0,NA(),RTD("cqg.rtd",,"StudyData", "Close("&$AD$2&") When Barix("&$AD$2&",reference:=StartOfSession)="&A19&"", "Bar", "", "Close","5","0","All",,,"False","T","EveryTick")) ->  | AF19: =IF(D19=0,NA(),RTD("cqg.rtd",,"StudyData", "Close("&$AF$2&") When Barix("&$AF$2&",reference:=StartOfSession)="&A19&"", "Bar", "", "Close","5","0","All",,,"False","T","EveryTick")) ->  | AH19: =IF(D19=0,NA(),RTD("cqg.rtd",,"StudyData", "Close("&$AH$2&") When Barix("&$AH$2&",reference:=StartOfSession)="&A19&"", "Bar", "", "Close","5","0","All",,,"False","T","EveryTick")) ->  | AJ19: =IF(D19=0,NA(),RTD("cqg.rtd",,"StudyData", "Close("&$AJ$2&") When Barix("&$AJ$2&",reference:=StartOfSession)="&A19&"", "Bar", "", "Close","5","0","All",,,"False","T","EveryTick")) ->  | AL19: =IF(D19=0,NA(),RTD("cqg.rtd",,"StudyData", "Close("&$AL$2&") When Barix("&$AL$2&",reference:=StartOfSession)="&A19&"", "Bar", "", "Close","5","0","All",,,"False","T","EveryTick")) ->  | AN19: =IF(D19=0,NA(),RTD("cqg.rtd",,"StudyData", "Close("&$AN$2&") When Barix("&$AN$2&",reference:=StartOfSession)="&A19&"", "Bar", "", "Close","5","0","All",,,"False","T","EveryTick")) ->  | AP19: =IF(D19=0,NA(),RTD("cqg.rtd",,"StudyData", "Close("&$AN$2&") When Barix("&$AN$2&",reference:=StartOfSession)="&A19&"", "Bar", "", "Close","5","0","All",,,"False","T","EveryTick")) ->  | AR19: =IF(D19=0,NA(),RTD("cqg.rtd",,"StudyData", "Close("&$AR$2&") When Barix("&$AR$2&",reference:=StartOfSession)="&A19&"", "Bar", "", "Close","5","0","All",,,"False","T","EveryTick")) ->  | AT19: =IF(D19=0,NA(),RTD("cqg.rtd",,"StudyData", "Close("&$AT$2&") When Barix("&$AT$2&",reference:=StartOfSession)="&A19&"", "Bar", "", "Close","5","0","All",,,"False","T","EveryTick")) ->  | AV19: =IF(D19=0,NA(),RTD("cqg.rtd",,"StudyData", "Close("&$AV$2&") When Barix("&$AV$2&",reference:=StartOfSession)="&A19&"", "Bar", "", "Close","5","0","All",,,"False","T","EveryTick")) ->  | AX19: =IF(D19=0,NA(),RTD("cqg.rtd",,"StudyData", "Close("&$AX$2&") When Barix("&$AX$2&",reference:=StartOfSession)="&A19&"", "Bar", "", "Close","5","0","All",,,"False","T","EveryTick")) ->  | AZ19: =IF(D19=0,NA(),RTD("cqg.rtd",,"StudyData", "Close("&$AZ$2&") When Barix("&$AZ$2&",reference:=StartOfSession)="&A19&"", "Bar", "", "Close","5","0","All",,,"False","T","EveryTick")) ->  | BB19: =IF(D19=0,NA(),RTD("cqg.rtd",,"StudyData", "Close("&$BB$2&") When Barix("&$BB$2&",reference:=StartOfSession)="&A19&"", "Bar", "", "Close","5","0","All",,,"False","T","EveryTick")) ->  | BD19: =IF(D19=0,NA(),RTD("cqg.rtd",,"StudyData", "Close("&$BD$2&") When Barix("&$BD$2&",reference:=StartOfSession)="&A19&"", "Bar", "", "Close","5","0","All",,,"False","T","EveryTick")) ->  | BF19: =IF(D19=0,NA(),RTD("cqg.rtd",,"StudyData", "Close("&$BF$2&") When Barix("&$BF$2&",reference:=StartOfSession)="&A19&"", "Bar", "", "Close","5","0","All",,,"False","T","EveryTick")) ->  | BH19: =IF(D19=0,NA(),RTD("cqg.rtd",,"StudyData", "Close("&$BH$2&") When Barix("&$BH$2&",reference:=StartOfSession)="&A19&"", "Bar", "", "Close","5","0","All",,,"False","T","EveryTick")) ->  | BJ19: =IF(D19=0,NA(),RTD("cqg.rtd",,"StudyData", "Close("&$BJ$2&") When Barix("&$BJ$2&",reference:=StartOfSession)="&A19&"", "Bar", "", "Close","5","0","All",,,"False","T","EveryTick")) ->  | BL19: =IF(D19=0,NA(),RTD("cqg.rtd",,"StudyData", "Close("&$BL$2&") When Barix("&$BL$2&",reference:=StartOfSession)="&A19&"", "Bar", "", "Close","5","0","All",,,"False","T","EveryTick")) ->  | BN19: =IF(D19=0,NA(),RTD("cqg.rtd",,"StudyData", "Close("&$BN$2&") When Barix("&$BN$2&",reference:=StartOfSession)="&A19&"", "Bar", "", "Close","5","0","All",,,"False","T","EveryTick")) ->  | BP19: =IF(D19=0,NA(),RTD("cqg.rtd",,"StudyData", "Close("&$BP$2&") When Barix("&$BP$2&",reference:=StartOfSession)="&A19&"", "Bar", "", "Close","5","0","All",,,"False","T","EveryTick")) ->  | BR19: =IF(D19=0,NA(),RTD("cqg.rtd",,"StudyData", "Close("&$BR$2&") When Barix("&$BR$2&",reference:=StartOfSession)="&A19&"", "Bar", "", "Close","5","0","All",,,"False","T","EveryTick")) ->  | BT19: =IF(D19=0,NA(),RTD("cqg.rtd",,"StudyData", "Close("&$BT$2&") When Barix("&$BT$2&",reference:=StartOfSession)="&A19&"", "Bar", "", "Close","5","0","All",,,"False","T","EveryTick")) ->  | BV19: =IF(D19=0,NA(),RTD("cqg.rtd",,"StudyData", "Close("&$BV$2&") When Barix("&$BV$2&",reference:=StartOfSession)="&A19&"", "Bar", "", "Close","5","0","All",,,"False","T","EveryTick")) ->  | BX19: =IF(D19=0,NA(),RTD("cqg.rtd",,"StudyData", "Close("&$BX$2&") When Barix("&$BX$2&",reference:=StartOfSession)="&A19&"", "Bar", "", "Close","5","0","All",,,"False","T","EveryTick")) ->  | BZ19: =IF(D19=0,NA(),RTD("cqg.rtd",,"StudyData", "Close("&$BZ$2&") When Barix("&$BZ$2&",reference:=StartOfSession)="&A19&"", "Bar", "", "Close","5","0","All",,,"False","T","EveryTick")) -> 
A20: 16 | B20: =IF(D20=0,NA(),RTD("cqg.rtd",,"StudyData", "Close("&$B$2&") When Barix("&$B$2&",reference:=StartOfSession)="&A20&"", "Bar", "", "Close","5","0","All",,,"False","T","EveryTick")) ->  | C20: 09:50:00 | D20: 0 | F20: =IF(D20=0,NA(),RTD("cqg.rtd",,"StudyData", "Close("&$F$2&") When Barix("&$F$2&",reference:=StartOfSession)="&A20&"", "Bar", "", "Close","5","0","All",,,"False","T","EveryTick")) ->  | H20: =IF(D20=0,NA(),RTD("cqg.rtd",,"StudyData", "Close("&$H$2&") When Barix("&$H$2&",reference:=StartOfSession)="&A20&"", "Bar", "", "Close","5","0","All",,,"False","T","EveryTick")) ->  | J20: =IF(D20=0,NA(),RTD("cqg.rtd",,"StudyData", "Close("&$J$2&") When Barix("&$J$2&",reference:=StartOfSession)="&A20&"", "Bar", "", "Close","5","0","All",,,"False","T","EveryTick")) ->  | L20: =IF(D20=0,NA(),RTD("cqg.rtd",,"StudyData", "Close("&$L$2&") When Barix("&$L$2&",reference:=StartOfSession)="&A20&"", "Bar", "", "Close","5","0","All",,,"False","T","EveryTick")) ->  | N20: =IF(D20=0,NA(),RTD("cqg.rtd",,"StudyData", "Close("&$N$2&") When Barix("&$N$2&",reference:=StartOfSession)="&A20&"", "Bar", "", "Close","5","0","All",,,"False","T","EveryTick")) ->  | P20: =IF(D20=0,NA(),RTD("cqg.rtd",,"StudyData", "Close("&$P$2&") When Barix("&$P$2&",reference:=StartOfSession)="&A20&"", "Bar", "", "Close","5","0","All",,,"False","T","EveryTick")) ->  | R20: =IF(D20=0,NA(),RTD("cqg.rtd",,"StudyData", "Close("&$R$2&") When Barix("&$R$2&",reference:=StartOfSession)="&A20&"", "Bar", "", "Close","5","0","All",,,"False","T","EveryTick")) ->  | T20: =IF(D20=0,NA(),RTD("cqg.rtd",,"StudyData", "Close("&$T$2&") When Barix("&$T$2&",reference:=StartOfSession)="&A20&"", "Bar", "", "Close","5","0","All",,,"False","T","EveryTick")) ->  | V20: =IF(D20=0,NA(),RTD("cqg.rtd",,"StudyData", "Close("&$V$2&") When Barix("&$V$2&",reference:=StartOfSession)="&A20&"", "Bar", "", "Close","5","0","All",,,"False","T","EveryTick")) ->  | X20: =IF(D20=0,NA(),RTD("cqg.rtd",,"StudyData", "Close("&$X$2&") When Barix("&$X$2&",reference:=StartOfSession)="&A20&"", "Bar", "", "Close","5","0","All",,,"False","T","EveryTick")) ->  | Z20: =IF(D20=0,NA(),RTD("cqg.rtd",,"StudyData", "Close("&$Z$2&") When Barix("&$Z$2&",reference:=StartOfSession)="&A20&"", "Bar", "", "Close","5","0","All",,,"False","T","EveryTick")) ->  | AB20: =IF(D20=0,NA(),RTD("cqg.rtd",,"StudyData", "Close("&$AB$2&") When Barix("&$AB$2&",reference:=StartOfSession)="&A20&"", "Bar", "", "Close","5","0","All",,,"False","T","EveryTick")) ->  | AD20: =IF(D20=0,NA(),RTD("cqg.rtd",,"StudyData", "Close("&$AD$2&") When Barix("&$AD$2&",reference:=StartOfSession)="&A20&"", "Bar", "", "Close","5","0","All",,,"False","T","EveryTick")) ->  | AF20: =IF(D20=0,NA(),RTD("cqg.rtd",,"StudyData", "Close("&$AF$2&") When Barix("&$AF$2&",reference:=StartOfSession)="&A20&"", "Bar", "", "Close","5","0","All",,,"False","T","EveryTick")) ->  | AH20: =IF(D20=0,NA(),RTD("cqg.rtd",,"StudyData", "Close("&$AH$2&") When Barix("&$AH$2&",reference:=StartOfSession)="&A20&"", "Bar", "", "Close","5","0","All",,,"False","T","EveryTick")) ->  | AJ20: =IF(D20=0,NA(),RTD("cqg.rtd",,"StudyData", "Close("&$AJ$2&") When Barix("&$AJ$2&",reference:=StartOfSession)="&A20&"", "Bar", "", "Close","5","0","All",,,"False","T","EveryTick")) ->  | AL20: =IF(D20=0,NA(),RTD("cqg.rtd",,"StudyData", "Close("&$AL$2&") When Barix("&$AL$2&",reference:=StartOfSession)="&A20&"", "Bar", "", "Close","5","0","All",,,"False","T","EveryTick")) ->  | AN20: =IF(D20=0,NA(),RTD("cqg.rtd",,"StudyData", "Close("&$AN$2&") When Barix("&$AN$2&",reference:=StartOfSession)="&A20&"", "Bar", "", "Close","5","0","All",,,"False","T","EveryTick")) ->  | AP20: =IF(D20=0,NA(),RTD("cqg.rtd",,"StudyData", "Close("&$AN$2&") When Barix("&$AN$2&",reference:=StartOfSession)="&A20&"", "Bar", "", "Close","5","0","All",,,"False","T","EveryTick")) ->  | AR20: =IF(D20=0,NA(),RTD("cqg.rtd",,"StudyData", "Close("&$AR$2&") When Barix("&$AR$2&",reference:=StartOfSession)="&A20&"", "Bar", "", "Close","5","0","All",,,"False","T","EveryTick")) ->  | AT20: =IF(D20=0,NA(),RTD("cqg.rtd",,"StudyData", "Close("&$AT$2&") When Barix("&$AT$2&",reference:=StartOfSession)="&A20&"", "Bar", "", "Close","5","0","All",,,"False","T","EveryTick")) ->  | AV20: =IF(D20=0,NA(),RTD("cqg.rtd",,"StudyData", "Close("&$AV$2&") When Barix("&$AV$2&",reference:=StartOfSession)="&A20&"", "Bar", "", "Close","5","0","All",,,"False","T","EveryTick")) ->  | AX20: =IF(D20=0,NA(),RTD("cqg.rtd",,"StudyData", "Close("&$AX$2&") When Barix("&$AX$2&",reference:=StartOfSession)="&A20&"", "Bar", "", "Close","5","0","All",,,"False","T","EveryTick")) ->  | AZ20: =IF(D20=0,NA(),RTD("cqg.rtd",,"StudyData", "Close("&$AZ$2&") When Barix("&$AZ$2&",reference:=StartOfSession)="&A20&"", "Bar", "", "Close","5","0","All",,,"False","T","EveryTick")) ->  | BB20: =IF(D20=0,NA(),RTD("cqg.rtd",,"StudyData", "Close("&$BB$2&") When Barix("&$BB$2&",reference:=StartOfSession)="&A20&"", "Bar", "", "Close","5","0","All",,,"False","T","EveryTick")) ->  | BD20: =IF(D20=0,NA(),RTD("cqg.rtd",,"StudyData", "Close("&$BD$2&") When Barix("&$BD$2&",reference:=StartOfSession)="&A20&"", "Bar", "", "Close","5","0","All",,,"False","T","EveryTick")) ->  | BF20: =IF(D20=0,NA(),RTD("cqg.rtd",,"StudyData", "Close("&$BF$2&") When Barix("&$BF$2&",reference:=StartOfSession)="&A20&"", "Bar", "", "Close","5","0","All",,,"False","T","EveryTick")) ->  | BH20: =IF(D20=0,NA(),RTD("cqg.rtd",,"StudyData", "Close("&$BH$2&") When Barix("&$BH$2&",reference:=StartOfSession)="&A20&"", "Bar", "", "Close","5","0","All",,,"False","T","EveryTick")) ->  | BJ20: =IF(D20=0,NA(),RTD("cqg.rtd",,"StudyData", "Close("&$BJ$2&") When Barix("&$BJ$2&",reference:=StartOfSession)="&A20&"", "Bar", "", "Close","5","0","All",,,"False","T","EveryTick")) ->  | BL20: =IF(D20=0,NA(),RTD("cqg.rtd",,"StudyData", "Close("&$BL$2&") When Barix("&$BL$2&",reference:=StartOfSession)="&A20&"", "Bar", "", "Close","5","0","All",,,"False","T","EveryTick")) ->  | BN20: =IF(D20=0,NA(),RTD("cqg.rtd",,"StudyData", "Close("&$BN$2&") When Barix("&$BN$2&",reference:=StartOfSession)="&A20&"", "Bar", "", "Close","5","0","All",,,"False","T","EveryTick")) ->  | BP20: =IF(D20=0,NA(),RTD("cqg.rtd",,"StudyData", "Close("&$BP$2&") When Barix("&$BP$2&",reference:=StartOfSession)="&A20&"", "Bar", "", "Close","5","0","All",,,"False","T","EveryTick")) ->  | BR20: =IF(D20=0,NA(),RTD("cqg.rtd",,"StudyData", "Close("&$BR$2&") When Barix("&$BR$2&",reference:=StartOfSession)="&A20&"", "Bar", "", "Close","5","0","All",,,"False","T","EveryTick")) ->  | BT20: =IF(D20=0,NA(),RTD("cqg.rtd",,"StudyData", "Close("&$BT$2&") When Barix("&$BT$2&",reference:=StartOfSession)="&A20&"", "Bar", "", "Close","5","0","All",,,"False","T","EveryTick")) ->  | BV20: =IF(D20=0,NA(),RTD("cqg.rtd",,"StudyData", "Close("&$BV$2&") When Barix("&$BV$2&",reference:=StartOfSession)="&A20&"", "Bar", "", "Close","5","0","All",,,"False","T","EveryTick")) ->  | BX20: =IF(D20=0,NA(),RTD("cqg.rtd",,"StudyData", "Close("&$BX$2&") When Barix("&$BX$2&",reference:=StartOfSession)="&A20&"", "Bar", "", "Close","5","0","All",,,"False","T","EveryTick")) ->  | BZ20: =IF(D20=0,NA(),RTD("cqg.rtd",,"StudyData", "Close("&$BZ$2&") When Barix("&$BZ$2&",reference:=StartOfSession)="&A20&"", "Bar", "", "Close","5","0","All",,,"False","T","EveryTick")) -> 
A21: 17 | B21: =IF(D21=0,NA(),RTD("cqg.rtd",,"StudyData", "Close("&$B$2&") When Barix("&$B$2&",reference:=StartOfSession)="&A21&"", "Bar", "", "Close","5","0","All",,,"False","T","EveryTick")) ->  | C21: 09:55:00 | D21: 0 | F21: =IF(D21=0,NA(),RTD("cqg.rtd",,"StudyData", "Close("&$F$2&") When Barix("&$F$2&",reference:=StartOfSession)="&A21&"", "Bar", "", "Close","5","0","All",,,"False","T","EveryTick")) ->  | H21: =IF(D21=0,NA(),RTD("cqg.rtd",,"StudyData", "Close("&$H$2&") When Barix("&$H$2&",reference:=StartOfSession)="&A21&"", "Bar", "", "Close","5","0","All",,,"False","T","EveryTick")) ->  | J21: =IF(D21=0,NA(),RTD("cqg.rtd",,"StudyData", "Close("&$J$2&") When Barix("&$J$2&",reference:=StartOfSession)="&A21&"", "Bar", "", "Close","5","0","All",,,"False","T","EveryTick")) ->  | L21: =IF(D21=0,NA(),RTD("cqg.rtd",,"StudyData", "Close("&$L$2&") When Barix("&$L$2&",reference:=StartOfSession)="&A21&"", "Bar", "", "Close","5","0","All",,,"False","T","EveryTick")) ->  | N21: =IF(D21=0,NA(),RTD("cqg.rtd",,"StudyData", "Close("&$N$2&") When Barix("&$N$2&",reference:=StartOfSession)="&A21&"", "Bar", "", "Close","5","0","All",,,"False","T","EveryTick")) ->  | P21: =IF(D21=0,NA(),RTD("cqg.rtd",,"StudyData", "Close("&$P$2&") When Barix("&$P$2&",reference:=StartOfSession)="&A21&"", "Bar", "", "Close","5","0","All",,,"False","T","EveryTick")) ->  | R21: =IF(D21=0,NA(),RTD("cqg.rtd",,"StudyData", "Close("&$R$2&") When Barix("&$R$2&",reference:=StartOfSession)="&A21&"", "Bar", "", "Close","5","0","All",,,"False","T","EveryTick")) ->  | T21: =IF(D21=0,NA(),RTD("cqg.rtd",,"StudyData", "Close("&$T$2&") When Barix("&$T$2&",reference:=StartOfSession)="&A21&"", "Bar", "", "Close","5","0","All",,,"False","T","EveryTick")) ->  | V21: =IF(D21=0,NA(),RTD("cqg.rtd",,"StudyData", "Close("&$V$2&") When Barix("&$V$2&",reference:=StartOfSession)="&A21&"", "Bar", "", "Close","5","0","All",,,"False","T","EveryTick")) ->  | X21: =IF(D21=0,NA(),RTD("cqg.rtd",,"StudyData", "Close("&$X$2&") When Barix("&$X$2&",reference:=StartOfSession)="&A21&"", "Bar", "", "Close","5","0","All",,,"False","T","EveryTick")) ->  | Z21: =IF(D21=0,NA(),RTD("cqg.rtd",,"StudyData", "Close("&$Z$2&") When Barix("&$Z$2&",reference:=StartOfSession)="&A21&"", "Bar", "", "Close","5","0","All",,,"False","T","EveryTick")) ->  | AB21: =IF(D21=0,NA(),RTD("cqg.rtd",,"StudyData", "Close("&$AB$2&") When Barix("&$AB$2&",reference:=StartOfSession)="&A21&"", "Bar", "", "Close","5","0","All",,,"False","T","EveryTick")) ->  | AD21: =IF(D21=0,NA(),RTD("cqg.rtd",,"StudyData", "Close("&$AD$2&") When Barix("&$AD$2&",reference:=StartOfSession)="&A21&"", "Bar", "", "Close","5","0","All",,,"False","T","EveryTick")) ->  | AF21: =IF(D21=0,NA(),RTD("cqg.rtd",,"StudyData", "Close("&$AF$2&") When Barix("&$AF$2&",reference:=StartOfSession)="&A21&"", "Bar", "", "Close","5","0","All",,,"False","T","EveryTick")) ->  | AH21: =IF(D21=0,NA(),RTD("cqg.rtd",,"StudyData", "Close("&$AH$2&") When Barix("&$AH$2&",reference:=StartOfSession)="&A21&"", "Bar", "", "Close","5","0","All",,,"False","T","EveryTick")) ->  | AJ21: =IF(D21=0,NA(),RTD("cqg.rtd",,"StudyData", "Close("&$AJ$2&") When Barix("&$AJ$2&",reference:=StartOfSession)="&A21&"", "Bar", "", "Close","5","0","All",,,"False","T","EveryTick")) ->  | AL21: =IF(D21=0,NA(),RTD("cqg.rtd",,"StudyData", "Close("&$AL$2&") When Barix("&$AL$2&",reference:=StartOfSession)="&A21&"", "Bar", "", "Close","5","0","All",,,"False","T","EveryTick")) ->  | AN21: =IF(D21=0,NA(),RTD("cqg.rtd",,"StudyData", "Close("&$AN$2&") When Barix("&$AN$2&",reference:=StartOfSession)="&A21&"", "Bar", "", "Close","5","0","All",,,"False","T","EveryTick")) ->  | AP21: =IF(D21=0,NA(),RTD("cqg.rtd",,"StudyData", "Close("&$AN$2&") When Barix("&$AN$2&",reference:=StartOfSession)="&A21&"", "Bar", "", "Close","5","0","All",,,"False","T","EveryTick")) ->  | AR21: =IF(D21=0,NA(),RTD("cqg.rtd",,"StudyData", "Close("&$AR$2&") When Barix("&$AR$2&",reference:=StartOfSession)="&A21&"", "Bar", "", "Close","5","0","All",,,"False","T","EveryTick")) ->  | AT21: =IF(D21=0,NA(),RTD("cqg.rtd",,"StudyData", "Close("&$AT$2&") When Barix("&$AT$2&",reference:=StartOfSession)="&A21&"", "Bar", "", "Close","5","0","All",,,"False","T","EveryTick")) ->  | AV21: =IF(D21=0,NA(),RTD("cqg.rtd",,"StudyData", "Close("&$AV$2&") When Barix("&$AV$2&",reference:=StartOfSession)="&A21&"", "Bar", "", "Close","5","0","All",,,"False","T","EveryTick")) ->  | AX21: =IF(D21=0,NA(),RTD("cqg.rtd",,"StudyData", "Close("&$AX$2&") When Barix("&$AX$2&",reference:=StartOfSession)="&A21&"", "Bar", "", "Close","5","0","All",,,"False","T","EveryTick")) ->  | AZ21: =IF(D21=0,NA(),RTD("cqg.rtd",,"StudyData", "Close("&$AZ$2&") When Barix("&$AZ$2&",reference:=StartOfSession)="&A21&"", "Bar", "", "Close","5","0","All",,,"False","T","EveryTick")) ->  | BB21: =IF(D21=0,NA(),RTD("cqg.rtd",,"StudyData", "Close("&$BB$2&") When Barix("&$BB$2&",reference:=StartOfSession)="&A21&"", "Bar", "", "Close","5","0","All",,,"False","T","EveryTick")) ->  | BD21: =IF(D21=0,NA(),RTD("cqg.rtd",,"StudyData", "Close("&$BD$2&") When Barix("&$BD$2&",reference:=StartOfSession)="&A21&"", "Bar", "", "Close","5","0","All",,,"False","T","EveryTick")) ->  | BF21: =IF(D21=0,NA(),RTD("cqg.rtd",,"StudyData", "Close("&$BF$2&") When Barix("&$BF$2&",reference:=StartOfSession)="&A21&"", "Bar", "", "Close","5","0","All",,,"False","T","EveryTick")) ->  | BH21: =IF(D21=0,NA(),RTD("cqg.rtd",,"StudyData", "Close("&$BH$2&") When Barix("&$BH$2&",reference:=StartOfSession)="&A21&"", "Bar", "", "Close","5","0","All",,,"False","T","EveryTick")) ->  | BJ21: =IF(D21=0,NA(),RTD("cqg.rtd",,"StudyData", "Close("&$BJ$2&") When Barix("&$BJ$2&",reference:=StartOfSession)="&A21&"", "Bar", "", "Close","5","0","All",,,"False","T","EveryTick")) ->  | BL21: =IF(D21=0,NA(),RTD("cqg.rtd",,"StudyData", "Close("&$BL$2&") When Barix("&$BL$2&",reference:=StartOfSession)="&A21&"", "Bar", "", "Close","5","0","All",,,"False","T","EveryTick")) ->  | BN21: =IF(D21=0,NA(),RTD("cqg.rtd",,"StudyData", "Close("&$BN$2&") When Barix("&$BN$2&",reference:=StartOfSession)="&A21&"", "Bar", "", "Close","5","0","All",,,"False","T","EveryTick")) ->  | BP21: =IF(D21=0,NA(),RTD("cqg.rtd",,"StudyData", "Close("&$BP$2&") When Barix("&$BP$2&",reference:=StartOfSession)="&A21&"", "Bar", "", "Close","5","0","All",,,"False","T","EveryTick")) ->  | BR21: =IF(D21=0,NA(),RTD("cqg.rtd",,"StudyData", "Close("&$BR$2&") When Barix("&$BR$2&",reference:=StartOfSession)="&A21&"", "Bar", "", "Close","5","0","All",,,"False","T","EveryTick")) ->  | BT21: =IF(D21=0,NA(),RTD("cqg.rtd",,"StudyData", "Close("&$BT$2&") When Barix("&$BT$2&",reference:=StartOfSession)="&A21&"", "Bar", "", "Close","5","0","All",,,"False","T","EveryTick")) ->  | BV21: =IF(D21=0,NA(),RTD("cqg.rtd",,"StudyData", "Close("&$BV$2&") When Barix("&$BV$2&",reference:=StartOfSession)="&A21&"", "Bar", "", "Close","5","0","All",,,"False","T","EveryTick")) ->  | BX21: =IF(D21=0,NA(),RTD("cqg.rtd",,"StudyData", "Close("&$BX$2&") When Barix("&$BX$2&",reference:=StartOfSession)="&A21&"", "Bar", "", "Close","5","0","All",,,"False","T","EveryTick")) ->  | BZ21: =IF(D21=0,NA(),RTD("cqg.rtd",,"StudyData", "Close("&$BZ$2&") When Barix("&$BZ$2&",reference:=StartOfSession)="&A21&"", "Bar", "", "Close","5","0","All",,,"False","T","EveryTick")) -> 
A22: 18 | B22: =IF(D22=0,NA(),RTD("cqg.rtd",,"StudyData", "Close("&$B$2&") When Barix("&$B$2&",reference:=StartOfSession)="&A22&"", "Bar", "", "Close","5","0","All",,,"False","T","EveryTick")) ->  | C22: 10:00:00 | D22: 0 | F22: =IF(D22=0,NA(),RTD("cqg.rtd",,"StudyData", "Close("&$F$2&") When Barix("&$F$2&",reference:=StartOfSession)="&A22&"", "Bar", "", "Close","5","0","All",,,"False","T","EveryTick")) ->  | H22: =IF(D22=0,NA(),RTD("cqg.rtd",,"StudyData", "Close("&$H$2&") When Barix("&$H$2&",reference:=StartOfSession)="&A22&"", "Bar", "", "Close","5","0","All",,,"False","T","EveryTick")) ->  | J22: =IF(D22=0,NA(),RTD("cqg.rtd",,"StudyData", "Close("&$J$2&") When Barix("&$J$2&",reference:=StartOfSession)="&A22&"", "Bar", "", "Close","5","0","All",,,"False","T","EveryTick")) ->  | L22: =IF(D22=0,NA(),RTD("cqg.rtd",,"StudyData", "Close("&$L$2&") When Barix("&$L$2&",reference:=StartOfSession)="&A22&"", "Bar", "", "Close","5","0","All",,,"False","T","EveryTick")) ->  | N22: =IF(D22=0,NA(),RTD("cqg.rtd",,"StudyData", "Close("&$N$2&") When Barix("&$N$2&",reference:=StartOfSession)="&A22&"", "Bar", "", "Close","5","0","All",,,"False","T","EveryTick")) ->  | P22: =IF(D22=0,NA(),RTD("cqg.rtd",,"StudyData", "Close("&$P$2&") When Barix("&$P$2&",reference:=StartOfSession)="&A22&"", "Bar", "", "Close","5","0","All",,,"False","T","EveryTick")) ->  | R22: =IF(D22=0,NA(),RTD("cqg.rtd",,"StudyData", "Close("&$R$2&") When Barix("&$R$2&",reference:=StartOfSession)="&A22&"", "Bar", "", "Close","5","0","All",,,"False","T","EveryTick")) ->  | T22: =IF(D22=0,NA(),RTD("cqg.rtd",,"StudyData", "Close("&$T$2&") When Barix("&$T$2&",reference:=StartOfSession)="&A22&"", "Bar", "", "Close","5","0","All",,,"False","T","EveryTick")) ->  | V22: =IF(D22=0,NA(),RTD("cqg.rtd",,"StudyData", "Close("&$V$2&") When Barix("&$V$2&",reference:=StartOfSession)="&A22&"", "Bar", "", "Close","5","0","All",,,"False","T","EveryTick")) ->  | X22: =IF(D22=0,NA(),RTD("cqg.rtd",,"StudyData", "Close("&$X$2&") When Barix("&$X$2&",reference:=StartOfSession)="&A22&"", "Bar", "", "Close","5","0","All",,,"False","T","EveryTick")) ->  | Z22: =IF(D22=0,NA(),RTD("cqg.rtd",,"StudyData", "Close("&$Z$2&") When Barix("&$Z$2&",reference:=StartOfSession)="&A22&"", "Bar", "", "Close","5","0","All",,,"False","T","EveryTick")) ->  | AB22: =IF(D22=0,NA(),RTD("cqg.rtd",,"StudyData", "Close("&$AB$2&") When Barix("&$AB$2&",reference:=StartOfSession)="&A22&"", "Bar", "", "Close","5","0","All",,,"False","T","EveryTick")) ->  | AD22: =IF(D22=0,NA(),RTD("cqg.rtd",,"StudyData", "Close("&$AD$2&") When Barix("&$AD$2&",reference:=StartOfSession)="&A22&"", "Bar", "", "Close","5","0","All",,,"False","T","EveryTick")) ->  | AF22: =IF(D22=0,NA(),RTD("cqg.rtd",,"StudyData", "Close("&$AF$2&") When Barix("&$AF$2&",reference:=StartOfSession)="&A22&"", "Bar", "", "Close","5","0","All",,,"False","T","EveryTick")) ->  | AH22: =IF(D22=0,NA(),RTD("cqg.rtd",,"StudyData", "Close("&$AH$2&") When Barix("&$AH$2&",reference:=StartOfSession)="&A22&"", "Bar", "", "Close","5","0","All",,,"False","T","EveryTick")) ->  | AJ22: =IF(D22=0,NA(),RTD("cqg.rtd",,"StudyData", "Close("&$AJ$2&") When Barix("&$AJ$2&",reference:=StartOfSession)="&A22&"", "Bar", "", "Close","5","0","All",,,"False","T","EveryTick")) ->  | AL22: =IF(D22=0,NA(),RTD("cqg.rtd",,"StudyData", "Close("&$AL$2&") When Barix("&$AL$2&",reference:=StartOfSession)="&A22&"", "Bar", "", "Close","5","0","All",,,"False","T","EveryTick")) ->  | AN22: =IF(D22=0,NA(),RTD("cqg.rtd",,"StudyData", "Close("&$AN$2&") When Barix("&$AN$2&",reference:=StartOfSession)="&A22&"", "Bar", "", "Close","5","0","All",,,"False","T","EveryTick")) ->  | AP22: =IF(D22=0,NA(),RTD("cqg.rtd",,"StudyData", "Close("&$AN$2&") When Barix("&$AN$2&",reference:=StartOfSession)="&A22&"", "Bar", "", "Close","5","0","All",,,"False","T","EveryTick")) ->  | AR22: =IF(D22=0,NA(),RTD("cqg.rtd",,"StudyData", "Close("&$AR$2&") When Barix("&$AR$2&",reference:=StartOfSession)="&A22&"", "Bar", "", "Close","5","0","All",,,"False","T","EveryTick")) ->  | AT22: =IF(D22=0,NA(),RTD("cqg.rtd",,"StudyData", "Close("&$AT$2&") When Barix("&$AT$2&",reference:=StartOfSession)="&A22&"", "Bar", "", "Close","5","0","All",,,"False","T","EveryTick")) ->  | AV22: =IF(D22=0,NA(),RTD("cqg.rtd",,"StudyData", "Close("&$AV$2&") When Barix("&$AV$2&",reference:=StartOfSession)="&A22&"", "Bar", "", "Close","5","0","All",,,"False","T","EveryTick")) ->  | AX22: =IF(D22=0,NA(),RTD("cqg.rtd",,"StudyData", "Close("&$AX$2&") When Barix("&$AX$2&",reference:=StartOfSession)="&A22&"", "Bar", "", "Close","5","0","All",,,"False","T","EveryTick")) ->  | AZ22: =IF(D22=0,NA(),RTD("cqg.rtd",,"StudyData", "Close("&$AZ$2&") When Barix("&$AZ$2&",reference:=StartOfSession)="&A22&"", "Bar", "", "Close","5","0","All",,,"False","T","EveryTick")) ->  | BB22: =IF(D22=0,NA(),RTD("cqg.rtd",,"StudyData", "Close("&$BB$2&") When Barix("&$BB$2&",reference:=StartOfSession)="&A22&"", "Bar", "", "Close","5","0","All",,,"False","T","EveryTick")) ->  | BD22: =IF(D22=0,NA(),RTD("cqg.rtd",,"StudyData", "Close("&$BD$2&") When Barix("&$BD$2&",reference:=StartOfSession)="&A22&"", "Bar", "", "Close","5","0","All",,,"False","T","EveryTick")) ->  | BF22: =IF(D22=0,NA(),RTD("cqg.rtd",,"StudyData", "Close("&$BF$2&") When Barix("&$BF$2&",reference:=StartOfSession)="&A22&"", "Bar", "", "Close","5","0","All",,,"False","T","EveryTick")) ->  | BH22: =IF(D22=0,NA(),RTD("cqg.rtd",,"StudyData", "Close("&$BH$2&") When Barix("&$BH$2&",reference:=StartOfSession)="&A22&"", "Bar", "", "Close","5","0","All",,,"False","T","EveryTick")) ->  | BJ22: =IF(D22=0,NA(),RTD("cqg.rtd",,"StudyData", "Close("&$BJ$2&") When Barix("&$BJ$2&",reference:=StartOfSession)="&A22&"", "Bar", "", "Close","5","0","All",,,"False","T","EveryTick")) ->  | BL22: =IF(D22=0,NA(),RTD("cqg.rtd",,"StudyData", "Close("&$BL$2&") When Barix("&$BL$2&",reference:=StartOfSession)="&A22&"", "Bar", "", "Close","5","0","All",,,"False","T","EveryTick")) ->  | BN22: =IF(D22=0,NA(),RTD("cqg.rtd",,"StudyData", "Close("&$BN$2&") When Barix("&$BN$2&",reference:=StartOfSession)="&A22&"", "Bar", "", "Close","5","0","All",,,"False","T","EveryTick")) ->  | BP22: =IF(D22=0,NA(),RTD("cqg.rtd",,"StudyData", "Close("&$BP$2&") When Barix("&$BP$2&",reference:=StartOfSession)="&A22&"", "Bar", "", "Close","5","0","All",,,"False","T","EveryTick")) ->  | BR22: =IF(D22=0,NA(),RTD("cqg.rtd",,"StudyData", "Close("&$BR$2&") When Barix("&$BR$2&",reference:=StartOfSession)="&A22&"", "Bar", "", "Close","5","0","All",,,"False","T","EveryTick")) ->  | BT22: =IF(D22=0,NA(),RTD("cqg.rtd",,"StudyData", "Close("&$BT$2&") When Barix("&$BT$2&",reference:=StartOfSession)="&A22&"", "Bar", "", "Close","5","0","All",,,"False","T","EveryTick")) ->  | BV22: =IF(D22=0,NA(),RTD("cqg.rtd",,"StudyData", "Close("&$BV$2&") When Barix("&$BV$2&",reference:=StartOfSession)="&A22&"", "Bar", "", "Close","5","0","All",,,"False","T","EveryTick")) ->  | BX22: =IF(D22=0,NA(),RTD("cqg.rtd",,"StudyData", "Close("&$BX$2&") When Barix("&$BX$2&",reference:=StartOfSession)="&A22&"", "Bar", "", "Close","5","0","All",,,"False","T","EveryTick")) ->  | BZ22: =IF(D22=0,NA(),RTD("cqg.rtd",,"StudyData", "Close("&$BZ$2&") When Barix("&$BZ$2&",reference:=StartOfSession)="&A22&"", "Bar", "", "Close","5","0","All",,,"False","T","EveryTick")) -> 
A23: 19 | B23: =IF(D23=0,NA(),RTD("cqg.rtd",,"StudyData", "Close("&$B$2&") When Barix("&$B$2&",reference:=StartOfSession)="&A23&"", "Bar", "", "Close","5","0","All",,,"False","T","EveryTick")) ->  | C23: 10:05:00 | D23: 0 | F23: =IF(D23=0,NA(),RTD("cqg.rtd",,"StudyData", "Close("&$F$2&") When Barix("&$F$2&",reference:=StartOfSession)="&A23&"", "Bar", "", "Close","5","0","All",,,"False","T","EveryTick")) ->  | H23: =IF(D23=0,NA(),RTD("cqg.rtd",,"StudyData", "Close("&$H$2&") When Barix("&$H$2&",reference:=StartOfSession)="&A23&"", "Bar", "", "Close","5","0","All",,,"False","T","EveryTick")) ->  | J23: =IF(D23=0,NA(),RTD("cqg.rtd",,"StudyData", "Close("&$J$2&") When Barix("&$J$2&",reference:=StartOfSession)="&A23&"", "Bar", "", "Close","5","0","All",,,"False","T","EveryTick")) ->  | L23: =IF(D23=0,NA(),RTD("cqg.rtd",,"StudyData", "Close("&$L$2&") When Barix("&$L$2&",reference:=StartOfSession)="&A23&"", "Bar", "", "Close","5","0","All",,,"False","T","EveryTick")) ->  | N23: =IF(D23=0,NA(),RTD("cqg.rtd",,"StudyData", "Close("&$N$2&") When Barix("&$N$2&",reference:=StartOfSession)="&A23&"", "Bar", "", "Close","5","0","All",,,"False","T","EveryTick")) ->  | P23: =IF(D23=0,NA(),RTD("cqg.rtd",,"StudyData", "Close("&$P$2&") When Barix("&$P$2&",reference:=StartOfSession)="&A23&"", "Bar", "", "Close","5","0","All",,,"False","T","EveryTick")) ->  | R23: =IF(D23=0,NA(),RTD("cqg.rtd",,"StudyData", "Close("&$R$2&") When Barix("&$R$2&",reference:=StartOfSession)="&A23&"", "Bar", "", "Close","5","0","All",,,"False","T","EveryTick")) ->  | T23: =IF(D23=0,NA(),RTD("cqg.rtd",,"StudyData", "Close("&$T$2&") When Barix("&$T$2&",reference:=StartOfSession)="&A23&"", "Bar", "", "Close","5","0","All",,,"False","T","EveryTick")) ->  | V23: =IF(D23=0,NA(),RTD("cqg.rtd",,"StudyData", "Close("&$V$2&") When Barix("&$V$2&",reference:=StartOfSession)="&A23&"", "Bar", "", "Close","5","0","All",,,"False","T","EveryTick")) ->  | X23: =IF(D23=0,NA(),RTD("cqg.rtd",,"StudyData", "Close("&$X$2&") When Barix("&$X$2&",reference:=StartOfSession)="&A23&"", "Bar", "", "Close","5","0","All",,,"False","T","EveryTick")) ->  | Z23: =IF(D23=0,NA(),RTD("cqg.rtd",,"StudyData", "Close("&$Z$2&") When Barix("&$Z$2&",reference:=StartOfSession)="&A23&"", "Bar", "", "Close","5","0","All",,,"False","T","EveryTick")) ->  | AB23: =IF(D23=0,NA(),RTD("cqg.rtd",,"StudyData", "Close("&$AB$2&") When Barix("&$AB$2&",reference:=StartOfSession)="&A23&"", "Bar", "", "Close","5","0","All",,,"False","T","EveryTick")) ->  | AD23: =IF(D23=0,NA(),RTD("cqg.rtd",,"StudyData", "Close("&$AD$2&") When Barix("&$AD$2&",reference:=StartOfSession)="&A23&"", "Bar", "", "Close","5","0","All",,,"False","T","EveryTick")) ->  | AF23: =IF(D23=0,NA(),RTD("cqg.rtd",,"StudyData", "Close("&$AF$2&") When Barix("&$AF$2&",reference:=StartOfSession)="&A23&"", "Bar", "", "Close","5","0","All",,,"False","T","EveryTick")) ->  | AH23: =IF(D23=0,NA(),RTD("cqg.rtd",,"StudyData", "Close("&$AH$2&") When Barix("&$AH$2&",reference:=StartOfSession)="&A23&"", "Bar", "", "Close","5","0","All",,,"False","T","EveryTick")) ->  | AJ23: =IF(D23=0,NA(),RTD("cqg.rtd",,"StudyData", "Close("&$AJ$2&") When Barix("&$AJ$2&",reference:=StartOfSession)="&A23&"", "Bar", "", "Close","5","0","All",,,"False","T","EveryTick")) ->  | AL23: =IF(D23=0,NA(),RTD("cqg.rtd",,"StudyData", "Close("&$AL$2&") When Barix("&$AL$2&",reference:=StartOfSession)="&A23&"", "Bar", "", "Close","5","0","All",,,"False","T","EveryTick")) ->  | AN23: =IF(D23=0,NA(),RTD("cqg.rtd",,"StudyData", "Close("&$AN$2&") When Barix("&$AN$2&",reference:=StartOfSession)="&A23&"", "Bar", "", "Close","5","0","All",,,"False","T","EveryTick")) ->  | AP23: =IF(D23=0,NA(),RTD("cqg.rtd",,"StudyData", "Close("&$AN$2&") When Barix("&$AN$2&",reference:=StartOfSession)="&A23&"", "Bar", "", "Close","5","0","All",,,"False","T","EveryTick")) ->  | AR23: =IF(D23=0,NA(),RTD("cqg.rtd",,"StudyData", "Close("&$AR$2&") When Barix("&$AR$2&",reference:=StartOfSession)="&A23&"", "Bar", "", "Close","5","0","All",,,"False","T","EveryTick")) ->  | AT23: =IF(D23=0,NA(),RTD("cqg.rtd",,"StudyData", "Close("&$AT$2&") When Barix("&$AT$2&",reference:=StartOfSession)="&A23&"", "Bar", "", "Close","5","0","All",,,"False","T","EveryTick")) ->  | AV23: =IF(D23=0,NA(),RTD("cqg.rtd",,"StudyData", "Close("&$AV$2&") When Barix("&$AV$2&",reference:=StartOfSession)="&A23&"", "Bar", "", "Close","5","0","All",,,"False","T","EveryTick")) ->  | AX23: =IF(D23=0,NA(),RTD("cqg.rtd",,"StudyData", "Close("&$AX$2&") When Barix("&$AX$2&",reference:=StartOfSession)="&A23&"", "Bar", "", "Close","5","0","All",,,"False","T","EveryTick")) ->  | AZ23: =IF(D23=0,NA(),RTD("cqg.rtd",,"StudyData", "Close("&$AZ$2&") When Barix("&$AZ$2&",reference:=StartOfSession)="&A23&"", "Bar", "", "Close","5","0","All",,,"False","T","EveryTick")) ->  | BB23: =IF(D23=0,NA(),RTD("cqg.rtd",,"StudyData", "Close("&$BB$2&") When Barix("&$BB$2&",reference:=StartOfSession)="&A23&"", "Bar", "", "Close","5","0","All",,,"False","T","EveryTick")) ->  | BD23: =IF(D23=0,NA(),RTD("cqg.rtd",,"StudyData", "Close("&$BD$2&") When Barix("&$BD$2&",reference:=StartOfSession)="&A23&"", "Bar", "", "Close","5","0","All",,,"False","T","EveryTick")) ->  | BF23: =IF(D23=0,NA(),RTD("cqg.rtd",,"StudyData", "Close("&$BF$2&") When Barix("&$BF$2&",reference:=StartOfSession)="&A23&"", "Bar", "", "Close","5","0","All",,,"False","T","EveryTick")) ->  | BH23: =IF(D23=0,NA(),RTD("cqg.rtd",,"StudyData", "Close("&$BH$2&") When Barix("&$BH$2&",reference:=StartOfSession)="&A23&"", "Bar", "", "Close","5","0","All",,,"False","T","EveryTick")) ->  | BJ23: =IF(D23=0,NA(),RTD("cqg.rtd",,"StudyData", "Close("&$BJ$2&") When Barix("&$BJ$2&",reference:=StartOfSession)="&A23&"", "Bar", "", "Close","5","0","All",,,"False","T","EveryTick")) ->  | BL23: =IF(D23=0,NA(),RTD("cqg.rtd",,"StudyData", "Close("&$BL$2&") When Barix("&$BL$2&",reference:=StartOfSession)="&A23&"", "Bar", "", "Close","5","0","All",,,"False","T","EveryTick")) ->  | BN23: =IF(D23=0,NA(),RTD("cqg.rtd",,"StudyData", "Close("&$BN$2&") When Barix("&$BN$2&",reference:=StartOfSession)="&A23&"", "Bar", "", "Close","5","0","All",,,"False","T","EveryTick")) ->  | BP23: =IF(D23=0,NA(),RTD("cqg.rtd",,"StudyData", "Close("&$BP$2&") When Barix("&$BP$2&",reference:=StartOfSession)="&A23&"", "Bar", "", "Close","5","0","All",,,"False","T","EveryTick")) ->  | BR23: =IF(D23=0,NA(),RTD("cqg.rtd",,"StudyData", "Close("&$BR$2&") When Barix("&$BR$2&",reference:=StartOfSession)="&A23&"", "Bar", "", "Close","5","0","All",,,"False","T","EveryTick")) ->  | BT23: =IF(D23=0,NA(),RTD("cqg.rtd",,"StudyData", "Close("&$BT$2&") When Barix("&$BT$2&",reference:=StartOfSession)="&A23&"", "Bar", "", "Close","5","0","All",,,"False","T","EveryTick")) ->  | BV23: =IF(D23=0,NA(),RTD("cqg.rtd",,"StudyData", "Close("&$BV$2&") When Barix("&$BV$2&",reference:=StartOfSession)="&A23&"", "Bar", "", "Close","5","0","All",,,"False","T","EveryTick")) ->  | BX23: =IF(D23=0,NA(),RTD("cqg.rtd",,"StudyData", "Close("&$BX$2&") When Barix("&$BX$2&",reference:=StartOfSession)="&A23&"", "Bar", "", "Close","5","0","All",,,"False","T","EveryTick")) ->  | BZ23: =IF(D23=0,NA(),RTD("cqg.rtd",,"StudyData", "Close("&$BZ$2&") When Barix("&$BZ$2&",reference:=StartOfSession)="&A23&"", "Bar", "", "Close","5","0","All",,,"False","T","EveryTick")) -> 
A24: 20 | B24: =IF(D24=0,NA(),RTD("cqg.rtd",,"StudyData", "Close("&$B$2&") When Barix("&$B$2&",reference:=StartOfSession)="&A24&"", "Bar", "", "Close","5","0","All",,,"False","T","EveryTick")) ->  | C24: 10:10:00 | D24: 0 | F24: =IF(D24=0,NA(),RTD("cqg.rtd",,"StudyData", "Close("&$F$2&") When Barix("&$F$2&",reference:=StartOfSession)="&A24&"", "Bar", "", "Close","5","0","All",,,"False","T","EveryTick")) ->  | H24: =IF(D24=0,NA(),RTD("cqg.rtd",,"StudyData", "Close("&$H$2&") When Barix("&$H$2&",reference:=StartOfSession)="&A24&"", "Bar", "", "Close","5","0","All",,,"False","T","EveryTick")) ->  | J24: =IF(D24=0,NA(),RTD("cqg.rtd",,"StudyData", "Close("&$J$2&") When Barix("&$J$2&",reference:=StartOfSession)="&A24&"", "Bar", "", "Close","5","0","All",,,"False","T","EveryTick")) ->  | L24: =IF(D24=0,NA(),RTD("cqg.rtd",,"StudyData", "Close("&$L$2&") When Barix("&$L$2&",reference:=StartOfSession)="&A24&"", "Bar", "", "Close","5","0","All",,,"False","T","EveryTick")) ->  | N24: =IF(D24=0,NA(),RTD("cqg.rtd",,"StudyData", "Close("&$N$2&") When Barix("&$N$2&",reference:=StartOfSession)="&A24&"", "Bar", "", "Close","5","0","All",,,"False","T","EveryTick")) ->  | P24: =IF(D24=0,NA(),RTD("cqg.rtd",,"StudyData", "Close("&$P$2&") When Barix("&$P$2&",reference:=StartOfSession)="&A24&"", "Bar", "", "Close","5","0","All",,,"False","T","EveryTick")) ->  | R24: =IF(D24=0,NA(),RTD("cqg.rtd",,"StudyData", "Close("&$R$2&") When Barix("&$R$2&",reference:=StartOfSession)="&A24&"", "Bar", "", "Close","5","0","All",,,"False","T","EveryTick")) ->  | T24: =IF(D24=0,NA(),RTD("cqg.rtd",,"StudyData", "Close("&$T$2&") When Barix("&$T$2&",reference:=StartOfSession)="&A24&"", "Bar", "", "Close","5","0","All",,,"False","T","EveryTick")) ->  | V24: =IF(D24=0,NA(),RTD("cqg.rtd",,"StudyData", "Close("&$V$2&") When Barix("&$V$2&",reference:=StartOfSession)="&A24&"", "Bar", "", "Close","5","0","All",,,"False","T","EveryTick")) ->  | X24: =IF(D24=0,NA(),RTD("cqg.rtd",,"StudyData", "Close("&$X$2&") When Barix("&$X$2&",reference:=StartOfSession)="&A24&"", "Bar", "", "Close","5","0","All",,,"False","T","EveryTick")) ->  | Z24: =IF(D24=0,NA(),RTD("cqg.rtd",,"StudyData", "Close("&$Z$2&") When Barix("&$Z$2&",reference:=StartOfSession)="&A24&"", "Bar", "", "Close","5","0","All",,,"False","T","EveryTick")) ->  | AB24: =IF(D24=0,NA(),RTD("cqg.rtd",,"StudyData", "Close("&$AB$2&") When Barix("&$AB$2&",reference:=StartOfSession)="&A24&"", "Bar", "", "Close","5","0","All",,,"False","T","EveryTick")) ->  | AD24: =IF(D24=0,NA(),RTD("cqg.rtd",,"StudyData", "Close("&$AD$2&") When Barix("&$AD$2&",reference:=StartOfSession)="&A24&"", "Bar", "", "Close","5","0","All",,,"False","T","EveryTick")) ->  | AF24: =IF(D24=0,NA(),RTD("cqg.rtd",,"StudyData", "Close("&$AF$2&") When Barix("&$AF$2&",reference:=StartOfSession)="&A24&"", "Bar", "", "Close","5","0","All",,,"False","T","EveryTick")) ->  | AH24: =IF(D24=0,NA(),RTD("cqg.rtd",,"StudyData", "Close("&$AH$2&") When Barix("&$AH$2&",reference:=StartOfSession)="&A24&"", "Bar", "", "Close","5","0","All",,,"False","T","EveryTick")) ->  | AJ24: =IF(D24=0,NA(),RTD("cqg.rtd",,"StudyData", "Close("&$AJ$2&") When Barix("&$AJ$2&",reference:=StartOfSession)="&A24&"", "Bar", "", "Close","5","0","All",,,"False","T","EveryTick")) ->  | AL24: =IF(D24=0,NA(),RTD("cqg.rtd",,"StudyData", "Close("&$AL$2&") When Barix("&$AL$2&",reference:=StartOfSession)="&A24&"", "Bar", "", "Close","5","0","All",,,"False","T","EveryTick")) ->  | AN24: =IF(D24=0,NA(),RTD("cqg.rtd",,"StudyData", "Close("&$AN$2&") When Barix("&$AN$2&",reference:=StartOfSession)="&A24&"", "Bar", "", "Close","5","0","All",,,"False","T","EveryTick")) ->  | AP24: =IF(D24=0,NA(),RTD("cqg.rtd",,"StudyData", "Close("&$AN$2&") When Barix("&$AN$2&",reference:=StartOfSession)="&A24&"", "Bar", "", "Close","5","0","All",,,"False","T","EveryTick")) ->  | AR24: =IF(D24=0,NA(),RTD("cqg.rtd",,"StudyData", "Close("&$AR$2&") When Barix("&$AR$2&",reference:=StartOfSession)="&A24&"", "Bar", "", "Close","5","0","All",,,"False","T","EveryTick")) ->  | AT24: =IF(D24=0,NA(),RTD("cqg.rtd",,"StudyData", "Close("&$AT$2&") When Barix("&$AT$2&",reference:=StartOfSession)="&A24&"", "Bar", "", "Close","5","0","All",,,"False","T","EveryTick")) ->  | AV24: =IF(D24=0,NA(),RTD("cqg.rtd",,"StudyData", "Close("&$AV$2&") When Barix("&$AV$2&",reference:=StartOfSession)="&A24&"", "Bar", "", "Close","5","0","All",,,"False","T","EveryTick")) ->  | AX24: =IF(D24=0,NA(),RTD("cqg.rtd",,"StudyData", "Close("&$AX$2&") When Barix("&$AX$2&",reference:=StartOfSession)="&A24&"", "Bar", "", "Close","5","0","All",,,"False","T","EveryTick")) ->  | AZ24: =IF(D24=0,NA(),RTD("cqg.rtd",,"StudyData", "Close("&$AZ$2&") When Barix("&$AZ$2&",reference:=StartOfSession)="&A24&"", "Bar", "", "Close","5","0","All",,,"False","T","EveryTick")) ->  | BB24: =IF(D24=0,NA(),RTD("cqg.rtd",,"StudyData", "Close("&$BB$2&") When Barix("&$BB$2&",reference:=StartOfSession)="&A24&"", "Bar", "", "Close","5","0","All",,,"False","T","EveryTick")) ->  | BD24: =IF(D24=0,NA(),RTD("cqg.rtd",,"StudyData", "Close("&$BD$2&") When Barix("&$BD$2&",reference:=StartOfSession)="&A24&"", "Bar", "", "Close","5","0","All",,,"False","T","EveryTick")) ->  | BF24: =IF(D24=0,NA(),RTD("cqg.rtd",,"StudyData", "Close("&$BF$2&") When Barix("&$BF$2&",reference:=StartOfSession)="&A24&"", "Bar", "", "Close","5","0","All",,,"False","T","EveryTick")) ->  | BH24: =IF(D24=0,NA(),RTD("cqg.rtd",,"StudyData", "Close("&$BH$2&") When Barix("&$BH$2&",reference:=StartOfSession)="&A24&"", "Bar", "", "Close","5","0","All",,,"False","T","EveryTick")) ->  | BJ24: =IF(D24=0,NA(),RTD("cqg.rtd",,"StudyData", "Close("&$BJ$2&") When Barix("&$BJ$2&",reference:=StartOfSession)="&A24&"", "Bar", "", "Close","5","0","All",,,"False","T","EveryTick")) ->  | BL24: =IF(D24=0,NA(),RTD("cqg.rtd",,"StudyData", "Close("&$BL$2&") When Barix("&$BL$2&",reference:=StartOfSession)="&A24&"", "Bar", "", "Close","5","0","All",,,"False","T","EveryTick")) ->  | BN24: =IF(D24=0,NA(),RTD("cqg.rtd",,"StudyData", "Close("&$BN$2&") When Barix("&$BN$2&",reference:=StartOfSession)="&A24&"", "Bar", "", "Close","5","0","All",,,"False","T","EveryTick")) ->  | BP24: =IF(D24=0,NA(),RTD("cqg.rtd",,"StudyData", "Close("&$BP$2&") When Barix("&$BP$2&",reference:=StartOfSession)="&A24&"", "Bar", "", "Close","5","0","All",,,"False","T","EveryTick")) ->  | BR24: =IF(D24=0,NA(),RTD("cqg.rtd",,"StudyData", "Close("&$BR$2&") When Barix("&$BR$2&",reference:=StartOfSession)="&A24&"", "Bar", "", "Close","5","0","All",,,"False","T","EveryTick")) ->  | BT24: =IF(D24=0,NA(),RTD("cqg.rtd",,"StudyData", "Close("&$BT$2&") When Barix("&$BT$2&",reference:=StartOfSession)="&A24&"", "Bar", "", "Close","5","0","All",,,"False","T","EveryTick")) ->  | BV24: =IF(D24=0,NA(),RTD("cqg.rtd",,"StudyData", "Close("&$BV$2&") When Barix("&$BV$2&",reference:=StartOfSession)="&A24&"", "Bar", "", "Close","5","0","All",,,"False","T","EveryTick")) ->  | BX24: =IF(D24=0,NA(),RTD("cqg.rtd",,"StudyData", "Close("&$BX$2&") When Barix("&$BX$2&",reference:=StartOfSession)="&A24&"", "Bar", "", "Close","5","0","All",,,"False","T","EveryTick")) ->  | BZ24: =IF(D24=0,NA(),RTD("cqg.rtd",,"StudyData", "Close("&$BZ$2&") When Barix("&$BZ$2&",reference:=StartOfSession)="&A24&"", "Bar", "", "Close","5","0","All",,,"False","T","EveryTick")) -> 
A25: 21 | B25: =IF(D25=0,NA(),RTD("cqg.rtd",,"StudyData", "Close("&$B$2&") When Barix("&$B$2&",reference:=StartOfSession)="&A25&"", "Bar", "", "Close","5","0","All",,,"False","T","EveryTick")) ->  | C25: 10:15:00 | D25: 0 | F25: =IF(D25=0,NA(),RTD("cqg.rtd",,"StudyData", "Close("&$F$2&") When Barix("&$F$2&",reference:=StartOfSession)="&A25&"", "Bar", "", "Close","5","0","All",,,"False","T","EveryTick")) ->  | H25: =IF(D25=0,NA(),RTD("cqg.rtd",,"StudyData", "Close("&$H$2&") When Barix("&$H$2&",reference:=StartOfSession)="&A25&"", "Bar", "", "Close","5","0","All",,,"False","T","EveryTick")) ->  | J25: =IF(D25=0,NA(),RTD("cqg.rtd",,"StudyData", "Close("&$J$2&") When Barix("&$J$2&",reference:=StartOfSession)="&A25&"", "Bar", "", "Close","5","0","All",,,"False","T","EveryTick")) ->  | L25: =IF(D25=0,NA(),RTD("cqg.rtd",,"StudyData", "Close("&$L$2&") When Barix("&$L$2&",reference:=StartOfSession)="&A25&"", "Bar", "", "Close","5","0","All",,,"False","T","EveryTick")) ->  | N25: =IF(D25=0,NA(),RTD("cqg.rtd",,"StudyData", "Close("&$N$2&") When Barix("&$N$2&",reference:=StartOfSession)="&A25&"", "Bar", "", "Close","5","0","All",,,"False","T","EveryTick")) ->  | P25: =IF(D25=0,NA(),RTD("cqg.rtd",,"StudyData", "Close("&$P$2&") When Barix("&$P$2&",reference:=StartOfSession)="&A25&"", "Bar", "", "Close","5","0","All",,,"False","T","EveryTick")) ->  | R25: =IF(D25=0,NA(),RTD("cqg.rtd",,"StudyData", "Close("&$R$2&") When Barix("&$R$2&",reference:=StartOfSession)="&A25&"", "Bar", "", "Close","5","0","All",,,"False","T","EveryTick")) ->  | T25: =IF(D25=0,NA(),RTD("cqg.rtd",,"StudyData", "Close("&$T$2&") When Barix("&$T$2&",reference:=StartOfSession)="&A25&"", "Bar", "", "Close","5","0","All",,,"False","T","EveryTick")) ->  | V25: =IF(D25=0,NA(),RTD("cqg.rtd",,"StudyData", "Close("&$V$2&") When Barix("&$V$2&",reference:=StartOfSession)="&A25&"", "Bar", "", "Close","5","0","All",,,"False","T","EveryTick")) ->  | X25: =IF(D25=0,NA(),RTD("cqg.rtd",,"StudyData", "Close("&$X$2&") When Barix("&$X$2&",reference:=StartOfSession)="&A25&"", "Bar", "", "Close","5","0","All",,,"False","T","EveryTick")) ->  | Z25: =IF(D25=0,NA(),RTD("cqg.rtd",,"StudyData", "Close("&$Z$2&") When Barix("&$Z$2&",reference:=StartOfSession)="&A25&"", "Bar", "", "Close","5","0","All",,,"False","T","EveryTick")) ->  | AB25: =IF(D25=0,NA(),RTD("cqg.rtd",,"StudyData", "Close("&$AB$2&") When Barix("&$AB$2&",reference:=StartOfSession)="&A25&"", "Bar", "", "Close","5","0","All",,,"False","T","EveryTick")) ->  | AD25: =IF(D25=0,NA(),RTD("cqg.rtd",,"StudyData", "Close("&$AD$2&") When Barix("&$AD$2&",reference:=StartOfSession)="&A25&"", "Bar", "", "Close","5","0","All",,,"False","T","EveryTick")) ->  | AF25: =IF(D25=0,NA(),RTD("cqg.rtd",,"StudyData", "Close("&$AF$2&") When Barix("&$AF$2&",reference:=StartOfSession)="&A25&"", "Bar", "", "Close","5","0","All",,,"False","T","EveryTick")) ->  | AH25: =IF(D25=0,NA(),RTD("cqg.rtd",,"StudyData", "Close("&$AH$2&") When Barix("&$AH$2&",reference:=StartOfSession)="&A25&"", "Bar", "", "Close","5","0","All",,,"False","T","EveryTick")) ->  | AJ25: =IF(D25=0,NA(),RTD("cqg.rtd",,"StudyData", "Close("&$AJ$2&") When Barix("&$AJ$2&",reference:=StartOfSession)="&A25&"", "Bar", "", "Close","5","0","All",,,"False","T","EveryTick")) ->  | AL25: =IF(D25=0,NA(),RTD("cqg.rtd",,"StudyData", "Close("&$AL$2&") When Barix("&$AL$2&",reference:=StartOfSession)="&A25&"", "Bar", "", "Close","5","0","All",,,"False","T","EveryTick")) ->  | AN25: =IF(D25=0,NA(),RTD("cqg.rtd",,"StudyData", "Close("&$AN$2&") When Barix("&$AN$2&",reference:=StartOfSession)="&A25&"", "Bar", "", "Close","5","0","All",,,"False","T","EveryTick")) ->  | AP25: =IF(D25=0,NA(),RTD("cqg.rtd",,"StudyData", "Close("&$AN$2&") When Barix("&$AN$2&",reference:=StartOfSession)="&A25&"", "Bar", "", "Close","5","0","All",,,"False","T","EveryTick")) ->  | AR25: =IF(D25=0,NA(),RTD("cqg.rtd",,"StudyData", "Close("&$AR$2&") When Barix("&$AR$2&",reference:=StartOfSession)="&A25&"", "Bar", "", "Close","5","0","All",,,"False","T","EveryTick")) ->  | AT25: =IF(D25=0,NA(),RTD("cqg.rtd",,"StudyData", "Close("&$AT$2&") When Barix("&$AT$2&",reference:=StartOfSession)="&A25&"", "Bar", "", "Close","5","0","All",,,"False","T","EveryTick")) ->  | AV25: =IF(D25=0,NA(),RTD("cqg.rtd",,"StudyData", "Close("&$AV$2&") When Barix("&$AV$2&",reference:=StartOfSession)="&A25&"", "Bar", "", "Close","5","0","All",,,"False","T","EveryTick")) ->  | AX25: =IF(D25=0,NA(),RTD("cqg.rtd",,"StudyData", "Close("&$AX$2&") When Barix("&$AX$2&",reference:=StartOfSession)="&A25&"", "Bar", "", "Close","5","0","All",,,"False","T","EveryTick")) ->  | AZ25: =IF(D25=0,NA(),RTD("cqg.rtd",,"StudyData", "Close("&$AZ$2&") When Barix("&$AZ$2&",reference:=StartOfSession)="&A25&"", "Bar", "", "Close","5","0","All",,,"False","T","EveryTick")) ->  | BB25: =IF(D25=0,NA(),RTD("cqg.rtd",,"StudyData", "Close("&$BB$2&") When Barix("&$BB$2&",reference:=StartOfSession)="&A25&"", "Bar", "", "Close","5","0","All",,,"False","T","EveryTick")) ->  | BD25: =IF(D25=0,NA(),RTD("cqg.rtd",,"StudyData", "Close("&$BD$2&") When Barix("&$BD$2&",reference:=StartOfSession)="&A25&"", "Bar", "", "Close","5","0","All",,,"False","T","EveryTick")) ->  | BF25: =IF(D25=0,NA(),RTD("cqg.rtd",,"StudyData", "Close("&$BF$2&") When Barix("&$BF$2&",reference:=StartOfSession)="&A25&"", "Bar", "", "Close","5","0","All",,,"False","T","EveryTick")) ->  | BH25: =IF(D25=0,NA(),RTD("cqg.rtd",,"StudyData", "Close("&$BH$2&") When Barix("&$BH$2&",reference:=StartOfSession)="&A25&"", "Bar", "", "Close","5","0","All",,,"False","T","EveryTick")) ->  | BJ25: =IF(D25=0,NA(),RTD("cqg.rtd",,"StudyData", "Close("&$BJ$2&") When Barix("&$BJ$2&",reference:=StartOfSession)="&A25&"", "Bar", "", "Close","5","0","All",,,"False","T","EveryTick")) ->  | BL25: =IF(D25=0,NA(),RTD("cqg.rtd",,"StudyData", "Close("&$BL$2&") When Barix("&$BL$2&",reference:=StartOfSession)="&A25&"", "Bar", "", "Close","5","0","All",,,"False","T","EveryTick")) ->  | BN25: =IF(D25=0,NA(),RTD("cqg.rtd",,"StudyData", "Close("&$BN$2&") When Barix("&$BN$2&",reference:=StartOfSession)="&A25&"", "Bar", "", "Close","5","0","All",,,"False","T","EveryTick")) ->  | BP25: =IF(D25=0,NA(),RTD("cqg.rtd",,"StudyData", "Close("&$BP$2&") When Barix("&$BP$2&",reference:=StartOfSession)="&A25&"", "Bar", "", "Close","5","0","All",,,"False","T","EveryTick")) ->  | BR25: =IF(D25=0,NA(),RTD("cqg.rtd",,"StudyData", "Close("&$BR$2&") When Barix("&$BR$2&",reference:=StartOfSession)="&A25&"", "Bar", "", "Close","5","0","All",,,"False","T","EveryTick")) ->  | BT25: =IF(D25=0,NA(),RTD("cqg.rtd",,"StudyData", "Close("&$BT$2&") When Barix("&$BT$2&",reference:=StartOfSession)="&A25&"", "Bar", "", "Close","5","0","All",,,"False","T","EveryTick")) ->  | BV25: =IF(D25=0,NA(),RTD("cqg.rtd",,"StudyData", "Close("&$BV$2&") When Barix("&$BV$2&",reference:=StartOfSession)="&A25&"", "Bar", "", "Close","5","0","All",,,"False","T","EveryTick")) ->  | BX25: =IF(D25=0,NA(),RTD("cqg.rtd",,"StudyData", "Close("&$BX$2&") When Barix("&$BX$2&",reference:=StartOfSession)="&A25&"", "Bar", "", "Close","5","0","All",,,"False","T","EveryTick")) ->  | BZ25: =IF(D25=0,NA(),RTD("cqg.rtd",,"StudyData", "Close("&$BZ$2&") When Barix("&$BZ$2&",reference:=StartOfSession)="&A25&"", "Bar", "", "Close","5","0","All",,,"False","T","EveryTick")) -> 
A26: 22 | B26: =IF(D26=0,NA(),RTD("cqg.rtd",,"StudyData", "Close("&$B$2&") When Barix("&$B$2&",reference:=StartOfSession)="&A26&"", "Bar", "", "Close","5","0","All",,,"False","T","EveryTick")) ->  | C26: 10:20:00 | D26: 0 | F26: =IF(D26=0,NA(),RTD("cqg.rtd",,"StudyData", "Close("&$F$2&") When Barix("&$F$2&",reference:=StartOfSession)="&A26&"", "Bar", "", "Close","5","0","All",,,"False","T","EveryTick")) ->  | H26: =IF(D26=0,NA(),RTD("cqg.rtd",,"StudyData", "Close("&$H$2&") When Barix("&$H$2&",reference:=StartOfSession)="&A26&"", "Bar", "", "Close","5","0","All",,,"False","T","EveryTick")) ->  | J26: =IF(D26=0,NA(),RTD("cqg.rtd",,"StudyData", "Close("&$J$2&") When Barix("&$J$2&",reference:=StartOfSession)="&A26&"", "Bar", "", "Close","5","0","All",,,"False","T","EveryTick")) ->  | L26: =IF(D26=0,NA(),RTD("cqg.rtd",,"StudyData", "Close("&$L$2&") When Barix("&$L$2&",reference:=StartOfSession)="&A26&"", "Bar", "", "Close","5","0","All",,,"False","T","EveryTick")) ->  | N26: =IF(D26=0,NA(),RTD("cqg.rtd",,"StudyData", "Close("&$N$2&") When Barix("&$N$2&",reference:=StartOfSession)="&A26&"", "Bar", "", "Close","5","0","All",,,"False","T","EveryTick")) ->  | P26: =IF(D26=0,NA(),RTD("cqg.rtd",,"StudyData", "Close("&$P$2&") When Barix("&$P$2&",reference:=StartOfSession)="&A26&"", "Bar", "", "Close","5","0","All",,,"False","T","EveryTick")) ->  | R26: =IF(D26=0,NA(),RTD("cqg.rtd",,"StudyData", "Close("&$R$2&") When Barix("&$R$2&",reference:=StartOfSession)="&A26&"", "Bar", "", "Close","5","0","All",,,"False","T","EveryTick")) ->  | T26: =IF(D26=0,NA(),RTD("cqg.rtd",,"StudyData", "Close("&$T$2&") When Barix("&$T$2&",reference:=StartOfSession)="&A26&"", "Bar", "", "Close","5","0","All",,,"False","T","EveryTick")) ->  | V26: =IF(D26=0,NA(),RTD("cqg.rtd",,"StudyData", "Close("&$V$2&") When Barix("&$V$2&",reference:=StartOfSession)="&A26&"", "Bar", "", "Close","5","0","All",,,"False","T","EveryTick")) ->  | X26: =IF(D26=0,NA(),RTD("cqg.rtd",,"StudyData", "Close("&$X$2&") When Barix("&$X$2&",reference:=StartOfSession)="&A26&"", "Bar", "", "Close","5","0","All",,,"False","T","EveryTick")) ->  | Z26: =IF(D26=0,NA(),RTD("cqg.rtd",,"StudyData", "Close("&$Z$2&") When Barix("&$Z$2&",reference:=StartOfSession)="&A26&"", "Bar", "", "Close","5","0","All",,,"False","T","EveryTick")) ->  | AB26: =IF(D26=0,NA(),RTD("cqg.rtd",,"StudyData", "Close("&$AB$2&") When Barix("&$AB$2&",reference:=StartOfSession)="&A26&"", "Bar", "", "Close","5","0","All",,,"False","T","EveryTick")) ->  | AD26: =IF(D26=0,NA(),RTD("cqg.rtd",,"StudyData", "Close("&$AD$2&") When Barix("&$AD$2&",reference:=StartOfSession)="&A26&"", "Bar", "", "Close","5","0","All",,,"False","T","EveryTick")) ->  | AF26: =IF(D26=0,NA(),RTD("cqg.rtd",,"StudyData", "Close("&$AF$2&") When Barix("&$AF$2&",reference:=StartOfSession)="&A26&"", "Bar", "", "Close","5","0","All",,,"False","T","EveryTick")) ->  | AH26: =IF(D26=0,NA(),RTD("cqg.rtd",,"StudyData", "Close("&$AH$2&") When Barix("&$AH$2&",reference:=StartOfSession)="&A26&"", "Bar", "", "Close","5","0","All",,,"False","T","EveryTick")) ->  | AJ26: =IF(D26=0,NA(),RTD("cqg.rtd",,"StudyData", "Close("&$AJ$2&") When Barix("&$AJ$2&",reference:=StartOfSession)="&A26&"", "Bar", "", "Close","5","0","All",,,"False","T","EveryTick")) ->  | AL26: =IF(D26=0,NA(),RTD("cqg.rtd",,"StudyData", "Close("&$AL$2&") When Barix("&$AL$2&",reference:=StartOfSession)="&A26&"", "Bar", "", "Close","5","0","All",,,"False","T","EveryTick")) ->  | AN26: =IF(D26=0,NA(),RTD("cqg.rtd",,"StudyData", "Close("&$AN$2&") When Barix("&$AN$2&",reference:=StartOfSession)="&A26&"", "Bar", "", "Close","5","0","All",,,"False","T","EveryTick")) ->  | AP26: =IF(D26=0,NA(),RTD("cqg.rtd",,"StudyData", "Close("&$AN$2&") When Barix("&$AN$2&",reference:=StartOfSession)="&A26&"", "Bar", "", "Close","5","0","All",,,"False","T","EveryTick")) ->  | AR26: =IF(D26=0,NA(),RTD("cqg.rtd",,"StudyData", "Close("&$AR$2&") When Barix("&$AR$2&",reference:=StartOfSession)="&A26&"", "Bar", "", "Close","5","0","All",,,"False","T","EveryTick")) ->  | AT26: =IF(D26=0,NA(),RTD("cqg.rtd",,"StudyData", "Close("&$AT$2&") When Barix("&$AT$2&",reference:=StartOfSession)="&A26&"", "Bar", "", "Close","5","0","All",,,"False","T","EveryTick")) ->  | AV26: =IF(D26=0,NA(),RTD("cqg.rtd",,"StudyData", "Close("&$AV$2&") When Barix("&$AV$2&",reference:=StartOfSession)="&A26&"", "Bar", "", "Close","5","0","All",,,"False","T","EveryTick")) ->  | AX26: =IF(D26=0,NA(),RTD("cqg.rtd",,"StudyData", "Close("&$AX$2&") When Barix("&$AX$2&",reference:=StartOfSession)="&A26&"", "Bar", "", "Close","5","0","All",,,"False","T","EveryTick")) ->  | AZ26: =IF(D26=0,NA(),RTD("cqg.rtd",,"StudyData", "Close("&$AZ$2&") When Barix("&$AZ$2&",reference:=StartOfSession)="&A26&"", "Bar", "", "Close","5","0","All",,,"False","T","EveryTick")) ->  | BB26: =IF(D26=0,NA(),RTD("cqg.rtd",,"StudyData", "Close("&$BB$2&") When Barix("&$BB$2&",reference:=StartOfSession)="&A26&"", "Bar", "", "Close","5","0","All",,,"False","T","EveryTick")) ->  | BD26: =IF(D26=0,NA(),RTD("cqg.rtd",,"StudyData", "Close("&$BD$2&") When Barix("&$BD$2&",reference:=StartOfSession)="&A26&"", "Bar", "", "Close","5","0","All",,,"False","T","EveryTick")) ->  | BF26: =IF(D26=0,NA(),RTD("cqg.rtd",,"StudyData", "Close("&$BF$2&") When Barix("&$BF$2&",reference:=StartOfSession)="&A26&"", "Bar", "", "Close","5","0","All",,,"False","T","EveryTick")) ->  | BH26: =IF(D26=0,NA(),RTD("cqg.rtd",,"StudyData", "Close("&$BH$2&") When Barix("&$BH$2&",reference:=StartOfSession)="&A26&"", "Bar", "", "Close","5","0","All",,,"False","T","EveryTick")) ->  | BJ26: =IF(D26=0,NA(),RTD("cqg.rtd",,"StudyData", "Close("&$BJ$2&") When Barix("&$BJ$2&",reference:=StartOfSession)="&A26&"", "Bar", "", "Close","5","0","All",,,"False","T","EveryTick")) ->  | BL26: =IF(D26=0,NA(),RTD("cqg.rtd",,"StudyData", "Close("&$BL$2&") When Barix("&$BL$2&",reference:=StartOfSession)="&A26&"", "Bar", "", "Close","5","0","All",,,"False","T","EveryTick")) ->  | BN26: =IF(D26=0,NA(),RTD("cqg.rtd",,"StudyData", "Close("&$BN$2&") When Barix("&$BN$2&",reference:=StartOfSession)="&A26&"", "Bar", "", "Close","5","0","All",,,"False","T","EveryTick")) ->  | BP26: =IF(D26=0,NA(),RTD("cqg.rtd",,"StudyData", "Close("&$BP$2&") When Barix("&$BP$2&",reference:=StartOfSession)="&A26&"", "Bar", "", "Close","5","0","All",,,"False","T","EveryTick")) ->  | BR26: =IF(D26=0,NA(),RTD("cqg.rtd",,"StudyData", "Close("&$BR$2&") When Barix("&$BR$2&",reference:=StartOfSession)="&A26&"", "Bar", "", "Close","5","0","All",,,"False","T","EveryTick")) ->  | BT26: =IF(D26=0,NA(),RTD("cqg.rtd",,"StudyData", "Close("&$BT$2&") When Barix("&$BT$2&",reference:=StartOfSession)="&A26&"", "Bar", "", "Close","5","0","All",,,"False","T","EveryTick")) ->  | BV26: =IF(D26=0,NA(),RTD("cqg.rtd",,"StudyData", "Close("&$BV$2&") When Barix("&$BV$2&",reference:=StartOfSession)="&A26&"", "Bar", "", "Close","5","0","All",,,"False","T","EveryTick")) ->  | BX26: =IF(D26=0,NA(),RTD("cqg.rtd",,"StudyData", "Close("&$BX$2&") When Barix("&$BX$2&",reference:=StartOfSession)="&A26&"", "Bar", "", "Close","5","0","All",,,"False","T","EveryTick")) ->  | BZ26: =IF(D26=0,NA(),RTD("cqg.rtd",,"StudyData", "Close("&$BZ$2&") When Barix("&$BZ$2&",reference:=StartOfSession)="&A26&"", "Bar", "", "Close","5","0","All",,,"False","T","EveryTick")) -> 
A27: 23 | B27: =IF(D27=0,NA(),RTD("cqg.rtd",,"StudyData", "Close("&$B$2&") When Barix("&$B$2&",reference:=StartOfSession)="&A27&"", "Bar", "", "Close","5","0","All",,,"False","T","EveryTick")) ->  | C27: 10:25:00 | D27: 0 | F27: =IF(D27=0,NA(),RTD("cqg.rtd",,"StudyData", "Close("&$F$2&") When Barix("&$F$2&",reference:=StartOfSession)="&A27&"", "Bar", "", "Close","5","0","All",,,"False","T","EveryTick")) ->  | H27: =IF(D27=0,NA(),RTD("cqg.rtd",,"StudyData", "Close("&$H$2&") When Barix("&$H$2&",reference:=StartOfSession)="&A27&"", "Bar", "", "Close","5","0","All",,,"False","T","EveryTick")) ->  | J27: =IF(D27=0,NA(),RTD("cqg.rtd",,"StudyData", "Close("&$J$2&") When Barix("&$J$2&",reference:=StartOfSession)="&A27&"", "Bar", "", "Close","5","0","All",,,"False","T","EveryTick")) ->  | L27: =IF(D27=0,NA(),RTD("cqg.rtd",,"StudyData", "Close("&$L$2&") When Barix("&$L$2&",reference:=StartOfSession)="&A27&"", "Bar", "", "Close","5","0","All",,,"False","T","EveryTick")) ->  | N27: =IF(D27=0,NA(),RTD("cqg.rtd",,"StudyData", "Close("&$N$2&") When Barix("&$N$2&",reference:=StartOfSession)="&A27&"", "Bar", "", "Close","5","0","All",,,"False","T","EveryTick")) ->  | P27: =IF(D27=0,NA(),RTD("cqg.rtd",,"StudyData", "Close("&$P$2&") When Barix("&$P$2&",reference:=StartOfSession)="&A27&"", "Bar", "", "Close","5","0","All",,,"False","T","EveryTick")) ->  | R27: =IF(D27=0,NA(),RTD("cqg.rtd",,"StudyData", "Close("&$R$2&") When Barix("&$R$2&",reference:=StartOfSession)="&A27&"", "Bar", "", "Close","5","0","All",,,"False","T","EveryTick")) ->  | T27: =IF(D27=0,NA(),RTD("cqg.rtd",,"StudyData", "Close("&$T$2&") When Barix("&$T$2&",reference:=StartOfSession)="&A27&"", "Bar", "", "Close","5","0","All",,,"False","T","EveryTick")) ->  | V27: =IF(D27=0,NA(),RTD("cqg.rtd",,"StudyData", "Close("&$V$2&") When Barix("&$V$2&",reference:=StartOfSession)="&A27&"", "Bar", "", "Close","5","0","All",,,"False","T","EveryTick")) ->  | X27: =IF(D27=0,NA(),RTD("cqg.rtd",,"StudyData", "Close("&$X$2&") When Barix("&$X$2&",reference:=StartOfSession)="&A27&"", "Bar", "", "Close","5","0","All",,,"False","T","EveryTick")) ->  | Z27: =IF(D27=0,NA(),RTD("cqg.rtd",,"StudyData", "Close("&$Z$2&") When Barix("&$Z$2&",reference:=StartOfSession)="&A27&"", "Bar", "", "Close","5","0","All",,,"False","T","EveryTick")) ->  | AB27: =IF(D27=0,NA(),RTD("cqg.rtd",,"StudyData", "Close("&$AB$2&") When Barix("&$AB$2&",reference:=StartOfSession)="&A27&"", "Bar", "", "Close","5","0","All",,,"False","T","EveryTick")) ->  | AD27: =IF(D27=0,NA(),RTD("cqg.rtd",,"StudyData", "Close("&$AD$2&") When Barix("&$AD$2&",reference:=StartOfSession)="&A27&"", "Bar", "", "Close","5","0","All",,,"False","T","EveryTick")) ->  | AF27: =IF(D27=0,NA(),RTD("cqg.rtd",,"StudyData", "Close("&$AF$2&") When Barix("&$AF$2&",reference:=StartOfSession)="&A27&"", "Bar", "", "Close","5","0","All",,,"False","T","EveryTick")) ->  | AH27: =IF(D27=0,NA(),RTD("cqg.rtd",,"StudyData", "Close("&$AH$2&") When Barix("&$AH$2&",reference:=StartOfSession)="&A27&"", "Bar", "", "Close","5","0","All",,,"False","T","EveryTick")) ->  | AJ27: =IF(D27=0,NA(),RTD("cqg.rtd",,"StudyData", "Close("&$AJ$2&") When Barix("&$AJ$2&",reference:=StartOfSession)="&A27&"", "Bar", "", "Close","5","0","All",,,"False","T","EveryTick")) ->  | AL27: =IF(D27=0,NA(),RTD("cqg.rtd",,"StudyData", "Close("&$AL$2&") When Barix("&$AL$2&",reference:=StartOfSession)="&A27&"", "Bar", "", "Close","5","0","All",,,"False","T","EveryTick")) ->  | AN27: =IF(D27=0,NA(),RTD("cqg.rtd",,"StudyData", "Close("&$AN$2&") When Barix("&$AN$2&",reference:=StartOfSession)="&A27&"", "Bar", "", "Close","5","0","All",,,"False","T","EveryTick")) ->  | AP27: =IF(D27=0,NA(),RTD("cqg.rtd",,"StudyData", "Close("&$AN$2&") When Barix("&$AN$2&",reference:=StartOfSession)="&A27&"", "Bar", "", "Close","5","0","All",,,"False","T","EveryTick")) ->  | AR27: =IF(D27=0,NA(),RTD("cqg.rtd",,"StudyData", "Close("&$AR$2&") When Barix("&$AR$2&",reference:=StartOfSession)="&A27&"", "Bar", "", "Close","5","0","All",,,"False","T","EveryTick")) ->  | AT27: =IF(D27=0,NA(),RTD("cqg.rtd",,"StudyData", "Close("&$AT$2&") When Barix("&$AT$2&",reference:=StartOfSession)="&A27&"", "Bar", "", "Close","5","0","All",,,"False","T","EveryTick")) ->  | AV27: =IF(D27=0,NA(),RTD("cqg.rtd",,"StudyData", "Close("&$AV$2&") When Barix("&$AV$2&",reference:=StartOfSession)="&A27&"", "Bar", "", "Close","5","0","All",,,"False","T","EveryTick")) ->  | AX27: =IF(D27=0,NA(),RTD("cqg.rtd",,"StudyData", "Close("&$AX$2&") When Barix("&$AX$2&",reference:=StartOfSession)="&A27&"", "Bar", "", "Close","5","0","All",,,"False","T","EveryTick")) ->  | AZ27: =IF(D27=0,NA(),RTD("cqg.rtd",,"StudyData", "Close("&$AZ$2&") When Barix("&$AZ$2&",reference:=StartOfSession)="&A27&"", "Bar", "", "Close","5","0","All",,,"False","T","EveryTick")) ->  | BB27: =IF(D27=0,NA(),RTD("cqg.rtd",,"StudyData", "Close("&$BB$2&") When Barix("&$BB$2&",reference:=StartOfSession)="&A27&"", "Bar", "", "Close","5","0","All",,,"False","T","EveryTick")) ->  | BD27: =IF(D27=0,NA(),RTD("cqg.rtd",,"StudyData", "Close("&$BD$2&") When Barix("&$BD$2&",reference:=StartOfSession)="&A27&"", "Bar", "", "Close","5","0","All",,,"False","T","EveryTick")) ->  | BF27: =IF(D27=0,NA(),RTD("cqg.rtd",,"StudyData", "Close("&$BF$2&") When Barix("&$BF$2&",reference:=StartOfSession)="&A27&"", "Bar", "", "Close","5","0","All",,,"False","T","EveryTick")) ->  | BH27: =IF(D27=0,NA(),RTD("cqg.rtd",,"StudyData", "Close("&$BH$2&") When Barix("&$BH$2&",reference:=StartOfSession)="&A27&"", "Bar", "", "Close","5","0","All",,,"False","T","EveryTick")) ->  | BJ27: =IF(D27=0,NA(),RTD("cqg.rtd",,"StudyData", "Close("&$BJ$2&") When Barix("&$BJ$2&",reference:=StartOfSession)="&A27&"", "Bar", "", "Close","5","0","All",,,"False","T","EveryTick")) ->  | BL27: =IF(D27=0,NA(),RTD("cqg.rtd",,"StudyData", "Close("&$BL$2&") When Barix("&$BL$2&",reference:=StartOfSession)="&A27&"", "Bar", "", "Close","5","0","All",,,"False","T","EveryTick")) ->  | BN27: =IF(D27=0,NA(),RTD("cqg.rtd",,"StudyData", "Close("&$BN$2&") When Barix("&$BN$2&",reference:=StartOfSession)="&A27&"", "Bar", "", "Close","5","0","All",,,"False","T","EveryTick")) ->  | BP27: =IF(D27=0,NA(),RTD("cqg.rtd",,"StudyData", "Close("&$BP$2&") When Barix("&$BP$2&",reference:=StartOfSession)="&A27&"", "Bar", "", "Close","5","0","All",,,"False","T","EveryTick")) ->  | BR27: =IF(D27=0,NA(),RTD("cqg.rtd",,"StudyData", "Close("&$BR$2&") When Barix("&$BR$2&",reference:=StartOfSession)="&A27&"", "Bar", "", "Close","5","0","All",,,"False","T","EveryTick")) ->  | BT27: =IF(D27=0,NA(),RTD("cqg.rtd",,"StudyData", "Close("&$BT$2&") When Barix("&$BT$2&",reference:=StartOfSession)="&A27&"", "Bar", "", "Close","5","0","All",,,"False","T","EveryTick")) ->  | BV27: =IF(D27=0,NA(),RTD("cqg.rtd",,"StudyData", "Close("&$BV$2&") When Barix("&$BV$2&",reference:=StartOfSession)="&A27&"", "Bar", "", "Close","5","0","All",,,"False","T","EveryTick")) ->  | BX27: =IF(D27=0,NA(),RTD("cqg.rtd",,"StudyData", "Close("&$BX$2&") When Barix("&$BX$2&",reference:=StartOfSession)="&A27&"", "Bar", "", "Close","5","0","All",,,"False","T","EveryTick")) ->  | BZ27: =IF(D27=0,NA(),RTD("cqg.rtd",,"StudyData", "Close("&$BZ$2&") When Barix("&$BZ$2&",reference:=StartOfSession)="&A27&"", "Bar", "", "Close","5","0","All",,,"False","T","EveryTick")) -> 
A28: 24 | B28: =IF(D28=0,NA(),RTD("cqg.rtd",,"StudyData", "Close("&$B$2&") When Barix("&$B$2&",reference:=StartOfSession)="&A28&"", "Bar", "", "Close","5","0","All",,,"False","T","EveryTick")) ->  | C28: 10:30:00 | D28: 0 | F28: =IF(D28=0,NA(),RTD("cqg.rtd",,"StudyData", "Close("&$F$2&") When Barix("&$F$2&",reference:=StartOfSession)="&A28&"", "Bar", "", "Close","5","0","All",,,"False","T","EveryTick")) ->  | H28: =IF(D28=0,NA(),RTD("cqg.rtd",,"StudyData", "Close("&$H$2&") When Barix("&$H$2&",reference:=StartOfSession)="&A28&"", "Bar", "", "Close","5","0","All",,,"False","T","EveryTick")) ->  | J28: =IF(D28=0,NA(),RTD("cqg.rtd",,"StudyData", "Close("&$J$2&") When Barix("&$J$2&",reference:=StartOfSession)="&A28&"", "Bar", "", "Close","5","0","All",,,"False","T","EveryTick")) ->  | L28: =IF(D28=0,NA(),RTD("cqg.rtd",,"StudyData", "Close("&$L$2&") When Barix("&$L$2&",reference:=StartOfSession)="&A28&"", "Bar", "", "Close","5","0","All",,,"False","T","EveryTick")) ->  | N28: =IF(D28=0,NA(),RTD("cqg.rtd",,"StudyData", "Close("&$N$2&") When Barix("&$N$2&",reference:=StartOfSession)="&A28&"", "Bar", "", "Close","5","0","All",,,"False","T","EveryTick")) ->  | P28: =IF(D28=0,NA(),RTD("cqg.rtd",,"StudyData", "Close("&$P$2&") When Barix("&$P$2&",reference:=StartOfSession)="&A28&"", "Bar", "", "Close","5","0","All",,,"False","T","EveryTick")) ->  | R28: =IF(D28=0,NA(),RTD("cqg.rtd",,"StudyData", "Close("&$R$2&") When Barix("&$R$2&",reference:=StartOfSession)="&A28&"", "Bar", "", "Close","5","0","All",,,"False","T","EveryTick")) ->  | T28: =IF(D28=0,NA(),RTD("cqg.rtd",,"StudyData", "Close("&$T$2&") When Barix("&$T$2&",reference:=StartOfSession)="&A28&"", "Bar", "", "Close","5","0","All",,,"False","T","EveryTick")) ->  | V28: =IF(D28=0,NA(),RTD("cqg.rtd",,"StudyData", "Close("&$V$2&") When Barix("&$V$2&",reference:=StartOfSession)="&A28&"", "Bar", "", "Close","5","0","All",,,"False","T","EveryTick")) ->  | X28: =IF(D28=0,NA(),RTD("cqg.rtd",,"StudyData", "Close("&$X$2&") When Barix("&$X$2&",reference:=StartOfSession)="&A28&"", "Bar", "", "Close","5","0","All",,,"False","T","EveryTick")) ->  | Z28: =IF(D28=0,NA(),RTD("cqg.rtd",,"StudyData", "Close("&$Z$2&") When Barix("&$Z$2&",reference:=StartOfSession)="&A28&"", "Bar", "", "Close","5","0","All",,,"False","T","EveryTick")) ->  | AB28: =IF(D28=0,NA(),RTD("cqg.rtd",,"StudyData", "Close("&$AB$2&") When Barix("&$AB$2&",reference:=StartOfSession)="&A28&"", "Bar", "", "Close","5","0","All",,,"False","T","EveryTick")) ->  | AD28: =IF(D28=0,NA(),RTD("cqg.rtd",,"StudyData", "Close("&$AD$2&") When Barix("&$AD$2&",reference:=StartOfSession)="&A28&"", "Bar", "", "Close","5","0","All",,,"False","T","EveryTick")) ->  | AF28: =IF(D28=0,NA(),RTD("cqg.rtd",,"StudyData", "Close("&$AF$2&") When Barix("&$AF$2&",reference:=StartOfSession)="&A28&"", "Bar", "", "Close","5","0","All",,,"False","T","EveryTick")) ->  | AH28: =IF(D28=0,NA(),RTD("cqg.rtd",,"StudyData", "Close("&$AH$2&") When Barix("&$AH$2&",reference:=StartOfSession)="&A28&"", "Bar", "", "Close","5","0","All",,,"False","T","EveryTick")) ->  | AJ28: =IF(D28=0,NA(),RTD("cqg.rtd",,"StudyData", "Close("&$AJ$2&") When Barix("&$AJ$2&",reference:=StartOfSession)="&A28&"", "Bar", "", "Close","5","0","All",,,"False","T","EveryTick")) ->  | AL28: =IF(D28=0,NA(),RTD("cqg.rtd",,"StudyData", "Close("&$AL$2&") When Barix("&$AL$2&",reference:=StartOfSession)="&A28&"", "Bar", "", "Close","5","0","All",,,"False","T","EveryTick")) ->  | AN28: =IF(D28=0,NA(),RTD("cqg.rtd",,"StudyData", "Close("&$AN$2&") When Barix("&$AN$2&",reference:=StartOfSession)="&A28&"", "Bar", "", "Close","5","0","All",,,"False","T","EveryTick")) ->  | AP28: =IF(D28=0,NA(),RTD("cqg.rtd",,"StudyData", "Close("&$AN$2&") When Barix("&$AN$2&",reference:=StartOfSession)="&A28&"", "Bar", "", "Close","5","0","All",,,"False","T","EveryTick")) ->  | AR28: =IF(D28=0,NA(),RTD("cqg.rtd",,"StudyData", "Close("&$AR$2&") When Barix("&$AR$2&",reference:=StartOfSession)="&A28&"", "Bar", "", "Close","5","0","All",,,"False","T","EveryTick")) ->  | AT28: =IF(D28=0,NA(),RTD("cqg.rtd",,"StudyData", "Close("&$AT$2&") When Barix("&$AT$2&",reference:=StartOfSession)="&A28&"", "Bar", "", "Close","5","0","All",,,"False","T","EveryTick")) ->  | AV28: =IF(D28=0,NA(),RTD("cqg.rtd",,"StudyData", "Close("&$AV$2&") When Barix("&$AV$2&",reference:=StartOfSession)="&A28&"", "Bar", "", "Close","5","0","All",,,"False","T","EveryTick")) ->  | AX28: =IF(D28=0,NA(),RTD("cqg.rtd",,"StudyData", "Close("&$AX$2&") When Barix("&$AX$2&",reference:=StartOfSession)="&A28&"", "Bar", "", "Close","5","0","All",,,"False","T","EveryTick")) ->  | AZ28: =IF(D28=0,NA(),RTD("cqg.rtd",,"StudyData", "Close("&$AZ$2&") When Barix("&$AZ$2&",reference:=StartOfSession)="&A28&"", "Bar", "", "Close","5","0","All",,,"False","T","EveryTick")) ->  | BB28: =IF(D28=0,NA(),RTD("cqg.rtd",,"StudyData", "Close("&$BB$2&") When Barix("&$BB$2&",reference:=StartOfSession)="&A28&"", "Bar", "", "Close","5","0","All",,,"False","T","EveryTick")) ->  | BD28: =IF(D28=0,NA(),RTD("cqg.rtd",,"StudyData", "Close("&$BD$2&") When Barix("&$BD$2&",reference:=StartOfSession)="&A28&"", "Bar", "", "Close","5","0","All",,,"False","T","EveryTick")) ->  | BF28: =IF(D28=0,NA(),RTD("cqg.rtd",,"StudyData", "Close("&$BF$2&") When Barix("&$BF$2&",reference:=StartOfSession)="&A28&"", "Bar", "", "Close","5","0","All",,,"False","T","EveryTick")) ->  | BH28: =IF(D28=0,NA(),RTD("cqg.rtd",,"StudyData", "Close("&$BH$2&") When Barix("&$BH$2&",reference:=StartOfSession)="&A28&"", "Bar", "", "Close","5","0","All",,,"False","T","EveryTick")) ->  | BJ28: =IF(D28=0,NA(),RTD("cqg.rtd",,"StudyData", "Close("&$BJ$2&") When Barix("&$BJ$2&",reference:=StartOfSession)="&A28&"", "Bar", "", "Close","5","0","All",,,"False","T","EveryTick")) ->  | BL28: =IF(D28=0,NA(),RTD("cqg.rtd",,"StudyData", "Close("&$BL$2&") When Barix("&$BL$2&",reference:=StartOfSession)="&A28&"", "Bar", "", "Close","5","0","All",,,"False","T","EveryTick")) ->  | BN28: =IF(D28=0,NA(),RTD("cqg.rtd",,"StudyData", "Close("&$BN$2&") When Barix("&$BN$2&",reference:=StartOfSession)="&A28&"", "Bar", "", "Close","5","0","All",,,"False","T","EveryTick")) ->  | BP28: =IF(D28=0,NA(),RTD("cqg.rtd",,"StudyData", "Close("&$BP$2&") When Barix("&$BP$2&",reference:=StartOfSession)="&A28&"", "Bar", "", "Close","5","0","All",,,"False","T","EveryTick")) ->  | BR28: =IF(D28=0,NA(),RTD("cqg.rtd",,"StudyData", "Close("&$BR$2&") When Barix("&$BR$2&",reference:=StartOfSession)="&A28&"", "Bar", "", "Close","5","0","All",,,"False","T","EveryTick")) ->  | BT28: =IF(D28=0,NA(),RTD("cqg.rtd",,"StudyData", "Close("&$BT$2&") When Barix("&$BT$2&",reference:=StartOfSession)="&A28&"", "Bar", "", "Close","5","0","All",,,"False","T","EveryTick")) ->  | BV28: =IF(D28=0,NA(),RTD("cqg.rtd",,"StudyData", "Close("&$BV$2&") When Barix("&$BV$2&",reference:=StartOfSession)="&A28&"", "Bar", "", "Close","5","0","All",,,"False","T","EveryTick")) ->  | BX28: =IF(D28=0,NA(),RTD("cqg.rtd",,"StudyData", "Close("&$BX$2&") When Barix("&$BX$2&",reference:=StartOfSession)="&A28&"", "Bar", "", "Close","5","0","All",,,"False","T","EveryTick")) ->  | BZ28: =IF(D28=0,NA(),RTD("cqg.rtd",,"StudyData", "Close("&$BZ$2&") When Barix("&$BZ$2&",reference:=StartOfSession)="&A28&"", "Bar", "", "Close","5","0","All",,,"False","T","EveryTick")) -> 
